Workbook

Sheet LDC Info
AA3: Algoma Power Inc.
AA4: Atikokan Hydro Inc.
AA5: Attawapiskat Power Corporation
AA6: Bluewater Power Distribution Corporation
AA7: Brant County Power Inc.
AA8: Brantford Power Inc.
AA9: Burlington Hydro Inc.
AA10: Cambridge and North Dumfries Hydro Inc.
AA11: Canadian Niagara Power Inc.
AA12: Centre Wellington Hydro Ltd.
AA13: Chapleau Public Utilities Corporation
D14: Utility Name | E14: Milton Hydro Distribution Inc. | AA14: COLLUS PowerStream Corp.
AA15: Cooperative Hydro Embrun Inc.
D16: Assigned EB Number | E16: EB-2015-0089 | AA16: E.L.K. Energy Inc.
AA17: Enersource Hydro Mississauga Inc.
D18: Name of Contact and Title | E18: Cameron McKenzie, Director, Regulatory Affairs | AA18: Entegrus Powerlines Inc.
AA19: EnWin Utilities Ltd.
D20: Phone Number | E20: 289-429-5212 | AA20: Erie Thames Powerlines Corporation
AA21: Espanola Regional Hydro Distribution Corporation
D22: Email Address | E22: cameronmckenzie@miltonhydro.com | AA22: Essex Powerlines Corporation
AA23: Festival Hydro Inc.
D24: Test Year | E24: 2016 | AA24: Fort Albany Power Corporation
AA25: Fort Frances Power Corporation
D26: Bridge Year | E26: =IF(ISBLANK(E24), "", E24-1) -> 2015 | AA26: Greater Sudbury Hydro Inc.
AA27: Grimsby Power Inc.
D28: Last Rebasing Year | E28: 2011 | AA28: Guelph Hydro Electric Systems Inc.
AA29: Haldimand County Hydro Inc.
A30: Identify the accounting standard used for the test year | AA30: Halton Hills Hydro Inc.
E31: MIFRS | AA31: Hearst Power Distribution Company Limited
AA32: Horizon Utilities Corporation
A33: Did you update your depreciation and capitalization policies? | AA33: Hydro 2000 Inc.
E34: Yes | AA34: Hydro Hawkesbury Inc.
AA35: Hydro One Brampton Networks Inc.
A36: When did you update your depreciation and capitalization policies? | AA36: Hydro One Networks Inc.
E37: 2001-01-01 | F37: 2013 | AA37: Hydro One Remote Communities Inc.
AA38: Hydro Ottawa Limited
A39: Identify the year that the applicant has adopted or is expected to adopt IFRS for financial reporting purposes | AA39: Innpower Corporation
E40: 2015 or Later | AA40: Kashechewan Power Corporation
AA41: Kenora Hydro Electric Corporation Ltd.
AA42: Kingston Hydro Corporation
A43: Are you applying for cost recovery for the test and/or future year(s) for Green Energy initiatives? | AA43: Kitchener-Wilmot Hydro Inc.
E44: No | AA44: Lakefront Utilities Inc.
AA45: Lakeland Power Distribution Ltd.
A46: ="Is " & E14 & " an embedded distributor?" -> Is Milton Hydro Distribution Inc. an embedded distributor? | E46: Yes | AA46: London Hydro Inc.
AA47: Midland Power Utility Corporation
AA48: Milton Hydro Distribution Inc.
B49: Notes | AA49: Newmarket-Tay Power Distribution Ltd.
AA50: Niagara Peninsula Energy Inc.
C51: Pale green cells represent input cells. | AA51: Niagara-on-the-Lake Hydro Inc.
AA52: Norfolk Power Distribution Inc.
C53: Pale blue cells represent drop-down lists. The applicant should select the appropriate item from the drop-down list. | AA53: North Bay Hydro Distribution Limited
AA54: Northern Ontario Wires Inc.
C55: White cells contain fixed values, automatically generated values or formulae. | AA55: Oakville Hydro Electricity Distribution Inc.
AA56: Orangeville Hydro Limited
AA57: Orillia Power Distribution Corporation
AA58: Oshawa PUC Networks Inc.
AA59: Ottawa River Power Corporation
AA60: Peterborough Distribution Incorporated
AA61: PowerStream Inc.
AA62: PUC Distribution Inc.
AA63: Renfrew Hydro Inc.
AA64: Rideau St. Lawrence Distribution Inc.
AA65: Sioux Lookout Hydro Inc.
AA66: St. Thomas Energy Inc.
AA67: Thunder Bay Hydro Electricity Distribution Inc.
AA68: Tillsonburg Hydro Inc.
AA69: Toronto Hydro-Electric System Limited
AA70: Veridian Connections Inc.
AA71: Wasaga Distribution Inc.
AA72: Waterloo North Hydro Inc.
AA73: Welland Hydro-Electric System Corp.
AA74: Wellington North Power Inc.
AA75: West Coast Huron Energy Inc.
AA76: Westario Power Inc.
AA77: Whitby Hydro Electric Corporation
AA78: Woodstock Hydro Services Inc.

Sheet Index
A15: 1 | B15: LDC Information Sheet | E15: 28 | F15: App.2-G: Service Reliability Indicators
A16: 2 | B16: Index | E16: 29 | F16: App.2-H: Other Operating Revenue
A17: 3 | B17: Cost of Service Application Flowchart | E17: 30 | F17: App.2-I: Load Forecast CDM Adjustment Workform
A18: 4 | B18: List of Key References | E18: 31 | F18: App.2-IA: Actual and Forecast Load and Customer Data
A19: 5 | B19: App.2-AA: Capital Projects Table | E19: 32 | F19: App.2-JA: OM&A Summary Analysis
A20: 6 | B20: App.2-AB: Capital Expenditures | E20: 33 | F20: App.2-JB: Recoverable OM&A Cost Driver Table
A21: 7 | B21: App. 2-AC: Customer Engagement Worksheet | E21: 34 | F21: App.2-JC: OM&A Programs Table
A22: 8 | B22: App.2-B: General Accounting Instructions | E22: 35 | F22: App.2-K: Employee Costs
A23: 9 | B23: App.2-BA: Fixed Asset Continuity Schedule | E23: 36 | F23: App.2-L: Recoverable OM&A Cost per Customer and per FTE
A24: 10 | B24: Appendix 2-BB: Service Life Comparison | E24: 37 | F24: App.2-M: Regulatory Costs Schedule
A25: 11 | B25: App.2-CA: 2012 Depreciation and Amortization Expense (Old CGAAP) | E25: 38 | F25: App.2-N: Shared Servcies and Corporate Cost Allocation
A26: 12 | B26: App.2-CB: 2012 Depreciation and Amortization Expense (New CGAAP) | E26: 39 | F26: App.2-OA: Capital Structure and Cost of Capital
A27: 13 | B27: App.2-CC: 2013 Depreciation and Amortization Expense (New CGAAP) | E27: 40 | F27: App.2-OB: Debt Instruments
A28: 14 | B28: App.2-CD: 2014 Depreciation and Amortization Expense (MIFRS) | E28: 41 | F28: App.2-P: Cost Allocation
A29: 15 | B29: App.2-CE: 2015 Depreciation and Amortization Expense (MIFRS) | E29: 42 | F29: App.2-PA: New Rate Design Policy For Residential Customers
A30: 16 | B30: App.2-CF: 2015 Depreciation and Amortization Expense (MIFRS) | E30: 43 | F30: App.2-Q: Cost of Serving Embedded Distributor(s)
A31: 17 | B31: App.2-CG: 2013 Depreciation and Amortization Expense (Old CGAAP) | E31: 44 | F31: App.2-R: Loss Factors
A32: 18 | B32: App.2-CH: 2013 Depreciation and Amortization Expense (New CGAAP) | E32: 45 | F32: App.2-S: Stranded Meter Treatment
A33: 19 | B33: App.2-CI: 2014 Depreciation and Amortization Expense (MIFRS) | E33: 46 | F33: App.2-TA: Account 1592, PILs and Tax Variances
A34: 20 | B34: App.2-CJ: 2015 Depreciation and Amortization Expense (MIFRS) | E34: 47 | F34: App.2-TB: Account 1592, HST-OVAT Input Tax Credits
A35: 21 | B35: App.2-CK: 2016 Depreciation and Amortization Expense (MIFRS) | E35: 48 | F35: App.2-U: One-Time Incremental IFRS Transition Costs
A36: 22 | B36: App.2-D: Overhead Expenses | E36: 49 | F36: App.2-V: Revenue Reconciliation
A37: 23 | B37: App.2-EA: Account 1575 PP&E Deferral Account (2015 IFRS Adopters) | E37: 50 | F37: App.2-W: Bill Impacts
A38: 24 | B38: App.2-EB: Account 1576 - Accounting Changes Under CGAAP (2012 Changes) | E38: 51 | F38: App.2-Y: Transition to MIFRS Summary Impact
A39: 25 | B39: App.2-EC: Account 1576 - Accounting Changes Under CGAAP (2013 Changes) | E39: 52 | F39: App. 2-Z: Tariff Schedule
A40: 26 | B40: App.2-FA: Renewable Generation Connection Investment Summary
A41: 27 | B41: App.2-FB: Calculation of Renewable Generation Connection Direct Benefits/Provincial Amount: Renewable Enabling Improvement Investments
A42: 28 | B42: App.2-FC: Calculation of Renewable Generation Connection Direct Benefits/Provincial Amount: Renewable Expansion Investments

Sheet COS Flowchart
B4: Cost of Service Rate Application Schematic
B6: The Cost of Service Rate Application Schematic is a flowchart appended to Chapter 2 of the Filing Requirements as a guide for the components of an application and how demand and costs interrelate to derive the revenue requirement and then how the revenue requirement is allocated between classes and through fixed/variable splits to derive rates that will be compensatory for the annual revenue requirement, based on the the forecasted demand. There is no form to be filled out; therefore, this Schedule is not required to be filed.

Sheet List of Key References
B3: List of Key References
A5: A list of key references for understanding the Filing Requirements has been embedded in the document below. To access the list of references and associated hyperlinks double-click the icon below.

Sheet App.2-AA_Capital Projects
H1: File Number: | I1: =EBNUMBER -> EB-2015-0089
H2: Exhibit: | I2: 2
H3: Tab:
H4: Schedule: | I4: Table 2-27
H5: Page: | I5: 55
H7: Date: | I7: Aug 28, 2015
A9: Appendix 2-AA
A10: Capital Projects Table
A13: Projects | B13: 2011 OEB Approved | C13: =D13-1 -> 2011 | D13: =E13-1 -> 2012 | E13: =F13-1 -> 2013 | F13: =BridgeYear - 1 -> 2014 | G13: =BridgeYear & " Bridge Year" -> 2015 Bridge Year | H13: =TestYear & " Test Year" -> 2016 Test Year
A14: Reporting Basis | B14: CGAAP | C14: CGAAP | D14: CGAAP | E14: MIFRS | F14: MIFRS | G14: MIFRS | H14: MIFRS
A15: System Access
A16: Road Projects: 3rd party infrastructure requirments
A17: RR 25 Derry to Britannia 27.6 kV pole relocation - Road Project | C17: 5023.87 | D17: 5057.8206
A18: RR 25 JSP to 5 Sideroad - Road Project | B18: 112600 | C18: 163285 | D18: 9820.342561
A19: Tremaine Rd Derry to Main - Road Project | C19: 3652.81
A20: Britannia at 4th Line Relocation - Watermain | C20: 37418.85
A21: Derry to Walkers Intersection Improvements
A22: Bronte south of Derry to Louis St. Laurent - Road Project | B22: 412200 | C22: 538344
A23: Main St. Grade Separation - East of RR 25 | B23: 146000 | C23: 196489 | D23: =18262.15-1614.1 -> 16648.05
A24: 20 Sideroad east of Townline Relocate 8.32 kV - Road Project | B24: 99800 | C24: 104697
A25: Lower Base Line at 16 Mile Creek - Road Project | B25: 133700 | C25: 87202 | D25: 39037.97356 | E25: 38078.72
A26: Main St, Scott to Tremaine - Road Project | B26: 381700 | C26: 98587 | D26: 189839.8601 | E26: 30860
A27: James Snow Pkwy - Holgate to Boston Church - Road project | B27: 200000 | C27: 84393 | D27: =161929.81+223412.64 -> 385342.45 | E27: 168998 | F27: 233444.83
A28: RR 25 Britannia Rd to 407 - Road Project | B28: 1159900 | D28: 1432178.369 | E28: 7406.89
A29: Nineth Line Pole Extension | B29: 480000
A30: Main St. Bronte to Scott, 27.6 kV relocation for ROH | B30: 220000
A31: Steeles Ave at JSP - Recoverable | D31: 102571.6917
A32: Derry Rd CN Underpass - Recoverable | D32: 241011.7056 | E32: 73293
A33: Target Warehouse Automated | D33: 116679
A34: TOM: Main St, Bronte to Scott | F34: 251268.62
A35: ROH: Campbelleville Rd & Dublin | G35: 175300
A36: ROH: Tremaine, Britannia to Derry | F36: 290643.12
A37: ROH: New Tremaine Rd, 14th Side Road to Steeles | F37: 654320.01
A38: ROH: James Snow, extension to Campbellville (new Tremaine Rd) | F38: 176.32 | G38: 104640
A39: ROH: RR 25 S Derry at 16 Mile Creek bridge | F39: 145843.11
A40: ROH: Guelph Line Reconstruction (1 km north of Derry to Conservation) | G40: 197600
A41: ROH: Derry Rd - 2 lane Reconstruction form Millborough townline to McNiven | G41: 51100
A42: MTO: Hwy 25 & 401 Bridge Widening | G42: 296000
A43: MTO: JSP & 401 - replace cables | F43: 295903.09
A44: ROH: Steeles Ave. Grade Separation at CN Crossing west of Bronte St. | H44: 90600
A45: ROH: Steeles Ave Widening from Industrial Dr. to Martin St 2-4 lanes | H45: 284500
A46: ROH: Britannia Rd. from RR 25 to JSP 2-4 lanes (carried fwd from 2014) | H46: 1004800
A47: 129 town LSL from yates Dr. to RR25 | H47: 32700
A48: 136 Town Garden lane, 400m total, 100m of which is 3 phase | H48: 133000
A49: 131 Town 5th Line from LSL to Derry Rd. 1.5 km | H49: 415200
A50: 132 Town 5th Line form LSL to Britannia. 1.5km | H50: 397000
A51: ROH: Britannia Rd. from Tremaine to RR25 (1.8km) | H51: 403300
A52: TOM: Bronte St from Britannia to LSL | H52: 389900
A53: FIT Projects | B53: 50000
A54: Miscellaneous under Threshold | C54: 1054 | D54: 222370 | E54: 407885 | F54: 179702
A55: Road Projects Sub-Total | B55: =SUM(B17:B54) -> 3395900 | C55: 1320146.53 | D55: 2760557.263 | E55: 726521.61 | F55: 2051301.1 | G55: 824640 | H55: 3151000
A57: System Expansion - Development
A58: Subdivisions | B58: 4064574 | C58: 3076785 | D58: 4184615.697 | E58: 2290454 | F58: 4160552 | G58: 3780000 | H58: 3780000
A59: Louis St. Laurent Bridge Crossing - New Development
A60: Louis St. Laurent from Bridge to Bronte St - New Development | B60: 582100 | C60: 514364 | D60: 7608.893625
A61: Tremaine and Louis St Laurent - Development | D61: 52616.47106 | E61: 295466
A62: 200 Chisholm Drive | F62: 69417.15
A63: Miscellaneous under Threshold | C63: =-65546+84393+3137+9765-37419+10 -> -5660
A64: System Expansion Development -Sub-Total | B64: =SUM(B58:B63) -> 4646674 | C64: =SUM(C58:C63) -> 3585489 | D64: =SUM(D58:D63) -> 4244841.062 | E64: 2585920 | F64: 4229969.15 | G64: 3780000 | H64: 3780000
A66: New Customer Connections
A67: Lowes DC (James Snow Pkwy) commercial U/G | E67: 113108
A68: Milton #1 High School (Bronte & Louis) commercial UG | E68: 58305
A69: NE LSL & Bronte St Fieldgate Commercial | F69: 61921.06
A70: Costigan Road Bldg 2 & 3 | E70: 91434 | F70: 5233
A71: Conservation Road - 3 phase for FIT Customer | B71: 77200 | D71: 99118.96822
A72: Miscellaneous under Threshold | C72: 568796 | E72: 288612 | F72: =414115.04-5233 -> 408882.04 | G72: 661735 | H72: 681587
A73: New Customer Connections -Sub-Total | B73: =SUM(B67:B72) -> 77200 | C73: 568796 | D73: 99118.96822 | E73: 551459 | F73: 476036.1 | G73: 661735 | H73: 681587
A75: Meters
A76: Smart Meters from Reg Assets | E76: 220314
A77: Miscellaneous under Threshold | B77: 289170 | C77: 96003 | D77: =578144-118434+66899.8 -> 526609.8 | E77: 574015 | F77: 433061.59 | G77: 285365 | H77: 293926
A78: Meters -Sub-Total | B78: =SUM(B76:B77) -> 289170 | C78: =SUM(C76:C77) -> 96003 | D78: 526609.8 | E78: 794329 | F78: 433061.59 | G78: 285365 | H78: 293926
A79: System Access Total | B79: =+B78+B73+B64+B55 -> 8408944 | C79: =+C78+C73+C64+C55 -> 5570434.53 | D79: 7631127.094 | E79: 4658229.61 | F79: 7190367.94 | G79: 5551740 | H79: 7906513
A81: System Renewal
A82: O/H Rebuilds
A83: Derry - Twiss to McNiven rebuild & conversion to 27.6kV | C83: 51454.69
A84: 2nd Line 20 -25 Sideroad Rebuild | C84: 37126.96
A85: 20 Sideroad east of 2nd Line Rebuild | B85: 160000 | C85: 111428 | D85: 14528.24428
A86: Steeles Ave Ontario to Martin St 27.6kV Rebuild | B86: 287000 | C86: 326597 | D86: 113443.1674 | E86: 25411.94
A87: Maiden Lane Rebuild and Conversion to 27.6kV | B87: 75000 | C87: 111502
A88: Laurier Ave Rebuild and Conversion from 13.8kV to 27.6kV | B88: 131000 | C88: 138649
A89: Pearl St - Commercial St area Transformer Replacement | B89: 42500 | C89: 76374
A90: Conservation Road West of Twiss Rd Line Rebuild | B90: 98500 | D90: 243826.5451
A91: McNiven Road Phase 2 rebuild to 27.6kV | E91: 199486
A92: Twiss north of Derry Rd, Rebuild to 27.6 kV | E92: 176407
A93: Tremaine Rd, 14 Sideroad (Main St) to Steeles,Rebuild and 13.8 - 27.6 kV conversion | E93: 169250
A94: Given Lane 27.6kV Rebuild - from Main St to Tremaine Rd | E94: 117984
A95: Steeles at Bronte - CN Crossing | D95: 51540.76922 | E95: 85458
A96: Twiss Rd to KOA 27.6 loop | F96: 253620.63
A97: Esquesing Nassagaweya Townline Rebuild | E97: 83360
A98: Heatshrink Removals | B98: 25000 | C98: 46866
A99: Derry Road West of Guelph Line 27.6 Conversion | B99: 82500
A100: 12 Sideroad East of Walkers Line Rebuild 8kV line | B100: 48000
A101: U/G Conversion: Bronte Meadows Ph-3 | F101: 518682.39
A102: U/G Rebuild: Glenda Jane & Jessie Ave | F102: 318490.73
A103: O/H Conversion: McNiven Rd Phase 3 | F103: 158804.37
A104: O/H Rebuild: Guelph Line N 25 Side Road | F104: 7238.38 | G104: 377000
A105: O/H Conversion: No 1 Side Road W Tremaine | F105: 66762.06
A106: O/H Conversion: No 2 Side Road W Tremaine | F106: 70797.94
A107: U/G Rebuild: Morobel Drive | E107: 4249 | F107: 306357.51
A108: O/H Conversion: Mill Street | F108: 57838.11
A109: Derry Road: Tremaine to Applby Line | G109: 204300
A110: Derry Road: Appleby Line to Guelph Line | G110: 276000
A111: Derry Rd: Trafalgar to 8th Line | H111: 155000
A112: Sixth Line Nass South of 25 Side Rd. | H112: 322000
A113: Sixth Line Nass South of 20 Side Rd. | H113: 321400
A114: Miscellaneous Under Threshold | C114: =742+14140+30945+202170 -> 247997 | G114: 375000 | H114: 350000
A115: O/H Rebuilds -Sub-Total | B115: =SUM(B83:B114) -> 949500 | C115: 1147994.65 | D115: 423338.726 | E115: 861605.94 | F115: 1758592.12 | G115: 1232300 | H115: 1148400
A117: U/G Rebuilds
A118: Parkhill Drive - New Service Supply | B118: 106570 | C118: 106570
A119: Lawson Rd Service | B119: 209813 | C119: 209813
A120: Timberlea Area UG Rebuild | C120: 40717.93
A121: Bronte Meadows Primary Rebuild - Phase 1 | B121: 417000 | C121: 404365
A122: Dorset Park Primary Rebuild | B122: 149400 | C122: 120854 | D122: 67857.17
A123: 300 Bronte - convert to 27.6 kV | B123: 17500
A124: 497 Laurier - convert to 27.6kV | B124: 25500
A125: Dorset Park & Timberlee Conversion | D125: 244019.2428 | E125: 157992
A126: Parkhill Drive - Switch Installation | D126: 85383.16858
A127: Bronte Meadows Primary Rebuild - Phase 2 | E127: 933139
A128: Amos and Blacklock UG Rebuild | E128: 172950 | F128: 155315.02
A129: SC41 - Replace Elastimold | F129: 74548.92
A130: Highside Drive & Ridge Drive | G130: 240000
A131: Bronte Meadows Conversion - Arena Transformers | G131: 90000
A132: Main and Commercial | H132: 65000
A133: U/H Rebuilds -Sub-Total | B133: =SUM(B118:B132) -> 925783 | C133: =SUM(C118:C132) -> 882319.93 | D133: =SUM(D118:D132) -> 397259.5814 | E133: 1264081 | F133: 229863.94 | G133: 330000 | H133: 65000
A135: Pole Replacements
A136: Pole Replacements | B136: 124000 | C136: =247071+59712 -> 306783 | D136: =77428.2+94101.14 -> 171529.34 | E136: =107546+103750 -> 211296 | F136: =194260.69+109203.25 -> 303463.94 | G136: 375000 | H136: 500000
A137: Pole Replacements -Sub-Total | B137: =+B136 -> 124000 | C137: =+C136 -> 306783 | D137: =+D136 -> 171529.34 | E137: 211296 | F137: 303463.94 | G137: 375000 | H137: 500000
A139: Porcelain to Polymer Replacement
A140: Pole Reinsulation - from Porcelain to Polymer | B140: 0 | C140: 416091 | D140: 206035.6759 | E140: 180040 | F140: 355196.61 | G140: 150000 | H140: 150000
A141: Poreclain to Polymer Replacement -Sub-Total | B141: =+B140 -> 0 | C141: =+C140 -> 416091 | D141: =+D140 -> 206035.6759 | E141: 180040 | F141: 355196.61 | G141: 150000 | H141: 150000
A142: System Renewal Total | B142: =+B141+B137+B133+B115 -> 1999283 | C142: =+C141+C137+C133+C115 -> 2753188.58 | D142: =+D141+D137+D133+D115 -> 1198163.323 | E142: 2517022.94 | F142: 2647116.61 | G142: 2087300 | H142: 1863400
A144: System Service
A145: 27.6 kV Additions
A146: Automated three phase switches install: Cambelleville & Guelph Line area | B146: 255000 | C146: 337770 | F146: 20899 | G146: 250000
A147: WiMax - Automated Switches | G147: 120000 | H147: 120000
A148: WiMax 100 Meter Points | G148: 650000 | H148: 650000
A149: SCADA-Mates, Install Virelec Controller-20 locations | G149: 270000
A150: Communications Infrastructure | F150: 27227.69
A151: Install Fault Indicators with WIMAX | G151: 175000 | H151: 175000
A152: Install Automated Switches with WIMAX | H152: 194000
A153: Halton TS Relocate inline switches | B153: 19500
A154: Fuse Primary Runoffs | B154: 36000
A155: New Tremaine TS -Feeder Egress to Tremaine Rd | D155: 198191.1356
A156: Sixth Line Pole Line Rebuild - Glenorchy TS Egress | D156: 495280.3525 | E156: 72984
A157: Stringing on JSP and lower portion of Sixth Line - Glenorchy TS Egress | D157: 307656.9383 | E157: 109655
A158: Tremaine Road from TS to Lower Baseline to Henderson Road | D158: 1369813.411 | E158: 39572.74
A159: Fibre Connection to New Building | G159: 200000
A160: JSP, extend to Campbelleville (new Tremaine Rd) | G160: 205900
A161: MS#4 Conversion-rabbit | G161: 300000
A162: Miscellaneous under Threshold | B162: 49677 | C162: =24486+33105+32629 -> 90220 | E162: 231540 | F162: 201106.79
A163: 27.6 kV -Sub-Total | B163: =SUM(B146:B162) -> 360177 | C163: =SUM(C146:C162) -> 427990 | D163: =SUM(D146:D162) -> 2370941.838 | E163: 453751.74 | F163: 249233.48 | G163: 2170900 | H163: 1139000
A165: Substations
A166: MS9 Recloser Replacement & Rebuild | B166: 65500 | D166: 15479.74927 | E166: 184235
A167: MS6 Recloser Replacement & Rebuild | F167: =263640.49+56 -> 263696.49
A168: Substation -Sub-Total | B168: =SUM(B166:B167) -> 65500 | C168: =SUM(C166:C167) -> 0 | D168: =SUM(D166:D167) -> 15479.74927 | E168: 184235 | F168: 263696.49 | G168: 0 | H168: 0
A169: System Service Total | B169: =+B168+B163 -> 425677 | C169: =+C168+C163 -> 427990 | D169: =+D168+D163 -> 2386421.587 | E169: 637986.74 | F169: 512929.97 | G169: 2170900 | H169: 1139000
A171: General Plant
A172: SCADA
A173: GIS | E173: 61300
A174: Computer Software | B174: 210000 | C174: 107668 | E174: =183251.03-61300 -> 121951.03 | F174: 142392 | G174: 174000 | H174: 50000
A175: Computer Hardware | B175: 201000 | D175: 56629 | E175: 137423 | F175: 98237 | G175: 80000 | H175: 83000
A176: Communication Equipment | B176: 200000 | D176: 194604 | F176: 28833
A177: Major Tools | C177: 58011
A178: Stores Equipment | B178: 10000 | E178: 56545 | G178: 117032 | H178: 68000
A179: Office Furniture and Equipment | B179: 5000 | G179: 500000
A180: Transportation Equipment | B180: 210000 | C180: 131195 | E180: 380175 | F180: 540373 | G180: 530000 | H180: 510000
A181: Land Purchaes - Main & 5th
A182: Land Purchae - 200 Chisholm | F182: 4040000
A183: Building | G183: =7500000+3000000 -> 10500000
A184: System Supervisory Equipment | F184: 27973
A185: Other Tangible Property/Equipment | C185: 75755 | D185: 64229
A186: Capital Contribution paid toward Hydro One TS | E186: 122349
A187: Miscellaneous Under Threshold | B187: 2500 | C187: =5241+9228+14336+45448+53049-9 -> 127293 | D187: =57327-29815 -> 27512 | F187: 18243 | G187: 9500 | H187: 9500
A188: General Plant- Total | B188: =SUM(B172:B187) -> 838500 | C188: =SUM(C172:C187) -> 499922 | D188: =SUM(D172:D187) -> 342974 | E188: 879743.03 | F188: 4896051 | G188: 11910532 | H188: 720500
A190: Capital Contributions
A191: Capital Contributions Paid | B191: -3794938 | C191: -1927637 | D191: -3857151 | E191: -3155364.21 | F191: -4855574.71 | G191: -2773720 | H191: -3280000
A192: Capital Contributions- Total | B192: =SUM(B191) -> -3794938 | C192: =SUM(C191) -> -1927637 | D192: =SUM(D191) -> -3857151 | E192: -3155364.21 | F192: -4855574.71 | G192: -2773720 | H192: -3280000
A194: Miscellaneous | B194: 0 | C194: 0 | D194: 0 | E194: 0 | F194: 0 | G194: 0 | H194: 0
A195: Total | B195: =+B192+B188+B169+B142+B79 -> 7877466 | C195: =+C192+C188+C169+C142+C79 -> 7323898.11 | D195: =+D192+D188+D169+D142+D79 -> 7701535.004 | E195: 5537618.11 | F195: 10390890.81 | G195: 18946752 | H195: 8349413
A196: Less Renewable Generation Facility Assets and Other Non Rate-Regulated Utility Assets (input as negative)
A197: Total | B197: =B195+B196 -> 7877466 | C197: 7323898.11 | D197: 7701535.004 | E197: 5537618.11 | F197: 10390890.81 | G197: 18946752 | H197: 8349413
A201: Notes:
A203: 1 Please provide a breakdown of the major components of each capital project undertaken in each year. Please ensure that all projects below the materiality threshold are included in the miscellaneous line. Add more projects as required.
A204: 2 The applicant should group projects appropriately and avoid presentations that result in classification of significant components of the capital budget in the miscellaneous category.

Sheet App.2-AB_Capital Expenditures
S1: File Number: | U1: =EBNUMBER -> EB-2015-0089
S2: Exhibit: | U2: 2
S3: Tab:
S4: Schedule: | U4: Table 2-17
S5: Page: | U5: 44
S7: Date: | U7: Aug 28, 2015
A9: Appendix 2-AB
A10: Table 2 - Capital Expenditure Summary from Chapter 5 Consolidated Distribution System Plan Filing Requirements
A12: First year of Forecast Period: | B12: =TestYear -> 2016
A13: CATEGORY | B13: Historical Period (previous plan1 & actual) | Q13: Forecast Period (planned)
B14: =E14-1 -> 2011 | E14: =H14-1 -> 2012 | H14: =K14-1 -> 2013 | K14: =N14-1 -> 2014 | N14: =Q14-1 -> 2015 | Q14: =B12 -> 2016 | R14: =Q14+1 -> 2017 | S14: =R14+1 -> 2018 | T14: 2019 | U14: 2020
B15: Plan | C15: Actual | D15: Var | E15: Plan | F15: Actual | G15: Var | H15: Plan | I15: Actual | J15: Var | K15: Plan | L15: Actual | M15: Var | N15: Plan | O15: Actual2 | P15: Var
B16: $ '000 | D16: % | E16: $ '000 | G16: % | H16: $ '000 | J16: % | K16: $ '000 | M16: % | N16: $ '000 | P16: % | Q16: $ '000
A17: System Access | C17: 5571.43485 | D17: =IF(ISERROR((C17-B17)/B17),"--",(C17-B17)/B17) -> -- | F17: 7631.127094 | G17: =IF(ISERROR((F17-E17)/E17),"--",(F17-E17)/E17) -> -- | I17: 4658.22961 | J17: =IF(ISERROR((I17-H17)/H17),"--",(I17-H17)/H17) -> -- | L17: 7190.36838 | M17: =IF(ISERROR((L17-K17)/K17),"--",(L17-K17)/K17) -> -- | O17: 5551.74 | P17: =IF(ISERROR((O17-N17)/N17),"--",(O17-N17)/N17) -> -- | Q17: 7906 | R17: 8092 | S17: 6212 | T17: 6411 | U17: 6878
A18: System Renewal | C18: 2753.18858 | D18: =IF(ISERROR((C18-B18)/B18),"--",(C18-B18)/B18) -> -- | F18: 1198.163323 | G18: =IF(ISERROR((F18-E18)/E18),"--",(F18-E18)/E18) -> -- | I18: 2517.02294 | J18: =IF(ISERROR((I18-H18)/H18),"--",(I18-H18)/H18) -> -- | L18: 2647.11661 | M18: =IF(ISERROR((L18-K18)/K18),"--",(L18-K18)/K18) -> -- | O18: 2087.3 | P18: =IF(ISERROR((O18-N18)/N18),"--",(O18-N18)/N18) -> -- | Q18: 1863.4 | R18: 1821 | S18: 1790 | T18: 1800 | U18: 1725
A19: System Service | C19: 427.99 | D19: -- | F19: 2387.421587 | G19: -- | I19: 637.98674 | J19: -- | L19: 512.92997 | M19: -- | O19: 2170.9 | P19: -- | Q19: 1139 | R19: 1225 | S19: 1350 | T19: 1350 | U19: 1500
A20: General Plant | C20: 499.922 | D20: -- | F20: 342.974 | G20: -- | I20: 879.74303 | J20: -- | L20: 4896.051 | M20: -- | O20: =8911+3000 -> 11911 | P20: -- | Q20: 720 | R20: 701 | S20: 711 | T20: 676 | U20: 696
A21: TOTAL EXPENDITURE | B21: =SUM(B17:B20) -> 0 | C21: =SUM(C17:C20) -> 9252.53543 | D21: -- | E21: 0 | F21: 11559.686 | G21: -- | H21: 0 | I21: 8692.98232 | J21: -- | K21: 0 | L21: 15246.46596 | M21: -- | N21: 0 | O21: 21720.94 | P21: -- | Q21: 11628.4 | R21: 11839 | S21: 10063 | T21: 10237 | U21: =SUM(U17:U20) -> 10799
A22: System O&M | C22: =2055249/1000 -> 2055.249 | D22: -- | F22: =2210120/1000 -> 2210.12 | G22: -- | I22: =3550969/1000 -> 3550.969 | J22: -- | L22: =3001627/1000 -> 3001.627 | M22: -- | O22: =+(3601098)/1000 -> 3601.098 | P22: -- | Q22: =3734812/1000 -> 3734.812
A24: Notes to the Table:
A25: 1. Historical “previous plan” data is not required unless a plan has previously been filed
A26: 2. Indicate the number of months of 'actual' data included in the last year of the Historical Period (normally a 'bridge' year): | J26: 0
A28: Explanatory Notes on Variances (complete only if applicable)
A29: Notes on shifts in forecast vs. historical budgets by category
A32: Notes on year over year Plan vs. Actual variances for Total Expenditures
A35: Notes on Plan vs. Actual variance trends for individual expenditure categories

Sheet App. 2-AC_Customer Engagement
B1: File Number: | C1: =EBNUMBER -> EB-2015-0089
B2: Exhibit:
B3: Tab:
B4: Schedule:
B5: Page:
B7: Date:
A9: Appendix 2-AC
A10: Customer Engagement Activities Summary
A12: Provide a list of customer engagement activities | B12: Provide a list of customer needs and preferences identified through each engagement activity | C12: Actions taken to respond to identified needs and preferences. If no action was taken, explain why.
A13: April and June 2012 - Town Hall meeting - for customers in the Rural service area | B13: Severe wind storm damage trees which fell onto Milton Hydro's distribution O/H lines causing a surge which damage customer owned equipment - customers wanted to be re-imbursed for the damage. | C13: Milton Hydro held two sessions - Town Hall meetings with affected customers to explain the situation. Included Kinectrics to explain the results of their investigation and also MEARIE to explain the Insurance. Milton Hydro was not liable for the damage and therefore customer's needed to use their home owners insurance. Milton Hydro offered to pick up damaged appliances and have them recycle in an evironmentally-friendly way, discussed ways to prevent future damages
A15: May 29 & 30, 2013 Town Hall meeting - for customers in the Rural service area | B15: Customers with their own pole lines (customer owned pole lines) were concerned that Milton Hydro would no longer assist with tree trimming on private property. | C15: Milton Hydro held two sessions with a PowerPoint presentation explaining how to distinguish customer owned equipment and what belongs to Milton Hydro. ESA did a presentation as well. Recommendation to use a tree trimming company and not to try to trim trees themselves.
A17: April 14, 2014 Town Hall meeting - for customers in the Rural service area. | B17: Customers concerned again about trees and tree trimming after the December 2013 Ice Storm. Milton Hydro initiated this Town Hall meeting. | C17: Milton Hydro initiated a Town Hall meeting to review a revised tree timming policy (Filed with interrogatory responses to Milton Hydro's Z-Factor Application) Explained the work done on substation feeders to minimize the number of customers that may experience an outage in the event of trees coming down during storms.
A19: Note: Custmers in the Urban service area do not have tree issues.
A22: Cusomer engagement as set out iin EXHIBIT 1
A45: Note: Use "ALT-ENTER" to go to the next line within a cell

Sheet App.2-B_Acct Instructions
A1: General Instructions to MIFRS Appendices
A2: Types of Schedules to File
A4: The purpose of this tab is to provide general instructions. The specific instructions to each appendix are listed in footnotes of each appendix.
A6: The typical applicant is expected to have made capitalization and depreciation policy changes under CGAAP as permitted by the Board on January 1, 2012 or mandated by the Board by January 1, 2013, and adopted IFRS for reporting purposes on January 1, 2015 (transition date January 1, 2014). In general, applicants under the two scenarios should provide the following information in the appendices:
E9: Accounting Policy Changes in 2012 and Adopted IFRS in 2015 | F9: Accounting Policy Changes in 2013 and Adopted IFRS in 2015
E10: (Date of Transition to IFRS 2014)
A11: Information to be filed in 2016 CoS Application | B11: 2016 | C11: Test | E11: MIFRS | F11: MIFRS
B12: 2015 | C12: Bridge | E12: MIFRS | F12: MIFRS
B13: 2014 | C13: Historical | E13: MIFRS and Revised CGAAP* | F13: MIFRS and Revised CGAAP*
B14: 2013 | C14: Historical | E14: Revised CGAAP | F14: CGAAP and Revised CGAAP
B15: 2012 | C15: Historical | E15: CGAAP and Revised CGAAP | F15: CGAAP
B16: 2011 and Prior | C16: Historical | E16: CGAAP | F16: CGAAP
A18: 1) For the year that the applicant implemented changes to its capitalization and depreciation policies (2012 or 2013), the applicant must file two appendices, one before and one after the policy changes.
A21: 2) For the transition year (2014), the applicant may file two appendices, one under Revised CGAAP and one under MIFRS, depending on the materiality of impacts. See the specific instructions under each appendix below for further details.
A26: Appendix 2-BA - Fixed Asset Schedule
A28: Applicants are to provide Appendix 2-BA in accordance with the years and corresponding accounting standards noted in the above table to provide a year over year continuity in fixed assets.
A29: *For the transition year (2014), the applicant should file two appendices, one under Revised CGAAP and one under MIFRS if the change between Revised CGAAP and MIFRS is material. If the change from the accounting standards is not material, the applicant may choose to only provide one appendix under MIFRS. However, the applicant must also indicate the fixed asset net book value balance under Revised CGAAP, the total dollar value of the change and explain why it is not material.
A33: Regulatory Gross Assets of Property, Plant and Equipment
A35: For an applicant that adopted IFRS on January 1, 2015 for financial reporting purposes, the applicant must establish the continuity of historic cost by using the December 31, 2013 regulatory gross assets of property, plant and equipment as the opening January 1, 2014 regulatory gross assets. The applicant must provide schedules (including Appendix 2-BA, Fixed Asset Continuity Schedule) which must identify the following details to substantiate the continuity of historic cost for regulatory purposes:
A38: · December 31, 2013 regulatory gross assets of property, plant and equipment, by asset class; and
A39: · January 1, 2014 regulatory gross assets of property, plant and equipment, by asset class.
A41: Accumulated Depreciation
A43: For an applicant that adopted IFRS on January 1, 2015 for financial reporting purposes, the applicant must establish the continuity of historic cost by using the December 31, 2013 regulatory accumulated depreciation as the opening January 1, 2014 regulatory accumulated depreciation. The applicant must provide schedules (including Appendix 2-BA, Fixed Asset Continuity Schedule) which must identify the following details to substantiate the continuity of historic cost for regulatory purposes:
A46: · December 31, 2013 regulatory accumulated depreciation, by asset class; and
A47: · January 1, 2014 regulatory accumulated depreciation, by asset class.
A49: Appendix 2-C - Depreciation and Amortization
A51: Applicants are to provide Appendix 2-C starting in the year capitalization and depreciation policy changes were implemented in accordance with the years and corresponding accounting standards listed in the above table.
A52: If an applicant changed capitalization and depreciation policies effective January 1, 2012 and adopted IFRS for reporting purposes effective January 1, 2015, the applicant must complete Appendix 2-CA to 2-CF (inclusive).
A53: If an applicant changed capitalization and depreciation policies effective January 1, 2013 and adopted IFRS for reporting purposes effective January 1, 2015, the applicant must complete Appendix 2-CG to 2-CK (inclusive).
A54: *Depreciation accounting policy changes were mandated by the Board by January 1, 2013. These accounting changes should be implemented consistent with the Board’s regulatory accounting policies as set out for MIFRS as contained in the Report of the Board, Transition to International Financial Reporting Standards (EB-2008-0408), the Depreciation Study for Use by Electricity Distributors (EB-2010-0178) and the Revised 2012 Accounting Procedures Handbook for Electricity Distributors. In general, no further changes to an applicant's depreciation policy (i.e. assets' service lives) are expected after the Board mandated changes by January 1, 2013. The set of Appendix CA to CK assumes this to be the case. If the applicant has made any changes to its depreciation policy subsequent to the Board mandated changes, applicants must identify the change, explain the nature of the change, the reason for the change, quantify the impact of the change, and quantify the depreciation expense before and after the change.
A57: Appendix 2-E - Account 1575, IFRS-CGAAP Transitional PP&E Amounts (2-EA), Account 1576, Accounting Changes Under CGAAP (2-EB, 2-EC)
A59: If an applicant changed capitalization and depreciation policies effective January 1, 2012 and adopted IFRS for reporting purposes effective January 1, 2015, the applicant must complete Appendix 2-EA and 2-EB. If the applicant did not make any further PP&E accounting policy changes beyond the capitalization and depreciation policy changes as permitted by the Board on January 1, 2012 (i.e. no further changes made on transition to IFRS), the applicant must indicate this and does not need to complete Appendix 2-EA.
A61: If an applicant changed capitalization and depreciation policies effective January 1, 2013 and adopted IFRS for reporting purposes effective January 1, 2015, the applicant must complete Appendix 2-EA and 2-EC. If the applicant did not make any further PP&E accounting policy changes beyond the capitalization and depreciation policy changes as mandated by the Board by January 1, 2013 (i.e. no further changes made on transition to IFRS), the applicant must indicate this and does not need to complete Appendix 2-EA.
A63: Please refer to section 2.12.4 and 2.12.5 of the Filing Requirements for further details.
A65: Appendix 2-YA - Summary of Impacts to Revenue Requirement from Transition to MIFRS
A67: For applicants adopting MIFRS, the applicants must provide a summary of the dollar impacts of MIFRS to each component of the revenue requirement (e.g. rate base, operating costs, etc), including the overall impact on the proposed revenue requirement. Accordingly, the applicants must identify financial differences and resulting revenue requirement impacts arising from the adoption of MIFRS as compared to CGAAP prior to capitalization and depreciation policy changes.

Sheet App.2-BA_Fixed Asset Cont
L1: File Number: | M1: =EBNUMBER -> EB-2015-0089
L2: Exhibit: | M2: 2
L3: Tab:
L4: Schedule:
L5: Page: | M5: 16
L7: Date: | M7: 2015-08-28
A9: Appendix 2-BA
A10: Fixed Asset Continuity Schedule 1
E12: Accounting Standard | F12: CGAAP
E13: Year | F13: 2011
D15: Cost | J15: Accumulated Depreciation
A16: CCA Class 2 | B16: OEB Account 3 | C16: Description 3 | D16: Opening Balance | E16: Additions 4 | F16: Disposals | G16: Closing Balance | I16: Opening Balance | J16: Additions | K16: Disposals | L16: Closing Balance | M16: Net Book Value
A17: 12 | B17: 1611 | C17: Computer Software (Formally known as Account 1925) | D17: 395061 | E17: 107668 | G17: =D17+E17+F17 -> 502729 | I17: -352541 | J17: =-37469-1 -> -37470 | L17: =I17+J17+K17 -> -390011 | M17: =G17+L17 -> 112718
A18: CEC | B18: 1612 | C18: Land Rights (Formally known as Account 1906) | G18: =D18+E18+F18 -> 0 | L18: =I18+J18+K18 -> 0 | M18: =G18+L18 -> 0
A19: N/A | B19: 1805 | C19: Land | D19: 69883.36 | G19: =D19+E19+F19 -> 69883.36 | I19: 0 | L19: =I19+J19+K19 -> 0 | M19: =G19+L19 -> 69883.36
A20: 47 | B20: 1808 | C20: Buildings | D20: 0 | G20: =D20+E20+F20 -> 0 | L20: =I20+J20+K20 -> 0 | M20: =G20+L20 -> 0
A21: 13 | B21: 1810 | C21: Leasehold Improvements | D21: 0 | G21: 0 | L21: 0 | M21: 0
A22: 47 | B22: 1815 | C22: Transformer Station Equipment >50 kV | D22: 0 | G22: 0 | L22: 0 | M22: 0
A23: 47 | B23: 1820 | C23: Distribution Station Equipment <50 kV | D23: 1516191.65 | G23: 1516191.65 | I23: =-1357719-1 -> -1357720 | J23: -23011 | L23: -1380731 | M23: 135460.65
A24: 47 | B24: 1825 | C24: Storage Battery Equipment | D24: 0 | G24: 0 | L24: 0 | M24: 0
A25: 47 | B25: 1830 | C25: Poles, Towers & Fixtures | D25: 20306658.21 | E25: =2410809-1 -> 2410808 | G25: 22717466.21 | I25: -8119640 | J25: -720094 | L25: -8839734 | M25: 13877732.21
A26: 47 | B26: 1835 | C26: Overhead Conductors & Devices | D26: 18698729.81 | E26: 832202 | G26: 19530931.81 | I26: -10743410 | J26: -625677 | L26: -11369087 | M26: 8161844.81
A27: 47 | B27: 1840 | C27: Underground Conduit | D27: 19096081.84 | E27: 1663588 | G27: 20759669.84 | I27: -5686851 | J27: -802272 | L27: -6489123 | M27: 14270546.84
A28: 47 | B28: 1845 | C28: Underground Conductors & Devices | D28: 14984674.97 | E28: 719319 | G28: 15703993.97 | I28: -5583602 | J28: -596496 | L28: -6180098 | M28: 9523895.97
A29: 47 | B29: 1850 | C29: Line Transformers | D29: 31835814.07 | E29: 1750397 | G29: 33586211.07 | I29: -13994371 | J29: -1349137 | L29: -15343508 | M29: 18242703.07
A30: 47 | B30: 1855 | C30: Services (Overhead & Underground) | D30: 10897902.45 | E30: 1031285 | G30: 11929187.45 | I30: -2954020 | J30: -263410 | L30: -3217430 | M30: 8711757.45
A31: 47 | B31: 1860 | C31: Meters | G31: 0 | L31: 0 | M31: 0
A32: 47 | B32: 1860 | C32: Meters (Smart Meters) | D32: 9477576.72 | E32: 344003 | G32: 9821579.72 | I32: -2885421 | J32: -559549 | L32: -3444970 | M32: 6376609.72
A33: N/A | B33: 1905 | C33: Land | D33: 1136810.765 | E33: 5241 | G33: 1142051.765 | I33: 0 | L33: 0 | M33: 1142051.765
A34: 47 | B34: 1908 | C34: Buildings & Fixtures | G34: 0 | L34: 0 | M34: 0
A35: 13 | B35: 1910 | C35: Leasehold Improvements | D35: 377009 | G35: 377009 | I35: -124352 | J35: -80211 | L35: -204563 | M35: 172446
A36: 8 | B36: 1915 | C36: Office Furniture & Equipment (10 years) | D36: 627106 | E36: 84983 | G36: 712089 | I36: -576085 | J36: -12585 | L36: -588670 | M36: 123419
A37: 8 | B37: 1915 | C37: Office Furniture & Equipment (5 years) | G37: 0 | L37: 0 | M37: 0
A38: 10 | B38: 1920 | C38: Computer Equipment - Hardware | D38: 1547034 | E38: 53049 | G38: 1600083 | I38: -1381376 | J38: -51477 | L38: -1432853 | M38: 167230
A39: 45 | B39: 1920 | C39: Computer Equip.-Hardware(Post Mar. 22/04) | D39: 0 | G39: 0 | L39: 0 | M39: 0
A40: 45.1 | B40: 1920 | C40: Computer Equip.-Hardware(Post Mar. 19/07) | D40: 0 | G40: 0 | L40: 0 | M40: 0
A41: 10 | B41: 1930 | C41: Transportation Equipment | D41: 1884866.17 | E41: 131195 | F41: -31600 | G41: 1984461.17 | I41: -1307171 | J41: -144636 | K41: 31600 | L41: -1420207 | M41: 564254.17
A42: 8 | B42: 1935 | C42: Stores Equipment | D42: 179526.32 | E42: 45448 | G42: 224974.32 | I42: -156815 | J42: -9089 | L42: -165904 | M42: 59070.32
A43: 8 | B43: 1940 | C43: Tools, Shop & Garage Equipment | D43: 389001.4 | E43: 4447 | G43: 393448.4 | I43: -366216 | J43: -5172 | L43: -371388 | M43: 22060.4
A44: 8 | B44: 1945 | C44: Measurement & Testing Equipment | D44: 35689.83 | E44: 53564 | G44: 89253.83 | I44: -17166 | J44: -6048 | L44: -23214 | M44: 66039.83
A45: 8 | B45: 1950 | C45: Power Operated Equipment | D45: 0 | G45: 0 | L45: 0 | M45: 0
A46: 8 | B46: 1955 | C46: Communications Equipment | D46: 206046.82 | E46: 14336 | G46: 220382.82 | I46: -156867 | J46: -9424 | L46: -166291 | M46: 54091.82
A47: 8 | B47: 1955 | C47: Communication Equipment (Smart Meters) | D47: 0 | G47: 0 | L47: 0 | M47: 0
A48: 8 | B48: 1960 | C48: Miscellaneous Equipment | D48: 0 | G48: 0 | L48: 0 | M48: 0
A49: 47 | B49: 1970 | C49: Load Management Controls Customer Premises | D49: 0 | G49: 0 | L49: 0 | M49: 0
A50: 47 | B50: 1975 | C50: Load Management Controls Utility Premises | G50: 0 | L50: 0 | M50: 0
A51: 47 | B51: 1980 | C51: System Supervisor Equipment | D51: 41545 | G51: 41545 | I51: -41545 | L51: -41545 | M51: 0
A52: 47 | B52: 1985 | C52: Miscellaneous Fixed Assets | D52: 0 | G52: 0 | L52: 0 | M52: 0
A53: 47 | B53: 1990 | C53: Other Tangible Property | D53: 68775.11 | G53: 68775.11 | I53: -3437 | J53: -6878 | L53: -10315 | M53: 58460.11
A54: 47 | B54: 1995 | C54: Contributions & Grants | D54: -38175515.84 | E54: -1927637 | G54: -40103152.84 | I54: 8119419 | J54: 1550573 | L54: 9669992 | M54: -30433160.84
A55: 47 | B55: 2440 | C55: Deferred Revenue5
G56: 0 | L56: 0 | M56: 0
C57: Sub-Total | D57: =SUM(D17:D56) -> 95596468.65 | E57: =SUM(E17:E56) -> 7323896 | F57: =SUM(F17:F56) -> -31600 | G57: =SUM(G17:G56) -> 102888764.7 | I57: =SUM(I17:I56) -> -47689187 | J57: =SUM(J17:J56) -> -3752063 | K57: =SUM(K17:K56) -> 31600 | L57: =SUM(L17:L56) -> -51409650 | M57: =SUM(M17:M56) -> 51479114.65
C58: Less Socialized Renewable Energy Generation Investments (input as negative) | G58: =D58+E58+F58 -> 0 | L58: =I58+J58+K58 -> 0 | M58: =G58+L58 -> 0
C59: Less Other Non Rate-Regulated Utility Assets (input as negative) | G59: 0 | L59: 0 | M59: 0
C60: Total PP&E | D60: =SUM(D57:D59) -> 95596468.65 | E60: =SUM(E57:E59) -> 7323896 | F60: -31600 | G60: 102888764.7 | I60: =SUM(I57:I59) -> -47689187 | J60: -3752063 | K60: 31600 | L60: -51409650 | M60: 51479114.65
C61: Depreciation Expense adj. from gain or loss on the retirement of assets (pool of like assets), if applicable6
C62: Total | J62: =J60+J61 -> -3752063
I64: Less: Fully Allocated Depreciation
A65: 10 | C65: Transportation | I65: Transportation | K65: =+J41 -> -144636
A66: 8 | C66: Stores Equipment | I66: Stores Equipment | K66: =+J42 -> -9089
A67: 8 | C67: Tools, Shop & Garage Equipment | I67: Tools | K67: =+J43 -> -5172
A68: 8 | C68: Measurement & Testing Equipment | I68: Measurement | K68: =+J44 -> -6048
I69: Net Depreciation | K69: =J62-K65-K66-K67-K68 -> -3587118
A71: Fixed Asset Continuity Schedule 1
E73: Accounting Standard | F73: CGAAP
E74: Year | F74: 2012
D76: Cost | J76: Accumulated Depreciation
A77: CCA Class 2 | B77: OEB Account 3 | C77: Description 3 | D77: Opening Balance | E77: Additions 4 | F77: Disposals | G77: Closing Balance | I77: Opening Balance | J77: Additions | K77: Disposals | L77: Closing Balance | M77: Net Book Value
A78: 12 | B78: 1611 | C78: Computer Software (Formally known as Account 1925) | D78: =+G17 -> 502729 | E78: 194604 | G78: =D78+E78+F78 -> 697333 | I78: =+L17 -> -390011 | J78: -72736 | L78: =I78+J78+K78 -> -462747 | M78: =G78+L78 -> 234586
A79: CEC | B79: 1612 | C79: Land Rights (Formally known as Account 1906) | D79: =+G18 -> 0 | G79: =D79+E79+F79 -> 0 | I79: =+L18 -> 0 | L79: =I79+J79+K79 -> 0 | M79: =G79+L79 -> 0
A80: N/A | B80: 1805 | C80: Land | D80: 69883.36 | G80: =D80+E80+F80 -> 69883.36 | I80: 0 | L80: =I80+J80+K80 -> 0 | M80: =G80+L80 -> 69883.36
A81: 47 | B81: 1808 | C81: Buildings | D81: 0 | G81: =D81+E81+F81 -> 0 | I81: 0 | L81: =I81+J81+K81 -> 0 | M81: =G81+L81 -> 0
A82: 13 | B82: 1810 | C82: Leasehold Improvements | D82: 0 | G82: 0 | I82: 0 | L82: 0 | M82: 0
A83: 47 | B83: 1815 | C83: Transformer Station Equipment >50 kV | D83: 0 | G83: 0 | I83: 0 | L83: 0 | M83: 0
A84: 47 | B84: 1820 | C84: Distribution Station Equipment <50 kV | D84: 1516191.65 | G84: 1516191.65 | I84: -1380731 | J84: -23011 | L84: -1403742 | M84: 112449.65
A85: 47 | B85: 1825 | C85: Storage Battery Equipment | D85: 0 | G85: 0 | I85: 0 | L85: 0 | M85: 0
A86: 47 | B86: 1830 | C86: Poles, Towers & Fixtures | D86: 22717466.21 | E86: =4029244-1 -> 4029243 | G86: 26746709.21 | I86: -8839734 | J86: =-827051-1 -> -827052 | L86: -9666786 | M86: 17079923.21
A87: 47 | B87: 1835 | C87: Overhead Conductors & Devices | D87: 19530931.81 | E87: 1548927 | G87: 21079858.81 | I87: -11369087 | J87: -673299 | L87: -12042386 | M87: 9037472.81
A88: 47 | B88: 1840 | C88: Underground Conduit | D88: 20759669.84 | E88: 1531539 | G88: 22291208.84 | I88: -6489123 | J88: -863986 | L88: -7353109 | M88: 14938099.84
A89: 47 | B89: 1845 | C89: Underground Conductors & Devices | D89: 15703993.97 | E89: 793136 | G89: 16497129.97 | I89: -6180098 | J89: -626753 | L89: -6806851 | M89: 9690278.97
A90: 47 | B90: 1850 | C90: Line Transformers | D90: 33586211.07 | E90: 1442416 | G90: 35028627.07 | I90: -15343508 | J90: -1366718 | L90: -16710226 | M90: 18318401.07
A91: 47 | B91: 1855 | C91: Services (Overhead & Underground) | D91: 11929187.45 | E91: 1292307 | G91: 13221494.45 | I91: -3217430 | J91: -309880 | L91: -3527310 | M91: 9694184.45
A92: 47 | B92: 1860 | C92: Meters | D92: 0 | G92: 0 | I92: 0 | L92: 0 | M92: 0
A93: 47 | B93: 1860 | C93: Meters (Smart Meters) | D93: 9821579.72 | E93: 578144 | F93: -1260 | G93: 10398463.72 | I93: -3444970 | J93: -568728 | L93: -4013698 | M93: 6384765.72
A94: N/A | B94: 1905 | C94: Land | D94: 1142051.765 | G94: 1142051.765 | I94: 0 | L94: 0 | M94: 1142051.765
A95: 47 | B95: 1908 | C95: Buildings & Fixtures | D95: 0 | G95: 0 | I95: 0 | L95: 0 | M95: 0
A96: 13 | B96: 1910 | C96: Leasehold Improvements | D96: 377009 | G96: 377009 | I96: -204563 | J96: -80211 | L96: -284774 | M96: 92235
A97: 8 | B97: 1915 | C97: Office Furniture & Equipment (10 years) | D97: 712089 | G97: 712089 | I97: -588670 | J97: -16677 | L97: -605347 | M97: 106742
A98: 8 | B98: 1915 | C98: Office Furniture & Equipment (5 years) | D98: 0 | G98: 0 | I98: 0 | L98: 0 | M98: 0
A99: 10 | B99: 1920 | C99: Computer Equipment - Hardware | D99: 1600083 | E99: 56629 | G99: 1656712 | I99: -1432853 | J99: -54198 | L99: -1487051 | M99: 169661
A100: 45 | B100: 1920 | C100: Computer Equip.-Hardware(Post Mar. 22/04) | D100: 0 | G100: 0 | I100: 0 | L100: 0 | M100: 0
A101: 45.1 | B101: 1920 | C101: Computer Equip.-Hardware(Post Mar. 19/07) | D101: 0 | G101: 0 | I101: 0 | L101: 0 | M101: 0
A102: 10 | B102: 1930 | C102: Transportation Equipment | D102: 1984461.17 | F102: -29815 | G102: 1954646.17 | I102: -1420207 | J102: -114356 | K102: 29815 | L102: -1504748 | M102: 449898.17
A103: 8 | B103: 1935 | C103: Stores Equipment | D103: 224974.32 | G103: 224974.32 | I103: -165904 | J103: -6077 | L103: -171981 | M103: 52993.32
A104: 8 | B104: 1940 | C104: Tools, Shop & Garage Equipment | D104: 393448.4 | E104: 6536 | G104: 399984.4 | I104: -371388 | J104: -5210 | L104: -376598 | M104: 23386.4
A105: 8 | B105: 1945 | C105: Measurement & Testing Equipment | D105: 89253.83 | E105: 34882 | G105: 124135.83 | I105: -23214 | J105: -10469 | L105: -33683 | M105: 90452.83
A106: 8 | B106: 1950 | C106: Power Operated Equipment | D106: 0 | G106: 0 | I106: 0 | L106: 0 | M106: 0
A107: 8 | B107: 1955 | C107: Communications Equipment | D107: 220382.82 | E107: 15909 | G107: 236291.82 | I107: -166291 | J107: -10737 | L107: -177028 | M107: 59263.82
A108: 8 | B108: 1955 | C108: Communication Equipment (Smart Meters) | D108: 0 | G108: 0 | I108: 0 | L108: 0 | M108: 0
A109: 8 | B109: 1960 | C109: Miscellaneous Equipment | D109: 0 | G109: 0 | I109: 0 | L109: 0 | M109: 0
A110: 47 | B110: 1970 | C110: Load Management Controls Customer Premises | D110: 0 | G110: 0 | I110: 0 | L110: 0 | M110: 0
A111: 47 | B111: 1975 | C111: Load Management Controls Utility Premises | D111: 0 | G111: 0 | I111: 0 | L111: 0 | M111: 0
A112: 47 | B112: 1980 | C112: System Supervisor Equipment | D112: 41545 | G112: 41545 | I112: -41545 | L112: -41545 | M112: 0
A113: 47 | B113: 1985 | C113: Miscellaneous Fixed Assets | D113: 0 | G113: 0 | I113: 0 | L113: 0 | M113: 0
A114: 47 | B114: 1990 | C114: Other Tangible Property | D114: 68775.11 | E114: 64229 | G114: 133004.11 | I114: -10315 | J114: -10089 | L114: -20404 | M114: 112600.11
A115: 47 | B115: 1995 | C115: Contributions & Grants | D115: -40103152.84 | E115: -3857151 | G115: -43960303.84 | I115: 9669992 | J115: =1677429 -> 1677429 | L115: 11347421 | M115: -32612882.84
A116: 47 | B116: 2440 | C116: Deferred Revenue5
G117: =D117+E117+F117 -> 0 | L117: =I117+J117+K117 -> 0 | M117: =G117+L117 -> 0
C118: Sub-Total | D118: =SUM(D78:D117) -> 102888764.7 | E118: =SUM(E78:E117) -> 7731350 | F118: =SUM(F78:F117) -> -31075 | G118: =SUM(G78:G117) -> 110589039.7 | I118: =SUM(I78:I117) -> -51409650 | J118: =SUM(J78:J117) -> -3962758 | K118: =SUM(K78:K117) -> 29815 | L118: =SUM(L78:L117) -> -55342593 | M118: =SUM(M78:M117) -> 55246446.65
C119: Less Socialized Renewable Energy Generation Investments (input as negative) | G119: =D119+E119+F119 -> 0 | L119: =I119+J119+K119 -> 0 | M119: =G119+L119 -> 0
C120: Less Other Non Rate-Regulated Utility Assets (input as negative) | G120: 0 | L120: 0 | M120: 0
C121: Total PP&E | D121: =SUM(D118:D120) -> 102888764.7 | E121: =SUM(E118:E120) -> 7731350 | F121: -31075 | G121: 110589039.7 | I121: =SUM(I118:I120) -> -51409650 | J121: -3962758 | K121: 29815 | L121: -55342593 | M121: 55246446.65
C122: Depreciation Expense adj. from gain or loss on the retirement of assets (pool of like assets), if applicable6
C123: Total | J123: =J121+J122 -> -3962758
I125: Less: Fully Allocated Depreciation
A126: 10 | C126: Transportation | I126: Transportation | K126: =+J102 -> -114356
A127: 8 | C127: Stores Equipment | I127: Stores Equipment | K127: =+J103 -> -6077
A128: 8 | C128: Tools, Shop & Garage Equipment | I128: Tools | K128: =+J104 -> -5210
A129: 8 | C129: Measurement & Testing Equipment | I129: Measurement | K129: =+J105 -> -10469
I130: Net Depreciation | K130: =J123-K126-K127-K128-K129 -> -3826646
A132: Fixed Asset Continuity Schedule 1
E134: Accounting Standard | F134: CGAAP
E135: Year | F135: 2013
D137: Cost | J137: Accumulated Depreciation
A138: CCA Class 2 | B138: OEB Account 3 | C138: Description 3 | D138: Opening Balance | E138: Additions 4 | F138: Disposals | G138: Closing Balance | I138: Opening Balance | J138: Additions | K138: Disposals | L138: Closing Balance | M138: Net Book Value
A139: 47 | B139: 1609 | C139: Capital Contributions Paid | E139: 122349 | G139: =D139+E139+F139 -> 122349 | J139: -2447 | L139: =I139+J139+K139 -> -2447 | M139: =G139+L139 -> 119902
A140: 12 | B140: 1611 | C140: Computer Software (Formally known as Account 1925) | D140: =+G78 -> 697333 | E140: 183251 | G140: =D140+E140+F140 -> 880584 | I140: =+L78 -> -462747 | J140: =-30542-72736 -> -103278 | L140: =I140+J140+K140 -> -566025 | M140: =G140+L140 -> 314559
A141: CEC | B141: 1612 | C141: Land Rights (Formally known as Account 1906) | D141: =+G79 -> 0 | G141: =D141+E141+F141 -> 0 | I141: =+L79 -> 0 | L141: =I141+J141+K141 -> 0 | M141: =G141+L141 -> 0
A142: N/A | B142: 1805 | C142: Land | D142: 69883.36 | G142: =D142+E142+F142 -> 69883.36 | I142: 0 | L142: =I142+J142+K142 -> 0 | M142: =G142+L142 -> 69883.36
A143: 47 | B143: 1808 | C143: Buildings | D143: 0 | G143: =D143+E143+F143 -> 0 | I143: 0 | L143: =I143+J143+K143 -> 0 | M143: =G143+L143 -> 0
A144: 13 | B144: 1810 | C144: Leasehold Improvements | D144: 0 | G144: 0 | I144: 0 | L144: 0 | M144: 0
A145: 47 | B145: 1815 | C145: Transformer Station Equipment >50 kV | D145: 0 | G145: 0 | I145: 0 | L145: 0 | M145: 0
A146: 47 | B146: 1820 | C146: Distribution Station Equipment <50 kV | D146: 1516191.65 | G146: 1516191.65 | I146: -1403742 | J146: -23011 | L146: -1426753 | M146: 89438.65
A147: 47 | B147: 1825 | C147: Storage Battery Equipment | D147: 0 | G147: 0 | I147: 0 | L147: 0 | M147: 0
A148: 47 | B148: 1830 | C148: Poles, Towers & Fixtures | D148: 26746709.21 | E148: 2320857 | G148: 29067566.21 | I148: -9666786 | J148: -915637 | L148: -10582423 | M148: 18485143.21
A149: 47 | B149: 1835 | C149: Overhead Conductors & Devices | D149: 21079858.81 | E149: 907786 | G149: 21987644.81 | I149: -12042386 | J149: -722438 | L149: -12764824 | M149: 9222820.81
A150: 47 | B150: 1840 | C150: Underground Conduit | D150: 22291208.84 | E150: 1895764 | G150: 24186972.84 | I150: -7353109 | J150: -892593 | L150: -8245702 | M150: 15941270.84
A151: 47 | B151: 1845 | C151: Underground Conductors & Devices | D151: 16497129.97 | E151: 926889 | G151: 17424018.97 | I151: -6806851 | J151: -661143 | L151: -7467994 | M151: 9956024.97
A152: 47 | B152: 1850 | C152: Line Transformers | D152: 35028627.07 | E152: 1209577 | G152: 36238204.07 | I152: -16710226 | J152: -1379144 | L152: -18089370 | M152: 18148834.07
A153: 47 | B153: 1855 | C153: Services (Overhead & Underground) | D153: 13221494.45 | E153: 869824 | G153: 14091318.45 | I153: -3527310 | J153: -353105 | L153: -3880415 | M153: 10210903.45
A154: 47 | B154: 1860 | C154: Meters | D154: 0 | G154: 0 | I154: 0 | L154: 0 | M154: 0
A155: 47 | B155: 1860 | C155: Meters (Smart Meters) | D155: 10398463.72 | E155: 891399 | G155: 11289862.72 | I155: -4013698 | J155: -656214 | L155: -4669912 | M155: 6619950.72
A156: N/A | B156: 1905 | C156: Land | D156: 1142051.765 | G156: 1142051.765 | I156: 0 | L156: 0 | M156: 1142051.765
A157: 47 | B157: 1908 | C157: Buildings & Fixtures | D157: 0 | G157: 0 | I157: 0 | L157: 0 | M157: 0
A158: 13 | B158: 1910 | C158: Leasehold Improvements | D158: 377009 | G158: 377009 | I158: -284774 | J158: -80211 | L158: -364985 | M158: 12024
A159: 8 | B159: 1915 | C159: Office Furniture & Equipment (10 years) | D159: 712089 | G159: 712089 | I159: -605347 | J159: -16939 | L159: -622286 | M159: 89803
A160: 8 | B160: 1915 | C160: Office Furniture & Equipment (5 years) | D160: 0 | G160: 0 | I160: 0 | L160: 0 | M160: 0
A161: 10 | B161: 1920 | C161: Computer Equipment - Hardware | D161: 1656712 | E161: 137423 | G161: 1794135 | I161: -1487051 | J161: -67940 | L161: -1554991 | M161: 239144
A162: 45 | B162: 1920 | C162: Computer Equip.-Hardware(Post Mar. 22/04) | D162: 0 | G162: 0 | I162: 0 | L162: 0 | M162: 0
A163: 45.1 | B163: 1920 | C163: Computer Equip.-Hardware(Post Mar. 19/07) | D163: 0 | G163: 0 | I163: 0 | L163: 0 | M163: 0
A164: 10 | B164: 1930 | C164: Transportation Equipment | D164: 1954646.17 | E164: 380175 | F164: -182052 | G164: 2152769.17 | I164: -1504748 | J164: -148853 | K164: 182052 | L164: -1471549 | M164: 681220.17
A165: 8 | B165: 1935 | C165: Stores Equipment | D165: 224974.32 | E165: 56545 | G165: 281519.32 | I165: -171981 | J165: -8795 | L165: -180776 | M165: 100743.32
A166: 8 | B166: 1940 | C166: Tools, Shop & Garage Equipment | D166: 399984.4 | E166: 5382 | G166: 405366.4 | I166: -376598 | J166: -17020 | L166: -393618 | M166: 11748.4
A167: 8 | B167: 1945 | C167: Measurement & Testing Equipment | D167: 124135.83 | E167: 2345 | G167: 126480.83 | I167: -33683 | L167: -33683 | M167: 92797.83
A168: 8 | B168: 1950 | C168: Power Operated Equipment | D168: 0 | G168: 0 | I168: 0 | L168: 0 | M168: 0
A169: 8 | B169: 1955 | C169: Communications Equipment | D169: 236291.82 | E169: 3896 | G169: 240187.82 | I169: -177028 | J169: -10830 | L169: -187858 | M169: 52329.82
A170: 8 | B170: 1955 | C170: Communication Equipment (Smart Meters) | D170: 0 | G170: 0 | I170: 0 | L170: 0 | M170: 0
A171: 8 | B171: 1960 | C171: Miscellaneous Equipment | D171: 0 | G171: 0 | I171: 0 | L171: 0 | M171: 0
A172: 47 | B172: 1970 | C172: Load Management Controls Customer Premises | D172: 0 | G172: 0 | I172: 0 | L172: 0 | M172: 0
A173: 47 | B173: 1975 | C173: Load Management Controls Utility Premises | D173: 0 | G173: 0 | I173: 0 | L173: 0 | M173: 0
A174: 47 | B174: 1980 | C174: System Supervisor Equipment | D174: 41545 | E174: 52654 | G174: 94199 | I174: -41545 | J174: -1755 | L174: -43300 | M174: 50899
A175: 47 | B175: 1985 | C175: Miscellaneous Fixed Assets | D175: 0 | G175: 0 | I175: 0 | L175: 0 | M175: 0
A176: 47 | B176: 1990 | C176: Other Tangible Property | D176: 133004.11 | G176: 133004.11 | I176: -20404 | J176: -10089 | L176: -30493 | M176: 102511.11
A177: 47 | B177: 1995 | C177: Contributions & Grants | D177: -43960303.84 | E177: -3155364 | G177: -47115667.84 | I177: =+L115 -> 11347421 | J177: 1810413 | L177: =I177+J177+K177+1 -> 13157835 | M177: =G177+L177-3 -> -33957835.84
A178: 47 | B178: 2440 | C178: Deferred Revenue5
G179: =D179+E179+F179 -> 0 | L179: =I179+J179+K179 -> 0 | M179: =G179+L179 -> 0
C180: Sub-Total | D180: =SUM(D139:D179) -> 110589039.7 | E180: =SUM(E139:E179) -> 6810752 | F180: =SUM(F139:F179) -> -182052 | G180: 117217739.7 | I180: =SUM(I139:I179) -> -55342593 | J180: =SUM(J139:J179) -> -4261029 | K180: =SUM(K139:K179) -> 182052 | L180: =SUM(L139:L179) -> -59421569 | M180: =SUM(M139:M179) -> 57796167.65
C181: Less Socialized Renewable Energy Generation Investments (input as negative) | G181: =D181+E181+F181 -> 0 | L181: =I181+J181+K181 -> 0 | M181: =G181+L181 -> 0
C182: Less Other Non Rate-Regulated Utility Assets (input as negative) | G182: 0 | L182: 0 | M182: 0
C183: Total PP&E | D183: =SUM(D180:D182) -> 110589039.7 | E183: =SUM(E180:E182) -> 6810752 | F183: -182052 | G183: 117217739.7 | I183: =SUM(I180:I182) -> -55342593 | J183: -4261029 | K183: 182052 | L183: -59421569 | M183: 57796167.65
C184: Depreciation Expense adj. from gain or loss on the retirement of assets (pool of like assets), if applicable6
C185: Total | J185: =J183+J184 -> -4261029
I187: Less: Fully Allocated Depreciation
A188: 10 | C188: Transportation | I188: Transportation | K188: =+J164 -> -148853
A189: 8 | C189: Stores Equipment | I189: Stores Equipment | K189: =+J165 -> -8795
A190: 8 | C190: Tools, Shop & Garage Equipment | I190: Tools | K190: =+J166 -> -17020
A191: 8 | C191: Measurement & Testing Equipment | I191: Measurement | K191: =+J167 -> 0
I192: Net Depreciation | K192: =J185-K188-K189-K190-K191 -> -4086361
A194: Fixed Asset Continuity Schedule 1
E196: Accounting Standard | F196: MIFRS
E197: Year | F197: 2013
D199: Cost | J199: Accumulated Depreciation
A200: CCA Class 2 | B200: OEB Account 3 | C200: Description 3 | D200: Opening Balance | E200: Additions 4 | F200: Disposals | G200: Closing Balance | I200: Opening Balance | J200: Additions | K200: Disposals | L200: Closing Balance | M200: Net Book Value
A201: 47 | B201: 1609 | C201: Capital Contributions Paid | E201: 122349 | G201: =D201+E201+F201 -> 122349 | J201: -1524 | L201: =I201+J201+K201 -> -1524 | M201: =G201+L201 -> 120825
A202: 12 | B202: 1611 | C202: Computer Software (Formally known as Account 1925) | D202: =+G78 -> 697333 | E202: 183251 | G202: =D202+E202+F202 -> 880584 | I202: =+L78 -> -462747 | J202: =-18326-48227 -> -66553 | L202: =I202+J202+K202 -> -529300 | M202: =G202+L202 -> 351284
A203: CEC | B203: 1612 | C203: Land Rights (Formally known as Account 1906) | D203: =+G79 -> 0 | G203: =D203+E203+F203 -> 0 | I203: =+L79 -> 0 | L203: =I203+J203+K203 -> 0 | M203: =G203+L203 -> 0
A204: N/A | B204: 1805 | C204: Land | D204: 69883.36 | G204: =D204+E204+F204 -> 69883.36 | I204: 0 | L204: =I204+J204+K204 -> 0 | M204: =G204+L204 -> 69883.36
A205: 47 | B205: 1808 | C205: Buildings | D205: 0 | G205: =D205+E205+F205 -> 0 | I205: 0 | L205: =I205+J205+K205 -> 0 | M205: =G205+L205 -> 0
A206: 13 | B206: 1810 | C206: Leasehold Improvements | D206: 0 | G206: 0 | I206: 0 | L206: 0 | M206: 0
A207: 47 | B207: 1815 | C207: Transformer Station Equipment >50 kV | D207: 0 | G207: 0 | I207: 0 | L207: 0 | M207: 0
A208: 47 | B208: 1820 | C208: Distribution Station Equipment <50 kV | D208: 1516191.65 | G208: 1516191.65 | I208: -1403742 | J208: -23011 | L208: -1426753 | M208: 89438.65
A209: 47 | B209: 1825 | C209: Storage Battery Equipment | D209: 0 | G209: 0 | I209: 0 | L209: 0 | M209: 0
A210: 47 | B210: 1830 | C210: Poles, Towers & Fixtures | D210: 26746709.21 | E210: 1985156 | G210: 28731865.21 | I210: -9666786 | J210: =-426394+2 -> -426392 | L210: =I210+J210+K210+1 -> -10093177 | M210: =G210+L210-1 -> 18638687.21
A211: 47 | B211: 1835 | C211: Overhead Conductors & Devices | D211: 21079858.81 | E211: 776479 | G211: 21856337.81 | I211: -12042386 | J211: -276361 | L211: -12318747 | M211: 9537590.81
A212: 47 | B212: 1840 | C212: Underground Conduit | D212: 22291208.84 | E212: 1621551 | G212: 23912759.84 | I212: -7353109 | J212: -474315 | L212: -7827424 | M212: 16085335.84
A213: 47 | B213: 1845 | C213: Underground Conductors & Devices | D213: 16497129.97 | E213: 792819 | G213: 17289948.97 | I213: -6806851 | J213: -334539 | L213: -7141390 | M213: 10148558.97
A214: 47 | B214: 1850 | C214: Line Transformers | D214: 35028627.07 | E214: 1034618 | G214: 36063245.07 | I214: -16710226 | J214: -647454 | L214: -17357680 | M214: 18705565.07
A215: 47 | B215: 1855 | C215: Services (Overhead & Underground) | D215: 13221494.45 | E215: 744008 | G215: 13965502.45 | I215: -3527310 | J215: -205736 | L215: -3733046 | M215: 10232456.45
A216: 47 | B216: 1860 | C216: Meters | D216: 0 | G216: 0 | I216: 0 | L216: 0 | M216: 0
... 334 more rows

Sheet Appendix 2-BB Service Life
M1: File Number: | O1: EB-2015-089
M2: Exhibit: | O2: 4
M3: Tab:
M4: Schedule: | O4: Table 4-41
M5: Page: | O5: 67
M7: Date: | O7: Aug 28, 2015
A9: Appendix 2-BB
A10: Service Life Comparison
A11: Table F-1 from Kinetrics Report1
C15: Asset Details | F15: Useful Life | J15: USoA Account Number | K15: USoA Account Description | L15: Current | N15: Proposed | P15: Outside Range of Min, Max TUL?
A16: Parent* | B16: # | C16: Category| Component | Type | F16: MIN UL | G16: TUL | H16: MAX UL | L16: Years | M16: Rate | N16: Years | O16: Rate | P16: Below Min TUL | Q16: Above Max TUL
A17: OH | B17: 1 | C17: Fully Dressed Wood Poles | D17: Overall | F17: 35 | G17: 45 | H17: 75 | J17: 1830 | K17: OH Pole System | L17: 25 | M17: =IF(ISERROR(1/L17), "", 1/L17) -> 0.04 | N17: 45 | O17: =IF(ISERROR(1/N17), "", 1/N17) -> 0.02222222222 | P17: =IF(ISBLANK(N17),"",IF(N17<F17,"Yes","No")) -> No | Q17: =IF(ISBLANK(N17),"",IF(N17>H17,"Yes","No")) -> No
D18: Cross Arm | E18: Wood | F18: 20 | G18: 40 | H18: 55 | M18: =IF(ISERROR(1/L18), "", 1/L18) ->  | O18: =IF(ISERROR(1/N18), "", 1/N18) ->  | P18: =IF(ISBLANK(N18),"",IF(N18<F18,"Yes","No")) ->  | Q18: =IF(ISBLANK(N18),"",IF(N18>H18,"Yes","No")) -> 
E19: Steel | F19: 30 | G19: 70 | H19: 95
B20: 2 | C20: Fully Dressed Concrete Poles | D20: Overall | F20: 50 | G20: 60 | H20: 80 | J20: 1830 | K20: OH Pole System | L20: 25 | M20: =IF(ISERROR(1/L20), "", 1/L20) -> 0.04 | N20: 45 | O20: 0.02222222222 | P20: Yes | Q20: No
D21: Cross Arm | E21: Wood | F21: 20 | G21: 40 | H21: 55
E22: Steel | F22: 30 | G22: 70 | H22: 95
B23: 3 | C23: Fully Dressed Steel Poles | D23: Overall | F23: 60 | G23: 60 | H23: 80 | J23: 1830 | K23: n/a
D24: Cross Arm | E24: Wood | F24: 20 | G24: 40 | H24: 55
E25: Steel | F25: 30 | G25: 70 | H25: 95
B26: 4 | C26: OH Line Switch | F26: 30 | G26: 45 | H26: 55 | J26: 1835 | K26: OH Devices | L26: 25 | M26: 0.04 | N26: 45 | O26: 0.02222222222 | P26: No | Q26: No
B27: 5 | C27: OH Line Switch Motor | F27: 15 | G27: 25 | H27: 25 | J27: 1835 | K27: n/a
B28: 6 | C28: OH Line Switch RTU | F28: 15 | G28: 20 | H28: 20 | J28: 1980 | K28: System Supervisory Equipment | L28: 15 | M28: 0.06666666667 | N28: 15 | O28: 0.06666666667 | P28: No | Q28: No
B29: 7 | C29: OH Integral Switches | F29: 35 | G29: 45 | H29: 60 | J29: 1835 | K29: OH Devices | L29: 25 | M29: 0.04 | N29: 45 | O29: 0.02222222222 | P29: No | Q29: No
B30: 8 | C30: OH Conductors | F30: 50 | G30: 60 | H30: 75 | J30: 1835 | K30: OH Wires | L30: 25 | M30: 0.04 | N30: 45 | O30: 0.02222222222 | P30: Yes | Q30: No
B31: 9 | C31: OH Transformers & Voltage Regulators | F31: 30 | G31: 40 | H31: 60 | J31: 1850 | K31: Distribution Transformers | L31: 25 | M31: 0.04 | N31: 40 | O31: 0.025 | P31: No | Q31: No
B32: 10 | C32: OH Shunt Capacitor Banks | F32: 25 | G32: 30 | H32: 40
B33: 11 | C33: Reclosers | F33: 25 | G33: 40 | H33: 55 | J33: 1835 | K33: OH Devices | L33: 25 | M33: =IF(ISERROR(1/L33), "", 1/L33) -> 0.04 | N33: 45 | O33: =IF(ISERROR(1/N33), "", 1/N33) -> 0.02222222222 | P33: =IF(ISBLANK(N33),"",IF(N33<F33,"Yes","No")) -> No | Q33: =IF(ISBLANK(N33),"",IF(N33>H33,"Yes","No")) -> No
A34: TS & MS | B34: 12 | C34: Power Transformers | D34: Overall | F34: 30 | G34: 45 | H34: 60 | J34: 1850 | K34: Distribution Transformers | L34: 25 | M34: 0.04 | N34: 40 | O34: 0.025 | P34: No | Q34: No
D35: Bushing | F35: 10 | G35: 20 | H35: 30
D36: Tap Changer | F36: 20 | G36: 30 | H36: 60
B37: 13 | C37: Station Service Transformer | F37: 30 | G37: 45 | H37: 55 | J37: 1850 | K37: Distribution Transformers | L37: 25 | M37: 0.04 | N37: 40 | O37: 0.025 | P37: No | Q37: No
B38: 14 | C38: Station Grounding Transformer | F38: 30 | G38: 40 | H38: 40 | J38: 1850 | K38: n/a
B39: 15 | C39: Station DC System | D39: Overall | F39: 10 | G39: 20 | H39: 30 | J39: 1980 | K39: System Supervisory Equipment | L39: 15 | M39: 0.06666666667 | N39: 15 | O39: 0.06666666667 | P39: No | Q39: No
D40: Battery Bank | F40: 10 | G40: 15 | H40: 15 | K40: n/a
D41: Charger | F41: 20 | G41: 20 | H41: 30 | K41: n/a
B42: 16 | C42: Station Metal Clad Switchgear | D42: Overall | F42: 30 | G42: 40 | H42: 60 | J42: 1820 | K42: Switchgear | L42: 25 | M42: 0.04 | N42: 40 | O42: 0.025 | P42: No | Q42: No
D43: Removable Breaker | F43: 25 | G43: 40 | H43: 60 | J43: 1820 | K43: Switchgear | L43: 25 | M43: 0.04 | N43: 40 | O43: 0.025 | P43: No | Q43: No
B44: 17 | C44: Station Independent Breakers | F44: 35 | G44: 45 | H44: 65 | J44: 1820 | K44: n/a
B45: 18 | C45: Station Switch | F45: 30 | G45: 50 | H45: 60 | J45: 1820 | K45: n/a
B46: 19 | C46: Electromechanical Relays | F46: 25 | G46: 35 | H46: 50 | J46: 1820 | K46: Substation Equipment | L46: 25 | M46: 0.04 | N46: 40 | O46: 0.025 | P46: No | Q46: No
B47: 20 | C47: Solid State Relays | F47: 10 | G47: 30 | H47: 45 | J47: 1820 | K47: Substation Equipment | L47: 25 | M47: 0.04 | N47: 40 | O47: 0.025 | P47: No | Q47: No
B48: 21 | C48: Digital & Numeric Relays | F48: 15 | G48: 20 | H48: 20 | J48: 1820 | K48: n/a
B49: 22 | C49: Rigid Busbars | F49: 30 | G49: 55 | H49: 60 | J49: 1820 | K49: n/a
B50: 23 | C50: Steel Structure | F50: 35 | G50: 50 | H50: 90 | J50: 1820 | K50: Substation Equipment | L50: 25 | M50: 0.04 | N50: 40 | O50: 0.025 | P50: No | Q50: No
A51: UG | B51: 24 | C51: Primary Paper Insulated Lead Covered (PILC) Cables | F51: 60 | G51: 65 | H51: 75 | J51: 1845 | K51: n/a | M51: =IF(ISERROR(1/L51), "", 1/L51) ->  | O51: =IF(ISERROR(1/N51), "", 1/N51) ->  | P51: =IF(ISBLANK(N51),"",IF(N51<F51,"Yes","No")) ->  | Q51: =IF(ISBLANK(N51),"",IF(N51>H51,"Yes","No")) -> 
B52: 25 | C52: Primary Ethylene-Propylene Rubber (EPR) Cables | F52: 20 | G52: 25 | H52: 25 | J52: 1845 | K52: n/a | M52: =IF(ISERROR(1/L52), "", 1/L52) ->  | O52: =IF(ISERROR(1/N52), "", 1/N52) ->  | P52: =IF(ISBLANK(N52),"",IF(N52<F52,"Yes","No")) ->  | Q52: =IF(ISBLANK(N52),"",IF(N52>H52,"Yes","No")) -> 
B53: 26 | C53: Primary Non-Tree Retardant (TR) Cross Linked Polyethylene (XLPE) Cables Direct Buried | F53: 20 | G53: 25 | H53: 30 | J53: 1845 | K53: n/a
B54: 27 | C54: Primary Non-TR XLPE Cables in Duct | F54: 20 | G54: 25 | H54: 30 | J54: 1845 | K54: n/a
B55: 29 | C55: Primary TR XLPE Cables in Duct | F55: 35 | G55: 40 | H55: 55 | J55: 1855 | K55: UG Cable System | L55: 25 | M55: 0.04 | N55: 40 | O55: 0.025 | P55: No | Q55: No
B56: 30 | C56: Secondary PILC Cables | F56: 70 | G56: 75 | H56: 80
B57: 31 | C57: Secondary Cables Direct Buried | F57: 25 | G57: 35 | H57: 40 | J57: 1855 | K57: UG Cable System | L57: 25 | M57: 0.04 | N57: 40 | O57: 0.025 | P57: No | Q57: No
B58: 32 | C58: Secondary Cables in Duct | F58: 35 | G58: 40 | H58: 60 | J58: 1855 | K58: UG Cable System | L58: 25 | M58: 0.04 | N58: 40 | O58: 0.025 | P58: No | Q58: No
B59: 33 | C59: Network Tranformers | D59: Overall | F59: 20 | G59: 35 | H59: 50 | J59: 1850 | K59: Distribution Transformers | L59: 25 | M59: 0.04 | N59: 40 | O59: 0.025 | P59: No | Q59: No
D60: Protector | F60: 20 | G60: 35 | H60: 40
B61: 34 | C61: Pad-Mounted Transformers | F61: 25 | G61: 40 | H61: 45 | J61: 1850 | K61: Distribution Transformers | L61: 25 | M61: 0.04 | N61: 40 | O61: 0.025 | P61: No | Q61: No
B62: 35 | C62: Submersible/Vault Transformers | F62: 25 | G62: 35 | H62: 45 | J62: 1850 | K62: Distribution Transformers | L62: 25 | M62: 0.04 | N62: 40 | O62: 0.025 | P62: No | Q62: No
B63: 36 | C63: UG Foundation | F63: 35 | G63: 55 | H63: 70 | J63: 1840 | K63: Duct & Civil | L63: 25 | M63: 0.04 | N63: 45 | O63: 0.02222222222 | P63: No | Q63: No
B64: 37 | C64: UG Vaults | D64: Overall | F64: 40 | G64: 60 | H64: 80 | J64: 1840 | K64: Duct & Civil | L64: 25 | M64: 0.04 | N64: 45 | O64: 0.02222222222 | P64: No | Q64: No
D65: Roof | F65: 20 | G65: 30 | H65: 45
B66: 38 | C66: UG Vault Switches | F66: 20 | G66: 35 | H66: 50 | J66: 1845 | K66: UG Cable System | L66: 25 | M66: =IF(ISERROR(1/L66), "", 1/L66) -> 0.04 | N66: 40 | O66: =IF(ISERROR(1/N66), "", 1/N66) -> 0.025 | P66: =IF(ISBLANK(N66),"",IF(N66<F66,"Yes","No")) -> No | Q66: =IF(ISBLANK(N66),"",IF(N66>H66,"Yes","No")) -> No
B67: 39 | C67: Pad-Mounted Switchgear | F67: 20 | G67: 30 | H67: 45 | J67: 1845 | K67: Pad Mounted Switchgear | L67: 25 | M67: 0.04 | N67: 40 | O67: 0.025 | P67: No | Q67: No
B68: 40 | C68: Ducts | F68: 30 | G68: 50 | H68: 85 | J68: 1840 | K68: Duct & Civil | L68: 25 | M68: 0.04 | N68: 40 | O68: 0.025 | P68: No | Q68: No
B69: 41 | C69: Concrete Encased Duct Banks | F69: 35 | G69: 55 | H69: 80 | J69: 1840 | K69: Duct & Civil | L69: 25 | M69: 0.04 | N69: 40 | O69: 0.025 | P69: No | Q69: No
B70: 42 | C70: Cable Chambers | F70: 50 | G70: 60 | H70: 80 | J70: 1840 | K70: n/a
A71: S | B71: 43 | C71: Remote SCADA | F71: 15 | G71: 20 | H71: 30 | J71: 1980 | K71: System Supervisory Equipment | L71: 15 | M71: 0.06666666667 | N71: 15 | O71: 0.06666666667 | P71: No | Q71: No
A74: Table F-2 from Kinetrics Report1
C76: Asset Details | F76: Useful Life Range | J76: USoA Account Number | K76: USoA Account Description | L76: Current | N76: Proposed | P76: Outside Range of Min, Max TUL?
B77: # | C77: Category| Component | Type | L77: Years | M77: Rate | N77: Years | O77: Rate | P77: Below Min Range | Q77: Above Max Range
B78: 1 | C78: Office Equipment | F78: 5 | G78: 15 | J78: 1915 | K78: Office Equipment | L78: 10 | M78: =IF(ISERROR(1/L78), "", 1/L78) -> 0.1 | N78: 10 | O78: =IF(ISERROR(1/N78), "", 1/N78) -> 0.1 | P78: =IF(ISBLANK(N78),"",IF(N78<F78,"Yes","No")) -> No | Q78: =IF(ISBLANK(N78),"",IF(N78>G78,"Yes","No")) -> No
B79: 2 | C79: Vehicles | D79: Trucks & Buckets | F79: 5 | G79: 15 | J79: 1930 | K79: Vehicles - Heavy | L79: 8 | M79: =IF(ISERROR(1/L79), "", 1/L79) -> 0.125 | N79: 12 | O79: =IF(ISERROR(1/N79), "", 1/N79) -> 0.08333333333 | P79: =IF(ISBLANK(N79),"",IF(N79<F79,"Yes","No")) -> No | Q79: =IF(ISBLANK(N79),"",IF(N79>G79,"Yes","No")) -> No
D80: Trailers | F80: 5 | G80: 20 | J80: 1930 | K80: Vehicles - Light | L80: 5 | M80: 0.2 | N80: 8 | O80: 0.125 | P80: No | Q80: No
D81: Vans | F81: 5 | G81: 10 | J81: 1930 | K81: Vehicles - Other Mobile Equipment | L81: 8 | M81: 0.125 | N81: 8 | O81: 0.125 | P81: No | Q81: No
B82: 3 | C82: Administrative Buildings | F82: 50 | G82: 75 | J82: 1908 | K82: Administrative Buildings | L82: 50 | M82: 0.02 | N82: 50 | O82: 0.02 | P82: No | Q82: No
B83: 4 | C83: Leasehold Improvements | F83: Lease dependent | J83: 1910 | K83: Leasehold Improvements | L83: 5 | M83: 0.2 | N83: 5 | O83: 0.2
B84: 5 | C84: Station Buildings | D84: Station Buildings | F84: 50 | G84: 75 | K84: n/a
D85: Parking | F85: 25 | G85: 30 | K85: n/a
D86: Fence | F86: 25 | G86: 60 | K86: n/a
D87: Roof | F87: 20 | G87: 30 | K87: n/a
B88: 6 | C88: Computer Equipment | D88: Hardware | F88: 3 | G88: 5 | J88: 1920 | K88: Computer Hardware | L88: 5 | M88: 0.2 | N88: 5 | O88: 0.2 | P88: No | Q88: No
D89: Software | F89: 2 | G89: 5 | J89: 1925 | K89: Computer Software | L89: 3 | M89: 0.3333333333 | N89: 5 | O89: 0.2 | P89: No | Q89: No
B90: 7 | C90: Equipment | D90: Power Operated | F90: 5 | G90: 10 | J90: 1940 | K90: Power Operated | L90: 10 | M90: =IF(ISERROR(1/L90), "", 1/L90) -> 0.1 | N90: 10 | O90: =IF(ISERROR(1/N90), "", 1/N90) -> 0.1 | P90: =IF(ISBLANK(N90),"",IF(N90<F90,"Yes","No")) -> No | Q90: =IF(ISBLANK(N90),"",IF(N90>G90,"Yes","No")) -> No
D91: Stores | F91: 5 | G91: 10 | J91: 1935 | K91: Stores Equipment | L91: 10 | M91: 0.1 | N91: 10 | O91: 0.1 | P91: No | Q91: No
D92: Tools, Shop, Garage Equipment | F92: 5 | G92: 10 | J92: 1940 | K92: Major Tools | L92: 10 | M92: 0.1 | N92: 10 | O92: 0.1 | P92: No | Q92: No
D93: Measurement & Testing Equipment | F93: 5 | G93: 10 | J93: 1945 | K93: Measurement & Testing Equipment | L93: 10 | M93: 0.1 | N93: 10 | O93: 0.1 | P93: No | Q93: No
D94: Other Tangible Equipment | F94: 5 | G94: 10 | J94: 1990 | K94: Other Tangible Equipment | L94: 10 | M94: 0.1 | N94: 10 | O94: 0.1 | P94: No | Q94: No
B95: 8 | C95: Communication | D95: Towers | F95: 60 | G95: 70 | J95: 1955 | K95: n/a
D96: Wireless | F96: 2 | G96: 10 | J96: 1955 | K96: Communication Equipment | L96: 10 | M96: =IF(ISERROR(1/L96), "", 1/L96) -> 0.1 | N96: 10 | O96: =IF(ISERROR(1/N96), "", 1/N96) -> 0.1 | P96: =IF(ISBLANK(N96),"",IF(N96<F96,"Yes","No")) -> No | Q96: =IF(ISBLANK(N96),"",IF(N96>G96,"Yes","No")) -> No
B97: 9 | C97: Residential Energy Meters | F97: 25 | G97: 35 | J97: 1860 | K97: n/a | M97: 0
B98: 10 | C98: Industrial/Commercial Energy Meters | F98: 25 | G98: 35 | J98: 1860 | K98: n/a | M98: 0
B99: 11 | C99: Wholesale Energy Meters | F99: 15 | G99: 30
B100: 12 | C100: Current & Potential Transformer (CT & PT) | F100: 35 | G100: 50
B101: 13 | C101: Smart Meters | F101: 5 | G101: 15 | J101: 1860 | K101: Meters | L101: 15-25 | M101: 0 | N101: 15 | O101: 0.06666666667 | P101: No | Q101: No
B102: 14 | C102: Repeaters - Smart Metering | F102: 10 | G102: 15 | J102: 1860 | K102: Meters | L102: 15-25 | M102: 0 | N102: 15 | O102: 0.06666666667 | P102: No | Q102: No
B103: 15 | C103: Data Collectors - Smart Metering | F103: 15 | G103: 20 | J103: 1860 | K103: Meters | L103: 15-25 | M103: 0 | N103: 15 | O103: 0.06666666667 | P103: No | Q103: No
A106: * TS & MS = Transformer and Municipal Stations UG = Underground Systems S = Monitoring and Control Systems
A108: Note 1: | B108: Tables F-1 and F-2 above are to be used as a reference in order to complete columns J, K, L and N.
B109: See pages 17-19 of Kinetrics Report

Sheet App.2-CA_OldCGAAP_DepExp_2012
K1: File Number: | L1: =EBNUMBER -> EB-2015-0089
K2: Exhibit:
K3: Tab:
K4: Schedule:
K5: Page:
K7: Date:
A9: Appendix 2-CA
A10: Depreciation and Amortization Expense
B11: Assumes the applicant made capitalization and depreciation expense accounting policy changes under CGAAP effective January 1, 2012 and has adopted IFRS for financial reporting purposes effective January 1, 2015.
C13: Year | D13: 2012 | E13: Former CGAAP
A15: Account | B15: Description | C15: Opening Regulatory Gross PP&E as at Jan 1, 2012 | D15: Less Fully Depreciated | E15: Net for Depreciation | F15: Additions | G15: Total for Depreciation 1 | H15: Years | I15: Depreciation Rate | J15: Depreciation Expense | K15: 2012 Depreciation Expense per Appendix 2-BA Fixed Assets, Column J (l) | L15: Variance 2
C16: (a) | D16: (b) | E16: (c) | F16: (d) | G16: (e) = (c) + ½ x (d) | H16: (f) | I16: (g) = 1 / (f) | J16: (h) = (e) / (f) | L16: (m) = (h) - (l)
A17: 1611 | B17: Computer Software (Formally known as Account 1925) | E17: =C17-D17 -> 0 | G17: =E17+0.5*F17 -> 0 | I17: =IF(H17=0,0,1/H17) -> 0 | J17: =IF(H17=0,0,G17/H17) -> 0 | L17: =IF(ISERROR(+J17-K17), 0, +J17-K17) -> 0
A18: 1612 | B18: Land Rights (Formally known as Account 1906) | E18: =C18-D18 -> 0 | G18: =E18+0.5*F18 -> 0 | I18: 0 | J18: 0 | L18: 0
A19: 1805 | B19: Land | E19: 0 | G19: 0 | I19: 0 | J19: 0 | L19: 0
A20: 1808 | B20: Buildings | E20: 0 | G20: 0 | I20: 0 | J20: 0 | L20: 0
A21: 1810 | B21: Leasehold Improvements | E21: 0 | G21: 0 | I21: 0 | J21: 0 | L21: 0
A22: 1815 | B22: Transformer Station Equipment >50 kV | E22: 0 | G22: 0 | I22: 0 | J22: 0 | L22: 0
A23: 1820 | B23: Distribution Station Equipment <50 kV | E23: 0 | G23: 0 | I23: 0 | J23: 0 | L23: 0
A24: 1825 | B24: Storage Battery Equipment | E24: 0 | G24: 0 | I24: 0 | J24: 0 | L24: 0
A25: 1830 | B25: Poles, Towers & Fixtures | E25: 0 | G25: 0 | I25: 0 | J25: 0 | L25: 0
A26: 1835 | B26: Overhead Conductors & Devices | E26: 0 | G26: 0 | I26: 0 | J26: 0 | L26: 0
A27: 1840 | B27: Underground Conduit | E27: 0 | G27: 0 | I27: 0 | J27: 0 | L27: 0
A28: 1845 | B28: Underground Conductors & Devices | E28: 0 | G28: 0 | I28: 0 | J28: 0 | L28: 0
A29: 1850 | B29: Line Transformers | E29: 0 | G29: 0 | I29: 0 | J29: 0 | L29: 0
A30: 1855 | B30: Services (Overhead & Underground) | E30: 0 | G30: 0 | I30: 0 | J30: 0 | L30: 0
A31: 1860 | B31: Meters | E31: 0 | G31: 0 | I31: 0 | J31: 0 | L31: 0
A32: 1860 | B32: Meters (Smart Meters) | E32: 0 | G32: 0 | I32: 0 | J32: 0 | L32: 0
A33: 1905 | B33: Land | E33: 0 | G33: 0 | I33: 0 | J33: 0 | L33: 0
A34: 1908 | B34: Buildings & Fixtures | E34: 0 | G34: 0 | I34: 0 | J34: 0 | L34: 0
A35: 1910 | B35: Leasehold Improvements | E35: 0 | G35: 0 | I35: 0 | J35: 0 | L35: 0
A36: 1915 | B36: Office Furniture & Equipment (10 years) | E36: 0 | G36: 0 | I36: 0 | J36: 0 | L36: 0
A37: 1915 | B37: Office Furniture & Equipment (5 years) | E37: 0 | G37: 0 | I37: 0 | J37: 0 | L37: 0
A38: 1920 | B38: Computer Equipment - Hardware | E38: 0 | G38: 0 | I38: 0 | J38: 0 | L38: 0
A39: 1920 | B39: Computer Equip.-Hardware(Post Mar. 22/04) | E39: 0 | G39: 0 | I39: 0 | J39: 0 | L39: 0
A40: 1920 | B40: Computer Equip.-Hardware(Post Mar. 19/07) | E40: 0 | G40: 0 | I40: 0 | J40: 0 | L40: 0
A41: 1930 | B41: Transportation Equipment | E41: 0 | G41: 0 | I41: 0 | J41: 0 | L41: 0
A42: 1935 | B42: Stores Equipment | E42: 0 | G42: 0 | I42: 0 | J42: 0 | L42: 0
A43: 1940 | B43: Tools, Shop & Garage Equipment | E43: 0 | G43: 0 | I43: 0 | J43: 0 | L43: 0
A44: 1945 | B44: Measurement & Testing Equipment | E44: 0 | G44: 0 | I44: 0 | J44: 0 | L44: 0
A45: 1950 | B45: Power Operated Equipment | E45: 0 | G45: 0 | I45: 0 | J45: 0 | L45: 0
A46: 1955 | B46: Communications Equipment | E46: 0 | G46: 0 | I46: 0 | J46: 0 | L46: 0
A47: 1955 | B47: Communication Equipment (Smart Meters) | E47: 0 | G47: 0 | I47: 0 | J47: 0 | L47: 0
A48: 1960 | B48: Miscellaneous Equipment | E48: 0 | G48: 0 | I48: 0 | J48: 0 | L48: 0
A49: 1970 | B49: Load Management Controls Customer Premises | E49: 0 | G49: 0 | I49: 0 | J49: 0 | L49: 0
A50: 1975 | B50: Load Management Controls Utility Premises | E50: 0 | G50: 0 | I50: 0 | J50: 0 | L50: 0
A51: 1980 | B51: System Supervisor Equipment | E51: 0 | G51: 0 | I51: 0 | J51: 0 | L51: 0
A52: 1985 | B52: Miscellaneous Fixed Assets | E52: 0 | G52: 0 | I52: 0 | J52: 0 | L52: 0
A53: 1990 | B53: Other Tangible Property | E53: 0 | G53: 0 | I53: 0 | J53: 0 | L53: 0
A54: 1995 | B54: Contributions & Grants | E54: 0 | G54: 0 | I54: 0 | J54: 0 | L54: 0
B55: Total | C55: =SUM(C17:C54) -> 0 | D55: =SUM(D17:D54) -> 0 | E55: =SUM(E17:E54) -> 0 | F55: =SUM(F17:F54) -> 0 | G55: =SUM(G17:G54) -> 0 | J55: =SUM(J17:J54) -> 0 | K55: =SUM(K17:K54) -> 0 | L55: =SUM(L17:L54) -> 0
A57: Notes:
A59: 1 | B59: Board policy of the "half-year" rule - the applicant must ensure that additions in the year attract a half-year depreciation expense in the first year. Deviations from this standard practice must be supported in the application.
A60: 2 | B60: The applicant must provide an explanation of material variances in evidence.
A62: General | B62: Applicants must provide a breakdown of depreciation and amortization expense in the above format for all relevant accounts. Asset Retirement Obligations (AROs), depreciation and accretion expense should be disclosed separately consistent with the Notes of historical Audited Financial Statements.

Sheet App.2-CB_NewCGAAP_DepExp_2012
N1: File Number: | O1: =EBNUMBER -> EB-2015-0089
N2: Exhibit:
N3: Tab:
N4: Schedule:
N5: Page:
N7: Date:
A9: Appendix 2-CB
A10: Depreciation and Amortization Expense
A11: Assumes the applicant made capitalization and depreciation expense accounting policy changes under CGAAP effective January 1, 2012 and has adopted IFRS for financial reporting purposes effective January 1, 2015.
C13: Year | D13: 2012 | E13: Revised CGAAP
A15: Account | B15: Description | C15: Opening NBV as at Jan 1, 2012 5 | D15: Additions | E15: Average Remaining Life of Opening NBV 4 | F15: Years (new additions only) 3 | G15: Depreciation Rate on New Additions | H15: Depreciation Expense on Opening NBV | I15: Depreciation Expense on Additions 1 | J15: 2012 Depreciation Expense | K15: 2012 Depreciation Expense per Appendix 2-BA Fixed Assets, Column J (l) | L15: Variance 2 | M15: Depreciation Expense on 2012 Full Year Additions | N15: Less Depreciation Expense on Assets Fully Depreciated during the year (o) | O15: 2012 Full Year Depreciation 6
C16: (a) | D16: (d) | E16: (i) | F16: (f) | G16: (g) = 1 / (f) | H16: (j) = (a) / (i) | I16: (h)=((d)*0.5)/(f) | J16: (k) = (j) + (h) | L16: (m) = (k) - (l) | M16: (n) = (d)/(f) | O16: (p) = (j) + (n) - (o)
A17: 1611 | B17: Computer Software (Formally known as Account 1925) | G17: =IF(F17=0,0,1/F17) -> 0 | H17: =IF(E17=0,0,+C17/E17) -> 0 | I17: =IF(F17=0,0,+(D17*0.5)/F17) -> 0 | J17: =IF(ISERROR(+H17+I17), 0, +H17+I17) -> 0 | L17: =IF(ISERROR(+J17-K17), 0, +J17-K17) -> 0 | M17: =IF(F17=0,0,+(D17)/F17) -> 0 | O17: =IF(ISERROR(+M17+H17-N17), 0, +M17+H17-N17) -> 0
A18: 1612 | B18: Land Rights (Formally known as Account 1906) | G18: 0 | H18: 0 | I18: 0 | J18: 0 | L18: 0 | M18: 0 | O18: =IF(ISERROR(+M18+H18-N18), 0, +M18+H18-N18) -> 0
A19: 1805 | B19: Land | G19: 0 | H19: 0 | I19: 0 | J19: 0 | L19: 0 | M19: 0 | O19: 0
A20: 1808 | B20: Buildings | G20: 0 | H20: 0 | I20: 0 | J20: 0 | L20: 0 | M20: 0 | O20: 0
A21: 1810 | B21: Leasehold Improvements | G21: 0 | H21: 0 | I21: 0 | J21: 0 | L21: 0 | M21: 0 | O21: 0
A22: 1815 | B22: Transformer Station Equipment >50 kV | G22: 0 | H22: 0 | I22: 0 | J22: 0 | L22: 0 | M22: 0 | O22: 0
A23: 1820 | B23: Distribution Station Equipment <50 kV | G23: 0 | H23: 0 | I23: 0 | J23: 0 | L23: 0 | M23: 0 | O23: 0
A24: 1825 | B24: Storage Battery Equipment | G24: 0 | H24: 0 | I24: 0 | J24: 0 | L24: 0 | M24: 0 | O24: 0
A25: 1830 | B25: Poles, Towers & Fixtures | G25: 0 | H25: 0 | I25: 0 | J25: 0 | L25: 0 | M25: 0 | O25: 0
A26: 1835 | B26: Overhead Conductors & Devices | G26: 0 | H26: 0 | I26: 0 | J26: 0 | L26: 0 | M26: 0 | O26: 0
A27: 1840 | B27: Underground Conduit | G27: 0 | H27: 0 | I27: 0 | J27: 0 | L27: 0 | M27: 0 | O27: 0
A28: 1845 | B28: Underground Conductors & Devices | G28: 0 | H28: 0 | I28: 0 | J28: 0 | L28: 0 | M28: 0 | O28: 0
A29: 1850 | B29: Line Transformers | G29: 0 | H29: 0 | I29: 0 | J29: 0 | L29: 0 | M29: 0 | O29: 0
A30: 1855 | B30: Services (Overhead & Underground) | G30: 0 | H30: 0 | I30: 0 | J30: 0 | L30: 0 | M30: 0 | O30: 0
A31: 1860 | B31: Meters | G31: 0 | H31: 0 | I31: 0 | J31: 0 | L31: 0 | M31: 0 | O31: 0
A32: 1860 | B32: Meters (Smart Meters) | G32: 0 | H32: 0 | I32: 0 | J32: 0 | L32: 0 | M32: 0 | O32: 0
A33: 1905 | B33: Land | G33: 0 | H33: 0 | I33: 0 | J33: 0 | L33: 0 | M33: 0 | O33: 0
A34: 1908 | B34: Buildings & Fixtures | G34: 0 | H34: 0 | I34: 0 | J34: 0 | L34: 0 | M34: 0 | O34: 0
A35: 1910 | B35: Leasehold Improvements | G35: 0 | H35: 0 | I35: 0 | J35: 0 | L35: 0 | M35: 0 | O35: 0
A36: 1915 | B36: Office Furniture & Equipment (10 years) | G36: 0 | H36: 0 | I36: 0 | J36: 0 | L36: 0 | M36: 0 | O36: 0
A37: 1915 | B37: Office Furniture & Equipment (5 years) | G37: 0 | H37: 0 | I37: 0 | J37: 0 | L37: 0 | M37: 0 | O37: 0
A38: 1920 | B38: Computer Equipment - Hardware | G38: 0 | H38: 0 | I38: 0 | J38: 0 | L38: 0 | M38: 0 | O38: 0
A39: 1920 | B39: Computer Equip.-Hardware(Post Mar. 22/04) | G39: 0 | H39: 0 | I39: 0 | J39: 0 | L39: 0 | M39: 0 | O39: 0
A40: 1920 | B40: Computer Equip.-Hardware(Post Mar. 19/07) | G40: 0 | H40: 0 | I40: 0 | J40: 0 | L40: 0 | M40: 0 | O40: 0
A41: 1930 | B41: Transportation Equipment | G41: 0 | H41: 0 | I41: 0 | J41: 0 | L41: 0 | M41: 0 | O41: 0
A42: 1935 | B42: Stores Equipment | G42: 0 | H42: 0 | I42: 0 | J42: 0 | L42: 0 | M42: 0 | O42: 0
A43: 1940 | B43: Tools, Shop & Garage Equipment | G43: 0 | H43: 0 | I43: 0 | J43: 0 | L43: 0 | M43: 0 | O43: 0
A44: 1945 | B44: Measurement & Testing Equipment | G44: 0 | H44: 0 | I44: 0 | J44: 0 | L44: 0 | M44: 0 | O44: 0
A45: 1950 | B45: Power Operated Equipment | G45: 0 | H45: 0 | I45: 0 | J45: 0 | L45: 0 | M45: 0 | O45: 0
A46: 1955 | B46: Communications Equipment | G46: 0 | H46: 0 | I46: 0 | J46: 0 | L46: 0 | M46: 0 | O46: 0
A47: 1955 | B47: Communication Equipment (Smart Meters) | G47: 0 | H47: 0 | I47: 0 | J47: 0 | L47: 0 | M47: 0 | O47: 0
A48: 1960 | B48: Miscellaneous Equipment | G48: 0 | H48: 0 | I48: 0 | J48: 0 | L48: 0 | M48: 0 | O48: 0
A49: 1970 | B49: Load Management Controls Customer Premises | G49: 0 | H49: 0 | I49: 0 | J49: 0 | L49: 0 | M49: 0 | O49: 0
A50: 1975 | B50: Load Management Controls Utility Premises | G50: 0 | H50: 0 | I50: 0 | J50: 0 | L50: 0 | M50: 0 | O50: 0
A51: 1980 | B51: System Supervisor Equipment | G51: 0 | H51: 0 | I51: 0 | J51: 0 | L51: 0 | M51: 0 | O51: 0
A52: 1985 | B52: Miscellaneous Fixed Assets | G52: 0 | H52: 0 | I52: 0 | J52: 0 | L52: 0 | M52: 0 | O52: 0
A53: 1990 | B53: Other Tangible Property | G53: 0 | H53: 0 | I53: 0 | J53: 0 | L53: 0 | M53: 0 | O53: 0
A54: 1995 | B54: Contributions & Grants | G54: 0 | H54: 0 | I54: 0 | J54: 0 | L54: 0 | M54: 0 | O54: 0
B55: Total | C55: =SUM(C17:C54) -> 0 | D55: =SUM(D17:D54) -> 0 | H55: =SUM(H17:H54) -> 0 | I55: 0 | J55: 0 | K55: 0 | L55: 0 | M55: 0 | N55: 0 | O55: 0
A57: Notes:
A59: 1 | B59: Board policy of the "half-year" rule - the applicant must ensure that additions in the year attract a half-year depreciation expense in the first year. Deviations from this standard practice must be supported in the application.
A60: 2 | B60: The applicant must provide an explanation of material variances in evidence.
A61: 3 | B61: The applicant should ensure that the years for new additions of assets are the asset useful lives determined by management in accordance with the Board's regulatory accounting policies. The capitalization and depreciation expense accounting changes should be implemented consistent with the Board’s regulatory accounting policies as set out for modified IFRS as contained in the Report of the Board, Transition to International Financial Reporting Standards, EB-2008-0408, the Kinectrics Report, and the Revised 2012 Accounting Procedures Handbook for Electricity Distributors (“APH”).
A62: 4 | B62: A recalculation should be performed to determine the average remaining life of opening balance of assets (i.e. excluding 2012 additions) under the change in policies under CGAAP. For example, Asset A had a useful life of 20 years under CGAAP without the change in policies. On January 1, 2012, the effective date of the changes in policies, Asset A was 3 years depreciated. As a result, Asset A would have a remaining service life of 17 years (20 years less 3 years) as of January 1, 2012. Due to making the change in policies under CGAAP, management re-assessed the asset useful lives and concluded that the revised useful life of Asset A is now 30 years. Therefore, the average remaining useful life of the opening balance of Asset A is determined to be 27 years (30 years less 3 years) under the revised CGAAP as of January 1, 2012.
A63: 5 | B63: NBV must exclude assets still on the books but which have been fully amortized or depreciated.
A64: 6 | B64: This column refers to the calculated full year depreciation but excludes the depreciation expense on assets fully depreciated during the year. This column is used for the purpose of calculating depreciation expense in the following year on the next worksheet.
A66: General: | B66: Applicants must provide a breakdown of depreciation and amortization expense in the above format for all relevant accounts. Asset Retirement Obligations (AROs), depreciation and accretion expense should be disclosed separately consistent with the Notes of historical Audited Financial Statements.

Sheet App.2-CC_NewCGAAP_DepExp_2013
J1: File Number: | K1: =EBNUMBER -> EB-2015-0089
J2: Exhibit:
J3: Tab:
J4: Schedule:
J5: Page:
J7: Date:
A9: Appendix 2-CC
A10: Depreciation and Amortization Expense
A11: Assumes the applicant made capitalization and depreciation expense accounting policy changes under CGAAP effective January 1, 2012 and has adopted IFRS for financial reporting purposes effective January 1, 2015.
C13: 2013 | D13: Revised CGAAP
A15: Account | B15: Description | C15: Additions | D15: Years (new additions only) | E15: Depreciation Rate on New Additions | F15: 2013 Depreciation Expense 1 | G15: 2013 Depreciation Expense per Apppendix 2-BA Fixed Assets, Column J (l) | H15: Variance 2 | I15: Depreciation Expense on 2013 Full Year Additions | J15: Less Depreciation Expense on Assets Fully Depreciated during the year (o) | K15: 2013 Full Year Depreciation 3
C16: (d) | D16: (f) | E16: (g) = 1 / (f) | F16: (h)=2012 Full Year Deprecation + ((d)*0.5)/(f) | H16: (m) = (h) - (l) | I16: (n)=((d))/(f) | K16: (p) = 2012 Full Year Depreciation + (n) - (o)
A17: 1611 | B17: Computer Software (Formally known as Account 1925) | E17: =IF(D17=0,0,1/D17) -> 0 | F17: =IF(D17=0,+'App.2-CB_NewCGAAP_DepExp_2012'!O17,+'App.2-CB_NewCGAAP_DepExp_2012'!O17+((C17*0.5)/D17)) -> 0 | H17: =IF(ISERROR(+F17-G17), 0, +F17-G17) -> 0 | I17: =IF(D17=0,0,+(C17)/D17) -> 0 | K17: =IF(ISERROR(+I17+'App.2-CB_NewCGAAP_DepExp_2012'!O17-J17), 0, +I17+'App.2-CB_NewCGAAP_DepExp_2012'!O17-J17) -> 0
A18: 1612 | B18: Land Rights (Formally known as Account 1906) | E18: 0 | F18: =IF(D18=0,+'App.2-CB_NewCGAAP_DepExp_2012'!O18,+'App.2-CB_NewCGAAP_DepExp_2012'!O18+((C18*0.5)/D18)) -> 0 | H18: 0 | I18: 0 | K18: =IF(ISERROR(+I18+'App.2-CB_NewCGAAP_DepExp_2012'!O18-J18), 0, +I18+'App.2-CB_NewCGAAP_DepExp_2012'!O18-J18) -> 0
A19: 1805 | B19: Land | E19: 0 | F19: =IF(D19=0,+'App.2-CB_NewCGAAP_DepExp_2012'!O19,+'App.2-CB_NewCGAAP_DepExp_2012'!O19+((C19*0.5)/D19)) -> 0 | H19: 0 | I19: 0 | K19: =IF(ISERROR(+I19+'App.2-CB_NewCGAAP_DepExp_2012'!O19-J19), 0, +I19+'App.2-CB_NewCGAAP_DepExp_2012'!O19-J19) -> 0
A20: 1808 | B20: Buildings | E20: 0 | F20: =IF(D20=0,+'App.2-CB_NewCGAAP_DepExp_2012'!O20,+'App.2-CB_NewCGAAP_DepExp_2012'!O20+((C20*0.5)/D20)) -> 0 | H20: 0 | I20: 0 | K20: =IF(ISERROR(+I20+'App.2-CB_NewCGAAP_DepExp_2012'!O20-J20), 0, +I20+'App.2-CB_NewCGAAP_DepExp_2012'!O20-J20) -> 0
A21: 1810 | B21: Leasehold Improvements | E21: 0 | F21: =IF(D21=0,+'App.2-CB_NewCGAAP_DepExp_2012'!O21,+'App.2-CB_NewCGAAP_DepExp_2012'!O21+((C21*0.5)/D21)) -> 0 | H21: 0 | I21: 0 | K21: =IF(ISERROR(+I21+'App.2-CB_NewCGAAP_DepExp_2012'!O21-J21), 0, +I21+'App.2-CB_NewCGAAP_DepExp_2012'!O21-J21) -> 0
A22: 1815 | B22: Transformer Station Equipment >50 kV | E22: 0 | F22: =IF(D22=0,+'App.2-CB_NewCGAAP_DepExp_2012'!O22,+'App.2-CB_NewCGAAP_DepExp_2012'!O22+((C22*0.5)/D22)) -> 0 | H22: 0 | I22: 0 | K22: =IF(ISERROR(+I22+'App.2-CB_NewCGAAP_DepExp_2012'!O22-J22), 0, +I22+'App.2-CB_NewCGAAP_DepExp_2012'!O22-J22) -> 0
A23: 1820 | B23: Distribution Station Equipment <50 kV | E23: 0 | F23: =IF(D23=0,+'App.2-CB_NewCGAAP_DepExp_2012'!O23,+'App.2-CB_NewCGAAP_DepExp_2012'!O23+((C23*0.5)/D23)) -> 0 | H23: 0 | I23: 0 | K23: =IF(ISERROR(+I23+'App.2-CB_NewCGAAP_DepExp_2012'!O23-J23), 0, +I23+'App.2-CB_NewCGAAP_DepExp_2012'!O23-J23) -> 0
A24: 1825 | B24: Storage Battery Equipment | E24: 0 | F24: =IF(D24=0,+'App.2-CB_NewCGAAP_DepExp_2012'!O24,+'App.2-CB_NewCGAAP_DepExp_2012'!O24+((C24*0.5)/D24)) -> 0 | H24: 0 | I24: 0 | K24: =IF(ISERROR(+I24+'App.2-CB_NewCGAAP_DepExp_2012'!O24-J24), 0, +I24+'App.2-CB_NewCGAAP_DepExp_2012'!O24-J24) -> 0
A25: 1830 | B25: Poles, Towers & Fixtures | E25: 0 | F25: =IF(D25=0,+'App.2-CB_NewCGAAP_DepExp_2012'!O25,+'App.2-CB_NewCGAAP_DepExp_2012'!O25+((C25*0.5)/D25)) -> 0 | H25: 0 | I25: 0 | K25: =IF(ISERROR(+I25+'App.2-CB_NewCGAAP_DepExp_2012'!O25-J25), 0, +I25+'App.2-CB_NewCGAAP_DepExp_2012'!O25-J25) -> 0
A26: 1835 | B26: Overhead Conductors & Devices | E26: 0 | F26: =IF(D26=0,+'App.2-CB_NewCGAAP_DepExp_2012'!O26,+'App.2-CB_NewCGAAP_DepExp_2012'!O26+((C26*0.5)/D26)) -> 0 | H26: 0 | I26: 0 | K26: =IF(ISERROR(+I26+'App.2-CB_NewCGAAP_DepExp_2012'!O26-J26), 0, +I26+'App.2-CB_NewCGAAP_DepExp_2012'!O26-J26) -> 0
A27: 1840 | B27: Underground Conduit | E27: 0 | F27: =IF(D27=0,+'App.2-CB_NewCGAAP_DepExp_2012'!O27,+'App.2-CB_NewCGAAP_DepExp_2012'!O27+((C27*0.5)/D27)) -> 0 | H27: 0 | I27: 0 | K27: =IF(ISERROR(+I27+'App.2-CB_NewCGAAP_DepExp_2012'!O27-J27), 0, +I27+'App.2-CB_NewCGAAP_DepExp_2012'!O27-J27) -> 0
A28: 1845 | B28: Underground Conductors & Devices | E28: 0 | F28: =IF(D28=0,+'App.2-CB_NewCGAAP_DepExp_2012'!O28,+'App.2-CB_NewCGAAP_DepExp_2012'!O28+((C28*0.5)/D28)) -> 0 | H28: 0 | I28: 0 | K28: =IF(ISERROR(+I28+'App.2-CB_NewCGAAP_DepExp_2012'!O28-J28), 0, +I28+'App.2-CB_NewCGAAP_DepExp_2012'!O28-J28) -> 0
A29: 1850 | B29: Line Transformers | E29: 0 | F29: =IF(D29=0,+'App.2-CB_NewCGAAP_DepExp_2012'!O29,+'App.2-CB_NewCGAAP_DepExp_2012'!O29+((C29*0.5)/D29)) -> 0 | H29: 0 | I29: 0 | K29: =IF(ISERROR(+I29+'App.2-CB_NewCGAAP_DepExp_2012'!O29-J29), 0, +I29+'App.2-CB_NewCGAAP_DepExp_2012'!O29-J29) -> 0
A30: 1855 | B30: Services (Overhead & Underground) | E30: 0 | F30: =IF(D30=0,+'App.2-CB_NewCGAAP_DepExp_2012'!O30,+'App.2-CB_NewCGAAP_DepExp_2012'!O30+((C30*0.5)/D30)) -> 0 | H30: 0 | I30: 0 | K30: =IF(ISERROR(+I30+'App.2-CB_NewCGAAP_DepExp_2012'!O30-J30), 0, +I30+'App.2-CB_NewCGAAP_DepExp_2012'!O30-J30) -> 0
A31: 1860 | B31: Meters | E31: 0 | F31: =IF(D31=0,+'App.2-CB_NewCGAAP_DepExp_2012'!O31,+'App.2-CB_NewCGAAP_DepExp_2012'!O31+((C31*0.5)/D31)) -> 0 | H31: 0 | I31: 0 | K31: =IF(ISERROR(+I31+'App.2-CB_NewCGAAP_DepExp_2012'!O31-J31), 0, +I31+'App.2-CB_NewCGAAP_DepExp_2012'!O31-J31) -> 0
A32: 1860 | B32: Meters (Smart Meters) | E32: 0 | F32: =IF(D32=0,+'App.2-CB_NewCGAAP_DepExp_2012'!O32,+'App.2-CB_NewCGAAP_DepExp_2012'!O32+((C32*0.5)/D32)) -> 0 | H32: 0 | I32: 0 | K32: =IF(ISERROR(+I32+'App.2-CB_NewCGAAP_DepExp_2012'!O32-J32), 0, +I32+'App.2-CB_NewCGAAP_DepExp_2012'!O32-J32) -> 0
A33: 1905 | B33: Land | E33: 0 | F33: =IF(D33=0,+'App.2-CB_NewCGAAP_DepExp_2012'!O33,+'App.2-CB_NewCGAAP_DepExp_2012'!O33+((C33*0.5)/D33)) -> 0 | H33: 0 | I33: 0 | K33: =IF(ISERROR(+I33+'App.2-CB_NewCGAAP_DepExp_2012'!O33-J33), 0, +I33+'App.2-CB_NewCGAAP_DepExp_2012'!O33-J33) -> 0
A34: 1908 | B34: Buildings & Fixtures | E34: 0 | F34: =IF(D34=0,+'App.2-CB_NewCGAAP_DepExp_2012'!O34,+'App.2-CB_NewCGAAP_DepExp_2012'!O34+((C34*0.5)/D34)) -> 0 | H34: 0 | I34: 0 | K34: =IF(ISERROR(+I34+'App.2-CB_NewCGAAP_DepExp_2012'!O34-J34), 0, +I34+'App.2-CB_NewCGAAP_DepExp_2012'!O34-J34) -> 0
A35: 1910 | B35: Leasehold Improvements | E35: 0 | F35: =IF(D35=0,+'App.2-CB_NewCGAAP_DepExp_2012'!O35,+'App.2-CB_NewCGAAP_DepExp_2012'!O35+((C35*0.5)/D35)) -> 0 | H35: 0 | I35: 0 | K35: =IF(ISERROR(+I35+'App.2-CB_NewCGAAP_DepExp_2012'!O35-J35), 0, +I35+'App.2-CB_NewCGAAP_DepExp_2012'!O35-J35) -> 0
A36: 1915 | B36: Office Furniture & Equipment (10 years) | E36: 0 | F36: =IF(D36=0,+'App.2-CB_NewCGAAP_DepExp_2012'!O36,+'App.2-CB_NewCGAAP_DepExp_2012'!O36+((C36*0.5)/D36)) -> 0 | H36: 0 | I36: 0 | K36: =IF(ISERROR(+I36+'App.2-CB_NewCGAAP_DepExp_2012'!O36-J36), 0, +I36+'App.2-CB_NewCGAAP_DepExp_2012'!O36-J36) -> 0
A37: 1915 | B37: Office Furniture & Equipment (5 years) | E37: 0 | F37: =IF(D37=0,+'App.2-CB_NewCGAAP_DepExp_2012'!O37,+'App.2-CB_NewCGAAP_DepExp_2012'!O37+((C37*0.5)/D37)) -> 0 | H37: 0 | I37: 0 | K37: =IF(ISERROR(+I37+'App.2-CB_NewCGAAP_DepExp_2012'!O37-J37), 0, +I37+'App.2-CB_NewCGAAP_DepExp_2012'!O37-J37) -> 0
A38: 1920 | B38: Computer Equipment - Hardware | E38: 0 | F38: =IF(D38=0,+'App.2-CB_NewCGAAP_DepExp_2012'!O38,+'App.2-CB_NewCGAAP_DepExp_2012'!O38+((C38*0.5)/D38)) -> 0 | H38: 0 | I38: 0 | K38: =IF(ISERROR(+I38+'App.2-CB_NewCGAAP_DepExp_2012'!O38-J38), 0, +I38+'App.2-CB_NewCGAAP_DepExp_2012'!O38-J38) -> 0
A39: 1920 | B39: Computer Equip.-Hardware(Post Mar. 22/04) | E39: 0 | F39: =IF(D39=0,+'App.2-CB_NewCGAAP_DepExp_2012'!O39,+'App.2-CB_NewCGAAP_DepExp_2012'!O39+((C39*0.5)/D39)) -> 0 | H39: 0 | I39: 0 | K39: =IF(ISERROR(+I39+'App.2-CB_NewCGAAP_DepExp_2012'!O39-J39), 0, +I39+'App.2-CB_NewCGAAP_DepExp_2012'!O39-J39) -> 0
A40: 1920 | B40: Computer Equip.-Hardware(Post Mar. 19/07) | E40: 0 | F40: =IF(D40=0,+'App.2-CB_NewCGAAP_DepExp_2012'!O40,+'App.2-CB_NewCGAAP_DepExp_2012'!O40+((C40*0.5)/D40)) -> 0 | H40: 0 | I40: 0 | K40: =IF(ISERROR(+I40+'App.2-CB_NewCGAAP_DepExp_2012'!O40-J40), 0, +I40+'App.2-CB_NewCGAAP_DepExp_2012'!O40-J40) -> 0
A41: 1930 | B41: Transportation Equipment | E41: 0 | F41: =IF(D41=0,+'App.2-CB_NewCGAAP_DepExp_2012'!O41,+'App.2-CB_NewCGAAP_DepExp_2012'!O41+((C41*0.5)/D41)) -> 0 | H41: 0 | I41: 0 | K41: =IF(ISERROR(+I41+'App.2-CB_NewCGAAP_DepExp_2012'!O41-J41), 0, +I41+'App.2-CB_NewCGAAP_DepExp_2012'!O41-J41) -> 0
A42: 1935 | B42: Stores Equipment | E42: 0 | F42: =IF(D42=0,+'App.2-CB_NewCGAAP_DepExp_2012'!O42,+'App.2-CB_NewCGAAP_DepExp_2012'!O42+((C42*0.5)/D42)) -> 0 | H42: 0 | I42: 0 | K42: =IF(ISERROR(+I42+'App.2-CB_NewCGAAP_DepExp_2012'!O42-J42), 0, +I42+'App.2-CB_NewCGAAP_DepExp_2012'!O42-J42) -> 0
A43: 1940 | B43: Tools, Shop & Garage Equipment | E43: 0 | F43: =IF(D43=0,+'App.2-CB_NewCGAAP_DepExp_2012'!O43,+'App.2-CB_NewCGAAP_DepExp_2012'!O43+((C43*0.5)/D43)) -> 0 | H43: 0 | I43: 0 | K43: =IF(ISERROR(+I43+'App.2-CB_NewCGAAP_DepExp_2012'!O43-J43), 0, +I43+'App.2-CB_NewCGAAP_DepExp_2012'!O43-J43) -> 0
A44: 1945 | B44: Measurement & Testing Equipment | E44: 0 | F44: =IF(D44=0,+'App.2-CB_NewCGAAP_DepExp_2012'!O44,+'App.2-CB_NewCGAAP_DepExp_2012'!O44+((C44*0.5)/D44)) -> 0 | H44: 0 | I44: 0 | K44: =IF(ISERROR(+I44+'App.2-CB_NewCGAAP_DepExp_2012'!O44-J44), 0, +I44+'App.2-CB_NewCGAAP_DepExp_2012'!O44-J44) -> 0
A45: 1950 | B45: Power Operated Equipment | E45: 0 | F45: =IF(D45=0,+'App.2-CB_NewCGAAP_DepExp_2012'!O45,+'App.2-CB_NewCGAAP_DepExp_2012'!O45+((C45*0.5)/D45)) -> 0 | H45: 0 | I45: 0 | K45: =IF(ISERROR(+I45+'App.2-CB_NewCGAAP_DepExp_2012'!O45-J45), 0, +I45+'App.2-CB_NewCGAAP_DepExp_2012'!O45-J45) -> 0
A46: 1955 | B46: Communications Equipment | E46: 0 | F46: =IF(D46=0,+'App.2-CB_NewCGAAP_DepExp_2012'!O46,+'App.2-CB_NewCGAAP_DepExp_2012'!O46+((C46*0.5)/D46)) -> 0 | H46: 0 | I46: 0 | K46: =IF(ISERROR(+I46+'App.2-CB_NewCGAAP_DepExp_2012'!O46-J46), 0, +I46+'App.2-CB_NewCGAAP_DepExp_2012'!O46-J46) -> 0
A47: 1955 | B47: Communication Equipment (Smart Meters) | E47: 0 | F47: =IF(D47=0,+'App.2-CB_NewCGAAP_DepExp_2012'!O47,+'App.2-CB_NewCGAAP_DepExp_2012'!O47+((C47*0.5)/D47)) -> 0 | H47: 0 | I47: 0 | K47: =IF(ISERROR(+I47+'App.2-CB_NewCGAAP_DepExp_2012'!O47-J47), 0, +I47+'App.2-CB_NewCGAAP_DepExp_2012'!O47-J47) -> 0
A48: 1960 | B48: Miscellaneous Equipment | E48: 0 | F48: =IF(D48=0,+'App.2-CB_NewCGAAP_DepExp_2012'!O48,+'App.2-CB_NewCGAAP_DepExp_2012'!O48+((C48*0.5)/D48)) -> 0 | H48: 0 | I48: 0 | K48: =IF(ISERROR(+I48+'App.2-CB_NewCGAAP_DepExp_2012'!O48-J48), 0, +I48+'App.2-CB_NewCGAAP_DepExp_2012'!O48-J48) -> 0
A49: 1970 | B49: Load Management Controls Customer Premises | E49: 0 | F49: =IF(D49=0,+'App.2-CB_NewCGAAP_DepExp_2012'!O49,+'App.2-CB_NewCGAAP_DepExp_2012'!O49+((C49*0.5)/D49)) -> 0 | H49: 0 | I49: 0 | K49: =IF(ISERROR(+I49+'App.2-CB_NewCGAAP_DepExp_2012'!O49-J49), 0, +I49+'App.2-CB_NewCGAAP_DepExp_2012'!O49-J49) -> 0
A50: 1975 | B50: Load Management Controls Utility Premises | E50: 0 | F50: =IF(D50=0,+'App.2-CB_NewCGAAP_DepExp_2012'!O50,+'App.2-CB_NewCGAAP_DepExp_2012'!O50+((C50*0.5)/D50)) -> 0 | H50: 0 | I50: 0 | K50: =IF(ISERROR(+I50+'App.2-CB_NewCGAAP_DepExp_2012'!O50-J50), 0, +I50+'App.2-CB_NewCGAAP_DepExp_2012'!O50-J50) -> 0
A51: 1980 | B51: System Supervisor Equipment | E51: 0 | F51: =IF(D51=0,+'App.2-CB_NewCGAAP_DepExp_2012'!O51,+'App.2-CB_NewCGAAP_DepExp_2012'!O51+((C51*0.5)/D51)) -> 0 | H51: 0 | I51: 0 | K51: =IF(ISERROR(+I51+'App.2-CB_NewCGAAP_DepExp_2012'!O51-J51), 0, +I51+'App.2-CB_NewCGAAP_DepExp_2012'!O51-J51) -> 0
A52: 1985 | B52: Miscellaneous Fixed Assets | E52: 0 | F52: =IF(D52=0,+'App.2-CB_NewCGAAP_DepExp_2012'!O52,+'App.2-CB_NewCGAAP_DepExp_2012'!O52+((C52*0.5)/D52)) -> 0 | H52: 0 | I52: 0 | K52: =IF(ISERROR(+I52+'App.2-CB_NewCGAAP_DepExp_2012'!O52-J52), 0, +I52+'App.2-CB_NewCGAAP_DepExp_2012'!O52-J52) -> 0
A53: 1990 | B53: Other Tangible Property | E53: 0 | F53: =IF(D53=0,+'App.2-CB_NewCGAAP_DepExp_2012'!O53,+'App.2-CB_NewCGAAP_DepExp_2012'!O53+((C53*0.5)/D53)) -> 0 | H53: 0 | I53: 0 | K53: =IF(ISERROR(+I53+'App.2-CB_NewCGAAP_DepExp_2012'!O53-J53), 0, +I53+'App.2-CB_NewCGAAP_DepExp_2012'!O53-J53) -> 0
A54: 1995 | B54: Contributions & Grants | E54: 0 | F54: =IF(D54=0,+'App.2-CB_NewCGAAP_DepExp_2012'!O54,+'App.2-CB_NewCGAAP_DepExp_2012'!O54+((C54*0.5)/D54)) -> 0 | H54: 0 | I54: 0 | K54: =IF(ISERROR(+I54+'App.2-CB_NewCGAAP_DepExp_2012'!O54-J54), 0, +I54+'App.2-CB_NewCGAAP_DepExp_2012'!O54-J54) -> 0
B55: Total | C55: =SUM(C17:C54) -> 0 | F55: =SUM(F17:F54) -> 0 | G55: 0 | H55: 0 | I55: 0 | J55: 0 | K55: 0
A57: Notes:
A58: 1 | B58: Board policy of the "half-year" rule - the applicant must ensure that additions in the year attract a half-year depreciation expense in the first year. Deviations from this standard practice must be supported in the application.
A59: 2 | B59: The applicant must provide an explanation of material variances in evidence.
A60: 3 | B60: This column refers to the calculated full year depreciation but excludes the depreciation expense on assets fully depreciated during the year. This column is used for the purpose of calculating depreciation expense in the following year on the next worksheet.
A62: General: | B62: Applicants must provide a breakdown of depreciation and amortization expense in the above format for all relevant accounts. Asset Retirement Obligations (AROs), depreciation and accretion expense should be disclosed separately consistent with the Notes of historical Audited Financial Statements.

Sheet App.2-CD_MIFRS_DepExp_2014
J1: File Number: | K1: =EBNUMBER -> EB-2015-0089
J2: Exhibit:
J3: Tab:
J4: Schedule:
J5: Page:
J7: Date:
A9: Appendix 2-CD
A10: Depreciation and Amortization Expense
A11: Assumes the applicant made capitalization and depreciation expense accounting policy changes under CGAAP effective January 1, 2012 and has adopted IFRS for financial reporting purposes effective January 1, 2015.
E13: 2014 | F13: MIFRS
A15: Account | B15: Description | C15: Additions | D15: Years (new additions only) | E15: Depreciation Rate on New Additions | F15: 2014 Depreciation Expense 1 | G15: 2014 Depreciation Expense per Apppendix 2-BA Fixed Assets, Column J (l) | H15: Variance 2 | I15: Depreciation Expense on 2014 Full Year Additions | J15: Less Depreciation Expense on Assets Fully Depreciated during the year (o) | K15: 2014 Full Year Depreciation 3
C16: (d) | D16: (f) | E16: (g) = 1 / (f) | F16: (h)=2013 Full Year Deprecation + ((d)*0.5)/(f) | H16: (m) = (h) - (l) | I16: (n)=((d))/(f) | K16: (p) = 2013 Full Year Depreciation + (n) - (o)
A17: 1611 | B17: Computer Software (Formally known as Account 1925) | E17: =IF(D17=0,0,1/D17) -> 0 | F17: =IF(D17=0,+'App.2-CC_NewCGAAP_DepExp_2013'!K17,+'App.2-CC_NewCGAAP_DepExp_2013'!K17+((C17*0.5)/D17)) -> 0 | H17: =IF(ISERROR(+F17-G17), 0, +F17-G17) -> 0 | I17: =IF(D17=0,0,+(C17)/D17) -> 0 | K17: =IF(ISERROR(+I17+'App.2-CC_NewCGAAP_DepExp_2013'!K17-J17), 0, +I17+'App.2-CC_NewCGAAP_DepExp_2013'!K17-J17) -> 0
A18: 1612 | B18: Land Rights (Formally known as Account 1906) | E18: 0 | F18: =IF(D18=0,+'App.2-CC_NewCGAAP_DepExp_2013'!K18,+'App.2-CC_NewCGAAP_DepExp_2013'!K18+((C18*0.5)/D18)) -> 0 | H18: 0 | I18: =IF(D18=0,0,+(C18)/D18) -> 0 | K18: =IF(ISERROR(+I18+'App.2-CC_NewCGAAP_DepExp_2013'!K18-J18), 0, +I18+'App.2-CC_NewCGAAP_DepExp_2013'!K18-J18) -> 0
A19: 1805 | B19: Land | E19: 0 | F19: =IF(D19=0,+'App.2-CC_NewCGAAP_DepExp_2013'!K19,+'App.2-CC_NewCGAAP_DepExp_2013'!K19+((C19*0.5)/D19)) -> 0 | H19: 0 | I19: 0 | K19: =IF(ISERROR(+I19+'App.2-CC_NewCGAAP_DepExp_2013'!K19-J19), 0, +I19+'App.2-CC_NewCGAAP_DepExp_2013'!K19-J19) -> 0
A20: 1808 | B20: Buildings | E20: 0 | F20: =IF(D20=0,+'App.2-CC_NewCGAAP_DepExp_2013'!K20,+'App.2-CC_NewCGAAP_DepExp_2013'!K20+((C20*0.5)/D20)) -> 0 | H20: 0 | I20: 0 | K20: =IF(ISERROR(+I20+'App.2-CC_NewCGAAP_DepExp_2013'!K20-J20), 0, +I20+'App.2-CC_NewCGAAP_DepExp_2013'!K20-J20) -> 0
A21: 1810 | B21: Leasehold Improvements | E21: 0 | F21: =IF(D21=0,+'App.2-CC_NewCGAAP_DepExp_2013'!K21,+'App.2-CC_NewCGAAP_DepExp_2013'!K21+((C21*0.5)/D21)) -> 0 | H21: 0 | I21: 0 | K21: =IF(ISERROR(+I21+'App.2-CC_NewCGAAP_DepExp_2013'!K21-J21), 0, +I21+'App.2-CC_NewCGAAP_DepExp_2013'!K21-J21) -> 0
A22: 1815 | B22: Transformer Station Equipment >50 kV | E22: 0 | F22: =IF(D22=0,+'App.2-CC_NewCGAAP_DepExp_2013'!K22,+'App.2-CC_NewCGAAP_DepExp_2013'!K22+((C22*0.5)/D22)) -> 0 | H22: 0 | I22: 0 | K22: =IF(ISERROR(+I22+'App.2-CC_NewCGAAP_DepExp_2013'!K22-J22), 0, +I22+'App.2-CC_NewCGAAP_DepExp_2013'!K22-J22) -> 0
A23: 1820 | B23: Distribution Station Equipment <50 kV | E23: 0 | F23: =IF(D23=0,+'App.2-CC_NewCGAAP_DepExp_2013'!K23,+'App.2-CC_NewCGAAP_DepExp_2013'!K23+((C23*0.5)/D23)) -> 0 | H23: 0 | I23: 0 | K23: =IF(ISERROR(+I23+'App.2-CC_NewCGAAP_DepExp_2013'!K23-J23), 0, +I23+'App.2-CC_NewCGAAP_DepExp_2013'!K23-J23) -> 0
A24: 1825 | B24: Storage Battery Equipment | E24: 0 | F24: =IF(D24=0,+'App.2-CC_NewCGAAP_DepExp_2013'!K24,+'App.2-CC_NewCGAAP_DepExp_2013'!K24+((C24*0.5)/D24)) -> 0 | H24: 0 | I24: 0 | K24: =IF(ISERROR(+I24+'App.2-CC_NewCGAAP_DepExp_2013'!K24-J24), 0, +I24+'App.2-CC_NewCGAAP_DepExp_2013'!K24-J24) -> 0
A25: 1830 | B25: Poles, Towers & Fixtures | E25: 0 | F25: =IF(D25=0,+'App.2-CC_NewCGAAP_DepExp_2013'!K25,+'App.2-CC_NewCGAAP_DepExp_2013'!K25+((C25*0.5)/D25)) -> 0 | H25: 0 | I25: 0 | K25: =IF(ISERROR(+I25+'App.2-CC_NewCGAAP_DepExp_2013'!K25-J25), 0, +I25+'App.2-CC_NewCGAAP_DepExp_2013'!K25-J25) -> 0
A26: 1835 | B26: Overhead Conductors & Devices | E26: 0 | F26: =IF(D26=0,+'App.2-CC_NewCGAAP_DepExp_2013'!K26,+'App.2-CC_NewCGAAP_DepExp_2013'!K26+((C26*0.5)/D26)) -> 0 | H26: 0 | I26: 0 | K26: =IF(ISERROR(+I26+'App.2-CC_NewCGAAP_DepExp_2013'!K26-J26), 0, +I26+'App.2-CC_NewCGAAP_DepExp_2013'!K26-J26) -> 0
A27: 1840 | B27: Underground Conduit | E27: 0 | F27: =IF(D27=0,+'App.2-CC_NewCGAAP_DepExp_2013'!K27,+'App.2-CC_NewCGAAP_DepExp_2013'!K27+((C27*0.5)/D27)) -> 0 | H27: 0 | I27: 0 | K27: =IF(ISERROR(+I27+'App.2-CC_NewCGAAP_DepExp_2013'!K27-J27), 0, +I27+'App.2-CC_NewCGAAP_DepExp_2013'!K27-J27) -> 0
A28: 1845 | B28: Underground Conductors & Devices | E28: 0 | F28: =IF(D28=0,+'App.2-CC_NewCGAAP_DepExp_2013'!K28,+'App.2-CC_NewCGAAP_DepExp_2013'!K28+((C28*0.5)/D28)) -> 0 | H28: 0 | I28: 0 | K28: =IF(ISERROR(+I28+'App.2-CC_NewCGAAP_DepExp_2013'!K28-J28), 0, +I28+'App.2-CC_NewCGAAP_DepExp_2013'!K28-J28) -> 0
A29: 1850 | B29: Line Transformers | E29: 0 | F29: =IF(D29=0,+'App.2-CC_NewCGAAP_DepExp_2013'!K29,+'App.2-CC_NewCGAAP_DepExp_2013'!K29+((C29*0.5)/D29)) -> 0 | H29: 0 | I29: 0 | K29: =IF(ISERROR(+I29+'App.2-CC_NewCGAAP_DepExp_2013'!K29-J29), 0, +I29+'App.2-CC_NewCGAAP_DepExp_2013'!K29-J29) -> 0
A30: 1855 | B30: Services (Overhead & Underground) | E30: 0 | F30: =IF(D30=0,+'App.2-CC_NewCGAAP_DepExp_2013'!K30,+'App.2-CC_NewCGAAP_DepExp_2013'!K30+((C30*0.5)/D30)) -> 0 | H30: 0 | I30: 0 | K30: =IF(ISERROR(+I30+'App.2-CC_NewCGAAP_DepExp_2013'!K30-J30), 0, +I30+'App.2-CC_NewCGAAP_DepExp_2013'!K30-J30) -> 0
A31: 1860 | B31: Meters | E31: 0 | F31: =IF(D31=0,+'App.2-CC_NewCGAAP_DepExp_2013'!K31,+'App.2-CC_NewCGAAP_DepExp_2013'!K31+((C31*0.5)/D31)) -> 0 | H31: 0 | I31: 0 | K31: =IF(ISERROR(+I31+'App.2-CC_NewCGAAP_DepExp_2013'!K31-J31), 0, +I31+'App.2-CC_NewCGAAP_DepExp_2013'!K31-J31) -> 0
A32: 1860 | B32: Meters (Smart Meters) | E32: 0 | F32: =IF(D32=0,+'App.2-CC_NewCGAAP_DepExp_2013'!K32,+'App.2-CC_NewCGAAP_DepExp_2013'!K32+((C32*0.5)/D32)) -> 0 | H32: 0 | I32: 0 | K32: =IF(ISERROR(+I32+'App.2-CC_NewCGAAP_DepExp_2013'!K32-J32), 0, +I32+'App.2-CC_NewCGAAP_DepExp_2013'!K32-J32) -> 0
A33: 1905 | B33: Land | E33: 0 | F33: =IF(D33=0,+'App.2-CC_NewCGAAP_DepExp_2013'!K33,+'App.2-CC_NewCGAAP_DepExp_2013'!K33+((C33*0.5)/D33)) -> 0 | H33: 0 | I33: 0 | K33: =IF(ISERROR(+I33+'App.2-CC_NewCGAAP_DepExp_2013'!K33-J33), 0, +I33+'App.2-CC_NewCGAAP_DepExp_2013'!K33-J33) -> 0
A34: 1908 | B34: Buildings & Fixtures | E34: 0 | F34: =IF(D34=0,+'App.2-CC_NewCGAAP_DepExp_2013'!K34,+'App.2-CC_NewCGAAP_DepExp_2013'!K34+((C34*0.5)/D34)) -> 0 | H34: 0 | I34: 0 | K34: =IF(ISERROR(+I34+'App.2-CC_NewCGAAP_DepExp_2013'!K34-J34), 0, +I34+'App.2-CC_NewCGAAP_DepExp_2013'!K34-J34) -> 0
A35: 1910 | B35: Leasehold Improvements | E35: 0 | F35: =IF(D35=0,+'App.2-CC_NewCGAAP_DepExp_2013'!K35,+'App.2-CC_NewCGAAP_DepExp_2013'!K35+((C35*0.5)/D35)) -> 0 | H35: 0 | I35: 0 | K35: =IF(ISERROR(+I35+'App.2-CC_NewCGAAP_DepExp_2013'!K35-J35), 0, +I35+'App.2-CC_NewCGAAP_DepExp_2013'!K35-J35) -> 0
A36: 1915 | B36: Office Furniture & Equipment (10 years) | E36: 0 | F36: =IF(D36=0,+'App.2-CC_NewCGAAP_DepExp_2013'!K36,+'App.2-CC_NewCGAAP_DepExp_2013'!K36+((C36*0.5)/D36)) -> 0 | H36: 0 | I36: 0 | K36: =IF(ISERROR(+I36+'App.2-CC_NewCGAAP_DepExp_2013'!K36-J36), 0, +I36+'App.2-CC_NewCGAAP_DepExp_2013'!K36-J36) -> 0
A37: 1915 | B37: Office Furniture & Equipment (5 years) | E37: 0 | F37: =IF(D37=0,+'App.2-CC_NewCGAAP_DepExp_2013'!K37,+'App.2-CC_NewCGAAP_DepExp_2013'!K37+((C37*0.5)/D37)) -> 0 | H37: 0 | I37: 0 | K37: =IF(ISERROR(+I37+'App.2-CC_NewCGAAP_DepExp_2013'!K37-J37), 0, +I37+'App.2-CC_NewCGAAP_DepExp_2013'!K37-J37) -> 0
A38: 1920 | B38: Computer Equipment - Hardware | E38: 0 | F38: =IF(D38=0,+'App.2-CC_NewCGAAP_DepExp_2013'!K38,+'App.2-CC_NewCGAAP_DepExp_2013'!K38+((C38*0.5)/D38)) -> 0 | H38: 0 | I38: 0 | K38: =IF(ISERROR(+I38+'App.2-CC_NewCGAAP_DepExp_2013'!K38-J38), 0, +I38+'App.2-CC_NewCGAAP_DepExp_2013'!K38-J38) -> 0
A39: 1920 | B39: Computer Equip.-Hardware(Post Mar. 22/04) | E39: 0 | F39: =IF(D39=0,+'App.2-CC_NewCGAAP_DepExp_2013'!K39,+'App.2-CC_NewCGAAP_DepExp_2013'!K39+((C39*0.5)/D39)) -> 0 | H39: 0 | I39: 0 | K39: =IF(ISERROR(+I39+'App.2-CC_NewCGAAP_DepExp_2013'!K39-J39), 0, +I39+'App.2-CC_NewCGAAP_DepExp_2013'!K39-J39) -> 0
A40: 1920 | B40: Computer Equip.-Hardware(Post Mar. 19/07) | E40: 0 | F40: =IF(D40=0,+'App.2-CC_NewCGAAP_DepExp_2013'!K40,+'App.2-CC_NewCGAAP_DepExp_2013'!K40+((C40*0.5)/D40)) -> 0 | H40: 0 | I40: 0 | K40: =IF(ISERROR(+I40+'App.2-CC_NewCGAAP_DepExp_2013'!K40-J40), 0, +I40+'App.2-CC_NewCGAAP_DepExp_2013'!K40-J40) -> 0
A41: 1930 | B41: Transportation Equipment | E41: 0 | F41: =IF(D41=0,+'App.2-CC_NewCGAAP_DepExp_2013'!K41,+'App.2-CC_NewCGAAP_DepExp_2013'!K41+((C41*0.5)/D41)) -> 0 | H41: 0 | I41: 0 | K41: =IF(ISERROR(+I41+'App.2-CC_NewCGAAP_DepExp_2013'!K41-J41), 0, +I41+'App.2-CC_NewCGAAP_DepExp_2013'!K41-J41) -> 0
A42: 1935 | B42: Stores Equipment | E42: 0 | F42: =IF(D42=0,+'App.2-CC_NewCGAAP_DepExp_2013'!K42,+'App.2-CC_NewCGAAP_DepExp_2013'!K42+((C42*0.5)/D42)) -> 0 | H42: 0 | I42: 0 | K42: =IF(ISERROR(+I42+'App.2-CC_NewCGAAP_DepExp_2013'!K42-J42), 0, +I42+'App.2-CC_NewCGAAP_DepExp_2013'!K42-J42) -> 0
A43: 1940 | B43: Tools, Shop & Garage Equipment | E43: 0 | F43: =IF(D43=0,+'App.2-CC_NewCGAAP_DepExp_2013'!K43,+'App.2-CC_NewCGAAP_DepExp_2013'!K43+((C43*0.5)/D43)) -> 0 | H43: 0 | I43: 0 | K43: =IF(ISERROR(+I43+'App.2-CC_NewCGAAP_DepExp_2013'!K43-J43), 0, +I43+'App.2-CC_NewCGAAP_DepExp_2013'!K43-J43) -> 0
A44: 1945 | B44: Measurement & Testing Equipment | E44: 0 | F44: =IF(D44=0,+'App.2-CC_NewCGAAP_DepExp_2013'!K44,+'App.2-CC_NewCGAAP_DepExp_2013'!K44+((C44*0.5)/D44)) -> 0 | H44: 0 | I44: 0 | K44: =IF(ISERROR(+I44+'App.2-CC_NewCGAAP_DepExp_2013'!K44-J44), 0, +I44+'App.2-CC_NewCGAAP_DepExp_2013'!K44-J44) -> 0
A45: 1950 | B45: Power Operated Equipment | E45: 0 | F45: =IF(D45=0,+'App.2-CC_NewCGAAP_DepExp_2013'!K45,+'App.2-CC_NewCGAAP_DepExp_2013'!K45+((C45*0.5)/D45)) -> 0 | H45: 0 | I45: 0 | K45: =IF(ISERROR(+I45+'App.2-CC_NewCGAAP_DepExp_2013'!K45-J45), 0, +I45+'App.2-CC_NewCGAAP_DepExp_2013'!K45-J45) -> 0
A46: 1955 | B46: Communications Equipment | E46: 0 | F46: =IF(D46=0,+'App.2-CC_NewCGAAP_DepExp_2013'!K46,+'App.2-CC_NewCGAAP_DepExp_2013'!K46+((C46*0.5)/D46)) -> 0 | H46: 0 | I46: 0 | K46: =IF(ISERROR(+I46+'App.2-CC_NewCGAAP_DepExp_2013'!K46-J46), 0, +I46+'App.2-CC_NewCGAAP_DepExp_2013'!K46-J46) -> 0
A47: 1955 | B47: Communication Equipment (Smart Meters) | E47: 0 | F47: =IF(D47=0,+'App.2-CC_NewCGAAP_DepExp_2013'!K47,+'App.2-CC_NewCGAAP_DepExp_2013'!K47+((C47*0.5)/D47)) -> 0 | H47: 0 | I47: 0 | K47: =IF(ISERROR(+I47+'App.2-CC_NewCGAAP_DepExp_2013'!K47-J47), 0, +I47+'App.2-CC_NewCGAAP_DepExp_2013'!K47-J47) -> 0
A48: 1960 | B48: Miscellaneous Equipment | E48: 0 | F48: =IF(D48=0,+'App.2-CC_NewCGAAP_DepExp_2013'!K48,+'App.2-CC_NewCGAAP_DepExp_2013'!K48+((C48*0.5)/D48)) -> 0 | H48: 0 | I48: 0 | K48: =IF(ISERROR(+I48+'App.2-CC_NewCGAAP_DepExp_2013'!K48-J48), 0, +I48+'App.2-CC_NewCGAAP_DepExp_2013'!K48-J48) -> 0
A49: 1970 | B49: Load Management Controls Customer Premises | E49: 0 | F49: =IF(D49=0,+'App.2-CC_NewCGAAP_DepExp_2013'!K49,+'App.2-CC_NewCGAAP_DepExp_2013'!K49+((C49*0.5)/D49)) -> 0 | H49: 0 | I49: 0 | K49: =IF(ISERROR(+I49+'App.2-CC_NewCGAAP_DepExp_2013'!K49-J49), 0, +I49+'App.2-CC_NewCGAAP_DepExp_2013'!K49-J49) -> 0
A50: 1975 | B50: Load Management Controls Utility Premises | E50: 0 | F50: =IF(D50=0,+'App.2-CC_NewCGAAP_DepExp_2013'!K50,+'App.2-CC_NewCGAAP_DepExp_2013'!K50+((C50*0.5)/D50)) -> 0 | H50: 0 | I50: 0 | K50: =IF(ISERROR(+I50+'App.2-CC_NewCGAAP_DepExp_2013'!K50-J50), 0, +I50+'App.2-CC_NewCGAAP_DepExp_2013'!K50-J50) -> 0
A51: 1980 | B51: System Supervisor Equipment | E51: 0 | F51: =IF(D51=0,+'App.2-CC_NewCGAAP_DepExp_2013'!K51,+'App.2-CC_NewCGAAP_DepExp_2013'!K51+((C51*0.5)/D51)) -> 0 | H51: 0 | I51: 0 | K51: =IF(ISERROR(+I51+'App.2-CC_NewCGAAP_DepExp_2013'!K51-J51), 0, +I51+'App.2-CC_NewCGAAP_DepExp_2013'!K51-J51) -> 0
A52: 1985 | B52: Miscellaneous Fixed Assets | E52: 0 | F52: =IF(D52=0,+'App.2-CC_NewCGAAP_DepExp_2013'!K52,+'App.2-CC_NewCGAAP_DepExp_2013'!K52+((C52*0.5)/D52)) -> 0 | H52: 0 | I52: 0 | K52: =IF(ISERROR(+I52+'App.2-CC_NewCGAAP_DepExp_2013'!K52-J52), 0, +I52+'App.2-CC_NewCGAAP_DepExp_2013'!K52-J52) -> 0
A53: 1990 | B53: Other Tangible Property | E53: 0 | F53: =IF(D53=0,+'App.2-CC_NewCGAAP_DepExp_2013'!K53,+'App.2-CC_NewCGAAP_DepExp_2013'!K53+((C53*0.5)/D53)) -> 0 | H53: 0 | I53: 0 | K53: =IF(ISERROR(+I53+'App.2-CC_NewCGAAP_DepExp_2013'!K53-J53), 0, +I53+'App.2-CC_NewCGAAP_DepExp_2013'!K53-J53) -> 0
A54: 1995 | B54: Contributions & Grants | E54: =IF(D54=0,0,1/D54) -> 0 | F54: =IF(D54=0,+'App.2-CC_NewCGAAP_DepExp_2013'!K54,+'App.2-CC_NewCGAAP_DepExp_2013'!K54+((C54*0.5)/D54)) -> 0 | H54: 0 | I54: 0 | K54: =IF(ISERROR(+I54+'App.2-CC_NewCGAAP_DepExp_2013'!K54-J54), 0, +I54+'App.2-CC_NewCGAAP_DepExp_2013'!K54-J54) -> 0
B55: Total | C55: =SUM(C17:C54) -> 0 | F55: =SUM(F17:F54) -> 0 | G55: 0 | H55: 0 | I55: 0 | J55: 0 | K55: 0
B56: Depreciation exp. adj. from gain or loss on the retirement of assets (pool of like assets)
B57: Total Depreciation Expense | F57: =+F56+F55 -> 0
A59: Notes:
A60: 1 | B60: Board policy of the "half-year" rule - the applicant must ensure that additions in the year attract a half-year depreciation expense in the first year. Deviations from this standard practice must be supported in the application.
A61: 2 | B61: The applicant must provide an explanation of material variances in evidence.
A62: 3 | B62: This column refers to the calculated full year depreciation but excludes the depreciation expense on assets fully depreciated during the year. This column is used for the purpose of calculating depreciation expense in the following year on the next worksheet.
A64: General: | B64: Applicants must provide a breakdown of depreciation and amortization expense in the above format for all relevant accounts. Asset Retirement Obligations (AROs), depreciation and accretion expense should be disclosed separately consistent with the Notes of historical Audited Financial Statements.

Sheet App.2-CE_MIFRS_DepExp_2015
G1: File Number: | H1: =EBNUMBER -> EB-2015-0089
G2: Exhibit:
G3: Tab:
G4: Schedule:
G5: Page:
G7: Date:
A9: Appendix 2-CE
A10: Depreciation and Amortization Expense
A11: Assumes the applicant made capitalization and depreciation expense accounting policy changes under CGAAP effective January 1, 2012 and has adopted IFRS for financial reporting purposes effective January 1, 2015.
C13: 2015 | D13: MIFRS
A15: Account | B15: Description | C15: Additions | D15: Years (new additions only) | E15: Depreciation Rate on New Additions | F15: 2015 Depreciation Expense 1 | G15: 2015 Depreciation Expense per Appendix 2-BA Fixed Assets, Column J (l) | H15: Variance 2 | I15: Depreciation Expense on 2015 Full Year Additions | J15: Less Depreciation Expense on Assets Fully Depreciated during the year (o) | K15: 2015 Full Year Depreciation 3
C16: (d) | D16: (f) | E16: (g) = 1 / (f) | F16: (h)=2014 Full Year Depreciation + ((d)*0.5)/(f) | H16: (m) = (h) - (l) | I16: (n)=((d))/(f) | K16: (p) = 2014 Full Year Depreciation + (n) - (o)
A17: 1611 | B17: Computer Software (Formally known as Account 1925) | E17: =IF(D17=0,0,1/D17) -> 0 | F17: =IF(D17=0,'App.2-CD_MIFRS_DepExp_2014'!K17,+'App.2-CD_MIFRS_DepExp_2014'!K17+((C17*0.5)/D17)) -> 0 | H17: =IF(ISERROR(+F17-G17), 0, +F17-G17) -> 0 | I17: =IF(D17=0,0,+(C17)/D17) -> 0 | K17: =IF(ISERROR(+I17+'App.2-CD_MIFRS_DepExp_2014'!K17-J17), 0, +I17+'App.2-CD_MIFRS_DepExp_2014'!K17-J17) -> 0
A18: 1612 | B18: Land Rights (Formally known as Account 1906) | E18: 0 | F18: =IF(D18=0,'App.2-CD_MIFRS_DepExp_2014'!K18,+'App.2-CD_MIFRS_DepExp_2014'!K18+((C18*0.5)/D18)) -> 0 | H18: 0 | I18: =IF(D18=0,0,+(C18)/D18) -> 0 | K18: =IF(ISERROR(+I18+'App.2-CD_MIFRS_DepExp_2014'!K18-J18), 0, +I18+'App.2-CD_MIFRS_DepExp_2014'!K18-J18) -> 0
A19: 1805 | B19: Land | E19: 0 | F19: =IF(D19=0,'App.2-CD_MIFRS_DepExp_2014'!K19,+'App.2-CD_MIFRS_DepExp_2014'!K19+((C19*0.5)/D19)) -> 0 | H19: 0 | I19: 0 | K19: =IF(ISERROR(+I19+'App.2-CD_MIFRS_DepExp_2014'!K19-J19), 0, +I19+'App.2-CD_MIFRS_DepExp_2014'!K19-J19) -> 0
A20: 1808 | B20: Buildings | E20: 0 | F20: =IF(D20=0,'App.2-CD_MIFRS_DepExp_2014'!K20,+'App.2-CD_MIFRS_DepExp_2014'!K20+((C20*0.5)/D20)) -> 0 | H20: 0 | I20: 0 | K20: =IF(ISERROR(+I20+'App.2-CD_MIFRS_DepExp_2014'!K20-J20), 0, +I20+'App.2-CD_MIFRS_DepExp_2014'!K20-J20) -> 0
A21: 1810 | B21: Leasehold Improvements | E21: 0 | F21: =IF(D21=0,'App.2-CD_MIFRS_DepExp_2014'!K21,+'App.2-CD_MIFRS_DepExp_2014'!K21+((C21*0.5)/D21)) -> 0 | H21: 0 | I21: 0 | K21: =IF(ISERROR(+I21+'App.2-CD_MIFRS_DepExp_2014'!K21-J21), 0, +I21+'App.2-CD_MIFRS_DepExp_2014'!K21-J21) -> 0
A22: 1815 | B22: Transformer Station Equipment >50 kV | E22: 0 | F22: =IF(D22=0,'App.2-CD_MIFRS_DepExp_2014'!K22,+'App.2-CD_MIFRS_DepExp_2014'!K22+((C22*0.5)/D22)) -> 0 | H22: 0 | I22: 0 | K22: =IF(ISERROR(+I22+'App.2-CD_MIFRS_DepExp_2014'!K22-J22), 0, +I22+'App.2-CD_MIFRS_DepExp_2014'!K22-J22) -> 0
A23: 1820 | B23: Distribution Station Equipment <50 kV | E23: 0 | F23: =IF(D23=0,'App.2-CD_MIFRS_DepExp_2014'!K23,+'App.2-CD_MIFRS_DepExp_2014'!K23+((C23*0.5)/D23)) -> 0 | H23: 0 | I23: 0 | K23: =IF(ISERROR(+I23+'App.2-CD_MIFRS_DepExp_2014'!K23-J23), 0, +I23+'App.2-CD_MIFRS_DepExp_2014'!K23-J23) -> 0
A24: 1825 | B24: Storage Battery Equipment | E24: 0 | F24: =IF(D24=0,'App.2-CD_MIFRS_DepExp_2014'!K24,+'App.2-CD_MIFRS_DepExp_2014'!K24+((C24*0.5)/D24)) -> 0 | H24: 0 | I24: 0 | K24: =IF(ISERROR(+I24+'App.2-CD_MIFRS_DepExp_2014'!K24-J24), 0, +I24+'App.2-CD_MIFRS_DepExp_2014'!K24-J24) -> 0
A25: 1830 | B25: Poles, Towers & Fixtures | E25: 0 | F25: =IF(D25=0,'App.2-CD_MIFRS_DepExp_2014'!K25,+'App.2-CD_MIFRS_DepExp_2014'!K25+((C25*0.5)/D25)) -> 0 | H25: 0 | I25: 0 | K25: =IF(ISERROR(+I25+'App.2-CD_MIFRS_DepExp_2014'!K25-J25), 0, +I25+'App.2-CD_MIFRS_DepExp_2014'!K25-J25) -> 0
A26: 1835 | B26: Overhead Conductors & Devices | E26: 0 | F26: =IF(D26=0,'App.2-CD_MIFRS_DepExp_2014'!K26,+'App.2-CD_MIFRS_DepExp_2014'!K26+((C26*0.5)/D26)) -> 0 | H26: 0 | I26: 0 | K26: =IF(ISERROR(+I26+'App.2-CD_MIFRS_DepExp_2014'!K26-J26), 0, +I26+'App.2-CD_MIFRS_DepExp_2014'!K26-J26) -> 0
A27: 1840 | B27: Underground Conduit | E27: 0 | F27: =IF(D27=0,'App.2-CD_MIFRS_DepExp_2014'!K27,+'App.2-CD_MIFRS_DepExp_2014'!K27+((C27*0.5)/D27)) -> 0 | H27: 0 | I27: 0 | K27: =IF(ISERROR(+I27+'App.2-CD_MIFRS_DepExp_2014'!K27-J27), 0, +I27+'App.2-CD_MIFRS_DepExp_2014'!K27-J27) -> 0
A28: 1845 | B28: Underground Conductors & Devices | E28: 0 | F28: =IF(D28=0,'App.2-CD_MIFRS_DepExp_2014'!K28,+'App.2-CD_MIFRS_DepExp_2014'!K28+((C28*0.5)/D28)) -> 0 | H28: 0 | I28: 0 | K28: =IF(ISERROR(+I28+'App.2-CD_MIFRS_DepExp_2014'!K28-J28), 0, +I28+'App.2-CD_MIFRS_DepExp_2014'!K28-J28) -> 0
A29: 1850 | B29: Line Transformers | E29: 0 | F29: =IF(D29=0,'App.2-CD_MIFRS_DepExp_2014'!K29,+'App.2-CD_MIFRS_DepExp_2014'!K29+((C29*0.5)/D29)) -> 0 | H29: 0 | I29: 0 | K29: =IF(ISERROR(+I29+'App.2-CD_MIFRS_DepExp_2014'!K29-J29), 0, +I29+'App.2-CD_MIFRS_DepExp_2014'!K29-J29) -> 0
A30: 1855 | B30: Services (Overhead & Underground) | E30: 0 | F30: =IF(D30=0,'App.2-CD_MIFRS_DepExp_2014'!K30,+'App.2-CD_MIFRS_DepExp_2014'!K30+((C30*0.5)/D30)) -> 0 | H30: 0 | I30: 0 | K30: =IF(ISERROR(+I30+'App.2-CD_MIFRS_DepExp_2014'!K30-J30), 0, +I30+'App.2-CD_MIFRS_DepExp_2014'!K30-J30) -> 0
A31: 1860 | B31: Meters | E31: 0 | F31: =IF(D31=0,'App.2-CD_MIFRS_DepExp_2014'!K31,+'App.2-CD_MIFRS_DepExp_2014'!K31+((C31*0.5)/D31)) -> 0 | H31: 0 | I31: 0 | K31: =IF(ISERROR(+I31+'App.2-CD_MIFRS_DepExp_2014'!K31-J31), 0, +I31+'App.2-CD_MIFRS_DepExp_2014'!K31-J31) -> 0
A32: 1860 | B32: Meters (Smart Meters) | E32: 0 | F32: =IF(D32=0,'App.2-CD_MIFRS_DepExp_2014'!K32,+'App.2-CD_MIFRS_DepExp_2014'!K32+((C32*0.5)/D32)) -> 0 | H32: 0 | I32: 0 | K32: =IF(ISERROR(+I32+'App.2-CD_MIFRS_DepExp_2014'!K32-J32), 0, +I32+'App.2-CD_MIFRS_DepExp_2014'!K32-J32) -> 0
A33: 1905 | B33: Land | E33: 0 | F33: =IF(D33=0,'App.2-CD_MIFRS_DepExp_2014'!K33,+'App.2-CD_MIFRS_DepExp_2014'!K33+((C33*0.5)/D33)) -> 0 | H33: 0 | I33: 0 | K33: =IF(ISERROR(+I33+'App.2-CD_MIFRS_DepExp_2014'!K33-J33), 0, +I33+'App.2-CD_MIFRS_DepExp_2014'!K33-J33) -> 0
A34: 1908 | B34: Buildings & Fixtures | E34: 0 | F34: =IF(D34=0,'App.2-CD_MIFRS_DepExp_2014'!K34,+'App.2-CD_MIFRS_DepExp_2014'!K34+((C34*0.5)/D34)) -> 0 | H34: 0 | I34: 0 | K34: =IF(ISERROR(+I34+'App.2-CD_MIFRS_DepExp_2014'!K34-J34), 0, +I34+'App.2-CD_MIFRS_DepExp_2014'!K34-J34) -> 0
A35: 1910 | B35: Leasehold Improvements | E35: 0 | F35: =IF(D35=0,'App.2-CD_MIFRS_DepExp_2014'!K35,+'App.2-CD_MIFRS_DepExp_2014'!K35+((C35*0.5)/D35)) -> 0 | H35: 0 | I35: 0 | K35: =IF(ISERROR(+I35+'App.2-CD_MIFRS_DepExp_2014'!K35-J35), 0, +I35+'App.2-CD_MIFRS_DepExp_2014'!K35-J35) -> 0
A36: 1915 | B36: Office Furniture & Equipment (10 years) | E36: 0 | F36: =IF(D36=0,'App.2-CD_MIFRS_DepExp_2014'!K36,+'App.2-CD_MIFRS_DepExp_2014'!K36+((C36*0.5)/D36)) -> 0 | H36: 0 | I36: 0 | K36: =IF(ISERROR(+I36+'App.2-CD_MIFRS_DepExp_2014'!K36-J36), 0, +I36+'App.2-CD_MIFRS_DepExp_2014'!K36-J36) -> 0
A37: 1915 | B37: Office Furniture & Equipment (5 years) | E37: 0 | F37: =IF(D37=0,'App.2-CD_MIFRS_DepExp_2014'!K37,+'App.2-CD_MIFRS_DepExp_2014'!K37+((C37*0.5)/D37)) -> 0 | H37: 0 | I37: 0 | K37: =IF(ISERROR(+I37+'App.2-CD_MIFRS_DepExp_2014'!K37-J37), 0, +I37+'App.2-CD_MIFRS_DepExp_2014'!K37-J37) -> 0
A38: 1920 | B38: Computer Equipment - Hardware | E38: 0 | F38: =IF(D38=0,'App.2-CD_MIFRS_DepExp_2014'!K38,+'App.2-CD_MIFRS_DepExp_2014'!K38+((C38*0.5)/D38)) -> 0 | H38: 0 | I38: 0 | K38: =IF(ISERROR(+I38+'App.2-CD_MIFRS_DepExp_2014'!K38-J38), 0, +I38+'App.2-CD_MIFRS_DepExp_2014'!K38-J38) -> 0
A39: 1920 | B39: Computer Equip.-Hardware(Post Mar. 22/04) | E39: 0 | F39: =IF(D39=0,'App.2-CD_MIFRS_DepExp_2014'!K39,+'App.2-CD_MIFRS_DepExp_2014'!K39+((C39*0.5)/D39)) -> 0 | H39: 0 | I39: 0 | K39: =IF(ISERROR(+I39+'App.2-CD_MIFRS_DepExp_2014'!K39-J39), 0, +I39+'App.2-CD_MIFRS_DepExp_2014'!K39-J39) -> 0
A40: 1920 | B40: Computer Equip.-Hardware(Post Mar. 19/07) | E40: 0 | F40: =IF(D40=0,'App.2-CD_MIFRS_DepExp_2014'!K40,+'App.2-CD_MIFRS_DepExp_2014'!K40+((C40*0.5)/D40)) -> 0 | H40: 0 | I40: 0 | K40: =IF(ISERROR(+I40+'App.2-CD_MIFRS_DepExp_2014'!K40-J40), 0, +I40+'App.2-CD_MIFRS_DepExp_2014'!K40-J40) -> 0
A41: 1930 | B41: Transportation Equipment | E41: 0 | F41: =IF(D41=0,'App.2-CD_MIFRS_DepExp_2014'!K41,+'App.2-CD_MIFRS_DepExp_2014'!K41+((C41*0.5)/D41)) -> 0 | H41: 0 | I41: 0 | K41: =IF(ISERROR(+I41+'App.2-CD_MIFRS_DepExp_2014'!K41-J41), 0, +I41+'App.2-CD_MIFRS_DepExp_2014'!K41-J41) -> 0
A42: 1935 | B42: Stores Equipment | E42: 0 | F42: =IF(D42=0,'App.2-CD_MIFRS_DepExp_2014'!K42,+'App.2-CD_MIFRS_DepExp_2014'!K42+((C42*0.5)/D42)) -> 0 | H42: 0 | I42: 0 | K42: =IF(ISERROR(+I42+'App.2-CD_MIFRS_DepExp_2014'!K42-J42), 0, +I42+'App.2-CD_MIFRS_DepExp_2014'!K42-J42) -> 0
A43: 1940 | B43: Tools, Shop & Garage Equipment | E43: 0 | F43: =IF(D43=0,'App.2-CD_MIFRS_DepExp_2014'!K43,+'App.2-CD_MIFRS_DepExp_2014'!K43+((C43*0.5)/D43)) -> 0 | H43: 0 | I43: 0 | K43: =IF(ISERROR(+I43+'App.2-CD_MIFRS_DepExp_2014'!K43-J43), 0, +I43+'App.2-CD_MIFRS_DepExp_2014'!K43-J43) -> 0
A44: 1945 | B44: Measurement & Testing Equipment | E44: 0 | F44: =IF(D44=0,'App.2-CD_MIFRS_DepExp_2014'!K44,+'App.2-CD_MIFRS_DepExp_2014'!K44+((C44*0.5)/D44)) -> 0 | H44: 0 | I44: 0 | K44: =IF(ISERROR(+I44+'App.2-CD_MIFRS_DepExp_2014'!K44-J44), 0, +I44+'App.2-CD_MIFRS_DepExp_2014'!K44-J44) -> 0
A45: 1950 | B45: Power Operated Equipment | E45: 0 | F45: =IF(D45=0,'App.2-CD_MIFRS_DepExp_2014'!K45,+'App.2-CD_MIFRS_DepExp_2014'!K45+((C45*0.5)/D45)) -> 0 | H45: 0 | I45: 0 | K45: =IF(ISERROR(+I45+'App.2-CD_MIFRS_DepExp_2014'!K45-J45), 0, +I45+'App.2-CD_MIFRS_DepExp_2014'!K45-J45) -> 0
A46: 1955 | B46: Communications Equipment | E46: 0 | F46: =IF(D46=0,'App.2-CD_MIFRS_DepExp_2014'!K46,+'App.2-CD_MIFRS_DepExp_2014'!K46+((C46*0.5)/D46)) -> 0 | H46: 0 | I46: 0 | K46: =IF(ISERROR(+I46+'App.2-CD_MIFRS_DepExp_2014'!K46-J46), 0, +I46+'App.2-CD_MIFRS_DepExp_2014'!K46-J46) -> 0
A47: 1955 | B47: Communication Equipment (Smart Meters) | E47: 0 | F47: =IF(D47=0,'App.2-CD_MIFRS_DepExp_2014'!K47,+'App.2-CD_MIFRS_DepExp_2014'!K47+((C47*0.5)/D47)) -> 0 | H47: 0 | I47: 0 | K47: =IF(ISERROR(+I47+'App.2-CD_MIFRS_DepExp_2014'!K47-J47), 0, +I47+'App.2-CD_MIFRS_DepExp_2014'!K47-J47) -> 0
A48: 1960 | B48: Miscellaneous Equipment | E48: 0 | F48: =IF(D48=0,'App.2-CD_MIFRS_DepExp_2014'!K48,+'App.2-CD_MIFRS_DepExp_2014'!K48+((C48*0.5)/D48)) -> 0 | H48: 0 | I48: 0 | K48: =IF(ISERROR(+I48+'App.2-CD_MIFRS_DepExp_2014'!K48-J48), 0, +I48+'App.2-CD_MIFRS_DepExp_2014'!K48-J48) -> 0
A49: 1970 | B49: Load Management Controls Customer Premises | E49: 0 | F49: =IF(D49=0,'App.2-CD_MIFRS_DepExp_2014'!K49,+'App.2-CD_MIFRS_DepExp_2014'!K49+((C49*0.5)/D49)) -> 0 | H49: 0 | I49: 0 | K49: =IF(ISERROR(+I49+'App.2-CD_MIFRS_DepExp_2014'!K49-J49), 0, +I49+'App.2-CD_MIFRS_DepExp_2014'!K49-J49) -> 0
A50: 1975 | B50: Load Management Controls Utility Premises | E50: 0 | F50: =IF(D50=0,'App.2-CD_MIFRS_DepExp_2014'!K50,+'App.2-CD_MIFRS_DepExp_2014'!K50+((C50*0.5)/D50)) -> 0 | H50: 0 | I50: 0 | K50: =IF(ISERROR(+I50+'App.2-CD_MIFRS_DepExp_2014'!K50-J50), 0, +I50+'App.2-CD_MIFRS_DepExp_2014'!K50-J50) -> 0
A51: 1980 | B51: System Supervisor Equipment | E51: 0 | F51: =IF(D51=0,'App.2-CD_MIFRS_DepExp_2014'!K51,+'App.2-CD_MIFRS_DepExp_2014'!K51+((C51*0.5)/D51)) -> 0 | H51: 0 | I51: 0 | K51: =IF(ISERROR(+I51+'App.2-CD_MIFRS_DepExp_2014'!K51-J51), 0, +I51+'App.2-CD_MIFRS_DepExp_2014'!K51-J51) -> 0
A52: 1985 | B52: Miscellaneous Fixed Assets | E52: 0 | F52: =IF(D52=0,'App.2-CD_MIFRS_DepExp_2014'!K52,+'App.2-CD_MIFRS_DepExp_2014'!K52+((C52*0.5)/D52)) -> 0 | H52: 0 | I52: 0 | K52: =IF(ISERROR(+I52+'App.2-CD_MIFRS_DepExp_2014'!K52-J52), 0, +I52+'App.2-CD_MIFRS_DepExp_2014'!K52-J52) -> 0
A53: 1990 | B53: Other Tangible Property | E53: 0 | F53: =IF(D53=0,'App.2-CD_MIFRS_DepExp_2014'!K53,+'App.2-CD_MIFRS_DepExp_2014'!K53+((C53*0.5)/D53)) -> 0 | H53: 0 | I53: 0 | K53: =IF(ISERROR(+I53+'App.2-CD_MIFRS_DepExp_2014'!K53-J53), 0, +I53+'App.2-CD_MIFRS_DepExp_2014'!K53-J53) -> 0
A54: 1995 | B54: Contributions & Grants | E54: 0 | F54: =IF(D54=0,'App.2-CD_MIFRS_DepExp_2014'!K54,+'App.2-CD_MIFRS_DepExp_2014'!K54+((C54*0.5)/D54)) -> 0 | H54: 0 | I54: 0 | K54: =IF(ISERROR(+I54+'App.2-CD_MIFRS_DepExp_2014'!K54-J54), 0, +I54+'App.2-CD_MIFRS_DepExp_2014'!K54-J54) -> 0
B55: Total | C55: =SUM(C17:C54) -> 0 | F55: =SUM(F17:F54) -> 0 | G55: =SUM(G17:G54) -> 0 | H55: =SUM(H17:H54) -> 0 | I55: =SUM(I17:I54) -> 0 | J55: 0 | K55: =SUM(K17:K54) -> 0
B56: Depreciation exp. adj. from gain or loss on the retirement of assets (pool of like assets)
B57: Total Depreciation expense to be included in the test year revenue requirement | F57: =SUM(F55:F56) -> 0
A58: Notes:
A59: 1 | B59: Board policy of the "half-year" rule - the applicant must ensure that additions in the year attract a half-year depreciation expense in the first year. Deviations from this standard practice must be supported in the application.
A60: 2 | B60: The applicant must provide an explanation of material variances in evidence.
A61: 3 | B61: This column refers to the calculated full year depreciation but excludes the depreciation expense on assets fully depreciated during the year. This column is used for the purpose of calculating depreciation expense in the following year on the next worksheet.
A63: General: | B63: Applicants must provide a breakdown of depreciation and amortization expense in the above format for all relevant accounts. Asset Retirement Obligations (AROs), depreciation and accretion expense should be disclosed separately consistent with the Notes of historical Audited Financial Statements.

Sheet App.2-CF_MIFRS_DepExp_2016
G1: File Number: | H1: =EBNUMBER -> EB-2015-0089
G2: Exhibit:
G3: Tab:
G4: Schedule:
G5: Page:
G7: Date:
A9: Appendix 2-CF
A10: Depreciation and Amortization Expense
A11: Assumes the applicant made capitalization and depreciation expense accounting policy changes under CGAAP effective January 1, 2012 and has adopted IFRS for financial reporting purposes effective January 1, 2015.
C13: 2016 | D13: MIFRS
A15: Account | B15: Description | C15: Additions | D15: Years (new additions only) | E15: Depreciation Rate on New Additions | F15: 2016 Depreciation Expense 1 | G15: 2016 Depreciation Expense per Appendix 2-BA Fixed Assets, Column J (l) | H15: Variance 2
C16: (d) | D16: (f) | E16: (g) = 1 / (f) | F16: (h)=2015 Full Year Depreciation + ((d)*0.5)/(f) | H16: (m) = (h) - (l)
A17: 1611 | B17: Computer Software (Formally known as Account 1925) | E17: =IF(D17=0,0,1/D17) -> 0 | F17: =IF(D17=0,'App.2-CE_MIFRS_DepExp_2015'!K17,+'App.2-CE_MIFRS_DepExp_2015'!K17+((C17*0.5)/D17)) -> 0 | H17: =IF(ISERROR(+F17-G17), 0, +F17-G17) -> 0
A18: 1612 | B18: Land Rights (Formally known as Account 1906) | E18: 0 | F18: =IF(D18=0,'App.2-CE_MIFRS_DepExp_2015'!K18,+'App.2-CE_MIFRS_DepExp_2015'!K18+((C18*0.5)/D18)) -> 0 | H18: 0
A19: 1805 | B19: Land | E19: 0 | F19: =IF(D19=0,'App.2-CE_MIFRS_DepExp_2015'!K19,+'App.2-CE_MIFRS_DepExp_2015'!K19+((C19*0.5)/D19)) -> 0 | H19: 0
A20: 1808 | B20: Buildings | E20: 0 | F20: =IF(D20=0,'App.2-CE_MIFRS_DepExp_2015'!K20,+'App.2-CE_MIFRS_DepExp_2015'!K20+((C20*0.5)/D20)) -> 0 | H20: 0
A21: 1810 | B21: Leasehold Improvements | E21: 0 | F21: =IF(D21=0,'App.2-CE_MIFRS_DepExp_2015'!K21,+'App.2-CE_MIFRS_DepExp_2015'!K21+((C21*0.5)/D21)) -> 0 | H21: 0
A22: 1815 | B22: Transformer Station Equipment >50 kV | E22: 0 | F22: =IF(D22=0,'App.2-CE_MIFRS_DepExp_2015'!K22,+'App.2-CE_MIFRS_DepExp_2015'!K22+((C22*0.5)/D22)) -> 0 | H22: 0
A23: 1820 | B23: Distribution Station Equipment <50 kV | E23: 0 | F23: =IF(D23=0,'App.2-CE_MIFRS_DepExp_2015'!K23,+'App.2-CE_MIFRS_DepExp_2015'!K23+((C23*0.5)/D23)) -> 0 | H23: 0
A24: 1825 | B24: Storage Battery Equipment | E24: 0 | F24: =IF(D24=0,'App.2-CE_MIFRS_DepExp_2015'!K24,+'App.2-CE_MIFRS_DepExp_2015'!K24+((C24*0.5)/D24)) -> 0 | H24: 0
A25: 1830 | B25: Poles, Towers & Fixtures | E25: 0 | F25: =IF(D25=0,'App.2-CE_MIFRS_DepExp_2015'!K25,+'App.2-CE_MIFRS_DepExp_2015'!K25+((C25*0.5)/D25)) -> 0 | H25: 0
A26: 1835 | B26: Overhead Conductors & Devices | E26: 0 | F26: =IF(D26=0,'App.2-CE_MIFRS_DepExp_2015'!K26,+'App.2-CE_MIFRS_DepExp_2015'!K26+((C26*0.5)/D26)) -> 0 | H26: 0
A27: 1840 | B27: Underground Conduit | E27: 0 | F27: =IF(D27=0,'App.2-CE_MIFRS_DepExp_2015'!K27,+'App.2-CE_MIFRS_DepExp_2015'!K27+((C27*0.5)/D27)) -> 0 | H27: 0
A28: 1845 | B28: Underground Conductors & Devices | E28: 0 | F28: =IF(D28=0,'App.2-CE_MIFRS_DepExp_2015'!K28,+'App.2-CE_MIFRS_DepExp_2015'!K28+((C28*0.5)/D28)) -> 0 | H28: 0
A29: 1850 | B29: Line Transformers | E29: 0 | F29: =IF(D29=0,'App.2-CE_MIFRS_DepExp_2015'!K29,+'App.2-CE_MIFRS_DepExp_2015'!K29+((C29*0.5)/D29)) -> 0 | H29: 0
A30: 1855 | B30: Services (Overhead & Underground) | E30: 0 | F30: =IF(D30=0,'App.2-CE_MIFRS_DepExp_2015'!K30,+'App.2-CE_MIFRS_DepExp_2015'!K30+((C30*0.5)/D30)) -> 0 | H30: 0
A31: 1860 | B31: Meters | E31: 0 | F31: =IF(D31=0,'App.2-CE_MIFRS_DepExp_2015'!K31,+'App.2-CE_MIFRS_DepExp_2015'!K31+((C31*0.5)/D31)) -> 0 | H31: 0
A32: 1860 | B32: Meters (Smart Meters) | E32: 0 | F32: =IF(D32=0,'App.2-CE_MIFRS_DepExp_2015'!K32,+'App.2-CE_MIFRS_DepExp_2015'!K32+((C32*0.5)/D32)) -> 0 | H32: 0
A33: 1905 | B33: Land | E33: 0 | F33: =IF(D33=0,'App.2-CE_MIFRS_DepExp_2015'!K33,+'App.2-CE_MIFRS_DepExp_2015'!K33+((C33*0.5)/D33)) -> 0 | H33: 0
A34: 1908 | B34: Buildings & Fixtures | E34: 0 | F34: =IF(D34=0,'App.2-CE_MIFRS_DepExp_2015'!K34,+'App.2-CE_MIFRS_DepExp_2015'!K34+((C34*0.5)/D34)) -> 0 | H34: 0
A35: 1910 | B35: Leasehold Improvements | E35: 0 | F35: =IF(D35=0,'App.2-CE_MIFRS_DepExp_2015'!K35,+'App.2-CE_MIFRS_DepExp_2015'!K35+((C35*0.5)/D35)) -> 0 | H35: 0
A36: 1915 | B36: Office Furniture & Equipment (10 years) | E36: 0 | F36: =IF(D36=0,'App.2-CE_MIFRS_DepExp_2015'!K36,+'App.2-CE_MIFRS_DepExp_2015'!K36+((C36*0.5)/D36)) -> 0 | H36: 0
A37: 1915 | B37: Office Furniture & Equipment (5 years) | E37: 0 | F37: =IF(D37=0,'App.2-CE_MIFRS_DepExp_2015'!K37,+'App.2-CE_MIFRS_DepExp_2015'!K37+((C37*0.5)/D37)) -> 0 | H37: 0
A38: 1920 | B38: Computer Equipment - Hardware | E38: 0 | F38: =IF(D38=0,'App.2-CE_MIFRS_DepExp_2015'!K38,+'App.2-CE_MIFRS_DepExp_2015'!K38+((C38*0.5)/D38)) -> 0 | H38: 0
A39: 1920 | B39: Computer Equip.-Hardware(Post Mar. 22/04) | E39: 0 | F39: =IF(D39=0,'App.2-CE_MIFRS_DepExp_2015'!K39,+'App.2-CE_MIFRS_DepExp_2015'!K39+((C39*0.5)/D39)) -> 0 | H39: 0
A40: 1920 | B40: Computer Equip.-Hardware(Post Mar. 19/07) | E40: 0 | F40: =IF(D40=0,'App.2-CE_MIFRS_DepExp_2015'!K40,+'App.2-CE_MIFRS_DepExp_2015'!K40+((C40*0.5)/D40)) -> 0 | H40: 0
A41: 1930 | B41: Transportation Equipment | E41: 0 | F41: =IF(D41=0,'App.2-CE_MIFRS_DepExp_2015'!K41,+'App.2-CE_MIFRS_DepExp_2015'!K41+((C41*0.5)/D41)) -> 0 | H41: 0
A42: 1935 | B42: Stores Equipment | E42: 0 | F42: =IF(D42=0,'App.2-CE_MIFRS_DepExp_2015'!K42,+'App.2-CE_MIFRS_DepExp_2015'!K42+((C42*0.5)/D42)) -> 0 | H42: 0
A43: 1940 | B43: Tools, Shop & Garage Equipment | E43: 0 | F43: =IF(D43=0,'App.2-CE_MIFRS_DepExp_2015'!K43,+'App.2-CE_MIFRS_DepExp_2015'!K43+((C43*0.5)/D43)) -> 0 | H43: 0
A44: 1945 | B44: Measurement & Testing Equipment | E44: 0 | F44: =IF(D44=0,'App.2-CE_MIFRS_DepExp_2015'!K44,+'App.2-CE_MIFRS_DepExp_2015'!K44+((C44*0.5)/D44)) -> 0 | H44: 0
A45: 1950 | B45: Power Operated Equipment | E45: 0 | F45: =IF(D45=0,'App.2-CE_MIFRS_DepExp_2015'!K45,+'App.2-CE_MIFRS_DepExp_2015'!K45+((C45*0.5)/D45)) -> 0 | H45: 0
A46: 1955 | B46: Communications Equipment | E46: 0 | F46: =IF(D46=0,'App.2-CE_MIFRS_DepExp_2015'!K46,+'App.2-CE_MIFRS_DepExp_2015'!K46+((C46*0.5)/D46)) -> 0 | H46: 0
A47: 1955 | B47: Communication Equipment (Smart Meters) | E47: 0 | F47: =IF(D47=0,'App.2-CE_MIFRS_DepExp_2015'!K47,+'App.2-CE_MIFRS_DepExp_2015'!K47+((C47*0.5)/D47)) -> 0 | H47: 0
A48: 1960 | B48: Miscellaneous Equipment | E48: 0 | F48: =IF(D48=0,'App.2-CE_MIFRS_DepExp_2015'!K48,+'App.2-CE_MIFRS_DepExp_2015'!K48+((C48*0.5)/D48)) -> 0 | H48: 0
A49: 1970 | B49: Load Management Controls Customer Premises | E49: 0 | F49: =IF(D49=0,'App.2-CE_MIFRS_DepExp_2015'!K49,+'App.2-CE_MIFRS_DepExp_2015'!K49+((C49*0.5)/D49)) -> 0 | H49: 0
A50: 1975 | B50: Load Management Controls Utility Premises | E50: 0 | F50: =IF(D50=0,'App.2-CE_MIFRS_DepExp_2015'!K50,+'App.2-CE_MIFRS_DepExp_2015'!K50+((C50*0.5)/D50)) -> 0 | H50: 0
A51: 1980 | B51: System Supervisor Equipment | E51: 0 | F51: =IF(D51=0,'App.2-CE_MIFRS_DepExp_2015'!K51,+'App.2-CE_MIFRS_DepExp_2015'!K51+((C51*0.5)/D51)) -> 0 | H51: 0
A52: 1985 | B52: Miscellaneous Fixed Assets | E52: 0 | F52: =IF(D52=0,'App.2-CE_MIFRS_DepExp_2015'!K52,+'App.2-CE_MIFRS_DepExp_2015'!K52+((C52*0.5)/D52)) -> 0 | H52: 0
A53: 1990 | B53: Other Tangible Property | E53: 0 | F53: =IF(D53=0,'App.2-CE_MIFRS_DepExp_2015'!K53,+'App.2-CE_MIFRS_DepExp_2015'!K53+((C53*0.5)/D53)) -> 0 | H53: 0
A54: 1995 | B54: Contributions & Grants | E54: 0 | F54: =IF(D54=0,'App.2-CE_MIFRS_DepExp_2015'!K54,+'App.2-CE_MIFRS_DepExp_2015'!K54+((C54*0.5)/D54)) -> 0 | H54: 0
B55: Total | C55: =SUM(C17:C54) -> 0 | F55: =SUM(F17:F54) -> 0 | G55: =SUM(G17:G54) -> 0 | H55: =SUM(H17:H54) -> 0
B56: Depreciation exp. adj. from gain or loss on the retirement of assets (pool of like assets)
B57: Total Depreciation expense to be included in the test year revenue requirement | F57: =SUM(F55:F56) -> 0
A58: Notes:
A59: 1 | B59: Board policy of the "half-year" rule - the applicant must ensure that additions in the year attract a half-year depreciation expense in the first year. Deviations from this standard practice must be supported in the application.
A60: 2 | B60: The applicant must provide an explanation of material variances in evidence.
A63: General: | B63: Applicants must provide a breakdown of depreciation and amortization expense in the above format for all relevant accounts. Asset Retirement Obligations (AROs), depreciation and accretion expense should be disclosed separately consistent with the Notes of historical Audited Financial Statements.

Sheet App.2-CG_OldCGAAP_DepExp_2013
K1: File Number: | L1: =EBNUMBER -> EB-2015-0089
K2: Exhibit: | L2: 4
K3: Tab:
K4: Schedule: | L4: Table 4-43
K5: Page: | L5: 69
K7: Date: | L7: Aug 28, 2015
A9: Appendix 2-CG
A10: Depreciation and Amortization Expense
B11: Assumes the applicant made capitalization and depreciation expense accounting policy changes under CGAAP effective January 1, 2013 and has adopted IFRS for financial reporting purposes effective January 1, 2015.
C13: Year | D13: 2013 | E13: Former CGAAP
A15: Account | B15: Description | C15: Opening Regulatory Gross PP&E as at Jan 1, 2013 | D15: Less Fully Depreciated | E15: Net for Depreciation | F15: Additions | G15: Total for Depreciation 1 | H15: Years | I15: Depreciation Rate | J15: Depreciation Expense | K15: 2013 Depreciation Expense per Appendix 2-BA Fixed Assets, Column J (l) | L15: Variance 2
C16: (a) | D16: (b) | E16: (c) | F16: (d) | G16: (e) = (c) + ½ x (d) | H16: (f) | I16: (g) = 1 / (f) | J16: (h) = (e) / (f) | L16: (m) = (h) - (l)
A17: 1609 | B17: Capital Contributions Paid | F17: 122349 | G17: =E17+0.5*F17 -> 61174.5 | H17: 25 | I17: =IF(H17=0,0,1/H17) -> 0.04 | J17: =IF(H17=0,0,G17/H17) -> 2446.98 | K17: =-'App.2-BA_Fixed Asset Cont'!J139 -> 2447 | L17: =IF(ISERROR(+J17-K17), 0, +J17-K17) -> -0.02
A18: 1611 | B18: Computer Software (Formally known as Account 1925) | C18: 697333 | D18: =336487+45336+97300 -> 479123 | E18: =C18-D18 -> 218210 | F18: 183251 | G18: =E18+0.5*F18 -> 309835.5 | H18: 3 | I18: 0.3333333333 | J18: 103278.5 | K18: =-'App.2-BA_Fixed Asset Cont'!J140 -> 103278 | L18: 0.5
A19: 1612 | B19: Land Rights (Formally known as Account 1906) | E19: =C19-D19 -> 0 | G19: =E19+0.5*F19 -> 0 | I19: 0 | J19: 0 | K19: =-'App.2-BA_Fixed Asset Cont'!J141 -> 0 | L19: 0
A20: 1805 | B20: Land | C20: 69883 | E20: 69883 | G20: 69883 | I20: 0 | J20: 0 | K20: =-'App.2-BA_Fixed Asset Cont'!J142 -> 0 | L20: 0
A21: 1808 | B21: Buildings | E21: 0 | G21: 0 | I21: 0 | J21: 0 | K21: =-'App.2-BA_Fixed Asset Cont'!J143 -> 0 | L21: 0
A22: 1810 | B22: Leasehold Improvements | E22: 0 | G22: 0 | I22: 0 | J22: 0 | K22: =-'App.2-BA_Fixed Asset Cont'!J144 -> 0 | L22: 0
A23: 1815 | B23: Transformer Station Equipment >50 kV | E23: 0 | G23: 0 | I23: 0 | J23: 0 | K23: =-'App.2-BA_Fixed Asset Cont'!J145 -> 0 | L23: 0
A24: 1820 | B24: Distribution Station Equipment <50 kV | C24: 1516192 | D24: =782134.53+43727 -> 825861.53 | E24: 690330.47 | G24: 690330.47 | H24: 30 | I24: 0.03333333333 | J24: 23011.01567 | K24: =-'App.2-BA_Fixed Asset Cont'!J146 -> 23011 | L24: 0.01566666667
A25: 1825 | B25: Storage Battery Equipment | E25: 0 | G25: 0 | I25: 0 | J25: 0 | K25: =-'App.2-BA_Fixed Asset Cont'!J147 -> 0 | L25: 0
A26: 1830 | B26: Poles, Towers & Fixtures | C26: 26746711 | D26: =2763307+1240807+51725+960375 -> 5016214 | E26: 21730497 | F26: 2320857 | G26: 22890925.5 | H26: 25 | I26: 0.04 | J26: 915637.02 | K26: =-'App.2-BA_Fixed Asset Cont'!J148 -> 915637 | L26: 0.02000000002
A27: 1835 | B27: Overhead Conductors & Devices | C27: 21079859 | D27: =4219230-746309-155 -> 3472766 | E27: 17607093 | F27: 907786 | G27: 18060986 | H27: 25 | I27: 0.04 | J27: 722439.44 | K27: =-'App.2-BA_Fixed Asset Cont'!J149 -> 722438 | L27: 1.44
A28: 1840 | B28: Underground Conduit | C28: 22291209 | D28: 924300 | E28: 21366909 | F28: 1895764 | G28: 22314791 | H28: 25 | I28: 0.04 | J28: 892591.64 | K28: =-'App.2-BA_Fixed Asset Cont'!J150 -> 892593 | L28: -1.36
A29: 1845 | B29: Underground Conductors & Devices | C29: 16497130 | D29: =489736-132580+74850 -> 432006 | E29: 16065124 | F29: 926889 | G29: 16528568.5 | H29: 25 | I29: 0.04 | J29: 661142.74 | K29: =-'App.2-BA_Fixed Asset Cont'!J151 -> 661143 | L29: -0.26
A30: 1850 | B30: Line Transformers | C30: 35028627 | D30: =3342917-2698845.36-504603+1015390 -> 1154858.64 | E30: 33873768.36 | F30: 1209577 | G30: 34478556.86 | H30: 25 | I30: 0.04 | J30: 1379142.274 | K30: =-'App.2-BA_Fixed Asset Cont'!J152 -> 1379144 | L30: -1.7256
A31: 1855 | B31: Services (Overhead & Underground) | C31: 13221495 | D31: =4185133.69+643208+475 -> 4828816.69 | E31: 8392678.31 | F31: 869824 | G31: 8827590.31 | H31: 25 | I31: 0.04 | J31: 353103.6124 | K31: =-'App.2-BA_Fixed Asset Cont'!J153 -> 353105 | L31: -1.3876
A32: 1860 | B32: Meters | C32: 2413282 | E32: 2413282 | G32: 2413282 | H32: 25 | I32: 0.04 | J32: 96531.28 | K32: =-'App.2-BA_Fixed Asset Cont'!J154 -> 0 | L32: 96531.28
A33: 1860 | B33: Meters (Smart Meters) | C33: 7985182 | D33: =564465+50000-2000500+1942350-520700 -> 35615 | E33: 7949567 | F33: 891399 | G33: 8395266.5 | H33: 15 | I33: 0.06666666667 | J33: 559684.4333 | K33: =-'App.2-BA_Fixed Asset Cont'!J155 -> 656214 | L33: -96529.56667
A34: 1905 | B34: Land | C34: 1142051 | E34: 1142051 | G34: 1142051 | I34: 0 | J34: 0 | K34: =-'App.2-BA_Fixed Asset Cont'!J156 -> 0 | L34: 0
A35: 1908 | B35: Buildings & Fixtures | E35: 0 | G35: 0 | I35: 0 | J35: 0 | K35: =-'App.2-BA_Fixed Asset Cont'!J157 -> 0 | L35: 0
A36: 1910 | B36: Leasehold Improvements | C36: 377009 | E36: 377009 | G36: 377009 | H36: 4.7 | I36: 0.2127659574 | J36: 80214.68085 | K36: =-'App.2-BA_Fixed Asset Cont'!J158 -> 80211 | L36: 3.680851064
A37: 1915 | B37: Office Furniture & Equipment (10 years) | C37: 712088 | D37: =541266+4050-2600 -> 542716 | E37: 169372 | G37: 169372 | H37: 10 | I37: 0.1 | J37: 16937.2 | K37: =-'App.2-BA_Fixed Asset Cont'!J159 -> 16939 | L37: -1.8
A38: 1915 | B38: Office Furniture & Equipment (5 years) | E38: 0 | G38: 0 | I38: 0 | J38: 0 | K38: =-'App.2-BA_Fixed Asset Cont'!J160 -> 0 | L38: 0
A39: 1920 | B39: Computer Equipment - Hardware | C39: 1656712 | D39: =1388597.57-31188+28300 -> 1385709.57 | E39: 271002.43 | F39: 137423 | G39: 339713.93 | H39: 5 | I39: 0.2 | J39: 67942.786 | K39: =-'App.2-BA_Fixed Asset Cont'!J161 -> 67940 | L39: 2.786
A40: 1920 | B40: Computer Equip.-Hardware(Post Mar. 22/04) | E40: 0 | G40: 0 | I40: 0 | J40: 0 | K40: =-'App.2-BA_Fixed Asset Cont'!J162 -> 0 | L40: 0
A41: 1920 | B41: Computer Equip.-Hardware(Post Mar. 19/07) | E41: 0 | G41: 0 | I41: 0 | J41: 0 | K41: =-'App.2-BA_Fixed Asset Cont'!J163 -> 0 | L41: 0
A42: 1930 | B42: Transportation Equipment | C42: 1954646 | D42: =1293218+119463-12200 -> 1400481 | E42: 554165 | F42: 380175 | G42: 744252.5 | H42: 5 | I42: 0.2 | J42: 148850.5 | K42: =-'App.2-BA_Fixed Asset Cont'!J164 -> 148853 | L42: -2.5
A43: 1935 | B43: Stores Equipment | C43: 224974 | D43: =164205.67+1100 -> 165305.67 | E43: 59668.33 | F43: 56545 | G43: 87940.83 | H43: 10 | I43: 0.1 | J43: 8794.083 | K43: =-'App.2-BA_Fixed Asset Cont'!J165 -> 8795 | L43: -0.917
A44: 1940 | B44: Tools, Shop & Garage Equipment | C44: 403954 | D44: =341497+5108+11190 -> 357795 | E44: 46159 | F44: 5382 | G44: 48850 | H44: 10 | I44: 0.1 | J44: 4885 | K44: =-'App.2-BA_Fixed Asset Cont'!J166 -> 17020 | L44: -12135
A45: 1945 | B45: Measurement & Testing Equipment | C45: 120166 | E45: 120166 | F45: 2345 | G45: 121338.5 | H45: 10 | I45: 0.1 | J45: 12133.85 | K45: =-'App.2-BA_Fixed Asset Cont'!J167 -> 0 | L45: 12133.85
A46: 1950 | B46: Power Operated Equipment | E46: 0 | G46: 0 | I46: 0 | J46: 0 | K46: =-'App.2-BA_Fixed Asset Cont'!J168 -> 0 | L46: 0
A47: 1955 | B47: Communications Equipment | E47: 0 | G47: 0 | I47: 0 | J47: 0 | K47: 0 | L47: 0
A48: 1955 | B48: Communication Equipment (Smart Meters) | C48: 236292 | D48: =118962+2000+9000 -> 129962 | E48: 106330 | F48: 3896 | G48: 108278 | H48: 10 | I48: 0.1 | J48: 10827.8 | K48: =-'App.2-BA_Fixed Asset Cont'!J169 -> 10830 | L48: -2.2
A49: 1960 | B49: Miscellaneous Equipment | E49: 0 | G49: 0 | I49: 0 | J49: 0 | K49: =-'App.2-BA_Fixed Asset Cont'!J171 -> 0 | L49: 0
A50: 1970 | B50: Load Management Controls - Customer Premises | E50: 0 | G50: 0 | I50: 0 | J50: 0 | K50: =-'App.2-BA_Fixed Asset Cont'!J172 -> 0 | L50: 0
A51: 1975 | B51: Load Management Controls Utility Premises | E51: 0 | G51: 0 | I51: 0 | J51: 0 | K51: =-'App.2-BA_Fixed Asset Cont'!J173 -> 0 | L51: 0
A52: 1980 | B52: System Supervisor Equipment | C52: 41545 | D52: 41545 | E52: 0 | F52: 52654 | G52: 26327 | H52: 15 | I52: 0.06666666667 | J52: 1755.133333 | K52: =-'App.2-BA_Fixed Asset Cont'!J174 -> 1755 | L52: 0.1333333333
A53: 1985 | B53: Miscellaneous Fixed Assets | E53: 0 | G53: 0 | I53: 0 | J53: 0 | K53: =-'App.2-BA_Fixed Asset Cont'!J175 -> 0 | L53: 0
A54: 1990 | B54: Other Tangible Property | C54: 133004 | D54: 32100 | E54: 100904 | G54: 100904 | H54: 10 | I54: 0.1 | J54: 10090.4 | K54: =-'App.2-BA_Fixed Asset Cont'!J176 -> 10089 | L54: 1.4
A55: 1995 | B55: Contributions & Grants | C55: -43960304 | D55: =-400950+305000-181700 -> -277650 | E55: -43682654 | F55: -3155364 | G55: -45260336 | H55: 25 | I55: 0.04 | J55: -1810413.44 | K55: =-'App.2-BA_Fixed Asset Cont'!J177 -> -1810413 | L55: -0.4399999999
B56: Total | C56: =SUM(C17:C55) -> 110589040 | D56: =SUM(D17:D55) -> 20947525.1 | E56: 89641514.9 | F56: 6810752 | G56: =SUM(G17:G55) -> 93046890.9 | J56: =SUM(J17:J55) -> 4261026.929 | K56: =SUM(K17:K55) -> 4261029 | L56: =SUM(L18:L55) -> -2.051015603
A58: Notes:
A60: 1 | B60: Board policy of the "half-year" rule - the applicant must ensure that additions in the year attract a half-year depreciation expense in the first year. Deviations from this standard practice must be supported in the application.
A61: 2 | B61: The applicant must provide an explanation of material variances in evidence.
A63: General | B63: Applicants must provide a breakdown of depreciation and amortization expense in the above format for all relevant accounts. Asset Retirement Obligations (AROs), depreciation and accretion expense should be disclosed separately consistent with the Notes of historical Audited Financial Statements.

Sheet App.2-CH_NewCGAAP_DepExp_2013
N1: File Number: | O1: =EBNUMBER -> EB-2015-0089
N2: Exhibit: | O2: 4
N3: Tab:
N4: Schedule: | O4: Table 4-44
N5: Page: | O5: 70
N7: Date: | O7: Aug 28, 2015
A9: Appendix 2-CH
A10: Depreciation and Amortization Expense
A11: Assumes the applicant made capitalization and depreciation expense accounting policy changes under CGAAP effective January 1, 2013 and has adopted IFRS for financial reporting purposes effective January 1, 2015.
C13: Year | D13: 2013 | E13: Revised CGAAP
A15: Account | B15: Description | C15: Opening NBV as at Jan 1, 2013 5 | D15: Additions | E15: Average Remaining Life of Opening NBV 4 | F15: Years (new additions only) 3 | G15: Depreciation Rate on New Additions | H15: Depreciation Expense on Opening NBV | I15: Depreciation Expense on Additions 1 | J15: 2013 Depreciation Expense | K15: 2013 Depreciation Expense per Appendix 2-BA Fixed Assets, Column J (l) | L15: Variance 2 | M15: Depreciation Expense on 2013 Full Year Additions | N15: Less Depreciation Expense on Assets Fully Depreciated during the year (o) | O15: 2013 Full Year Depreciation 6 | P15: Balances in 2013 Opening NBV, should have been fully depreciated, thus, adjust 2013
C16: (a) | D16: (d) | E16: (i) | F16: (f) | G16: (g) = 1 / (f) | H16: (j) = (a) / (i) | I16: (h)=((d)*0.5)/(f) | J16: (k) = (j) + (h) | L16: (m) = (k) - (l) | M16: (n) = (d)/(f) | O16: (p) = (j) + (n) - (o)
A17: 1609 | B17: Capital Contributions Paid | C17: 0 | D17: =+'App.2-BA_Fixed Asset Cont'!E201 -> 122349 | F17: 40 | G17: =IF(F17=0,0,1/F17) -> 0.025 | H17: =IF(E17=0,0,+C17/E17) -> 0 | I17: =IF(F17=0,0,+(D17*0.5)/F17) -> 1529.3625 | J17: =IF(ISERROR(+H17+I17), 0, +H17+I17) -> 1529.3625 | K17: =-'App.2-BA_Fixed Asset Cont'!J201 -> 1524 | L17: =IF(ISERROR(+J17-K17), 0, +J17-K17) -> 5.3625 | M17: =IF(F17=0,0,+(D17)/F17) -> 3058.725 | O17: =IF(ISERROR(+M17+H17-N17), 0, +M17+H17-N17) -> 3058.725
A18: 1611 | B18: Computer Software (Formally known as Account 1925) | C18: =+'App.2-BA_Fixed Asset Cont'!M78 -> 234586 | D18: =+'App.2-BA_Fixed Asset Cont'!E202 -> 183251 | E18: 3.86 | F18: 5 | G18: 0.2 | H18: =IF(E18=0,0,+C18/E18) -> 60773.57513 | I18: =IF(F18=0,0,+(D18*0.5)/F18) -> 18325.1 | J18: =IF(ISERROR(+H18+I18), 0, +H18+I18) -> 79098.67513 | K18: =-'App.2-BA_Fixed Asset Cont'!J202 -> 66553 | L18: =IF(ISERROR(+J18-K18), 0, +J18-K18) -> 12545.67513 | M18: =IF(F18=0,0,+(D18)/F18) -> 36650.2 | O18: =IF(ISERROR(+M18+H18-N18), 0, +M18+H18-N18)+P18 -> 95228.77513 | P18: -2195
A19: 1612 | B19: Land Rights (Formally known as Account 1906) | C19: =+'App.2-BA_Fixed Asset Cont'!M79 -> 0 | D19: =+'App.2-BA_Fixed Asset Cont'!E203 -> 0 | G19: 0 | H19: 0 | I19: 0 | J19: 0 | K19: =-'App.2-BA_Fixed Asset Cont'!J203 -> 0 | L19: 0 | M19: 0 | O19: =IF(ISERROR(+M19+H19-N19), 0, +M19+H19-N19) -> 0
A20: 1805 | B20: Land | C20: =+'App.2-BA_Fixed Asset Cont'!M80 -> 69883.36 | D20: =+'App.2-BA_Fixed Asset Cont'!E204 -> 0 | G20: 0 | H20: 0 | I20: 0 | J20: 0 | K20: =-'App.2-BA_Fixed Asset Cont'!J204 -> 0 | L20: 0 | M20: 0 | O20: 0
A21: 1808 | B21: Buildings | C21: =+'App.2-BA_Fixed Asset Cont'!M81 -> 0 | D21: =+'App.2-BA_Fixed Asset Cont'!E205 -> 0 | G21: 0 | H21: 0 | I21: 0 | J21: 0 | K21: =-'App.2-BA_Fixed Asset Cont'!J205 -> 0 | L21: 0 | M21: 0 | O21: 0
A22: 1810 | B22: Leasehold Improvements | C22: =+'App.2-BA_Fixed Asset Cont'!M82 -> 0 | D22: =+'App.2-BA_Fixed Asset Cont'!E206 -> 0 | G22: 0 | H22: 0 | I22: 0 | J22: 0 | K22: =-'App.2-BA_Fixed Asset Cont'!J206 -> 0 | L22: 0 | M22: 0 | O22: 0
A23: 1815 | B23: Transformer Station Equipment >50 kV | C23: =+'App.2-BA_Fixed Asset Cont'!M83 -> 0 | D23: =+'App.2-BA_Fixed Asset Cont'!E207 -> 0 | G23: 0 | H23: 0 | I23: 0 | J23: 0 | K23: =-'App.2-BA_Fixed Asset Cont'!J207 -> 0 | L23: 0 | M23: 0 | O23: 0
A24: 1820 | B24: Distribution Station Equipment <50 kV | C24: =+'App.2-BA_Fixed Asset Cont'!M84 -> 112449.65 | D24: =+'App.2-BA_Fixed Asset Cont'!E208 -> 0 | E24: 4.89 | F24: 45 | G24: 0.02222222222 | H24: 22995.83845 | I24: 0 | J24: 22995.83845 | K24: =-'App.2-BA_Fixed Asset Cont'!J208 -> 23011 | L24: -15.16155419 | M24: 0 | O24: 22995.83845
A25: 1825 | B25: Storage Battery Equipment | C25: =+'App.2-BA_Fixed Asset Cont'!M85 -> 0 | D25: =+'App.2-BA_Fixed Asset Cont'!E209 -> 0 | G25: 0 | H25: 0 | I25: 0 | J25: 0 | K25: =-'App.2-BA_Fixed Asset Cont'!J209 -> 0 | L25: 0 | M25: 0 | O25: 0
A26: 1830 | B26: Poles, Towers & Fixtures | C26: =+'App.2-BA_Fixed Asset Cont'!M86 -> 17079923.21 | D26: =+'App.2-BA_Fixed Asset Cont'!E210 -> 1985156 | E26: 42.24 | F26: 45 | G26: 0.02222222222 | H26: 404354.2427 | I26: 22057.28889 | J26: 426411.5315 | K26: =-'App.2-BA_Fixed Asset Cont'!J210 -> 426392 | L26: 19.53154987 | M26: 44114.57778 | O26: 448468.8204
A27: 1835 | B27: Overhead Conductors & Devices | C27: =+'App.2-BA_Fixed Asset Cont'!M87 -> 9037472.81 | D27: =+'App.2-BA_Fixed Asset Cont'!E211 -> 776479 | E27: 33.76 | F27: 45 | G27: 0.02222222222 | H27: 267697.6543 | I27: 8627.544444 | J27: 276325.1988 | K27: =-'App.2-BA_Fixed Asset Cont'!J211 -> 276361 | L27: -35.80123091 | M27: 17255.08889 | O27: 284952.7432
A28: 1840 | B28: Underground Conduit | C28: =+'App.2-BA_Fixed Asset Cont'!M88 -> 14938099.84 | D28: =+'App.2-BA_Fixed Asset Cont'!E212 -> 1621551 | E28: 32.9 | F28: 40 | G28: 0.025 | H28: 454045.5878 | I28: 20269.3875 | J28: 474314.9753 | K28: =-'App.2-BA_Fixed Asset Cont'!J212 -> 474315 | L28: -0.0246580547 | M28: 40538.775 | O28: 494584.3628
A29: 1845 | B29: Underground Conductors & Devices | C29: =+'App.2-BA_Fixed Asset Cont'!M89 -> 9690278.97 | D29: =+'App.2-BA_Fixed Asset Cont'!E213 -> 792819 | E29: 29.85 | F29: 40 | G29: 0.025 | H29: 324632.4613 | I29: 9910.2375 | J29: 334542.6988 | K29: =-'App.2-BA_Fixed Asset Cont'!J213 -> 334539 | L29: 3.698806533 | M29: 19820.475 | O29: 344452.9363
A30: 1850 | B30: Line Transformers | C30: =+'App.2-BA_Fixed Asset Cont'!M90 -> 18318401.07 | D30: =+'App.2-BA_Fixed Asset Cont'!E214 -> 1034618 | E30: 28.87 | F30: 40 | G30: 0.025 | H30: 634513.3727 | I30: 12932.725 | J30: 647446.0977 | K30: =-'App.2-BA_Fixed Asset Cont'!J214 -> 647454 | L30: -7.902294769 | M30: 25865.45 | O30: 660378.8227
A31: 1855 | B31: Services (Overhead & Underground) | C31: =+'App.2-BA_Fixed Asset Cont'!M91 -> 9694184.45 | D31: =+'App.2-BA_Fixed Asset Cont'!E215 -> 744008 | E31: 30 | F31: 40 | G31: 0.025 | H31: 323139.4817 | I31: 9300.1 | J31: 332439.5817 | K31: =-'App.2-BA_Fixed Asset Cont'!J215 -> 205736 | L31: 126703.5817 | M31: 18600.2 | O31: =IF(ISERROR(+M31+H31-N31), 0, +M31+H31-N31)+P31 -> 215016.6817 | P31: -126723
A32: 1860 | B32: Meters | C32: =+'App.2-BA_Fixed Asset Cont'!M92 -> 0 | D32: =+'App.2-BA_Fixed Asset Cont'!E216 -> 0 | F32: 15 | G32: 0.06666666667 | H32: 0 | I32: 0 | J32: 0 | K32: =-'App.2-BA_Fixed Asset Cont'!J216 -> 0 | L32: 0 | M32: 0 | O32: 0
A33: 1860 | B33: Meters (Smart Meters) | C33: =+'App.2-BA_Fixed Asset Cont'!M93 -> 6384765.72 | D33: =+'App.2-BA_Fixed Asset Cont'!E217 -> 794330 | E33: 8.88 | F33: 15 | G33: 0.06666666667 | H33: 719005.1486 | I33: 26477.66667 | J33: 745482.8153 | K33: =-'App.2-BA_Fixed Asset Cont'!J217 -> 745788 | L33: -305.1846847 | M33: 52955.33333 | N33: 9295 | O33: =IF(ISERROR(+M33+H33-N33), 0, +M33+H33-N33)+P33 -> 693268.482 | P33: -69397
A34: 1905 | B34: Land | C34: =+'App.2-BA_Fixed Asset Cont'!M94 -> 1142051.765 | D34: =+'App.2-BA_Fixed Asset Cont'!E218 -> 0 | G34: 0 | H34: 0 | I34: 0 | J34: 0 | K34: =-'App.2-BA_Fixed Asset Cont'!J218 -> 0 | L34: 0 | M34: 0 | O34: 0
A35: 1908 | B35: Buildings & Fixtures | C35: =+'App.2-BA_Fixed Asset Cont'!M95 -> 0 | D35: =+'App.2-BA_Fixed Asset Cont'!E219 -> 0 | G35: 0 | H35: 0 | I35: 0 | J35: 0 | K35: =-'App.2-BA_Fixed Asset Cont'!J219 -> 0 | L35: 0 | M35: 0 | O35: 0
A36: 1910 | B36: Leasehold Improvements | C36: =+'App.2-BA_Fixed Asset Cont'!M96 -> 92235 | D36: =+'App.2-BA_Fixed Asset Cont'!E220 -> 0 | E36: 1.15 | F36: 4.7 | G36: 0.2127659574 | H36: 80204.34783 | I36: 0 | J36: 80204.34783 | K36: =-'App.2-BA_Fixed Asset Cont'!J220 -> 80211 | L36: -6.652173913 | M36: 0 | N36: 68187 | O36: 12017.34783
A37: 1915 | B37: Office Furniture & Equipment (10 years) | C37: =+'App.2-BA_Fixed Asset Cont'!M97 -> 106742 | D37: =+'App.2-BA_Fixed Asset Cont'!E221 -> 0 | E37: 6.3 | F37: 10 | G37: 0.1 | H37: 16943.1746 | I37: 0 | J37: 16943.1746 | K37: =-'App.2-BA_Fixed Asset Cont'!J221 -> 16938 | L37: 5.174603175 | M37: 0 | O37: 16943.1746
A38: 1915 | B38: Office Furniture & Equipment (5 years) | C38: =+'App.2-BA_Fixed Asset Cont'!M98 -> 0 | D38: =+'App.2-BA_Fixed Asset Cont'!E222 -> 0 | G38: 0 | H38: 0 | I38: 0 | J38: 0 | K38: =-'App.2-BA_Fixed Asset Cont'!J222 -> 0 | L38: 0 | M38: 0 | O38: 0
A39: 1920 | B39: Computer Equipment - Hardware | C39: =+'App.2-BA_Fixed Asset Cont'!M99 -> 169661 | D39: =+'App.2-BA_Fixed Asset Cont'!E223 -> 137423 | E39: 3.48 | F39: 5 | G39: 0.2 | H39: 48753.16092 | I39: 13742.3 | J39: 62495.46092 | K39: =-'App.2-BA_Fixed Asset Cont'!J223 -> 62527 | L39: -31.53908046 | M39: 27484.6 | O39: 76237.76092
A40: 1920 | B40: Computer Equip.-Hardware(Post Mar. 22/04) | C40: =+'App.2-BA_Fixed Asset Cont'!M100 -> 0 | D40: =+'App.2-BA_Fixed Asset Cont'!E224 -> 0 | G40: 0 | H40: 0 | I40: 0 | J40: 0 | K40: =-'App.2-BA_Fixed Asset Cont'!J224 -> 0 | L40: 0 | M40: 0 | O40: 0
A41: 1920 | B41: Computer Equip.-Hardware(Post Mar. 19/07) | C41: =+'App.2-BA_Fixed Asset Cont'!M101 -> 0 | D41: =+'App.2-BA_Fixed Asset Cont'!E225 -> 0 | G41: 0 | H41: 0 | I41: 0 | J41: 0 | K41: =-'App.2-BA_Fixed Asset Cont'!J225 -> 0 | L41: 0 | M41: 0 | O41: 0
A42: 1930 | B42: Transportation Equipment | C42: 0 | D42: =+'App.2-BA_Fixed Asset Cont'!E226 -> 380175 | F42: 12 | G42: 0.08333333333 | H42: 0 | I42: 15840.625 | J42: 15840.625 | L42: 15840.625 | M42: 31681.25 | O42: 31681.25
A43: 1930 | B43: Transportation Equipment | C43: =+'App.2-BA_Fixed Asset Cont'!M102 -> 449898.17 | E43: 7.68 | F43: 8 | G43: 0.125 | H43: 58580.49089 | I43: =IF(F43=0,0,+(D43*0.5)/F43) -> 0 | J43: =IF(ISERROR(+H43+I43), 0, +H43+I43) -> 58580.49089 | K43: =-'App.2-BA_Fixed Asset Cont'!J226 -> 74427 | L43: -15846.50911 | M43: 0 | O43: 58580.49089
A44: 1935 | B44: Stores Equipment | C44: =+'App.2-BA_Fixed Asset Cont'!M103 -> 52993.32 | D44: =+'App.2-BA_Fixed Asset Cont'!E227 -> 56545 | E44: 8.75 | F44: 12 | G44: 0.08333333333 | H44: 6056.379429 | I44: 2356.041667 | J44: 8412.421095 | K44: =-'App.2-BA_Fixed Asset Cont'!J227 -> 5012 | L44: 3400.421095 | M44: 4712.083333 | N44: 3400 | O44: 7368.462762
A45: 1940 | B45: Tools, Shop & Garage Equipment | C45: =+'App.2-BA_Fixed Asset Cont'!M104 -> 23386.4 | D45: =+'App.2-BA_Fixed Asset Cont'!E228 -> 5382 | E45: 3.16 | F45: 10 | G45: 0.1 | H45: 7400.759494 | I45: 269.1 | J45: 7669.859494 | K45: =-'App.2-BA_Fixed Asset Cont'!J228 -> 7663 | L45: 6.859493671 | M45: 538.2 | O45: 7938.959494
A46: 1945 | B46: Measurement & Testing Equipment | C46: =+'App.2-BA_Fixed Asset Cont'!M105 -> 90452.83 | D46: =+'App.2-BA_Fixed Asset Cont'!E229 -> 2345 | E46: 9.79 | F46: 10 | G46: 0.1 | H46: 9239.308478 | I46: 117.25 | J46: 9356.558478 | K46: =-'App.2-BA_Fixed Asset Cont'!J229 -> 9356 | L46: 0.5584780388 | M46: 234.5 | O46: 9473.808478
A47: 1950 | B47: Power Operated Equipment | C47: =+'App.2-BA_Fixed Asset Cont'!M106 -> 0 | D47: =+'App.2-BA_Fixed Asset Cont'!E230 -> 0 | G47: 0 | H47: 0 | I47: 0 | J47: 0 | K47: =-'App.2-BA_Fixed Asset Cont'!J230 -> 0 | L47: 0 | M47: 0 | O47: 0
A48: 1955 | B48: Communications Equipment | C48: =+'App.2-BA_Fixed Asset Cont'!M107 -> 59263.82 | D48: =+'App.2-BA_Fixed Asset Cont'!E231 -> 3896 | E48: 5.57 | F48: 10 | G48: 0.1 | H48: 10639.82406 | I48: 194.8 | J48: 10834.62406 | K48: =-'App.2-BA_Fixed Asset Cont'!J231 -> 10829 | L48: 5.624057451 | M48: 389.6 | O48: 11029.42406
A49: 1955 | B49: Communication Equipment (Smart Meters) | C49: =+'App.2-BA_Fixed Asset Cont'!M108 -> 0 | D49: =+'App.2-BA_Fixed Asset Cont'!E232 -> 0 | G49: 0 | H49: 0 | I49: 0 | J49: 0 | K49: =-'App.2-BA_Fixed Asset Cont'!J232 -> 0 | L49: 0 | M49: 0 | O49: 0
A50: 1960 | B50: Miscellaneous Equipment | C50: =+'App.2-BA_Fixed Asset Cont'!M109 -> 0 | D50: =+'App.2-BA_Fixed Asset Cont'!E233 -> 0 | G50: 0 | H50: 0 | I50: 0 | J50: 0 | K50: =-'App.2-BA_Fixed Asset Cont'!J233 -> 0 | L50: 0 | M50: 0 | O50: 0
A51: 1970 | B51: Load Management Controls - Customer Premises | C51: =+'App.2-BA_Fixed Asset Cont'!M110 -> 0 | D51: =+'App.2-BA_Fixed Asset Cont'!E234 -> 0 | G51: 0 | H51: 0 | I51: 0 | J51: 0 | K51: =-'App.2-BA_Fixed Asset Cont'!J234 -> 0 | L51: 0 | M51: 0 | O51: 0
A52: 1975 | B52: Load Management Controls Utility Premises | C52: =+'App.2-BA_Fixed Asset Cont'!M111 -> 0 | D52: =+'App.2-BA_Fixed Asset Cont'!E235 -> 0 | G52: 0 | H52: 0 | I52: 0 | J52: 0 | K52: =-'App.2-BA_Fixed Asset Cont'!J235 -> 0 | L52: 0 | M52: 0 | O52: 0
A53: 1980 | B53: System Supervisor Equipment | C53: =+'App.2-BA_Fixed Asset Cont'!M112 -> 0 | D53: =+'App.2-BA_Fixed Asset Cont'!E236 -> 52654 | E53: 0 | F53: 15 | G53: 0.06666666667 | H53: 0 | I53: 1755.133333 | J53: 1755.133333 | K53: =-'App.2-BA_Fixed Asset Cont'!J236 -> 1757 | L53: -1.866666667 | M53: 3510.266667 | O53: 3510.266667
A54: 1985 | B54: Miscellaneous Fixed Assets | C54: =+'App.2-BA_Fixed Asset Cont'!M113 -> 0 | D54: =+'App.2-BA_Fixed Asset Cont'!E237 -> 0 | G54: 0 | H54: 0 | I54: 0 | J54: 0 | K54: =-'App.2-BA_Fixed Asset Cont'!J237 -> 0 | L54: 0 | M54: 0 | O54: 0
A55: 1990 | B55: Other Tangible Property | C55: =+'App.2-BA_Fixed Asset Cont'!M114 -> 112600.11 | D55: =+'App.2-BA_Fixed Asset Cont'!E238 -> 0 | E55: 8.47 | F55: 10 | G55: 0.1 | H55: 13293.99174 | I55: 0 | J55: 13293.99174 | K55: =-'App.2-BA_Fixed Asset Cont'!J238 -> 13301 | L55: -7.008264463 | M55: 0 | O55: 13293.99174
A56: 1995 | B56: Contributions & Grants | C56: =+'App.2-BA_Fixed Asset Cont'!M115 -> -32612882.84 | D56: =+'App.2-BA_Fixed Asset Cont'!E239 -> -3155364 | E56: 36.54 | F56: 42.5 | G56: 0.02352941176 | H56: -892525.5293 | I56: -37121.92941 | J56: -929647.4587 | K56: =-'App.2-BA_Fixed Asset Cont'!J239 -> -929573 | L56: -74.45869474 | M56: -74243.85882 | O56: -966769.3881
B57: Total | C57: =SUM(C17:C56) -> 55246446.65 | D57: =SUM(D17:D56) -> 5537617 | H57: =SUM(H17:H56) -> 2569743.271 | I57: =SUM(I17:I56) -> 126582.7331 | J57: 2696326.004 | K57: =SUM(K17:K56) -> 2554121 | L57: =SUM(L17:L56) -> 142205.004 | M57: 253165.4662 | N57: 80882 | O57: 2543711.737 | P57: -198315
A59: Notes:
A61: 1 | B61: Board policy of the "half-year" rule - the applicant must ensure that additions in the year attract a half-year depreciation expense in the first year. Deviations from this standard practice must be supported in the application.
A62: 2 | B62: The applicant must provide an explanation of material variances in evidence.
A63: 3 | B63: The applicant should ensure that the years for new additions of assets are the asset useful lives determined by management in accordance with the Board's regulatory accounting policies. The capitalization and depreciation expense accounting changes should be implemented consistent with the Board’s regulatory accounting policies as set out for MIFRS as contained in the Report of the Board, Transition to International Financial Reporting Standards, EB-2008-0408, the Kinectrics Report, and the Revised 2012 Accounting Procedures Handbook for Electricity Distributors.
A64: 4 | B64: A recalculation should be performed to determine the average remaining life of opening balance of assets (i.e. excluding 2013 additions) under the change in policies under CGAAP. For example, Asset A had a useful life of 20 years under CGAAP without the change in policies. On January 1, 2013, the effective date of the changes in policies, Asset A was 3 years depreciated. As a result, Asset A would have a remaining service life of 17 years (20 years less 3 years) as of January 1, 2013. Due to making the change in policies under CGAAP, management re-assessed the asset useful lives and concluded that the revised useful life of Asset A is now 30 years. Therefore, the average remaining useful life of the opening balance of Asset A is determined to be 27 years (30 years less 3 years) under the revised CGAAP as of January 1, 2013.
A65: 5 | B65: NBV must exclude assets still on the books but which have been fully amortized or depreciated.
A66: 6 | B66: This column refers to the calculated full year depreciation but excludes the depreciation expense on assets fully depreciated during the year. This column is used for the purpose of calculating depreciation expense in the following year on the next worksheet.
A68: General: | B68: Applicants must provide a breakdown of depreciation and amortization expense in the above format for all relevant accounts. Asset Retirement Obligations (AROs), depreciation and accretion expense should be disclosed separately consistent with the Notes of historical Audited Financial Statements.

Sheet App.2-CI_MIFRS_DepExp_2014
J1: File Number: | K1: =EBNUMBER -> EB-2015-0089
J2: Exhibit: | K2: 4
J3: Tab:
J4: Schedule: | K4: Table 4-45
J5: Page: | K5: 71
J7: Date: | K7: August 28, 205
A9: Appendix 2-CI
A10: Depreciation and Amortization Expense
A11: Assumes the applicant made capitalization and depreciation expense accounting policy changes under CGAAP effective January 1, 2013 and has adopted IFRS for financial reporting purposes effective January 1, 2015.
E13: 2014 | F13: MIFRS
A15: Account | B15: Description | C15: Additions | D15: Years (new additions only) | E15: Depreciation Rate on New Additions | F15: 2014 Depreciation Expense 1 | G15: 2014 Depreciation Expense per Apppendix 2-BA Fixed Assets, Column J (l) | H15: Variance 2 | I15: Depreciation Expense on 2014 Full Year Additions | J15: Less Depreciation Expense on Assets Fully Depreciated during the year (o) | K15: 2014 Full Year Depreciation 3 | L15: Adjustments
C16: (d) | D16: (f) | E16: (g) = 1 / (f) | F16: (h)=2013 Full Year Deprecation + ((d)*0.5)/(f) | H16: (m) = (h) - (l) | I16: (n)=((d))/(f) | K16: (p) = 2013 Full Year Depreciation + (n) - (o)
A17: 1609 | B17: Capital Contributions Paid | C17: =+'App.2-BA_Fixed Asset Cont'!E325 -> 0 | D17: =+'App.2-CH_NewCGAAP_DepExp_2013'!F17 -> 40 | E17: =IF(D17=0,0,1/D17) -> 0.025 | F17: =IF(D17=0,+'App.2-CH_NewCGAAP_DepExp_2013'!O17,+'App.2-CH_NewCGAAP_DepExp_2013'!O17+((C17*0.5)/D17)) -> 3058.725 | G17: =-'App.2-BA_Fixed Asset Cont'!J325 -> 3059 | H17: =IF(ISERROR(+F17-G17), 0, +F17-G17) -> -0.275 | K17: =IF(ISERROR(+I17+'App.2-CH_NewCGAAP_DepExp_2013'!O17-J17), 0, +I17+'App.2-CH_NewCGAAP_DepExp_2013'!O17-J17) -> 3058.725
A18: 1611 | B18: Computer Software (Formally known as Account 1925) | C18: =+'App.2-BA_Fixed Asset Cont'!E326 -> 142392 | D18: =+'App.2-CH_NewCGAAP_DepExp_2013'!F18 -> 5 | E18: 0.2 | F18: =IF(D18=0,+'App.2-CH_NewCGAAP_DepExp_2013'!O18,+'App.2-CH_NewCGAAP_DepExp_2013'!O18+((C18*0.5)/D18)) -> 109467.9751 | G18: =-'App.2-BA_Fixed Asset Cont'!J326 -> 109468 | H18: -0.02487046632 | I18: =IF(D18=0,0,+(C18)/D18) -> 28478.4 | K18: =IF(ISERROR(+I18+'App.2-CH_NewCGAAP_DepExp_2013'!O18-J18), 0, +I18+'App.2-CH_NewCGAAP_DepExp_2013'!O18-J18) -> 123707.1751
A19: 1612 | B19: Land Rights (Formally known as Account 1906) | C19: =+'App.2-BA_Fixed Asset Cont'!E327 -> 0 | D19: =+'App.2-CH_NewCGAAP_DepExp_2013'!F19 -> 0 | E19: 0 | F19: =IF(D19=0,+'App.2-CH_NewCGAAP_DepExp_2013'!O19,+'App.2-CH_NewCGAAP_DepExp_2013'!O19+((C19*0.5)/D19)) -> 0 | G19: =-'App.2-BA_Fixed Asset Cont'!J327 -> 0 | H19: 0 | I19: 0 | K19: =IF(ISERROR(+I19+'App.2-CH_NewCGAAP_DepExp_2013'!O19-J19), 0, +I19+'App.2-CH_NewCGAAP_DepExp_2013'!O19-J19) -> 0
A20: 1805 | B20: Land | C20: =+'App.2-BA_Fixed Asset Cont'!E328 -> 0 | D20: =+'App.2-CH_NewCGAAP_DepExp_2013'!F20 -> 0 | E20: 0 | F20: =IF(D20=0,+'App.2-CH_NewCGAAP_DepExp_2013'!O20,+'App.2-CH_NewCGAAP_DepExp_2013'!O20+((C20*0.5)/D20)) -> 0 | G20: =-'App.2-BA_Fixed Asset Cont'!J328 -> 0 | H20: 0 | I20: 0 | K20: =IF(ISERROR(+I20+'App.2-CH_NewCGAAP_DepExp_2013'!O20-J20), 0, +I20+'App.2-CH_NewCGAAP_DepExp_2013'!O20-J20) -> 0
A21: 1808 | B21: Buildings | C21: =+'App.2-BA_Fixed Asset Cont'!E329 -> 0 | D21: =+'App.2-CH_NewCGAAP_DepExp_2013'!F21 -> 0 | E21: 0 | F21: =IF(D21=0,+'App.2-CH_NewCGAAP_DepExp_2013'!O21,+'App.2-CH_NewCGAAP_DepExp_2013'!O21+((C21*0.5)/D21)) -> 0 | G21: =-'App.2-BA_Fixed Asset Cont'!J329 -> 0 | H21: 0 | I21: 0 | K21: =IF(ISERROR(+I21+'App.2-CH_NewCGAAP_DepExp_2013'!O21-J21), 0, +I21+'App.2-CH_NewCGAAP_DepExp_2013'!O21-J21) -> 0
A22: 1810 | B22: Leasehold Improvements | C22: =+'App.2-BA_Fixed Asset Cont'!E330 -> 0 | D22: =+'App.2-CH_NewCGAAP_DepExp_2013'!F22 -> 0 | E22: 0 | F22: =IF(D22=0,+'App.2-CH_NewCGAAP_DepExp_2013'!O22,+'App.2-CH_NewCGAAP_DepExp_2013'!O22+((C22*0.5)/D22)) -> 0 | G22: =-'App.2-BA_Fixed Asset Cont'!J330 -> 0 | H22: 0 | I22: 0 | K22: =IF(ISERROR(+I22+'App.2-CH_NewCGAAP_DepExp_2013'!O22-J22), 0, +I22+'App.2-CH_NewCGAAP_DepExp_2013'!O22-J22) -> 0
A23: 1815 | B23: Transformer Station Equipment >50 kV | C23: =+'App.2-BA_Fixed Asset Cont'!E331 -> 0 | D23: =+'App.2-CH_NewCGAAP_DepExp_2013'!F23 -> 0 | E23: 0 | F23: =IF(D23=0,+'App.2-CH_NewCGAAP_DepExp_2013'!O23,+'App.2-CH_NewCGAAP_DepExp_2013'!O23+((C23*0.5)/D23)) -> 0 | G23: =-'App.2-BA_Fixed Asset Cont'!J331 -> 0 | H23: 0 | I23: 0 | K23: =IF(ISERROR(+I23+'App.2-CH_NewCGAAP_DepExp_2013'!O23-J23), 0, +I23+'App.2-CH_NewCGAAP_DepExp_2013'!O23-J23) -> 0
A24: 1820 | B24: Distribution Station Equipment <50 kV | C24: =+'App.2-BA_Fixed Asset Cont'!E332 -> 0 | D24: =+'App.2-CH_NewCGAAP_DepExp_2013'!F24 -> 45 | E24: 0.02222222222 | F24: =IF(D24=0,+'App.2-CH_NewCGAAP_DepExp_2013'!O24,+'App.2-CH_NewCGAAP_DepExp_2013'!O24+((C24*0.5)/D24)) -> 22995.83845 | G24: =-'App.2-BA_Fixed Asset Cont'!J332 -> 23011 | H24: -15.16155419 | I24: 0 | K24: =IF(ISERROR(+I24+'App.2-CH_NewCGAAP_DepExp_2013'!O24-J24), 0, +I24+'App.2-CH_NewCGAAP_DepExp_2013'!O24-J24) -> 22995.83845
A25: 1825 | B25: Storage Battery Equipment | C25: =+'App.2-BA_Fixed Asset Cont'!E333 -> 0 | D25: =+'App.2-CH_NewCGAAP_DepExp_2013'!F25 -> 0 | E25: 0 | F25: =IF(D25=0,+'App.2-CH_NewCGAAP_DepExp_2013'!O25,+'App.2-CH_NewCGAAP_DepExp_2013'!O25+((C25*0.5)/D25)) -> 0 | G25: =-'App.2-BA_Fixed Asset Cont'!J333 -> 0 | H25: 0 | I25: 0 | K25: =IF(ISERROR(+I25+'App.2-CH_NewCGAAP_DepExp_2013'!O25-J25), 0, +I25+'App.2-CH_NewCGAAP_DepExp_2013'!O25-J25) -> 0
A26: 1830 | B26: Poles, Towers & Fixtures | C26: =+'App.2-BA_Fixed Asset Cont'!E334 -> 2468003 | D26: =+'App.2-CH_NewCGAAP_DepExp_2013'!F26 -> 45 | E26: 0.02222222222 | F26: =IF(D26=0,+'App.2-CH_NewCGAAP_DepExp_2013'!O26,+'App.2-CH_NewCGAAP_DepExp_2013'!O26+((C26*0.5)/D26)) -> 475891.076 | G26: =-'App.2-BA_Fixed Asset Cont'!J334 -> 475788 | H26: 103.0759943 | I26: 54844.51111 | K26: =IF(ISERROR(+I26+'App.2-CH_NewCGAAP_DepExp_2013'!O26-J26), 0, +I26+'App.2-CH_NewCGAAP_DepExp_2013'!O26-J26) -> 503313.3315
A27: 1835 | B27: Overhead Conductors & Devices | C27: =+'App.2-BA_Fixed Asset Cont'!E335 -> 1142413 | D27: =+'App.2-CH_NewCGAAP_DepExp_2013'!F27 -> 45 | E27: 0.02222222222 | F27: =IF(D27=0,+'App.2-CH_NewCGAAP_DepExp_2013'!O27,+'App.2-CH_NewCGAAP_DepExp_2013'!O27+((C27*0.5)/D27)) -> 297646.221 | G27: =-'App.2-BA_Fixed Asset Cont'!J335 -> 297679 | H27: -32.77900869 | I27: 25386.95556 | K27: =IF(ISERROR(+I27+'App.2-CH_NewCGAAP_DepExp_2013'!O27-J27), 0, +I27+'App.2-CH_NewCGAAP_DepExp_2013'!O27-J27) -> 310339.6988
A28: 1840 | B28: Underground Conduit | C28: =+'App.2-BA_Fixed Asset Cont'!E336 -> 2249779 | D28: =+'App.2-CH_NewCGAAP_DepExp_2013'!F28 -> 40 | E28: 0.025 | F28: =IF(D28=0,+'App.2-CH_NewCGAAP_DepExp_2013'!O28,+'App.2-CH_NewCGAAP_DepExp_2013'!O28+((C28*0.5)/D28)) -> 522706.6003 | G28: =-'App.2-BA_Fixed Asset Cont'!J336 -> 512029 | H28: 10677.60034 | I28: 56244.475 | J28: 10678 | K28: =IF(ISERROR(+I28+'App.2-CH_NewCGAAP_DepExp_2013'!O28-J28), 0, +I28+'App.2-CH_NewCGAAP_DepExp_2013'!O28-J28) -> 540150.8378
A29: 1845 | B29: Underground Conductors & Devices | C29: =+'App.2-BA_Fixed Asset Cont'!E337 -> 1410870 | D29: =+'App.2-CH_NewCGAAP_DepExp_2013'!F29 -> 40 | E29: 0.025 | F29: =IF(D29=0,+'App.2-CH_NewCGAAP_DepExp_2013'!O29,+'App.2-CH_NewCGAAP_DepExp_2013'!O29+((C29*0.5)/D29)) -> 362088.8113 | G29: =-'App.2-BA_Fixed Asset Cont'!J337 -> 353320 | H29: 8768.811307 | I29: 35271.75 | J29: 8769 | K29: =IF(ISERROR(+I29+'App.2-CH_NewCGAAP_DepExp_2013'!O29-J29), 0, +I29+'App.2-CH_NewCGAAP_DepExp_2013'!O29-J29) -> 370955.6863
A30: 1850 | B30: Line Transformers | C30: =+'App.2-BA_Fixed Asset Cont'!E338 -> 1814539 | D30: =+'App.2-CH_NewCGAAP_DepExp_2013'!F30 -> 40 | E30: 0.025 | F30: =IF(D30=0,+'App.2-CH_NewCGAAP_DepExp_2013'!O30,+'App.2-CH_NewCGAAP_DepExp_2013'!O30+((C30*0.5)/D30)) -> 683060.5602 | G30: =-'App.2-BA_Fixed Asset Cont'!J338 -> 683051 | H30: 9.560205231 | I30: 45363.475 | K30: =IF(ISERROR(+I30+'App.2-CH_NewCGAAP_DepExp_2013'!O30-J30), 0, +I30+'App.2-CH_NewCGAAP_DepExp_2013'!O30-J30) -> 705742.2977
A31: 1855 | B31: Services (Overhead & Underground) | C31: =+'App.2-BA_Fixed Asset Cont'!E339 -> 831748 | D31: =+'App.2-CH_NewCGAAP_DepExp_2013'!F31 -> 40 | E31: 0.025 | F31: =IF(D31=0,+'App.2-CH_NewCGAAP_DepExp_2013'!O31,+'App.2-CH_NewCGAAP_DepExp_2013'!O31+((C31*0.5)/D31)) -> 225413.5317 | G31: =-'App.2-BA_Fixed Asset Cont'!J339 -> 225427 | H31: -13.46833333 | I31: 20793.7 | K31: =IF(ISERROR(+I31+'App.2-CH_NewCGAAP_DepExp_2013'!O31-J31), 0, +I31+'App.2-CH_NewCGAAP_DepExp_2013'!O31-J31) -> 235810.3817
A32: 1860 | B32: Meters | C32: =+'App.2-BA_Fixed Asset Cont'!E340 -> 0 | D32: =+'App.2-CH_NewCGAAP_DepExp_2013'!F32 -> 15 | E32: 0.06666666667 | F32: =IF(D32=0,+'App.2-CH_NewCGAAP_DepExp_2013'!O32,+'App.2-CH_NewCGAAP_DepExp_2013'!O32+((C32*0.5)/D32)) -> 0 | G32: =-'App.2-BA_Fixed Asset Cont'!J340 -> 0 | H32: 0 | I32: 0 | K32: =IF(ISERROR(+I32+'App.2-CH_NewCGAAP_DepExp_2013'!O32-J32), 0, +I32+'App.2-CH_NewCGAAP_DepExp_2013'!O32-J32) -> 0
A33: 1860 | B33: Meters (Smart Meters) | C33: =+'App.2-BA_Fixed Asset Cont'!E341 -> 433062 | D33: =+'App.2-CH_NewCGAAP_DepExp_2013'!F33 -> 15 | E33: 0.06666666667 | F33: =IF(D33=0,+'App.2-CH_NewCGAAP_DepExp_2013'!O33,+'App.2-CH_NewCGAAP_DepExp_2013'!O33+((C33*0.5)/D33)) -> 707703.882 | G33: =-'App.2-BA_Fixed Asset Cont'!J341 -> 701423 | H33: 6280.881982 | I33: 28870.8 | J33: 6277.87 | K33: =IF(ISERROR(+I33+'App.2-CH_NewCGAAP_DepExp_2013'!O33-J33), 0, +I33+'App.2-CH_NewCGAAP_DepExp_2013'!O33-J33) -> 715861.412
A34: 1905 | B34: Land | C34: =+'App.2-BA_Fixed Asset Cont'!E342 -> 4040000 | D34: =+'App.2-CH_NewCGAAP_DepExp_2013'!F34 -> 0 | E34: 0 | F34: =IF(D34=0,+'App.2-CH_NewCGAAP_DepExp_2013'!O34,+'App.2-CH_NewCGAAP_DepExp_2013'!O34+((C34*0.5)/D34)) -> 0 | G34: =-'App.2-BA_Fixed Asset Cont'!J342 -> 0 | H34: 0 | I34: 0 | K34: =IF(ISERROR(+I34+'App.2-CH_NewCGAAP_DepExp_2013'!O34-J34), 0, +I34+'App.2-CH_NewCGAAP_DepExp_2013'!O34-J34) -> 0
A35: 1908 | B35: Buildings & Fixtures | C35: =+'App.2-BA_Fixed Asset Cont'!E343 -> 0 | D35: =+'App.2-CH_NewCGAAP_DepExp_2013'!F35 -> 0 | E35: 0 | F35: =IF(D35=0,+'App.2-CH_NewCGAAP_DepExp_2013'!O35,+'App.2-CH_NewCGAAP_DepExp_2013'!O35+((C35*0.5)/D35)) -> 0 | G35: =-'App.2-BA_Fixed Asset Cont'!J343 -> 0 | H35: 0 | I35: 0 | K35: =IF(ISERROR(+I35+'App.2-CH_NewCGAAP_DepExp_2013'!O35-J35), 0, +I35+'App.2-CH_NewCGAAP_DepExp_2013'!O35-J35) -> 0
A36: 1910 | B36: Leasehold Improvements | C36: =+'App.2-BA_Fixed Asset Cont'!E344 -> 0 | D36: 5 | E36: 0.2 | F36: =IF(D36=0,+'App.2-CH_NewCGAAP_DepExp_2013'!O36,+'App.2-CH_NewCGAAP_DepExp_2013'!O36+((C36*0.5)/D36)) -> 12017.34783 | G36: =-'App.2-BA_Fixed Asset Cont'!J344 -> 12024 | H36: -6.652173913 | I36: 0 | K36: =IF(ISERROR(+I36+'App.2-CH_NewCGAAP_DepExp_2013'!O36-J36), 0, +I36+'App.2-CH_NewCGAAP_DepExp_2013'!O36-J36) -> 12017.34783
A37: 1915 | B37: Office Furniture & Equipment (10 years) | C37: =+'App.2-BA_Fixed Asset Cont'!E345 -> 2798 | D37: =+'App.2-CH_NewCGAAP_DepExp_2013'!F37 -> 10 | E37: 0.1 | F37: =IF(D37=0,+'App.2-CH_NewCGAAP_DepExp_2013'!O37,+'App.2-CH_NewCGAAP_DepExp_2013'!O37+((C37*0.5)/D37)) -> 17083.0746 | G37: =-'App.2-BA_Fixed Asset Cont'!J345 -> 15390 | H37: 1693.074603 | I37: 279.8 | J37: 1693 | K37: =IF(ISERROR(+I37+'App.2-CH_NewCGAAP_DepExp_2013'!O37-J37), 0, +I37+'App.2-CH_NewCGAAP_DepExp_2013'!O37-J37) -> 15529.9746
A38: 1915 | B38: Office Furniture & Equipment (5 years) | C38: =+'App.2-BA_Fixed Asset Cont'!E346 -> 0 | D38: =+'App.2-CH_NewCGAAP_DepExp_2013'!F38 -> 0 | E38: 0 | F38: =IF(D38=0,+'App.2-CH_NewCGAAP_DepExp_2013'!O38,+'App.2-CH_NewCGAAP_DepExp_2013'!O38+((C38*0.5)/D38)) -> 0 | G38: =-'App.2-BA_Fixed Asset Cont'!J346 -> 0 | H38: 0 | I38: 0 | K38: =IF(ISERROR(+I38+'App.2-CH_NewCGAAP_DepExp_2013'!O38-J38), 0, +I38+'App.2-CH_NewCGAAP_DepExp_2013'!O38-J38) -> 0
A39: 1920 | B39: Computer Equipment - Hardware | C39: =+'App.2-BA_Fixed Asset Cont'!E347 -> 98237 | D39: =+'App.2-CH_NewCGAAP_DepExp_2013'!F39 -> 5 | E39: 0.2 | F39: =IF(D39=0,+'App.2-CH_NewCGAAP_DepExp_2013'!O39,+'App.2-CH_NewCGAAP_DepExp_2013'!O39+((C39*0.5)/D39)) -> 86061.46092 | G39: =-'App.2-BA_Fixed Asset Cont'!J347 -> 74948 | H39: 11113.46092 | I39: 19647.4 | J39: 11113 | K39: =IF(ISERROR(+I39+'App.2-CH_NewCGAAP_DepExp_2013'!O39-J39), 0, +I39+'App.2-CH_NewCGAAP_DepExp_2013'!O39-J39) -> 84772.16092
A40: 1920 | B40: Computer Equip.-Hardware(Post Mar. 22/04) | C40: =+'App.2-BA_Fixed Asset Cont'!E348 -> 0 | D40: =+'App.2-CH_NewCGAAP_DepExp_2013'!F40 -> 0 | E40: 0 | F40: =IF(D40=0,+'App.2-CH_NewCGAAP_DepExp_2013'!O40,+'App.2-CH_NewCGAAP_DepExp_2013'!O40+((C40*0.5)/D40)) -> 0 | G40: =-'App.2-BA_Fixed Asset Cont'!J348 -> 0 | H40: 0 | I40: 0 | K40: =IF(ISERROR(+I40+'App.2-CH_NewCGAAP_DepExp_2013'!O40-J40), 0, +I40+'App.2-CH_NewCGAAP_DepExp_2013'!O40-J40) -> 0
A41: 1920 | B41: Computer Equip.-Hardware(Post Mar. 19/07) | C41: =+'App.2-BA_Fixed Asset Cont'!E349 -> 0 | D41: =+'App.2-CH_NewCGAAP_DepExp_2013'!F41 -> 0 | E41: 0 | F41: =IF(D41=0,+'App.2-CH_NewCGAAP_DepExp_2013'!O41,+'App.2-CH_NewCGAAP_DepExp_2013'!O41+((C41*0.5)/D41)) -> 0 | G41: =-'App.2-BA_Fixed Asset Cont'!J349 -> 0 | H41: 0 | I41: 0 | K41: =IF(ISERROR(+I41+'App.2-CH_NewCGAAP_DepExp_2013'!O41-J41), 0, +I41+'App.2-CH_NewCGAAP_DepExp_2013'!O41-J41) -> 0
A42: 1930 | B42: Transportation Equipment | C42: 461162.16 | D42: 12 | E42: 0.08333333333 | F42: =IF(D42=0,+'App.2-CH_NewCGAAP_DepExp_2013'!O42,+'App.2-CH_NewCGAAP_DepExp_2013'!O42+((C42*0.5)/D42)) -> 50896.34 | G42: 63540.16 | H42: -12643.82 | I42: 38430.18 | K42: =IF(ISERROR(+I42+'App.2-CH_NewCGAAP_DepExp_2013'!O42-J42), 0, +I42+'App.2-CH_NewCGAAP_DepExp_2013'!O42-J42) -> 70111.43
A43: 1930 | B43: Transportation Equipment | C43: 79211.3 | D43: 8 | E43: 0.125 | F43: =IF(D43=0,+'App.2-CH_NewCGAAP_DepExp_2013'!O43,+'App.2-CH_NewCGAAP_DepExp_2013'!O43+((C43*0.5)/D43)) -> 63531.19714 | G43: 50897.08 | H43: =IF(ISERROR(+F43-G43), 0, +F43-G43) -> 12634.11714 | I43: =IF(D43=0,0,+(C43)/D43) -> 9901.4125 | K43: =IF(ISERROR(+I43+'App.2-CH_NewCGAAP_DepExp_2013'!O43-J43), 0, +I43+'App.2-CH_NewCGAAP_DepExp_2013'!O43-J43) -> 68481.90339
A44: 1935 | B44: Stores Equipment | C44: =+'App.2-BA_Fixed Asset Cont'!E351 -> 0 | D44: =+'App.2-CH_NewCGAAP_DepExp_2013'!F44 -> 12 | E44: 0.08333333333 | F44: =IF(D44=0,+'App.2-CH_NewCGAAP_DepExp_2013'!O44,+'App.2-CH_NewCGAAP_DepExp_2013'!O44+((C44*0.5)/D44)) -> 7368.462762 | G44: =-'App.2-BA_Fixed Asset Cont'!J351 -> 7370 | H44: -1.537238095 | I44: 0 | K44: =IF(ISERROR(+I44+'App.2-CH_NewCGAAP_DepExp_2013'!O44-J44), 0, +I44+'App.2-CH_NewCGAAP_DepExp_2013'!O44-J44) -> 7368.462762
A45: 1940 | B45: Tools, Shop & Garage Equipment | C45: =+'App.2-BA_Fixed Asset Cont'!E352 -> 15446 | D45: =+'App.2-CH_NewCGAAP_DepExp_2013'!F45 -> 10 | E45: 0.1 | F45: =IF(D45=0,+'App.2-CH_NewCGAAP_DepExp_2013'!O45,+'App.2-CH_NewCGAAP_DepExp_2013'!O45+((C45*0.5)/D45)) -> 8711.259494 | G45: =-'App.2-BA_Fixed Asset Cont'!J352 -> 6916 | H45: 1795.259494 | I45: 1544.6 | K45: =IF(ISERROR(+I45+'App.2-CH_NewCGAAP_DepExp_2013'!O45-J45), 0, +I45+'App.2-CH_NewCGAAP_DepExp_2013'!O45-J45) -> 9483.559494
A46: 1945 | B46: Measurement & Testing Equipment | C46: =+'App.2-BA_Fixed Asset Cont'!E353 -> 0 | D46: =+'App.2-CH_NewCGAAP_DepExp_2013'!F46 -> 10 | E46: 0.1 | F46: =IF(D46=0,+'App.2-CH_NewCGAAP_DepExp_2013'!O46,+'App.2-CH_NewCGAAP_DepExp_2013'!O46+((C46*0.5)/D46)) -> 9473.808478 | G46: =-'App.2-BA_Fixed Asset Cont'!J353 -> 9476 | H46: -2.191521961 | I46: 0 | K46: =IF(ISERROR(+I46+'App.2-CH_NewCGAAP_DepExp_2013'!O46-J46), 0, +I46+'App.2-CH_NewCGAAP_DepExp_2013'!O46-J46) -> 9473.808478
A47: 1950 | B47: Power Operated Equipment | C47: =+'App.2-BA_Fixed Asset Cont'!E354 -> 0 | D47: =+'App.2-CH_NewCGAAP_DepExp_2013'!F47 -> 0 | E47: 0 | F47: =IF(D47=0,+'App.2-CH_NewCGAAP_DepExp_2013'!O47,+'App.2-CH_NewCGAAP_DepExp_2013'!O47+((C47*0.5)/D47)) -> 0 | G47: =-'App.2-BA_Fixed Asset Cont'!J354 -> 0 | H47: 0 | I47: 0 | K47: =IF(ISERROR(+I47+'App.2-CH_NewCGAAP_DepExp_2013'!O47-J47), 0, +I47+'App.2-CH_NewCGAAP_DepExp_2013'!O47-J47) -> 0
A48: 1955 | B48: Communications Equipment | C48: =+'App.2-BA_Fixed Asset Cont'!E355 -> 28833 | D48: =+'App.2-CH_NewCGAAP_DepExp_2013'!F48 -> 10 | E48: 0.1 | F48: =IF(D48=0,+'App.2-CH_NewCGAAP_DepExp_2013'!O48,+'App.2-CH_NewCGAAP_DepExp_2013'!O48+((C48*0.5)/D48)) -> 12471.07406 | G48: =-'App.2-BA_Fixed Asset Cont'!J355 -> 12203 | H48: 268.0740575 | I48: 2883.3 | J48: 268 | K48: =IF(ISERROR(+I48+'App.2-CH_NewCGAAP_DepExp_2013'!O48-J48), 0, +I48+'App.2-CH_NewCGAAP_DepExp_2013'!O48-J48) -> 13644.72406
A49: 1955 | B49: Communication Equipment (Smart Meters) | C49: =+'App.2-BA_Fixed Asset Cont'!E356 -> 0 | D49: =+'App.2-CH_NewCGAAP_DepExp_2013'!F49 -> 0 | E49: 0 | F49: =IF(D49=0,+'App.2-CH_NewCGAAP_DepExp_2013'!O49,+'App.2-CH_NewCGAAP_DepExp_2013'!O49+((C49*0.5)/D49)) -> 0 | G49: =-'App.2-BA_Fixed Asset Cont'!J356 -> 0 | H49: 0 | I49: 0 | K49: =IF(ISERROR(+I49+'App.2-CH_NewCGAAP_DepExp_2013'!O49-J49), 0, +I49+'App.2-CH_NewCGAAP_DepExp_2013'!O49-J49) -> 0
A50: 1960 | B50: Miscellaneous Equipment | C50: =+'App.2-BA_Fixed Asset Cont'!E357 -> 0 | D50: =+'App.2-CH_NewCGAAP_DepExp_2013'!F50 -> 0 | E50: 0 | F50: =IF(D50=0,+'App.2-CH_NewCGAAP_DepExp_2013'!O50,+'App.2-CH_NewCGAAP_DepExp_2013'!O50+((C50*0.5)/D50)) -> 0 | G50: =-'App.2-BA_Fixed Asset Cont'!J357 -> 0 | H50: 0 | I50: 0 | K50: =IF(ISERROR(+I50+'App.2-CH_NewCGAAP_DepExp_2013'!O50-J50), 0, +I50+'App.2-CH_NewCGAAP_DepExp_2013'!O50-J50) -> 0
A51: 1970 | B51: Load Management Controls - Customer Premises | C51: =+'App.2-BA_Fixed Asset Cont'!E358 -> 0 | D51: =+'App.2-CH_NewCGAAP_DepExp_2013'!F51 -> 0 | E51: 0 | F51: =IF(D51=0,+'App.2-CH_NewCGAAP_DepExp_2013'!O51,+'App.2-CH_NewCGAAP_DepExp_2013'!O51+((C51*0.5)/D51)) -> 0 | G51: =-'App.2-BA_Fixed Asset Cont'!J358 -> 0 | H51: 0 | I51: 0 | K51: =IF(ISERROR(+I51+'App.2-CH_NewCGAAP_DepExp_2013'!O51-J51), 0, +I51+'App.2-CH_NewCGAAP_DepExp_2013'!O51-J51) -> 0
A52: 1975 | B52: Load Management Controls Utility Premises | C52: =+'App.2-BA_Fixed Asset Cont'!E359 -> 0 | D52: =+'App.2-CH_NewCGAAP_DepExp_2013'!F52 -> 0 | E52: 0 | F52: =IF(D52=0,+'App.2-CH_NewCGAAP_DepExp_2013'!O52,+'App.2-CH_NewCGAAP_DepExp_2013'!O52+((C52*0.5)/D52)) -> 0 | G52: =-'App.2-BA_Fixed Asset Cont'!J359 -> 0 | H52: 0 | I52: 0 | K52: =IF(ISERROR(+I52+'App.2-CH_NewCGAAP_DepExp_2013'!O52-J52), 0, +I52+'App.2-CH_NewCGAAP_DepExp_2013'!O52-J52) -> 0
A53: 1980 | B53: System Supervisor Equipment | C53: =+'App.2-BA_Fixed Asset Cont'!E360 -> 27973 | D53: =+'App.2-CH_NewCGAAP_DepExp_2013'!F53 -> 15 | E53: 0.06666666667 | F53: =IF(D53=0,+'App.2-CH_NewCGAAP_DepExp_2013'!O53,+'App.2-CH_NewCGAAP_DepExp_2013'!O53+((C53*0.5)/D53)) -> 4442.7 | G53: =-'App.2-BA_Fixed Asset Cont'!J360 -> 4441 | H53: 1.7 | I53: 1864.866667 | K53: =IF(ISERROR(+I53+'App.2-CH_NewCGAAP_DepExp_2013'!O53-J53), 0, +I53+'App.2-CH_NewCGAAP_DepExp_2013'!O53-J53) -> 5375.133333
A54: 1985 | B54: Miscellaneous Fixed Assets | C54: =+'App.2-BA_Fixed Asset Cont'!E361 -> 0 | D54: =+'App.2-CH_NewCGAAP_DepExp_2013'!F54 -> 0 | E54: 0 | F54: =IF(D54=0,+'App.2-CH_NewCGAAP_DepExp_2013'!O54,+'App.2-CH_NewCGAAP_DepExp_2013'!O54+((C54*0.5)/D54)) -> 0 | G54: =-'App.2-BA_Fixed Asset Cont'!J361 -> 0 | H54: 0 | I54: 0 | K54: =IF(ISERROR(+I54+'App.2-CH_NewCGAAP_DepExp_2013'!O54-J54), 0, +I54+'App.2-CH_NewCGAAP_DepExp_2013'!O54-J54) -> 0
A55: 1990 | B55: Other Tangible Property | C55: =+'App.2-BA_Fixed Asset Cont'!E362 -> 0 | D55: =+'App.2-CH_NewCGAAP_DepExp_2013'!F55 -> 10 | E55: 0.1 | F55: =IF(D55=0,+'App.2-CH_NewCGAAP_DepExp_2013'!O55,+'App.2-CH_NewCGAAP_DepExp_2013'!O55+((C55*0.5)/D55)) -> 13293.99174 | G55: =-'App.2-BA_Fixed Asset Cont'!J362 -> 13301 | H55: -7.008264463 | I55: 0 | K55: =IF(ISERROR(+I55+'App.2-CH_NewCGAAP_DepExp_2013'!O55-J55), 0, +I55+'App.2-CH_NewCGAAP_DepExp_2013'!O55-J55) -> 13293.99174
A56: 1995 | B56: Contributions & Grants | C56: =+'App.2-BA_Fixed Asset Cont'!E363 -> -4855575 | D56: =+'App.2-CH_NewCGAAP_DepExp_2013'!F56 -> 42.5 | E56: =IF(D56=0,0,1/D56) -> 0.02352941176 | F56: =IF(D56=0,+'App.2-CH_NewCGAAP_DepExp_2013'!O56,+'App.2-CH_NewCGAAP_DepExp_2013'!O56+((C56*0.5)/D56)) -> -1023893.8 | G56: =-'App.2-BA_Fixed Asset Cont'!J363 -> -1028778 | H56: 4884.200129 | I56: -114248.8235 | K56: =IF(ISERROR(+I56+'App.2-CH_NewCGAAP_DepExp_2013'!O56-J56), 0, +I56+'App.2-CH_NewCGAAP_DepExp_2013'!O56-J56) -> -1081018.212
B57: Total | C57: =SUM(C17:C56) -> 10390891.46 | F57: =SUM(F17:F56) -> 2671490.138 | G57: 2625983.24 | H57: 45506.8982 | I57: 255556.8023 | J57: 38798.87 | K57: 2760469.669
B58: Depreciation exp. adj. from gain or loss on the retirement of assets (pool of like assets)
B59: Total Depreciation Expense | F59: =SUM(F57:F58) -> 2671490.138
A61: Notes:
A62: 1 | B62: Board policy of the "half-year" rule - the applicant must ensure that additions in the year attract a half-year depreciation expense in the first year. Deviations from this standard practice must be supported in the application.
A63: 2 | B63: The applicant must provide an explanation of material variances in evidence.
A64: 3 | B64: This column refers to the calculated full year depreciation but excludes the depreciation expense on assets fully depreciated during the year. This column is used for the purpose of calculating depreciation expense in the following year on the next worksheet.
A66: General: | B66: Applicants must provide a breakdown of depreciation and amortization expense in the above format for all relevant accounts. Asset Retirement Obligations (AROs), depreciation and accretion expense should be disclosed separately consistent with the Notes of historical Audited Financial Statements.

Sheet App.2-CJ MIFRS_DepExp_2015
G1: File Number: | H1: =EBNUMBER -> EB-2015-0089
G2: Exhibit: | H2: 4
G3: Tab:
G4: Schedule: | H4: Table 4-46
G5: Page: | H5: 72
G7: Date: | H7: Aug 28, 2015
A9: Appendix 2-CJ
A10: Depreciation and Amortization Expense
A11: Assumes the applicant made capitalization and depreciation expense accounting policy changes under CGAAP effective January 1, 2013 and has adopted IFRS for financial reporting purposes effective January 1, 2015.
D13: 2015 | E13: MIFRS
A15: Account | B15: Description | C15: Additions | D15: Years (new additions only) | E15: Depreciation Rate on New Additions | F15: 2015 Depreciation Expense 1 | G15: 2015 Depreciation Expense per Appendix 2-BA Fixed Assets, Column J (l) | H15: Variance 2 | I15: Depreciation Expense on 2015 Full Year Additions | J15: Less Depreciation Expense on Assets Fully Depreciated during the year (o) | K15: 2015 Full Year Depreciation 3
C16: (d) | D16: (f) | E16: (g) = 1 / (f) | F16: (h)=2014 Full Year Depreciation + ((d)*0.5)/(f) | H16: (m) = (h) - (l) | I16: (n)=((d))/(f) | K16: (p) = 2014 Full Year Depreciation + (n) - (o)
A17: 1609 | B17: Capital Contributions Paid | C17: =+'App.2-BA_Fixed Asset Cont'!E449 -> 0 | D17: =+'App.2-CI_MIFRS_DepExp_2014'!D17 -> 40 | E17: =IF(D17=0,0,1/D17) -> 0.025 | F17: =IF(D17=0,'App.2-CI_MIFRS_DepExp_2014'!K17,+'App.2-CI_MIFRS_DepExp_2014'!K17+((C17*0.5)/D17)) -> 3058.725 | G17: =-'App.2-BA_Fixed Asset Cont'!J449 -> 3059 | H17: =IF(ISERROR(+F17-G17), 0, +F17-G17) -> -0.275 | I17: =IF(D17=0,0,+(C17)/D17) -> 0 | K17: =IF(ISERROR(+I17+'App.2-CI_MIFRS_DepExp_2014'!K17-J17), 0, +I17+'App.2-CI_MIFRS_DepExp_2014'!K17-J17) -> 3058.725
A18: 1611 | B18: Computer Software (Formally known as Account 1925) | C18: =+'App.2-BA_Fixed Asset Cont'!E450 -> 174000 | D18: =+'App.2-CI_MIFRS_DepExp_2014'!D18 -> 5 | E18: =IF(D18=0,0,1/D18) -> 0.2 | F18: =IF(D18=0,'App.2-CI_MIFRS_DepExp_2014'!K18,+'App.2-CI_MIFRS_DepExp_2014'!K18+((C18*0.5)/D18)) -> 141107.1751 | G18: =-'App.2-BA_Fixed Asset Cont'!J450 -> 129001 | H18: =IF(ISERROR(+F18-G18), 0, +F18-G18) -> 12106.17513 | I18: =IF(D18=0,0,+(C18)/D18) -> 34800 | J18: 12106 | K18: =IF(ISERROR(+I18+'App.2-CI_MIFRS_DepExp_2014'!K18-J18), 0, +I18+'App.2-CI_MIFRS_DepExp_2014'!K18-J18) -> 146401.1751
A19: 1612 | B19: Land Rights (Formally known as Account 1906) | C19: =+'App.2-BA_Fixed Asset Cont'!E451 -> 0 | D19: =+'App.2-CI_MIFRS_DepExp_2014'!D19 -> 0 | E19: 0 | F19: =IF(D19=0,'App.2-CI_MIFRS_DepExp_2014'!K19,+'App.2-CI_MIFRS_DepExp_2014'!K19+((C19*0.5)/D19)) -> 0 | G19: =-'App.2-BA_Fixed Asset Cont'!J451 -> 0 | H19: 0 | I19: =IF(D19=0,0,+(C19)/D19) -> 0 | K19: =IF(ISERROR(+I19+'App.2-CI_MIFRS_DepExp_2014'!K19-J19), 0, +I19+'App.2-CI_MIFRS_DepExp_2014'!K19-J19) -> 0
A20: 1805 | B20: Land | C20: =+'App.2-BA_Fixed Asset Cont'!E452 -> 0 | D20: =+'App.2-CI_MIFRS_DepExp_2014'!D20 -> 0 | E20: 0 | F20: =IF(D20=0,'App.2-CI_MIFRS_DepExp_2014'!K20,+'App.2-CI_MIFRS_DepExp_2014'!K20+((C20*0.5)/D20)) -> 0 | G20: =-'App.2-BA_Fixed Asset Cont'!J452 -> 0 | H20: 0 | I20: 0 | K20: =IF(ISERROR(+I20+'App.2-CI_MIFRS_DepExp_2014'!K20-J20), 0, +I20+'App.2-CI_MIFRS_DepExp_2014'!K20-J20) -> 0
A21: 1808 | B21: Buildings | C21: =+'App.2-BA_Fixed Asset Cont'!E453 -> 0 | D21: =+'App.2-CI_MIFRS_DepExp_2014'!D21 -> 0 | E21: 0 | F21: =IF(D21=0,'App.2-CI_MIFRS_DepExp_2014'!K21,+'App.2-CI_MIFRS_DepExp_2014'!K21+((C21*0.5)/D21)) -> 0 | G21: =-'App.2-BA_Fixed Asset Cont'!J453 -> 0 | H21: 0 | I21: 0 | K21: =IF(ISERROR(+I21+'App.2-CI_MIFRS_DepExp_2014'!K21-J21), 0, +I21+'App.2-CI_MIFRS_DepExp_2014'!K21-J21) -> 0
A22: 1810 | B22: Leasehold Improvements | C22: =+'App.2-BA_Fixed Asset Cont'!E454 -> 0 | D22: =+'App.2-CI_MIFRS_DepExp_2014'!D22 -> 0 | E22: 0 | F22: =IF(D22=0,'App.2-CI_MIFRS_DepExp_2014'!K22,+'App.2-CI_MIFRS_DepExp_2014'!K22+((C22*0.5)/D22)) -> 0 | G22: =-'App.2-BA_Fixed Asset Cont'!J454 -> 0 | H22: 0 | I22: 0 | K22: =IF(ISERROR(+I22+'App.2-CI_MIFRS_DepExp_2014'!K22-J22), 0, +I22+'App.2-CI_MIFRS_DepExp_2014'!K22-J22) -> 0
A23: 1815 | B23: Transformer Station Equipment >50 kV | C23: =+'App.2-BA_Fixed Asset Cont'!E455 -> 0 | D23: =+'App.2-CI_MIFRS_DepExp_2014'!D23 -> 0 | E23: 0 | F23: =IF(D23=0,'App.2-CI_MIFRS_DepExp_2014'!K23,+'App.2-CI_MIFRS_DepExp_2014'!K23+((C23*0.5)/D23)) -> 0 | G23: =-'App.2-BA_Fixed Asset Cont'!J455 -> 0 | H23: 0 | I23: 0 | K23: =IF(ISERROR(+I23+'App.2-CI_MIFRS_DepExp_2014'!K23-J23), 0, +I23+'App.2-CI_MIFRS_DepExp_2014'!K23-J23) -> 0
A24: 1820 | B24: Distribution Station Equipment <50 kV | C24: =+'App.2-BA_Fixed Asset Cont'!E456 -> 0 | D24: =+'App.2-CI_MIFRS_DepExp_2014'!D24 -> 45 | E24: 0.02222222222 | F24: =IF(D24=0,'App.2-CI_MIFRS_DepExp_2014'!K24,+'App.2-CI_MIFRS_DepExp_2014'!K24+((C24*0.5)/D24)) -> 22995.83845 | G24: =-'App.2-BA_Fixed Asset Cont'!J456 -> 23011 | H24: -15.16155419 | I24: 0 | K24: =IF(ISERROR(+I24+'App.2-CI_MIFRS_DepExp_2014'!K24-J24), 0, +I24+'App.2-CI_MIFRS_DepExp_2014'!K24-J24) -> 22995.83845
A25: 1825 | B25: Storage Battery Equipment | C25: =+'App.2-BA_Fixed Asset Cont'!E457 -> 0 | D25: =+'App.2-CI_MIFRS_DepExp_2014'!D25 -> 0 | E25: 0 | F25: =IF(D25=0,'App.2-CI_MIFRS_DepExp_2014'!K25,+'App.2-CI_MIFRS_DepExp_2014'!K25+((C25*0.5)/D25)) -> 0 | G25: =-'App.2-BA_Fixed Asset Cont'!J457 -> 0 | H25: 0 | I25: 0 | K25: =IF(ISERROR(+I25+'App.2-CI_MIFRS_DepExp_2014'!K25-J25), 0, +I25+'App.2-CI_MIFRS_DepExp_2014'!K25-J25) -> 0
A26: 1830 | B26: Poles, Towers & Fixtures | C26: =+'App.2-BA_Fixed Asset Cont'!E458 -> 1753355 | D26: =+'App.2-CI_MIFRS_DepExp_2014'!D26 -> 45 | E26: 0.02222222222 | F26: =IF(D26=0,'App.2-CI_MIFRS_DepExp_2014'!K26,+'App.2-CI_MIFRS_DepExp_2014'!K26+((C26*0.5)/D26)) -> 522795.0538 | G26: =-'App.2-BA_Fixed Asset Cont'!J458 -> 462736 | H26: 60059.05377 | I26: 38963.44444 | K26: =IF(ISERROR(+I26+'App.2-CI_MIFRS_DepExp_2014'!K26-J26), 0, +I26+'App.2-CI_MIFRS_DepExp_2014'!K26-J26) -> 542276.776
A27: 1835 | B27: Overhead Conductors & Devices | C27: =+'App.2-BA_Fixed Asset Cont'!E459 -> 1464929 | D27: =+'App.2-CI_MIFRS_DepExp_2014'!D27 -> 45 | E27: 0.02222222222 | F27: =IF(D27=0,'App.2-CI_MIFRS_DepExp_2014'!K27,+'App.2-CI_MIFRS_DepExp_2014'!K27+((C27*0.5)/D27)) -> 326616.6877 | G27: =-'App.2-BA_Fixed Asset Cont'!J459 -> 386616 | H27: -59999.31234 | I27: 32553.97778 | K27: =IF(ISERROR(+I27+'App.2-CI_MIFRS_DepExp_2014'!K27-J27), 0, +I27+'App.2-CI_MIFRS_DepExp_2014'!K27-J27) -> 342893.6765
A28: 1840 | B28: Underground Conduit | C28: =+'App.2-BA_Fixed Asset Cont'!E460 -> 1743000 | D28: =+'App.2-CI_MIFRS_DepExp_2014'!D28 -> 40 | E28: 0.025 | F28: =IF(D28=0,'App.2-CI_MIFRS_DepExp_2014'!K28,+'App.2-CI_MIFRS_DepExp_2014'!K28+((C28*0.5)/D28)) -> 561938.3378 | G28: =-'App.2-BA_Fixed Asset Cont'!J460 -> 573327 | H28: -11388.66216 | I28: 43575 | K28: =IF(ISERROR(+I28+'App.2-CI_MIFRS_DepExp_2014'!K28-J28), 0, +I28+'App.2-CI_MIFRS_DepExp_2014'!K28-J28) -> 583725.8378
A29: 1845 | B29: Underground Conductors & Devices | C29: =+'App.2-BA_Fixed Asset Cont'!E461 -> 1136368 | D29: =+'App.2-CI_MIFRS_DepExp_2014'!D29 -> 40 | E29: 0.025 | F29: =IF(D29=0,'App.2-CI_MIFRS_DepExp_2014'!K29,+'App.2-CI_MIFRS_DepExp_2014'!K29+((C29*0.5)/D29)) -> 385160.2863 | G29: =-'App.2-BA_Fixed Asset Cont'!J461 -> 373787 | H29: 11373.28631 | I29: 28409.2 | K29: =IF(ISERROR(+I29+'App.2-CI_MIFRS_DepExp_2014'!K29-J29), 0, +I29+'App.2-CI_MIFRS_DepExp_2014'!K29-J29) -> 399364.8863
A30: 1850 | B30: Line Transformers | C30: =+'App.2-BA_Fixed Asset Cont'!E462 -> 1047645 | D30: =+'App.2-CI_MIFRS_DepExp_2014'!D30 -> 40 | E30: 0.025 | F30: =IF(D30=0,'App.2-CI_MIFRS_DepExp_2014'!K30,+'App.2-CI_MIFRS_DepExp_2014'!K30+((C30*0.5)/D30)) -> 718837.8602 | G30: =-'App.2-BA_Fixed Asset Cont'!J462 -> 714602 | H30: 4235.860205 | I30: 26191.125 | K30: =IF(ISERROR(+I30+'App.2-CI_MIFRS_DepExp_2014'!K30-J30), 0, +I30+'App.2-CI_MIFRS_DepExp_2014'!K30-J30) -> 731933.4227
A31: 1855 | B31: Services (Overhead & Underground) | C31: =+'App.2-BA_Fixed Asset Cont'!E463 -> 1009278 | D31: =+'App.2-CI_MIFRS_DepExp_2014'!D31 -> 40 | E31: 0.025 | F31: =IF(D31=0,'App.2-CI_MIFRS_DepExp_2014'!K31,+'App.2-CI_MIFRS_DepExp_2014'!K31+((C31*0.5)/D31)) -> 248426.3567 | G31: =-'App.2-BA_Fixed Asset Cont'!J463 -> 248426 | H31: 0.3566666667 | I31: 25231.95 | K31: =IF(ISERROR(+I31+'App.2-CI_MIFRS_DepExp_2014'!K31-J31), 0, +I31+'App.2-CI_MIFRS_DepExp_2014'!K31-J31) -> 261042.3317
A32: 1860 | B32: Meters | C32: =+'App.2-BA_Fixed Asset Cont'!E464 -> 0 | D32: =+'App.2-CI_MIFRS_DepExp_2014'!D32 -> 15 | E32: 0.06666666667 | F32: =IF(D32=0,'App.2-CI_MIFRS_DepExp_2014'!K32,+'App.2-CI_MIFRS_DepExp_2014'!K32+((C32*0.5)/D32)) -> 0 | G32: =-'App.2-BA_Fixed Asset Cont'!J464 -> 0 | H32: 0 | I32: 0 | K32: =IF(ISERROR(+I32+'App.2-CI_MIFRS_DepExp_2014'!K32-J32), 0, +I32+'App.2-CI_MIFRS_DepExp_2014'!K32-J32) -> 0
A33: 1860 | B33: Meters (Smart Meters) | C33: =+'App.2-BA_Fixed Asset Cont'!E465 -> 285365 | D33: =+'App.2-CI_MIFRS_DepExp_2014'!D33 -> 15 | E33: 0.06666666667 | F33: =IF(D33=0,'App.2-CI_MIFRS_DepExp_2014'!K33,+'App.2-CI_MIFRS_DepExp_2014'!K33+((C33*0.5)/D33)) -> 725373.5786 | G33: =-'App.2-BA_Fixed Asset Cont'!J465 -> 722424 | H33: 2949.578649 | I33: 19024.33333 | K33: =IF(ISERROR(+I33+'App.2-CI_MIFRS_DepExp_2014'!K33-J33), 0, +I33+'App.2-CI_MIFRS_DepExp_2014'!K33-J33) -> 734885.7453
A34: 1905 | B34: Land | C34: =+'App.2-BA_Fixed Asset Cont'!E466 -> 0 | D34: =+'App.2-CI_MIFRS_DepExp_2014'!D34 -> 0 | E34: 0 | F34: =IF(D34=0,'App.2-CI_MIFRS_DepExp_2014'!K34,+'App.2-CI_MIFRS_DepExp_2014'!K34+((C34*0.5)/D34)) -> 0 | G34: =-'App.2-BA_Fixed Asset Cont'!J466 -> 0 | H34: 0 | I34: 0 | K34: =IF(ISERROR(+I34+'App.2-CI_MIFRS_DepExp_2014'!K34-J34), 0, +I34+'App.2-CI_MIFRS_DepExp_2014'!K34-J34) -> 0
A35: 1908 | B35: Buildings & Fixtures | C35: =+'App.2-BA_Fixed Asset Cont'!E467 -> 10500000 | D35: 50 | E35: 0.02 | F35: =IF(D35=0,'App.2-CI_MIFRS_DepExp_2014'!K35,+'App.2-CI_MIFRS_DepExp_2014'!K35+((C35*0.5)/D35)) -> 105000 | G35: =-'App.2-BA_Fixed Asset Cont'!J467 -> 105000 | H35: 0 | I35: 210000 | K35: =IF(ISERROR(+I35+'App.2-CI_MIFRS_DepExp_2014'!K35-J35), 0, +I35+'App.2-CI_MIFRS_DepExp_2014'!K35-J35) -> 210000
A36: 1910 | B36: Leasehold Improvements | C36: =+'App.2-BA_Fixed Asset Cont'!E468 -> 0 | D36: =+'App.2-CI_MIFRS_DepExp_2014'!D36 -> 5 | E36: 0.2 | F36: =IF(D36=0,'App.2-CI_MIFRS_DepExp_2014'!K36,+'App.2-CI_MIFRS_DepExp_2014'!K36+((C36*0.5)/D36)) -> 12017.34783 | G36: =-'App.2-BA_Fixed Asset Cont'!J468 -> 0 | H36: 12017.34783 | I36: 0 | J36: 12017 | K36: =IF(ISERROR(+I36+'App.2-CI_MIFRS_DepExp_2014'!K36-J36), 0, +I36+'App.2-CI_MIFRS_DepExp_2014'!K36-J36) -> 0.347826087
A37: 1915 | B37: Office Furniture & Equipment (10 years) | C37: =+'App.2-BA_Fixed Asset Cont'!E469 -> 500000 | D37: =+'App.2-CI_MIFRS_DepExp_2014'!D37 -> 10 | E37: 0.1 | F37: =IF(D37=0,'App.2-CI_MIFRS_DepExp_2014'!K37,+'App.2-CI_MIFRS_DepExp_2014'!K37+((C37*0.5)/D37)) -> 40529.9746 | G37: =-'App.2-BA_Fixed Asset Cont'!J469 -> 40390 | H37: 139.9746032 | I37: 50000 | J37: 140 | K37: =IF(ISERROR(+I37+'App.2-CI_MIFRS_DepExp_2014'!K37-J37), 0, +I37+'App.2-CI_MIFRS_DepExp_2014'!K37-J37) -> 65389.9746
A38: 1915 | B38: Office Furniture & Equipment (5 years) | C38: =+'App.2-BA_Fixed Asset Cont'!E470 -> 0 | D38: =+'App.2-CI_MIFRS_DepExp_2014'!D38 -> 0 | E38: 0 | F38: =IF(D38=0,'App.2-CI_MIFRS_DepExp_2014'!K38,+'App.2-CI_MIFRS_DepExp_2014'!K38+((C38*0.5)/D38)) -> 0 | G38: =-'App.2-BA_Fixed Asset Cont'!J470 -> 0 | H38: 0 | I38: 0 | K38: =IF(ISERROR(+I38+'App.2-CI_MIFRS_DepExp_2014'!K38-J38), 0, +I38+'App.2-CI_MIFRS_DepExp_2014'!K38-J38) -> 0
A39: 1920 | B39: Computer Equipment - Hardware | C39: =+'App.2-BA_Fixed Asset Cont'!E471 -> 80000 | D39: =+'App.2-CI_MIFRS_DepExp_2014'!D39 -> 5 | E39: 0.2 | F39: =IF(D39=0,'App.2-CI_MIFRS_DepExp_2014'!K39,+'App.2-CI_MIFRS_DepExp_2014'!K39+((C39*0.5)/D39)) -> 92772.16092 | G39: =-'App.2-BA_Fixed Asset Cont'!J471 -> 84919 | H39: 7853.16092 | I39: 16000 | J39: 7854 | K39: =IF(ISERROR(+I39+'App.2-CI_MIFRS_DepExp_2014'!K39-J39), 0, +I39+'App.2-CI_MIFRS_DepExp_2014'!K39-J39) -> 92918.16092
A40: 1920 | B40: Computer Equip.-Hardware(Post Mar. 22/04) | C40: =+'App.2-BA_Fixed Asset Cont'!E472 -> 0 | D40: =+'App.2-CI_MIFRS_DepExp_2014'!D40 -> 0 | E40: 0 | F40: =IF(D40=0,'App.2-CI_MIFRS_DepExp_2014'!K40,+'App.2-CI_MIFRS_DepExp_2014'!K40+((C40*0.5)/D40)) -> 0 | G40: =-'App.2-BA_Fixed Asset Cont'!J472 -> 0 | H40: 0 | I40: 0 | K40: =IF(ISERROR(+I40+'App.2-CI_MIFRS_DepExp_2014'!K40-J40), 0, +I40+'App.2-CI_MIFRS_DepExp_2014'!K40-J40) -> 0
A41: 1920 | B41: Computer Equip.-Hardware(Post Mar. 19/07) | C41: =+'App.2-BA_Fixed Asset Cont'!E473 -> 0 | D41: =+'App.2-CI_MIFRS_DepExp_2014'!D41 -> 0 | E41: 0 | F41: =IF(D41=0,'App.2-CI_MIFRS_DepExp_2014'!K41,+'App.2-CI_MIFRS_DepExp_2014'!K41+((C41*0.5)/D41)) -> 0 | G41: =-'App.2-BA_Fixed Asset Cont'!J473 -> 0 | H41: 0 | I41: 0 | K41: =IF(ISERROR(+I41+'App.2-CI_MIFRS_DepExp_2014'!K41-J41), 0, +I41+'App.2-CI_MIFRS_DepExp_2014'!K41-J41) -> 0
A42: 1930 | B42: Transportation Equipment | C42: 500000 | D42: 12 | E42: 0.08333333333 | F42: =IF(D42=0,'App.2-CI_MIFRS_DepExp_2014'!K42,+'App.2-CI_MIFRS_DepExp_2014'!K42+((C42*0.5)/D42)) -> 90944.76333 | G42: 90942.5 | H42: 2.263333333 | I42: 41666.66667 | K42: =IF(ISERROR(+I42+'App.2-CI_MIFRS_DepExp_2014'!K42-J42), 0, +I42+'App.2-CI_MIFRS_DepExp_2014'!K42-J42) -> 111778.0967
A43: 1930 | B43: Transportation Equipment | C43: 30000 | D43: 8 | E43: =IF(D43=0,0,1/D43) -> 0.125 | F43: =IF(D43=0,'App.2-CI_MIFRS_DepExp_2014'!K43,+'App.2-CI_MIFRS_DepExp_2014'!K43+((C43*0.5)/D43)) -> 70356.90339 | G43: 70364 | H43: =IF(ISERROR(+F43-G43), 0, +F43-G43) -> -7.096614583 | I43: =IF(D43=0,0,+(C43)/D43) -> 3750 | K43: =IF(ISERROR(+I43+'App.2-CI_MIFRS_DepExp_2014'!K43-J43), 0, +I43+'App.2-CI_MIFRS_DepExp_2014'!K43-J43) -> 72231.90339
A44: 1935 | B44: Stores Equipment | C44: =+'App.2-BA_Fixed Asset Cont'!E475 -> 117032 | D44: =+'App.2-CI_MIFRS_DepExp_2014'!D44 -> 12 | E44: 0.08333333333 | F44: =IF(D44=0,'App.2-CI_MIFRS_DepExp_2014'!K44,+'App.2-CI_MIFRS_DepExp_2014'!K44+((C44*0.5)/D44)) -> 12244.7961 | G44: =-'App.2-BA_Fixed Asset Cont'!J475 -> 12246 | H44: -1.203904762 | I44: 9752.666667 | K44: =IF(ISERROR(+I44+'App.2-CI_MIFRS_DepExp_2014'!K44-J44), 0, +I44+'App.2-CI_MIFRS_DepExp_2014'!K44-J44) -> 17121.12943
A45: 1940 | B45: Tools, Shop & Garage Equipment | C45: =+'App.2-BA_Fixed Asset Cont'!E476 -> 9500 | D45: =+'App.2-CI_MIFRS_DepExp_2014'!D45 -> 10 | E45: 0.1 | F45: =IF(D45=0,'App.2-CI_MIFRS_DepExp_2014'!K45,+'App.2-CI_MIFRS_DepExp_2014'!K45+((C45*0.5)/D45)) -> 9958.559494 | G45: =-'App.2-BA_Fixed Asset Cont'!J476 -> 7794 | H45: 2164.559494 | I45: 950 | K45: =IF(ISERROR(+I45+'App.2-CI_MIFRS_DepExp_2014'!K45-J45), 0, +I45+'App.2-CI_MIFRS_DepExp_2014'!K45-J45) -> 10433.55949
A46: 1945 | B46: Measurement & Testing Equipment | C46: =+'App.2-BA_Fixed Asset Cont'!E477 -> 0 | D46: =+'App.2-CI_MIFRS_DepExp_2014'!D46 -> 10 | E46: 0.1 | F46: =IF(D46=0,'App.2-CI_MIFRS_DepExp_2014'!K46,+'App.2-CI_MIFRS_DepExp_2014'!K46+((C46*0.5)/D46)) -> 9473.808478 | G46: =-'App.2-BA_Fixed Asset Cont'!J477 -> 9476 | H46: -2.191521961 | I46: 0 | K46: =IF(ISERROR(+I46+'App.2-CI_MIFRS_DepExp_2014'!K46-J46), 0, +I46+'App.2-CI_MIFRS_DepExp_2014'!K46-J46) -> 9473.808478
A47: 1950 | B47: Power Operated Equipment | C47: =+'App.2-BA_Fixed Asset Cont'!E478 -> 0 | D47: =+'App.2-CI_MIFRS_DepExp_2014'!D47 -> 0 | E47: 0 | F47: =IF(D47=0,'App.2-CI_MIFRS_DepExp_2014'!K47,+'App.2-CI_MIFRS_DepExp_2014'!K47+((C47*0.5)/D47)) -> 0 | G47: =-'App.2-BA_Fixed Asset Cont'!J478 -> 0 | H47: 0 | I47: 0 | K47: =IF(ISERROR(+I47+'App.2-CI_MIFRS_DepExp_2014'!K47-J47), 0, +I47+'App.2-CI_MIFRS_DepExp_2014'!K47-J47) -> 0
A48: 1955 | B48: Communications Equipment | C48: =+'App.2-BA_Fixed Asset Cont'!E479 -> 1100000 | D48: =+'App.2-CI_MIFRS_DepExp_2014'!D48 -> 10 | E48: 0.1 | F48: =IF(D48=0,'App.2-CI_MIFRS_DepExp_2014'!K48,+'App.2-CI_MIFRS_DepExp_2014'!K48+((C48*0.5)/D48)) -> 68644.72406 | G48: =-'App.2-BA_Fixed Asset Cont'!J479 -> 66857 | H48: 1787.724057 | I48: 110000 | J48: 1788 | K48: =IF(ISERROR(+I48+'App.2-CI_MIFRS_DepExp_2014'!K48-J48), 0, +I48+'App.2-CI_MIFRS_DepExp_2014'!K48-J48) -> 121856.7241
A49: 1955 | B49: Communication Equipment (Smart Meters) | C49: =+'App.2-BA_Fixed Asset Cont'!E480 -> 0 | D49: =+'App.2-CI_MIFRS_DepExp_2014'!D49 -> 0 | E49: 0 | F49: =IF(D49=0,'App.2-CI_MIFRS_DepExp_2014'!K49,+'App.2-CI_MIFRS_DepExp_2014'!K49+((C49*0.5)/D49)) -> 0 | G49: =-'App.2-BA_Fixed Asset Cont'!J480 -> 0 | H49: 0 | I49: 0 | K49: =IF(ISERROR(+I49+'App.2-CI_MIFRS_DepExp_2014'!K49-J49), 0, +I49+'App.2-CI_MIFRS_DepExp_2014'!K49-J49) -> 0
A50: 1960 | B50: Miscellaneous Equipment | C50: =+'App.2-BA_Fixed Asset Cont'!E481 -> 0 | D50: =+'App.2-CI_MIFRS_DepExp_2014'!D50 -> 0 | E50: 0 | F50: =IF(D50=0,'App.2-CI_MIFRS_DepExp_2014'!K50,+'App.2-CI_MIFRS_DepExp_2014'!K50+((C50*0.5)/D50)) -> 0 | G50: =-'App.2-BA_Fixed Asset Cont'!J481 -> 0 | H50: 0 | I50: 0 | K50: =IF(ISERROR(+I50+'App.2-CI_MIFRS_DepExp_2014'!K50-J50), 0, +I50+'App.2-CI_MIFRS_DepExp_2014'!K50-J50) -> 0
A51: 1970 | B51: Load Management Controls - Customer Premises | C51: =+'App.2-BA_Fixed Asset Cont'!E482 -> 0 | D51: =+'App.2-CI_MIFRS_DepExp_2014'!D51 -> 0 | E51: 0 | F51: =IF(D51=0,'App.2-CI_MIFRS_DepExp_2014'!K51,+'App.2-CI_MIFRS_DepExp_2014'!K51+((C51*0.5)/D51)) -> 0 | G51: =-'App.2-BA_Fixed Asset Cont'!J482 -> 0 | H51: 0 | I51: 0 | K51: =IF(ISERROR(+I51+'App.2-CI_MIFRS_DepExp_2014'!K51-J51), 0, +I51+'App.2-CI_MIFRS_DepExp_2014'!K51-J51) -> 0
A52: 1975 | B52: Load Management Controls Utility Premises | C52: =+'App.2-BA_Fixed Asset Cont'!E483 -> 0 | D52: =+'App.2-CI_MIFRS_DepExp_2014'!D52 -> 0 | E52: 0 | F52: =IF(D52=0,'App.2-CI_MIFRS_DepExp_2014'!K52,+'App.2-CI_MIFRS_DepExp_2014'!K52+((C52*0.5)/D52)) -> 0 | G52: =-'App.2-BA_Fixed Asset Cont'!J483 -> 0 | H52: 0 | I52: 0 | K52: =IF(ISERROR(+I52+'App.2-CI_MIFRS_DepExp_2014'!K52-J52), 0, +I52+'App.2-CI_MIFRS_DepExp_2014'!K52-J52) -> 0
A53: 1980 | B53: System Supervisor Equipment | C53: =+'App.2-BA_Fixed Asset Cont'!E484 -> 270000 | D53: =+'App.2-CI_MIFRS_DepExp_2014'!D53 -> 15 | E53: 0.06666666667 | F53: =IF(D53=0,'App.2-CI_MIFRS_DepExp_2014'!K53,+'App.2-CI_MIFRS_DepExp_2014'!K53+((C53*0.5)/D53)) -> 14375.13333 | G53: =-'App.2-BA_Fixed Asset Cont'!J484 -> 14375 | H53: 0.1333333333 | I53: 18000 | K53: =IF(ISERROR(+I53+'App.2-CI_MIFRS_DepExp_2014'!K53-J53), 0, +I53+'App.2-CI_MIFRS_DepExp_2014'!K53-J53) -> 23375.13333
A54: 1985 | B54: Miscellaneous Fixed Assets | C54: =+'App.2-BA_Fixed Asset Cont'!E485 -> 0 | D54: =+'App.2-CI_MIFRS_DepExp_2014'!D54 -> 0 | E54: 0 | F54: =IF(D54=0,'App.2-CI_MIFRS_DepExp_2014'!K54,+'App.2-CI_MIFRS_DepExp_2014'!K54+((C54*0.5)/D54)) -> 0 | G54: =-'App.2-BA_Fixed Asset Cont'!J485 -> 0 | H54: 0 | I54: 0 | K54: =IF(ISERROR(+I54+'App.2-CI_MIFRS_DepExp_2014'!K54-J54), 0, +I54+'App.2-CI_MIFRS_DepExp_2014'!K54-J54) -> 0
A55: 1990 | B55: Other Tangible Property | C55: =+'App.2-BA_Fixed Asset Cont'!E486 -> 0 | D55: =+'App.2-CI_MIFRS_DepExp_2014'!D55 -> 10 | E55: 0.1 | F55: =IF(D55=0,'App.2-CI_MIFRS_DepExp_2014'!K55,+'App.2-CI_MIFRS_DepExp_2014'!K55+((C55*0.5)/D55)) -> 13293.99174 | G55: =-'App.2-BA_Fixed Asset Cont'!J486 -> 13301 | H55: -7.008264463 | I55: 0 | K55: =IF(ISERROR(+I55+'App.2-CI_MIFRS_DepExp_2014'!K55-J55), 0, +I55+'App.2-CI_MIFRS_DepExp_2014'!K55-J55) -> 13293.99174
A56: 2440 | B56: Deferred Revenue | C56: =+'App.2-BA_Fixed Asset Cont'!E488 -> -2773720 | D56: =+'App.2-CI_MIFRS_DepExp_2014'!D56 -> 42.5 | E56: 0.02352941176 | F56: =IF(D56=0,'App.2-CI_MIFRS_DepExp_2014'!K56,+'App.2-CI_MIFRS_DepExp_2014'!K56+((C56*0.5)/D56)) -> -1113650.212 | G56: =-'App.2-BA_Fixed Asset Cont'!J488 -> -1121371 | H56: 7720.788364 | I56: -65264 | K56: =IF(ISERROR(+I56+'App.2-CI_MIFRS_DepExp_2014'!K56-J56), 0, +I56+'App.2-CI_MIFRS_DepExp_2014'!K56-J56) -> -1146282.212
B57: Total | C57: =SUM(C17:C56) -> 18946752 | F57: =SUM(F17:F56) -> 3082271.851 | G57: 3031282.5 | H57: 50989.3513 | I57: 643604.3639 | J57: 33905 | K57: 3370169.033
B58: Depreciation exp. adj. from gain or loss on the retirement of assets (pool of like assets) | G58: =+'App.2-BA_Fixed Asset Cont'!J493 -> -3031284
B59: Total Depreciation expense to be included in the test year revenue requirement | F59: =SUM(F57:F58) -> 3082271.851
A60: Notes:
A61: 1 | B61: Board policy of the "half-year" rule - the applicant must ensure that additions in the year attract a half-year depreciation expense in the first year. Deviations from this standard practice must be supported in the application.
A62: 2 | B62: The applicant must provide an explanation of material variances in evidence.
A63: 3 | B63: This column refers to the calculated full year depreciation but excludes the depreciation expense on assets fully depreciated during the year. This column is used for the purpose of calculating depreciation expense in the following year on the next worksheet.
A66: General: | B66: Applicants must provide a breakdown of depreciation and amortization expense in the above format for all relevant accounts. Asset Retirement Obligations (AROs), depreciation and accretion expense should be disclosed separately consistent with the Notes of historical Audited Financial Statements.

Sheet App.2-CK MIFRS_DepExp_2016
G1: File Number: | H1: =EBNUMBER -> EB-2015-0089
G2: Exhibit: | H2: 4
G3: Tab:
G4: Schedule: | H4: Table 4-47
G5: Page: | H5: 73
G7: Date: | H7: Aug 28, 2015
A9: Appendix 2-CK
A10: Depreciation and Amortization Expense
A11: Assumes the applicant made capitalization and depreciation expense accounting policy changes under CGAAP effective January 1, 2013 and has adopted IFRS for financial reporting purposes effective January 1, 2015.
D13: 2016 | E13: MIFRS
A15: Account | B15: Description | C15: Additions | D15: Years (new additions only) | E15: Depreciation Rate on New Additions | F15: 2016 Depreciation Expense 1 | G15: 2016 Depreciation Expense per Appendix 2-BA Fixed Assets, Column J (l) | H15: Variance 2
C16: (d) | D16: (f) | E16: (g) = 1 / (f) | F16: (h)=2015 Full Year Depreciation + ((d)*0.5)/(f) | H16: (m) = (h) - (l)
A17: 1609 | B17: Capital Contributions Paid | C17: =+'App.2-BA_Fixed Asset Cont'!E511 -> 0 | D17: =+'App.2-CJ MIFRS_DepExp_2015'!D17 -> 40 | E17: =IF(D17=0,0,1/D17) -> 0.025 | F17: =IF(D17=0,'App.2-CJ MIFRS_DepExp_2015'!K17,+'App.2-CJ MIFRS_DepExp_2015'!K17+((C17*0.5)/D17)) -> 3058.725 | G17: =-'App.2-BA_Fixed Asset Cont'!J511 -> 3059 | H17: =IF(ISERROR(+F17-G17), 0, +F17-G17) -> -0.275
A18: 1611 | B18: Computer Software (Formally known as Account 1925) | C18: =+'App.2-BA_Fixed Asset Cont'!E512 -> 50000 | D18: =+'App.2-CJ MIFRS_DepExp_2015'!D18 -> 5 | E18: =IF(D18=0,0,1/D18) -> 0.2 | F18: =IF(D18=0,'App.2-CJ MIFRS_DepExp_2015'!K18,+'App.2-CJ MIFRS_DepExp_2015'!K18+((C18*0.5)/D18)) -> 151401.1751 | G18: =-'App.2-BA_Fixed Asset Cont'!J512 -> 151401 | H18: =IF(ISERROR(+F18-G18), 0, +F18-G18) -> 0.1751295337
A19: 1612 | B19: Land Rights (Formally known as Account 1906) | C19: =+'App.2-BA_Fixed Asset Cont'!E513 -> 0 | D19: =+'App.2-CJ MIFRS_DepExp_2015'!D19 -> 0 | E19: 0 | F19: =IF(D19=0,'App.2-CJ MIFRS_DepExp_2015'!K19,+'App.2-CJ MIFRS_DepExp_2015'!K19+((C19*0.5)/D19)) -> 0 | G19: =-'App.2-BA_Fixed Asset Cont'!J513 -> 0 | H19: 0
A20: 1805 | B20: Land | C20: =+'App.2-BA_Fixed Asset Cont'!E514 -> 0 | D20: =+'App.2-CJ MIFRS_DepExp_2015'!D20 -> 0 | E20: 0 | F20: =IF(D20=0,'App.2-CJ MIFRS_DepExp_2015'!K20,+'App.2-CJ MIFRS_DepExp_2015'!K20+((C20*0.5)/D20)) -> 0 | G20: =-'App.2-BA_Fixed Asset Cont'!J514 -> 0 | H20: 0
A21: 1808 | B21: Buildings | C21: =+'App.2-BA_Fixed Asset Cont'!E515 -> 0 | D21: =+'App.2-CJ MIFRS_DepExp_2015'!D21 -> 0 | E21: 0 | F21: =IF(D21=0,'App.2-CJ MIFRS_DepExp_2015'!K21,+'App.2-CJ MIFRS_DepExp_2015'!K21+((C21*0.5)/D21)) -> 0 | G21: =-'App.2-BA_Fixed Asset Cont'!J515 -> 0 | H21: 0
A22: 1810 | B22: Leasehold Improvements | C22: =+'App.2-BA_Fixed Asset Cont'!E516 -> 0 | D22: =+'App.2-CJ MIFRS_DepExp_2015'!D22 -> 0 | E22: 0 | F22: =IF(D22=0,'App.2-CJ MIFRS_DepExp_2015'!K22,+'App.2-CJ MIFRS_DepExp_2015'!K22+((C22*0.5)/D22)) -> 0 | G22: =-'App.2-BA_Fixed Asset Cont'!J516 -> 0 | H22: 0
A23: 1815 | B23: Transformer Station Equipment >50 kV | C23: =+'App.2-BA_Fixed Asset Cont'!E517 -> 0 | D23: =+'App.2-CJ MIFRS_DepExp_2015'!D23 -> 0 | E23: 0 | F23: =IF(D23=0,'App.2-CJ MIFRS_DepExp_2015'!K23,+'App.2-CJ MIFRS_DepExp_2015'!K23+((C23*0.5)/D23)) -> 0 | G23: =-'App.2-BA_Fixed Asset Cont'!J517 -> 0 | H23: 0
A24: 1820 | B24: Distribution Station Equipment <50 kV | C24: =+'App.2-BA_Fixed Asset Cont'!E518 -> 0 | D24: =+'App.2-CJ MIFRS_DepExp_2015'!D24 -> 45 | E24: 0.02222222222 | F24: =IF(D24=0,'App.2-CJ MIFRS_DepExp_2015'!K24,+'App.2-CJ MIFRS_DepExp_2015'!K24+((C24*0.5)/D24)) -> 22995.83845 | G24: =-'App.2-BA_Fixed Asset Cont'!J518 -> 23011 | H24: -15.16155419
A25: 1825 | B25: Storage Battery Equipment | C25: =+'App.2-BA_Fixed Asset Cont'!E519 -> 0 | D25: =+'App.2-CJ MIFRS_DepExp_2015'!D25 -> 0 | E25: 0 | F25: =IF(D25=0,'App.2-CJ MIFRS_DepExp_2015'!K25,+'App.2-CJ MIFRS_DepExp_2015'!K25+((C25*0.5)/D25)) -> 0 | G25: =-'App.2-BA_Fixed Asset Cont'!J519 -> 0 | H25: 0
A26: 1830 | B26: Poles, Towers & Fixtures | C26: =+'App.2-BA_Fixed Asset Cont'!E520 -> 2751157 | D26: =+'App.2-CJ MIFRS_DepExp_2015'!D26 -> 45 | E26: 0.02222222222 | F26: =IF(D26=0,'App.2-CJ MIFRS_DepExp_2015'!K26,+'App.2-CJ MIFRS_DepExp_2015'!K26+((C26*0.5)/D26)) -> 572845.1871 | G26: =-'App.2-BA_Fixed Asset Cont'!J520 -> 560803 | H26: 12042.18711
A27: 1835 | B27: Overhead Conductors & Devices | C27: =+'App.2-BA_Fixed Asset Cont'!E521 -> 1841290 | D27: =+'App.2-CJ MIFRS_DepExp_2015'!D27 -> 45 | E27: 0.02222222222 | F27: =IF(D27=0,'App.2-CJ MIFRS_DepExp_2015'!K27,+'App.2-CJ MIFRS_DepExp_2015'!K27+((C27*0.5)/D27)) -> 363352.4543 | G27: =-'App.2-BA_Fixed Asset Cont'!J521 -> 375334 | H27: -11981.54568
A28: 1840 | B28: Underground Conduit | C28: =+'App.2-BA_Fixed Asset Cont'!E522 -> 1802500 | D28: =+'App.2-CJ MIFRS_DepExp_2015'!D28 -> 40 | E28: 0.025 | F28: =IF(D28=0,'App.2-CJ MIFRS_DepExp_2015'!K28,+'App.2-CJ MIFRS_DepExp_2015'!K28+((C28*0.5)/D28)) -> 606257.0878 | G28: =-'App.2-BA_Fixed Asset Cont'!J522 -> 620884 | H28: -14626.91216
A29: 1845 | B29: Underground Conductors & Devices | C29: =+'App.2-BA_Fixed Asset Cont'!E523 -> 1159044 | D29: =+'App.2-CJ MIFRS_DepExp_2015'!D29 -> 40 | E29: 0.025 | F29: =IF(D29=0,'App.2-CJ MIFRS_DepExp_2015'!K29,+'App.2-CJ MIFRS_DepExp_2015'!K29+((C29*0.5)/D29)) -> 413852.9363 | G29: =-'App.2-BA_Fixed Asset Cont'!J523 -> 399241 | H29: 14611.93631
A30: 1850 | B30: Line Transformers | C30: =+'App.2-BA_Fixed Asset Cont'!E524 -> 1140920 | D30: =+'App.2-CJ MIFRS_DepExp_2015'!D30 -> 40 | E30: 0.025 | F30: =IF(D30=0,'App.2-CJ MIFRS_DepExp_2015'!K30,+'App.2-CJ MIFRS_DepExp_2015'!K30+((C30*0.5)/D30)) -> 746194.9227 | G30: =-'App.2-BA_Fixed Asset Cont'!J524 -> 741959 | H30: 4235.922705
A31: 1855 | B31: Services (Overhead & Underground) | C31: =+'App.2-BA_Fixed Asset Cont'!E525 -> 1090076 | D31: =+'App.2-CJ MIFRS_DepExp_2015'!D31 -> 40 | E31: 0.025 | F31: =IF(D31=0,'App.2-CJ MIFRS_DepExp_2015'!K31,+'App.2-CJ MIFRS_DepExp_2015'!K31+((C31*0.5)/D31)) -> 274668.2817 | G31: =-'App.2-BA_Fixed Asset Cont'!J525 -> 274668 | H31: 0.2816666667
A32: 1860 | B32: Meters | C32: =+'App.2-BA_Fixed Asset Cont'!E526 -> 0 | D32: =+'App.2-CJ MIFRS_DepExp_2015'!D32 -> 15 | E32: 0.06666666667 | F32: =IF(D32=0,'App.2-CJ MIFRS_DepExp_2015'!K32,+'App.2-CJ MIFRS_DepExp_2015'!K32+((C32*0.5)/D32)) -> 0 | G32: =-'App.2-BA_Fixed Asset Cont'!J526 -> 0 | H32: 0
A33: 1860 | B33: Meters (Smart Meters) | C33: =+'App.2-BA_Fixed Asset Cont'!E527 -> 293926 | D33: =+'App.2-CJ MIFRS_DepExp_2015'!D33 -> 15 | E33: 0.06666666667 | F33: =IF(D33=0,'App.2-CJ MIFRS_DepExp_2015'!K33,+'App.2-CJ MIFRS_DepExp_2015'!K33+((C33*0.5)/D33)) -> 744683.2786 | G33: =-'App.2-BA_Fixed Asset Cont'!J527 -> 741734 | H33: 2949.278649
A34: 1905 | B34: Land | C34: =+'App.2-BA_Fixed Asset Cont'!E528 -> 0 | D34: =+'App.2-CJ MIFRS_DepExp_2015'!D34 -> 0 | E34: 0 | F34: =IF(D34=0,'App.2-CJ MIFRS_DepExp_2015'!K34,+'App.2-CJ MIFRS_DepExp_2015'!K34+((C34*0.5)/D34)) -> 0 | G34: =-'App.2-BA_Fixed Asset Cont'!J528 -> 0 | H34: 0
A35: 1908 | B35: Buildings & Fixtures | C35: =+'App.2-BA_Fixed Asset Cont'!E529 -> 0 | D35: 50 | E35: 0.02 | F35: =IF(D35=0,'App.2-CJ MIFRS_DepExp_2015'!K35,+'App.2-CJ MIFRS_DepExp_2015'!K35+((C35*0.5)/D35)) -> 210000 | G35: =-'App.2-BA_Fixed Asset Cont'!J529 -> 210000 | H35: 0
A36: 1910 | B36: Leasehold Improvements | C36: =+'App.2-BA_Fixed Asset Cont'!E530 -> 0 | D36: =+'App.2-CJ MIFRS_DepExp_2015'!D36 -> 5 | E36: 0.2 | F36: =IF(D36=0,'App.2-CJ MIFRS_DepExp_2015'!K36,+'App.2-CJ MIFRS_DepExp_2015'!K36+((C36*0.5)/D36)) -> 0.347826087 | G36: =-'App.2-BA_Fixed Asset Cont'!J530 -> 0 | H36: 0.347826087
A37: 1915 | B37: Office Furniture & Equipment (10 years) | C37: =+'App.2-BA_Fixed Asset Cont'!E531 -> 0 | D37: =+'App.2-CJ MIFRS_DepExp_2015'!D37 -> 10 | E37: 0.1 | F37: =IF(D37=0,'App.2-CJ MIFRS_DepExp_2015'!K37,+'App.2-CJ MIFRS_DepExp_2015'!K37+((C37*0.5)/D37)) -> 65389.9746 | G37: =-'App.2-BA_Fixed Asset Cont'!J531 -> 65390 | H37: -0.0253968254
A38: 1915 | B38: Office Furniture & Equipment (5 years) | C38: =+'App.2-BA_Fixed Asset Cont'!E532 -> 0 | D38: =+'App.2-CJ MIFRS_DepExp_2015'!D38 -> 0 | E38: 0 | F38: =IF(D38=0,'App.2-CJ MIFRS_DepExp_2015'!K38,+'App.2-CJ MIFRS_DepExp_2015'!K38+((C38*0.5)/D38)) -> 0 | G38: =-'App.2-BA_Fixed Asset Cont'!J532 -> 0 | H38: 0
A39: 1920 | B39: Computer Equipment - Hardware | C39: =+'App.2-BA_Fixed Asset Cont'!E533 -> 83000 | D39: =+'App.2-CJ MIFRS_DepExp_2015'!D39 -> 5 | E39: 0.2 | F39: =IF(D39=0,'App.2-CJ MIFRS_DepExp_2015'!K39,+'App.2-CJ MIFRS_DepExp_2015'!K39+((C39*0.5)/D39)) -> 101218.1609 | G39: =-'App.2-BA_Fixed Asset Cont'!J533 -> 101219 | H39: -0.8390804598
A40: 1920 | B40: Computer Equip.-Hardware(Post Mar. 22/04) | C40: =+'App.2-BA_Fixed Asset Cont'!E534 -> 0 | D40: =+'App.2-CJ MIFRS_DepExp_2015'!D40 -> 0 | E40: 0 | F40: =IF(D40=0,'App.2-CJ MIFRS_DepExp_2015'!K40,+'App.2-CJ MIFRS_DepExp_2015'!K40+((C40*0.5)/D40)) -> 0 | G40: =-'App.2-BA_Fixed Asset Cont'!J534 -> 0 | H40: 0
A41: 1920 | B41: Computer Equip.-Hardware(Post Mar. 19/07) | C41: =+'App.2-BA_Fixed Asset Cont'!E535 -> 0 | D41: =+'App.2-CJ MIFRS_DepExp_2015'!D41 -> 0 | E41: 0 | F41: =IF(D41=0,'App.2-CJ MIFRS_DepExp_2015'!K41,+'App.2-CJ MIFRS_DepExp_2015'!K41+((C41*0.5)/D41)) -> 0 | G41: =-'App.2-BA_Fixed Asset Cont'!J535 -> 0 | H41: 0
A42: 1930 | B42: Transportation Equipment | C42: 325000 | D42: =+'App.2-CJ MIFRS_DepExp_2015'!D42 -> 12 | E42: 0.08333333333 | F42: =IF(D42=0,'App.2-CJ MIFRS_DepExp_2015'!K42,+'App.2-CJ MIFRS_DepExp_2015'!K42+((C42*0.5)/D42)) -> 125319.7633 | G42: =-'App.2-BA_Fixed Asset Cont'!J536 -> 205996 | H42: -80676.23667
A43: 1930 | B43: Transportation Equipment | C43: 185000 | D43: 8 | E43: 0.125 | F43: =IF(D43=0,'App.2-CJ MIFRS_DepExp_2015'!K43,+'App.2-CJ MIFRS_DepExp_2015'!K43+((C43*0.5)/D43)) -> 83794.40339 | H43: =IF(ISERROR(+F43-G43), 0, +F43-G43) -> 83794.40339
A44: 1935 | B44: Stores Equipment | C44: =+'App.2-BA_Fixed Asset Cont'!E537 -> 68000 | D44: =+'App.2-CJ MIFRS_DepExp_2015'!D44 -> 12 | E44: 0.08333333333 | F44: =IF(D44=0,'App.2-CJ MIFRS_DepExp_2015'!K44,+'App.2-CJ MIFRS_DepExp_2015'!K44+((C44*0.5)/D44)) -> 19954.46276 | G44: =-'App.2-BA_Fixed Asset Cont'!J537 -> 19956 | H44: -1.537238095
A45: 1940 | B45: Tools, Shop & Garage Equipment | C45: =+'App.2-BA_Fixed Asset Cont'!E538 -> 9500 | D45: =+'App.2-CJ MIFRS_DepExp_2015'!D45 -> 10 | E45: 0.1 | F45: =IF(D45=0,'App.2-CJ MIFRS_DepExp_2015'!K45,+'App.2-CJ MIFRS_DepExp_2015'!K45+((C45*0.5)/D45)) -> 10908.55949 | G45: =-'App.2-BA_Fixed Asset Cont'!J538 -> 8744 | H45: 2164.559494
A46: 1945 | B46: Measurement & Testing Equipment | C46: =+'App.2-BA_Fixed Asset Cont'!E539 -> 0 | D46: =+'App.2-CJ MIFRS_DepExp_2015'!D46 -> 10 | E46: 0.1 | F46: =IF(D46=0,'App.2-CJ MIFRS_DepExp_2015'!K46,+'App.2-CJ MIFRS_DepExp_2015'!K46+((C46*0.5)/D46)) -> 9473.808478 | G46: =-'App.2-BA_Fixed Asset Cont'!J539 -> 9476 | H46: -2.191521961
A47: 1950 | B47: Power Operated Equipment | C47: =+'App.2-BA_Fixed Asset Cont'!E540 -> 0 | D47: =+'App.2-CJ MIFRS_DepExp_2015'!D47 -> 0 | E47: 0 | F47: =IF(D47=0,'App.2-CJ MIFRS_DepExp_2015'!K47,+'App.2-CJ MIFRS_DepExp_2015'!K47+((C47*0.5)/D47)) -> 0 | G47: =-'App.2-BA_Fixed Asset Cont'!J540 -> 0 | H47: 0
A48: 1955 | B48: Communications Equipment | C48: =+'App.2-BA_Fixed Asset Cont'!E541 -> 830000 | D48: =+'App.2-CJ MIFRS_DepExp_2015'!D48 -> 10 | E48: 0.1 | F48: =IF(D48=0,'App.2-CJ MIFRS_DepExp_2015'!K48,+'App.2-CJ MIFRS_DepExp_2015'!K48+((C48*0.5)/D48)) -> 163356.7241 | G48: =-'App.2-BA_Fixed Asset Cont'!J541 -> 163357 | H48: -0.2759425494
A49: 1955 | B49: Communication Equipment (Smart Meters) | C49: =+'App.2-BA_Fixed Asset Cont'!E542 -> 0 | D49: =+'App.2-CJ MIFRS_DepExp_2015'!D49 -> 0 | E49: 0 | F49: =IF(D49=0,'App.2-CJ MIFRS_DepExp_2015'!K49,+'App.2-CJ MIFRS_DepExp_2015'!K49+((C49*0.5)/D49)) -> 0 | G49: =-'App.2-BA_Fixed Asset Cont'!J542 -> 0 | H49: 0
A50: 1960 | B50: Miscellaneous Equipment | C50: =+'App.2-BA_Fixed Asset Cont'!E543 -> 0 | D50: =+'App.2-CJ MIFRS_DepExp_2015'!D50 -> 0 | E50: 0 | F50: =IF(D50=0,'App.2-CJ MIFRS_DepExp_2015'!K50,+'App.2-CJ MIFRS_DepExp_2015'!K50+((C50*0.5)/D50)) -> 0 | G50: =-'App.2-BA_Fixed Asset Cont'!J543 -> 0 | H50: 0
A51: 1970 | B51: Load Management Controls - Customer Premises | C51: =+'App.2-BA_Fixed Asset Cont'!E544 -> 0 | D51: =+'App.2-CJ MIFRS_DepExp_2015'!D51 -> 0 | E51: 0 | F51: =IF(D51=0,'App.2-CJ MIFRS_DepExp_2015'!K51,+'App.2-CJ MIFRS_DepExp_2015'!K51+((C51*0.5)/D51)) -> 0 | G51: =-'App.2-BA_Fixed Asset Cont'!J544 -> 0 | H51: 0
A52: 1975 | B52: Load Management Controls Utility Premises | C52: =+'App.2-BA_Fixed Asset Cont'!E545 -> 0 | D52: =+'App.2-CJ MIFRS_DepExp_2015'!D52 -> 0 | E52: 0 | F52: =IF(D52=0,'App.2-CJ MIFRS_DepExp_2015'!K52,+'App.2-CJ MIFRS_DepExp_2015'!K52+((C52*0.5)/D52)) -> 0 | G52: =-'App.2-BA_Fixed Asset Cont'!J545 -> 0 | H52: 0
A53: 1980 | B53: System Supervisor Equipment | C53: =+'App.2-BA_Fixed Asset Cont'!E546 -> 0 | D53: =+'App.2-CJ MIFRS_DepExp_2015'!D53 -> 15 | E53: 0.06666666667 | F53: =IF(D53=0,'App.2-CJ MIFRS_DepExp_2015'!K53,+'App.2-CJ MIFRS_DepExp_2015'!K53+((C53*0.5)/D53)) -> 23375.13333 | G53: =-'App.2-BA_Fixed Asset Cont'!J546 -> 23375 | H53: 0.1333333333
A54: 1985 | B54: Miscellaneous Fixed Assets | C54: =+'App.2-BA_Fixed Asset Cont'!E547 -> 0 | D54: =+'App.2-CJ MIFRS_DepExp_2015'!D54 -> 0 | E54: 0 | F54: =IF(D54=0,'App.2-CJ MIFRS_DepExp_2015'!K54,+'App.2-CJ MIFRS_DepExp_2015'!K54+((C54*0.5)/D54)) -> 0 | G54: =-'App.2-BA_Fixed Asset Cont'!J547 -> 0 | H54: 0
A55: 1990 | B55: Other Tangible Property | C55: =+'App.2-BA_Fixed Asset Cont'!E548 -> 0 | D55: =+'App.2-CJ MIFRS_DepExp_2015'!D55 -> 10 | E55: 0.1 | F55: =IF(D55=0,'App.2-CJ MIFRS_DepExp_2015'!K55,+'App.2-CJ MIFRS_DepExp_2015'!K55+((C55*0.5)/D55)) -> 13293.99174 | G55: =-'App.2-BA_Fixed Asset Cont'!J548 -> 13301 | H55: -7.008264463
A56: 2440 | B56: Deferred Revenue | C56: =+'App.2-BA_Fixed Asset Cont'!E550 -> -3280000 | D56: =+'App.2-CJ MIFRS_DepExp_2015'!D56 -> 42.5 | E56: 0.02352941176 | F56: =IF(D56=0,'App.2-CJ MIFRS_DepExp_2015'!K56,+'App.2-CJ MIFRS_DepExp_2015'!K56+((C56*0.5)/D56)) -> -1184870.447 | G56: =-'App.2-BA_Fixed Asset Cont'!J550 -> -1196206 | H56: 11335.55307
B57: Total | C57: =SUM(C18:C56) -> 8349413 | F57: =SUM(F17:F56) -> 3540524.77 | G57: =SUM(G17:G56) -> 3516702 | H57: =SUM(H17:H56) -> 23822.77017
B58: Depreciation exp. adj. from gain or loss on the retirement of assets (pool of like assets)
B59: Total Depreciation expense to be included in the test year revenue requirement | F59: =SUM(F57:F58) -> 3540524.77
A60: Notes:
A61: 1 | B61: Board policy of the "half-year" rule - the applicant must ensure that additions in the year attract a half-year depreciation expense in the first year. Deviations from this standard practice must be supported in the application.
A62: 2 | B62: The applicant must provide an explanation of material variances in evidence.
A64: General: | B64: Applicants must provide a breakdown of depreciation and amortization expense in the above format for all relevant accounts. Asset Retirement Obligations (AROs), depreciation and accretion expense should be disclosed separately consistent with the Notes of historical Audited Financial Statements.

Sheet App.2-D_Overhead
F1: File Number: | G1: =EBNUMBER -> EB-2015-0089
F2: Exhibit: | G2: 2
F3: Tab:
F4: Schedule: | G4: Table 2-28
F5: Page: | G5: 65
F7: Date: | G7: Aug 28, 2015
A9: Appendix 2-D
A10: Overhead Expense
A12: Applicants are to provide a breakdown of OM&A before capitalization in the below table. OM&A before capitalization may be broken down by cost center, program, drivers or another format best suited to focus on capitalized vs. uncapitalized OM&A.
A14: OM&A Before Capitalization
B15: 2012 | C15: 2013 | D15: 2014 | E15: 2015 | F15: 2016
B16: Historical Year | C16: Historical Year | D16: Historical Year | E16: Bridge Year | F16: Test Year
A17: Administration | B17: 4551872 | C17: 4885004 | D17: 5542270 | E17: 6452042.61 | F17: 6168574.927
A18: Operation Costs | B18: 2041575 | C18: 3326491 | D18: 2455902 | E18: 3063841 | F18: 3175727
A19: Operation - Stores, Fleet | B19: 355354 | C19: 387910 | D19: 440564.17 | E19: 294696 | F19: 313560
A20: Engineering Costs | B20: 1000680 | C20: 716843.35 | D20: 869928.25 | E20: 1050752 | F20: 1069032
A27: Total OM&A Before Capitalization (B) | B27: =SUM(B17:B26) -> 7949481 | C27: =SUM(C17:C26) -> 9316248.35 | D27: 9308664.42 | E27: 10861331.61 | F27: 10726893.93
A29: Applicants are to provide a breakdown of capitalized OM&A in the below table. Capitalized OM&A may be broken down using the categories listed in the table below if possible. Otherwise, applicants are to provide its own break down of capitalized OM&A.
A31: Capitalized OM&A | G31: Directly | H31: Explanation for Change in Overhead Capitalized
B32: 2012 | C32: 2013 | D32: 2014 | E32: 2015 | F32: 2016 | G32: Attributable?
B33: Historical Year | C33: Historical Year | D33: Historical Year | E33: Bridge Year | F33: Test Year | G33: (Y/N)
A34: Administration | B34: 0 | C34: 0 | D34: 0 | E34: 0 | F34: 0 | G34: Y | H34: MIFRS no longer allowed to capitalize these cost
A35: Operation Costs | B35: 235834 | C35: 569638 | D35: 357260.61 | E35: 412369 | F35: 453545 | G35: Y | H35: MIFRS no longer allowed to capitalize these cost
A36: Operation -Fleet | B36: 58417 | C36: 149697.99 | D36: 252479.52 | E36: 182520 | F36: 201636 | G36: Y | H36: MIFRS no longer allowed to capitalize these cost
A37: Engineering Costs | B37: 893238 | C37: 160939.35 | D37: 155028.25 | E37: 213302 | F37: 168326 | G37: Y | H37: MIFRS no longer allowed to capitalize these cost
A38: Total Capitalized OM&A (A) | B38: =SUM(B34:B37) -> 1187489 | C38: =SUM(C34:C37) -> 880275.34 | D38: =SUM(D34:D37) -> 764768.38 | E38: =SUM(E34:E37) -> 808191 | F38: =SUM(F34:F37) -> 823507
A40: % of Capitalized OM&A (=A/B) | B40: =IF(ISERROR(B38/B27),"0%",B38/B27) -> 0.1493794375 | C40: =IF(ISERROR(C38/C27),"0%",C38/C27) -> 0.09448817882 | D40: =IF(ISERROR(D38/D27),"0%",D38/D27) -> 0.08215661726 | E40: =IF(ISERROR(E38/E27),"0%",E38/E27) -> 0.07440993692 | F40: =IF(ISERROR(F38/F27),"0%",F38/F27) -> 0.0767703126
A43: OM&A After Capitalization - | B43: 2012 | C43: 2013 | D43: 2014 | E43: 2015 | F43: 2016
B45: Historical Year | C45: Historical Year | D45: Historical Year | E45: Bridge Year | F45: Test Year
A46: Administration | B46: 2210120 | C46: 3550969 | D46: 3001627 | E46: 3601098 | F46: 3734812
A47: Operation Costs | B47: 1805604.73 | C47: 1912502 | D47: 2071190.75 | E47: 2288854.401 | F47: 2194698.717
A48: Operation -Fleet
A49: Engineering Costs | B49: 2788353.27 | C49: 2972502 | D49: 3471079.25 | E49: 4163188.819 | F49: 3973876.7
B50: =SUM(B46:B49) -> 6804078 | C50: =SUM(C46:C49) -> 8435973 | D50: =SUM(D46:D49) -> 8543897 | E50: =SUM(E46:E49) -> 10053141.22 | F50: =SUM(F46:F49) -> 9903387.417

Sheet App.2-EA_Account 1575 (2015)
I1: File Number: | J1: =EBNUMBER -> EB-2015-0089
I2: Exhibit:
I3: Tab:
I4: Schedule:
I5: Page:
I7: Date:
A9: Appendix 2-EA
A10: Account 1575 - IFRS-CGAAP Transitional PP&E Amounts
A11: 2015 Adopters of IFRS for Financial Reporting Purposes
A13: For applicants that adopted IFRS on January 1, 2015 for financial reporting purposes
A16: N/A
B17: =RebaseYear &" Rebasing Year" -> 2011 Rebasing Year | C17: 2012 | D17: 2013 | E17: 2014 | F17: 2015 | G17: 2016 Rebasing Year
A18: Reporting Basis | B18: CGAAP | C18: CGAAP | D18: CGAAP | E18: CGAAP | F18: MIFRS | G18: MIFRS
B19: Forecast | C19: Actual | D19: Actual | E19: Actual | F19: Forecast | G19: Forecast
E20: $ | F20: $
A21: PP&E Values under CGAAP
A22: Opening net PP&E - Note 1 | F22: =+E25 -> 0
A23: Net Additions - Note 4
A24: Net Depreciation (amounts should be negative) - Note 4
A25: Closing net PP&E (1) | E25: =E22+E23+E24 -> 0 | F25: =SUM(F22:F24) -> 0
A27: PP&E Values under MIFRS (Starts from 2014, the transition year)
A28: Opening net PP&E - Note 1 | F28: =+E31 -> 0
A29: Net Additions - Note 4
A30: Net Depreciation (amounts should be negative) - Note 4
A31: Closing net PP&E (2) | E31: =SUM(E28:E30) -> 0 | F31: =SUM(F28:F30) -> 0
A33: Difference in Closing net PP&E, former CGAAP vs. revised CGAAP | E33: =E25-E31 -> 0 | F33: =F25-F31 -> 0
A36: Effect on Deferral and Variance Account Rate Riders
A37: Closing balance in Account 1576 | G37: =IF(ISERROR(F33), 0, F33) -> 0 | I37: WACC
A38: Return on Rate Base Associated with Account 1576 balance at WACC - Note 2 | G38: =F33*J37*J38 -> 0 | H38: # of years of rate rider disposition period
A39: Amount included in Deferral and Variance Account Rate Rider Calculation | G39: =G37+G38 -> 0
A41: Notes:
A42: 1 For an applicant that adopted IFRS on January 1, 2015, the PP&E values as of January 1, 2014 under both CGAAP and MIFRS should be the same.
A43: 2 Return on rate base associated with deferred balance is calculated as:
A44: the deferral account closing balance as of 2015 rebasing year x WACC X # of years of rate rider disposition period
A45: * Please note that the calculation should be adjusted once WACC is updated and finalized in the rate application.
A46: 3 The PP&E deferral account is cleared by including the total balance in the deferral and variance account rate rider calculation.
A47: 4 Net additions are additions net of disposals; Net depreciation is additions to depreciation net of disposals.

Sheet App.2-EB_Account 1576 (2012)
I1: File Number: | J1: =EBNUMBER -> EB-2015-0089
I2: Exhibit:
I3: Tab:
I4: Schedule:
I5: Page:
I7: Date:
A9: Appendix 2-EB
A10: Account 1576 - Accounting Changes under CGAAP
A11: 2012 Changes in Accounting Policies under CGAAP
A13: For applicants that made capitalization and depreciation expense accounting policy changes under CGAAP effective January 1, 2012
B17: =RebaseYear &" Rebasing Year" -> 2011 Rebasing Year | C17: 2012 | D17: 2013 | E17: 2014 | F17: 2015 | G17: 2016 Rebasing Year
A18: Reporting Basis | B18: CGAAP | C18: CGAAP | D18: CGAAP | E18: CGAAP | F18: MIFRS | G18: MIFRS
B19: Forecast | C19: Actual | D19: Actual | E19: Actual | F19: Forecast | G19: Forecast
C20: $ | D20: $ | E20: $ | F20: $
A21: PP&E Values under former CGAAP
A22: Opening net PP&E - Note 1 | D22: =+C25 -> 0 | E22: =+D25 -> 0 | F22: =+E25 -> 0
A23: Net Additions - Note 4
A24: Net Depreciation (amounts should be negative) - Note 4
A25: Closing net PP&E (1) | D25: =D22+D23+D24 -> 0 | E25: =E22+E23+E24 -> 0 | F25: =F22+F23+F24 -> 0
A27: PP&E Values under revised CGAAP (Starts from 2012)
A28: Opening net PP&E - Note 1 | D28: =+C31 -> 0 | E28: =+D31 -> 0 | F28: =+E31 -> 0
A29: Net Additions - Note 4
A30: Net Depreciation (amounts should be negative) - Note 4
A31: Closing net PP&E (2) | D31: =SUM(D28:D30) -> 0 | E31: =SUM(E28:E30) -> 0 | F31: =SUM(F28:F30) -> 0
A33: Difference in Closing net PP&E, former CGAAP vs. revised CGAAP | C33: =C25-C31 -> 0 | D33: =D25-D31 -> 0 | E33: =E25-E31 -> 0 | F33: =F25-F31 -> 0
A36: Effect on Deferral and Variance Account Rate Riders
A37: Closing balance in Account 1576 | G37: =IF(ISERROR(F33), 0, F33) -> 0 | I37: WACC
A38: Return on Rate Base Associated with Account 1576 balance at WACC - Note 2 | G38: =F33*J37*J38 -> 0 | H38: # of years of rate rider disposition period
A39: Amount included in Deferral and Variance Account Rate Rider Calculation | G39: =G37+G38 -> 0
A41: Notes:
A42: 1 For an applicant that made the capitalization and depreciation expense accounting policy changes on January 1, 2012, the PP&E values as of January 1, 2012 under both former CGAAP and revised CGAAP should be the same.
A43: 2 Return on rate base associated with Account 1576 balance is calculated as:
A44: the variance account ending balance as of 2015 rebasing year x WACC X # of years of rate rider disposition period
A45: * Please note that the calculation should be adjusted once WACC is updated and finalized in the rate application.
A46: 3 Account 1576 is cleared by including the total balance in the deferral and variance account rate rider calculation.
A47: 4 Net additions are additions net of disposals; Net depreciation is additions to depreciation net of disposals.

Sheet App.2-EC_Account 1576 (2013)
I1: File Number: | J1: =EBNUMBER -> EB-2015-0089
I2: Exhibit: | J2: 9
I3: Tab:
I4: Schedule: | J4: Table 9-15
I5: Page: | J5: 21
I7: Date: | J7: Aug 28, 2015
A9: Appendix 2-EC
A10: Account 1576 - Accounting Changes under CGAAP
A11: 2013 Changes in Accounting Policies under CGAAP
A13: For applicants that made capitalization and depreciation expense accounting policy changes under CGAAP effective January 1, 2013
B17: =RebaseYear &" Rebasing Year" -> 2011 Rebasing Year | C17: 2012 | D17: 2013 | E17: 2014 | F17: 2015 | G17: 2016 Rebasing Year
A18: Reporting Basis | B18: CGAAP | C18: CGAAP | D18: CGAAP | E18: CGAAP | F18: MIFRS | G18: MIFRS
B19: Forecast | C19: Actual | D19: Actual | E19: Actual | F19: Forecast | G19: Forecast
D20: $ | E20: $ | F20: $
A21: PP&E Values under former CGAAP
A22: Opening net PP&E - Note 1 | D22: 55246448 | E22: =+D25 -> 57796168 | F22: =+E25 -> 65024347
A23: Net Additions - Note 4 | D23: 6628697 | E23: 11620435 | F23: 16058959
A24: Net Depreciation (amounts should be negative) - Note 4 | D24: -4078977 | E24: -4392256 | F24: -4732540
A25: Closing net PP&E (1) | D25: =D22+D23+D24 -> 57796168 | E25: =E22+E23+E24 -> 65024347 | F25: =F22+F23+F24 -> 76350766
A27: PP&E Values under revised CGAAP (Starts from 2012)
A28: Opening net PP&E - Note 1 | D28: 55246448 | E28: =+D31 -> 58229944 | F28: =+E31 -> 65994853
A29: Net Additions - Note 4 | D29: 5355565 | E29: 10358930 | F29: 14837487
A30: Net Depreciation (amounts should be negative) - Note 4 | D30: -2372069 | E30: -2594021 | F30: -3001284
A31: Closing net PP&E (2) | D31: =SUM(D28:D30) -> 58229944 | E31: =SUM(E28:E30) -> 65994853 | F31: =SUM(F28:F30) -> 77831056
A33: Difference in Closing net PP&E, former CGAAP vs. revised CGAAP | D33: =D25-D31 -> -433776 | E33: =E25-E31 -> -970506 | F33: =F25-F31 -> -1480290
A36: Effect on Deferral and Variance Account Rate Riders
A37: Closing balance in Account 1576 | G37: =IF(ISERROR(F33), 0, F33) -> -1480290 | I37: WACC | J37: 0.0615
A38: Return on Rate Base Associated with Account 1576 balance at WACC - Note 2 | G38: =F33*J37*J38 -> -91037.835 | H38: # of years of rate rider disposition period | J38: 1
A39: Amount included in Deferral and Variance Account Rate Rider Calculation | G39: =G37+G38 -> -1571327.835
A41: Notes:
A42: 1 For an applicant that made the capitalization and depreciation expense accounting policy changes on January 1, 2013, the PP&E values as of January 1, 2013 under both former CGAAP and revised CGAAP should be the same.
A43: 2 Return on rate base associated with Account 1576 balance is calculated as:
A44: the variance account ending balance as of 2015 rebasing year x WACC X # of years of rate rider disposition period
A45: * Please note that the calculation should be adjusted once WACC is updated and finalized in the rate application.
A46: 3 Account 1576 is cleared by including the total balance in the deferral and variance account rate rider calculation.
A47: 4 Net additions are additions net of disposals; Net depreciation is additions to depreciation net of disposals.

Sheet App.2-FA Proposed REG Invest.
A1: n/a | J1: File Number: | K1: =EBNUMBER -> EB-2015-0089
J2: Exhibit:
J3: Tab:
J4: Schedule:
J5: Page:
J7: Date:
A9: Appendix 2-FA
A10: Renewable Generation Connection Investment Summary (past investments or over the future rate setting period)
A12: Enter the details of the Renewable Generation Connection projects as described in the appropriate section of the Filing Requirements.
A13: All costs entered on this page will be transferred to the appropriate cells in the appendices that follow.
A14: For Part A, Renewable Enabling Improvements (REI), these amounts will be transferred to Appendix 2 - FB
A15: For Part B, Expansions, these amounts will be transferred to Appendix 2 - FC
A17: If there are more than five projects proposed to be in-service in a certain year, please amend the tables below and ensure that the formulae for the Total Amounts in any given rate year are updated.
A18: Based on the current methodology and allocation, amounts allocated represent 6% for REI Connection Investments and 17% for Expansion Investments. (EB-2009-0349, 6-10-2010, p. 15, note 9)
A20: There are two scenarios described below. Separate sets of spreadsheets (2-FA, 2-FB, 2-FC) should be submited for each scenario as required.
A21: Scenario 1: Past Investments with No Recovery. The distributor has made investments in the past (during the IRM Years), but has not received approval for these projects and therefore did not receive
A22: revenue from the IESO under Regulation 330/09 and did not receive ratepayer revenue for the direct benefit portion of the investment.
A23: The WCA percentage, debt percentages, interest rates, kWh, tax rates, amortization period, CCA Class and percentage should correspond to the distributor's last Cost of Service approval.
A24: The Direct Benefit portion of the calculated Revenue Requirement for each year should be summed and can be applied for recovery from the distributor's ratepayers through a rate rider.
A25: The Provincial Recovery portion of the calculated Revenue Requirement for each year should be summed and can be applied for recovery from the IESO through a separate order.
A27: Scenario 2: Investments in the Test Year and Beyond. Distributor plans to make investments in 2016 and/or beyond. These investments should be added to 2-FA in the appropriate year.
A28: The WCA percentage, debt percentages, interest rates, kWh, tax rates, amortization period, CCA Class and percentage should correspond to the distributor's current application.
A30: Part A | G30: Test Year
A31: REI Investments (Direct Benefit at 6%) | C31: 2012 | D31: 2013 | E31: 2014 | F31: 2015 | G31: 2016 | H31: =G31+1 -> 2017 | I31: =H31+1 -> 2018 | J31: 2019 | K31: 2020
A32: Project 1
A33: Name: REI Connection Project
A34: Capital Costs | C34: 0 | D34: 0 | E34: 0 | F34: 0 | G34: 0 | H34: 0 | I34: 0 | J34: 0 | K34: 0
A35: OM&A (Start-Up) | C35: 0 | D35: 0 | E35: 0 | F35: 0 | G35: 0 | H35: 0 | I35: 0 | J35: 0 | K35: 0
A36: OM&A (Ongoing) | C36: 0 | D36: 0 | E36: 0 | F36: 0 | G36: 0 | H36: 0 | I36: 0 | J36: 0 | K36: 0
A38: Project 2
A39: Name: REI Connection Project
A40: Capital Costs | C40: 0 | D40: 0 | E40: 0 | F40: 0 | G40: 0 | H40: 0 | I40: 0 | J40: 0 | K40: 0
A41: OM&A (Start-Up) | C41: 0 | D41: 0 | E41: 0 | F41: 0 | G41: 0 | H41: 0 | I41: 0 | J41: 0 | K41: 0
A42: OM&A (Ongoing) | C42: 0 | D42: 0 | E42: 0 | F42: 0 | G42: 0 | H42: 0 | I42: 0 | J42: 0 | K42: 0
A44: Project 3
A45: Name: REI Connection Project
A46: Capital Costs | C46: 0 | D46: 0 | E46: 0 | F46: 0 | G46: 0 | H46: 0 | I46: 0 | J46: 0 | K46: 0
A47: OM&A (Start-Up) | C47: 0 | D47: 0 | E47: 0 | F47: 0 | G47: 0 | H47: 0 | I47: 0 | J47: 0 | K47: 0
A48: OM&A (Ongoing) | C48: 0 | D48: 0 | E48: 0 | F48: 0 | G48: 0 | H48: 0 | I48: 0 | J48: 0 | K48: 0
A50: Project 4
A51: Name: REI Connection Project
A52: Capital Costs | C52: 0 | D52: 0 | E52: 0 | F52: 0 | G52: 0 | H52: 0 | I52: 0 | J52: 0 | K52: 0
A53: OM&A (Start-Up) | C53: 0 | D53: 0 | E53: 0 | F53: 0 | G53: 0 | H53: 0 | I53: 0 | J53: 0 | K53: 0
A54: OM&A (Ongoing) | C54: 0 | D54: 0 | E54: 0 | F54: 0 | G54: 0 | H54: 0 | I54: 0 | J54: 0 | K54: 0
A56: Project 5
A57: Name: REI Connection Project
A58: Capital Costs | C58: 0 | D58: 0 | E58: 0 | F58: 0 | G58: 0 | H58: 0 | I58: 0 | J58: 0 | K58: 0
A59: OM&A (Start-Up) | C59: 0 | D59: 0 | E59: 0 | F59: 0 | G59: 0 | H59: 0 | I59: 0 | J59: 0 | K59: 0
A60: OM&A (Ongoing) | C60: 0 | D60: 0 | E60: 0 | F60: 0 | G60: 0 | H60: 0 | I60: 0 | J60: 0 | K60: 0
A62: Total Capital Costs | C62: =SUM(C58,C52,C46,C40,C34) -> 0 | D62: 0 | E62: 0 | F62: 0 | G62: =SUM(G58,G52,G46,G40,G34) -> 0 | H62: =SUM(H58,H52,H46,H40,H34) -> 0 | I62: 0 | J62: 0 | K62: 0
A63: Total OM&A (Start-Up) | C63: 0 | D63: 0 | E63: 0 | F63: 0 | G63: =SUM(G59,G53,G47,G41,G35) -> 0 | H63: 0 | I63: 0 | J63: 0 | K63: 0
A64: Total OM&A (Ongoing) | C64: 0 | D64: 0 | E64: 0 | F64: 0 | G64: =SUM(G60,G54,G48,G42,G36) -> 0 | H64: 0 | I64: 0 | J64: 0 | K64: 0
A67: Part B | G67: Test Year
A68: Expansion Investments (Direct Benefit at 17%) | C68: 2012 | D68: 2013 | E68: 2014 | F68: 2015 | G68: 2016 | H68: =G68+1 -> 2017 | I68: =H68+1 -> 2018 | J68: 2019 | K68: 2020
A69: Project 1
A70: Name: Expansion Connection Project
A71: Capital Costs | C71: 0 | D71: 0 | E71: 0 | F71: 0 | G71: 0 | H71: 0 | I71: 0 | J71: 0 | K71: 0
A72: OM&A (Start-Up) | C72: 0 | D72: 0 | E72: 0 | F72: 0 | G72: 0 | H72: 0 | I72: 0 | J72: 0 | K72: 0
A73: OM&A (Ongoing) | C73: 0 | D73: 0 | E73: 0 | F73: 0 | G73: 0 | H73: 0 | I73: 0 | J73: 0 | K73: 0
A75: Project 2
A76: Name: Expansion Connection Project
A77: Capital Costs | C77: 0 | D77: 0 | E77: 0 | F77: 0 | G77: 0 | H77: 0 | I77: 0 | J77: 0 | K77: 0
A78: OM&A (Start-Up) | C78: 0 | D78: 0 | E78: 0 | F78: 0 | G78: 0 | H78: 0 | I78: 0 | J78: 0 | K78: 0
A79: OM&A (Ongoing) | C79: 0 | D79: 0 | E79: 0 | F79: 0 | G79: 0 | H79: 0 | I79: 0 | J79: 0 | K79: 0
A81: Project 3
A82: Name: Expansion Connection Project
A83: Capital Costs | C83: 0 | D83: 0 | E83: 0 | F83: 0 | G83: 0 | H83: 0 | I83: 0 | J83: 0 | K83: 0
A84: OM&A (Start-Up) | C84: 0 | D84: 0 | E84: 0 | F84: 0 | G84: 0 | H84: 0 | I84: 0 | J84: 0 | K84: 0
A85: OM&A (Ongoing) | C85: 0 | D85: 0 | E85: 0 | F85: 0 | G85: 0 | H85: 0 | I85: 0 | J85: 0 | K85: 0
A87: Project 4
A88: Name: Expansion Connection Project
A89: Capital Costs | C89: 0 | D89: 0 | E89: 0 | F89: 0 | G89: 0 | H89: 0 | I89: 0 | J89: 0 | K89: 0
A90: OM&A (Start-Up) | C90: 0 | D90: 0 | E90: 0 | F90: 0 | G90: 0 | H90: 0 | I90: 0 | J90: 0 | K90: 0
A91: OM&A (Ongoing) | C91: 0 | D91: 0 | E91: 0 | F91: 0 | G91: 0 | H91: 0 | I91: 0 | J91: 0 | K91: 0
A93: Project 5
A94: Name: Expansion Connection Project
A95: Capital Costs | C95: 0 | D95: 0 | E95: 0 | F95: 0 | G95: 0 | H95: 0 | I95: 0 | J95: 0 | K95: 0
A96: OM&A (Start-Up) | C96: 0 | D96: 0 | E96: 0 | F96: 0 | G96: 0 | H96: 0 | I96: 0 | J96: 0 | K96: 0
A97: OM&A (Ongoing) | C97: 0 | D97: 0 | E97: 0 | F97: 0 | G97: 0 | H97: 0 | I97: 0 | J97: 0 | K97: 0
A99: Total Capital Costs | C99: =SUM(C95,C89,C83,C77,C71) -> 0 | D99: 0 | E99: 0 | F99: 0 | G99: =SUM(G95,G89,G83,G77,G71) -> 0 | H99: =SUM(H95,H89,H83,H77,H71) -> 0 | I99: 0 | J99: 0 | K99: 0
A100: Total OM&A (Start-Up) | C100: 0 | D100: 0 | E100: 0 | F100: 0 | G100: =SUM(G96,G90,G84,G78,G72) -> 0 | H100: 0 | I100: 0 | J100: 0 | K100: 0
A101: Total OM&A (Ongoing) | C101: 0 | D101: 0 | E101: 0 | F101: 0 | G101: =SUM(G97,G91,G85,G79,G73) -> 0 | H101: 0 | I101: 0 | J101: 0 | K101: 0

Sheet App.2-FB Calc of REG Improvemnt
A1: n/a | N1: File Number: | O1: =EBNUMBER -> EB-2015-0089
N2: Exhibit:
N3: Tab:
N4: Schedule:
N5: Page:
N7: Date:
A9: Appendix 2-FB
A10: Calculation of Renewable Generation Connection Direct Benefits/Provincial Amount: Renewable Enabling Improvement Investments
A12: This table will calculate the distributor/provincial shares of the investments entered in Part A of Appendix 2-FA.
A13: Enter values in green shaded cells: WCA percentage, debt percentages, interest rates, kWh, tax rates, amortization period, CCA Class and percentage.
A14: For historical investments, enter these variables for your last cost of service test year. For 2016 and beyond, enter variables as in the application.
A15: Rate Riders are not calculated for Test Year as these assets and costs are already in the distributor's rate base/revenue requirement.
C17: 2012 | F17: 2013 | I17: 2014 | L17: 2015 | O17: 2016 Test Year | R17: 2017 | U17: 2018 | V17: 2016 | X17: 2019 | AA17: 2020
D18: Direct Benefit | E18: Provincial | G18: Direct Benefit | H18: Provincial | J18: Direct Benefit | K18: Provincial | M18: Direct Benefit | N18: Provincial | P18: Direct Benefit | Q18: Provincial | S18: Direct Benefit | T18: Provincial | V18: Direct Benefit | W18: Provincial | Y18: Direct Benefit | Z18: Provincial | AB18: Direct Benefit | AC18: Provincial
C19: Total | D19: 0.06 | E19: 0.94 | F19: Total | G19: 0.06 | H19: 0.94 | I19: Total | J19: 0.06 | K19: 0.94 | L19: Total | M19: 0.06 | N19: 0.94 | O19: Total | P19: 0.06 | Q19: 0.94 | R19: Total | S19: 0.06 | T19: 0.94 | U19: Total | V19: 0.06 | W19: 0.94 | X19: Total | Y19: 0.06 | Z19: 0.94 | AA19: Total | AB19: 0.06 | AC19: 0.94
A20: Net Fixed Assets (average) | C20: =D82 -> 0 | D20: =C20*D19 -> 0 | E20: =C20*E19 -> 0 | F20: =E82 -> 0 | G20: =F20*G19 -> 0 | H20: =F20*H19 -> 0 | I20: =F82 -> 0 | J20: =I20*J19 -> 0 | K20: =I20*K19 -> 0 | L20: =G82 -> 0 | M20: =L20*M19 -> 0 | N20: =L20*N19 -> 0 | O20: =H82 -> 0 | P20: =O20*P19 -> 0 | Q20: =O20*Q19 -> 0 | R20: =I82 -> 0 | S20: =R20*S19 -> 0 | T20: =R20*T19 -> 0 | U20: =J82 -> 0 | V20: =U20*V19 -> 0 | W20: =U20*W19 -> 0 | X20: =K82 -> 0 | Y20: =X20*Y19 -> 0 | Z20: =X20*Z19 -> 0 | AA20: =L82 -> 0 | AB20: =AA20*AB19 -> 0 | AC20: =AA20*AC19 -> 0
A21: Incremental OM&A (on-going, N/A for Provincial Recovery) | C21: ='App.2-FA Proposed REG Invest.'!C64 -> 0 | D21: =C21 -> 0 | F21: ='App.2-FA Proposed REG Invest.'!D64 -> 0 | G21: =F21 -> 0 | I21: ='App.2-FA Proposed REG Invest.'!E64 -> 0 | J21: =I21 -> 0 | L21: ='App.2-FA Proposed REG Invest.'!F64 -> 0 | M21: =L21 -> 0 | O21: ='App.2-FA Proposed REG Invest.'!G64 -> 0 | P21: =O21 -> 0 | R21: ='App.2-FA Proposed REG Invest.'!H64 -> 0 | S21: =R21 -> 0 | U21: ='App.2-FA Proposed REG Invest.'!I64 -> 0 | V21: =U21 -> 0 | X21: ='App.2-FA Proposed REG Invest.'!J64 -> 0 | Y21: =X21 -> 0 | AA21: ='App.2-FA Proposed REG Invest.'!K64 -> 0 | AB21: =AA21 -> 0
A22: Incremental OM&A (start-up, applicable for Provincial Recovery) | C22: ='App.2-FA Proposed REG Invest.'!C63 -> 0 | D22: =C22*D19 -> 0 | E22: =C22*E19 -> 0 | F22: ='App.2-FA Proposed REG Invest.'!D63 -> 0 | G22: =F22*G19 -> 0 | H22: =F22*H19 -> 0 | I22: ='App.2-FA Proposed REG Invest.'!E63 -> 0 | J22: =I22*J19 -> 0 | K22: =I22*K19 -> 0 | L22: ='App.2-FA Proposed REG Invest.'!F63 -> 0 | M22: =L22*M19 -> 0 | N22: =L22*N19 -> 0 | O22: ='App.2-FA Proposed REG Invest.'!G63 -> 0 | P22: =O22*P19 -> 0 | Q22: =O22*Q19 -> 0 | R22: ='App.2-FA Proposed REG Invest.'!H63 -> 0 | S22: =R22*S19 -> 0 | T22: =R22*T19 -> 0 | U22: ='App.2-FA Proposed REG Invest.'!I63 -> 0 | V22: =U22*V19 -> 0 | W22: =U22*W19 -> 0 | X22: ='App.2-FA Proposed REG Invest.'!J63 -> 0 | Y22: =X22*Y19 -> 0 | Z22: =X22*Z19 -> 0 | AA22: ='App.2-FA Proposed REG Invest.'!K63 -> 0 | AB22: =AA22*AB19 -> 0 | AC22: =AA22*AC19 -> 0
A23: WCA | D23: =(D21+D22)*$B$23 -> 0 | E23: =E22*$B$23 -> 0 | G23: =(G21+G22)*$B$23 -> 0 | H23: =H22*$B$23 -> 0 | J23: =(J21+J22)*$B$23 -> 0 | K23: =K22*$B$23 -> 0 | M23: =(M21+M22)*$B$23 -> 0 | N23: =N22*$B$23 -> 0 | P23: =(P21+P22)*$B$23 -> 0 | Q23: =Q22*$B$23 -> 0 | S23: =(S21+S22)*$B$23 -> 0 | T23: =T22*$B$23 -> 0 | V23: =(V21+V22)*$B$23 -> 0 | W23: =W22*$B$23 -> 0 | Y23: =(Y21+Y22)*$B$23 -> 0 | Z23: =Z22*$B$23 -> 0 | AB23: =(AB21+AB22)*$B$23 -> 0 | AC23: =AC22*$B$23 -> 0
A24: Rate Base | D24: =SUM(D20+D23) -> 0 | E24: =SUM(E20+E23) -> 0 | G24: =SUM(G20+G23) -> 0 | H24: =SUM(H20+H23) -> 0 | J24: =SUM(J20+J23) -> 0 | K24: =SUM(K20+K23) -> 0 | M24: =SUM(M20+M23) -> 0 | N24: =SUM(N20+N23) -> 0 | P24: =SUM(P20+P23) -> 0 | Q24: =SUM(Q20+Q23) -> 0 | S24: =SUM(S20+S23) -> 0 | T24: =SUM(T20+T23) -> 0 | V24: =SUM(V20+V23) -> 0 | W24: =SUM(W20+W23) -> 0 | Y24: =SUM(Y20+Y23) -> 0 | Z24: =SUM(Z20+Z23) -> 0 | AB24: =SUM(AB20+AB23) -> 0 | AC24: =SUM(AC20+AC23) -> 0
A27: Deemed ST Debt | D27: =D24*$B$27 -> 0 | E27: =E24*$B$27 -> 0 | G27: =G24*$B$27 -> 0 | H27: =H24*$B$27 -> 0 | J27: =J24*$B$27 -> 0 | K27: =K24*$B$27 -> 0 | M27: =M24*$B$27 -> 0 | N27: =N24*$B$27 -> 0 | P27: =P24*$B$27 -> 0 | Q27: =Q24*$B$27 -> 0 | S27: =S24*$B$27 -> 0 | T27: =T24*$B$27 -> 0 | V27: =V24*$B$27 -> 0 | W27: =W24*$B$27 -> 0 | Y27: =Y24*$B$27 -> 0 | Z27: =Z24*$B$27 -> 0 | AB27: =AB24*$B$27 -> 0 | AC27: =AC24*$B$27 -> 0
A28: Deemed LT Debt | D28: =D24*$B$28 -> 0 | E28: =E24*$B$28 -> 0 | G28: =G24*$B$28 -> 0 | H28: =H24*$B$28 -> 0 | J28: =J24*$B$28 -> 0 | K28: =K24*$B$28 -> 0 | M28: =M24*$B$28 -> 0 | N28: =N24*$B$28 -> 0 | P28: =P24*$B$28 -> 0 | Q28: =Q24*$B$28 -> 0 | S28: =S24*$B$28 -> 0 | T28: =T24*$B$28 -> 0 | V28: =V24*$B$28 -> 0 | W28: =W24*$B$28 -> 0 | Y28: =Y24*$B$28 -> 0 | Z28: =Z24*$B$28 -> 0 | AB28: =AB24*$B$28 -> 0 | AC28: =AC24*$B$28 -> 0
A29: Deemed Equity | D29: =D24*$B$29 -> 0 | E29: =E24*$B$29 -> 0 | G29: =G24*$B$29 -> 0 | H29: =H24*$B$29 -> 0 | J29: =J24*$B$29 -> 0 | K29: =K24*$B$29 -> 0 | M29: =M24*$B$29 -> 0 | N29: =N24*$B$29 -> 0 | P29: =P24*$B$29 -> 0 | Q29: =Q24*$B$29 -> 0 | S29: =S24*$B$29 -> 0 | T29: =T24*$B$29 -> 0 | V29: =V24*$B$29 -> 0 | W29: =W24*$B$29 -> 0 | Y29: =Y24*$B$29 -> 0 | Z29: =Z24*$B$29 -> 0 | AB29: =AB24*$B$29 -> 0 | AC29: =AC24*$B$29 -> 0
A31: ST Interest | D31: =D27*$B31 -> 0 | E31: =E27*$B31 -> 0 | G31: =G27*$B31 -> 0 | H31: =H27*$B31 -> 0 | J31: =J27*$B31 -> 0 | K31: =K27*$B31 -> 0 | M31: =M27*$B31 -> 0 | N31: =N27*$B31 -> 0 | P31: =P27*$B31 -> 0 | Q31: =Q27*$B31 -> 0 | S31: =S27*$B31 -> 0 | T31: =T27*$B31 -> 0 | V31: =V27*$B31 -> 0 | W31: =W27*$B31 -> 0 | Y31: =Y27*$B31 -> 0 | Z31: =Z27*$B31 -> 0 | AB31: =AB27*$B31 -> 0 | AC31: =AC27*$B31 -> 0
A32: LT Interest | D32: =D28*$B32 -> 0 | E32: 0 | G32: =G28*$B32 -> 0 | H32: 0 | J32: =J28*$B32 -> 0 | K32: 0 | M32: =M28*$B32 -> 0 | N32: 0 | P32: =P28*$B32 -> 0 | Q32: 0 | S32: =S28*$B32 -> 0 | T32: 0 | V32: =V28*$B32 -> 0 | W32: 0 | Y32: =Y28*$B32 -> 0 | Z32: 0 | AB32: =AB28*$B32 -> 0 | AC32: 0
A33: ROE | D33: 0 | E33: 0 | G33: 0 | H33: 0 | J33: 0 | K33: 0 | M33: 0 | N33: 0 | P33: 0 | Q33: 0 | S33: 0 | T33: 0 | V33: 0 | W33: 0 | Y33: 0 | Z33: 0 | AB33: 0 | AC33: 0
A34: Cost of Capital Total | D34: =SUM(D31:D33) -> 0 | E34: =SUM(E31:E33) -> 0 | G34: =SUM(G31:G33) -> 0 | H34: =SUM(H31:H33) -> 0 | J34: =SUM(J31:J33) -> 0 | K34: =SUM(K31:K33) -> 0 | M34: =SUM(M31:M33) -> 0 | N34: =SUM(N31:N33) -> 0 | P34: =SUM(P31:P33) -> 0 | Q34: =SUM(Q31:Q33) -> 0 | S34: =SUM(S31:S33) -> 0 | T34: =SUM(T31:T33) -> 0 | V34: =SUM(V31:V33) -> 0 | W34: =SUM(W31:W33) -> 0 | Y34: =SUM(Y31:Y33) -> 0 | Z34: =SUM(Z31:Z33) -> 0 | AB34: =SUM(AB31:AB33) -> 0 | AC34: =SUM(AC31:AC33) -> 0
A36: OM&A | D36: =D21+D22 -> 0 | E36: =E22 -> 0 | G36: =G21+G22 -> 0 | H36: =H22 -> 0 | J36: =J21+J22 -> 0 | K36: =K22 -> 0 | M36: =M21+M22 -> 0 | N36: =N22 -> 0 | P36: =P21+P22 -> 0 | Q36: =Q22 -> 0 | S36: =S21+S22 -> 0 | T36: =T22 -> 0 | V36: =V21+V22 -> 0 | W36: =W22 -> 0 | Y36: =Y21+Y22 -> 0 | Z36: =Z22 -> 0 | AB36: =AB21+AB22 -> 0 | AC36: =AC22 -> 0
A37: Amortization | C37: =D77 -> 0 | D37: =C37*D$19 -> 0 | E37: =C37*E$19 -> 0 | F37: =E77 -> 0 | G37: =F37*G$19 -> 0 | H37: =F37*H$19 -> 0 | I37: =F77 -> 0 | J37: =I37*J$19 -> 0 | K37: =I37*K$19 -> 0 | L37: =G77 -> 0 | M37: =L37*M$19 -> 0 | N37: =L37*N$19 -> 0 | O37: =H77 -> 0 | P37: =O37*P$19 -> 0 | Q37: =O37*Q$19 -> 0 | R37: =I76+I77 -> 0 | S37: =R37*S$19 -> 0 | T37: =R37*T$19 -> 0 | U37: =J76+J77 -> 0 | V37: =U37*V$19 -> 0 | W37: =U37*W$19 -> 0 | X37: =K76+K77 -> 0 | Y37: =X37*Y$19 -> 0 | Z37: =X37*Z$19 -> 0 | AA37: =L76+L77 -> 0 | AB37: =AA37*AB$19 -> 0 | AC37: =AA37*AC$19 -> 0
A38: Grossed-up PILs | D38: =D65 -> 0 | E38: =E65 -> 0 | G38: =G65 -> 0 | H38: =H65 -> 0 | J38: =J65 -> 0 | K38: =K65 -> 0 | M38: =M65 -> 0 | N38: =N65 -> 0 | P38: =P65 -> 0 | Q38: =Q65 -> 0 | S38: =S65 -> 0 | T38: =T65 -> 0 | V38: =V65 -> 0 | W38: =W65 -> 0 | Y38: =Y65 -> 0 | Z38: =Z65 -> 0 | AB38: =AB65 -> 0 | AC38: =AC65 -> 0
A40: Revenue Requirement | D40: =SUM(D34:D38) -> 0 | E40: =SUM(E34:E38) -> 0 | G40: =SUM(G34:G38) -> 0 | H40: =SUM(H34:H38) -> 0 | J40: =SUM(J34:J38) -> 0 | K40: =SUM(K34:K38) -> 0 | M40: =SUM(M34:M38) -> 0 | N40: =SUM(N34:N38) -> 0 | P40: =SUM(P34:P38) -> 0 | Q40: =SUM(Q34:Q38) -> 0 | S40: =SUM(S34:S38) -> 0 | T40: =SUM(T34:T38) -> 0 | V40: =SUM(V34:V38) -> 0 | W40: =SUM(W34:W38) -> 0 | Y40: =SUM(Y34:Y38) -> 0 | Z40: =SUM(Z34:Z38) -> 0 | AB40: =SUM(AB34:AB38) -> 0 | AC40: =SUM(AC34:AC38) -> 0
A43: Provincial Rate Protection | E43: =E40 -> 0 | H43: =H40 -> 0 | K43: =K40 -> 0 | N43: =N40 -> 0 | Q43: =Q40 -> 0 | T43: =T40 -> 0 | W43: =W40 -> 0 | Z43: =Z40 -> 0 | AC43: =AC40 -> 0
A45: Monthly Amount Paid by IESO | E45: =E43/12 -> 0 | H45: =H43/12 -> 0 | K45: =K43/12 -> 0 | N45: =N43/12 -> 0 | Q45: =Q43/12 -> 0 | T45: =T43/12 -> 0 | W45: =W43/12 -> 0 | Z45: =Z43/12 -> 0 | AC45: =AC43/12 -> 0
A47: Note 1: The difference between the actual costs of approved eligible investments and revenue received from the IESO should be recorded in a variance account. The Board may provide
A48: regulatory accounting guidance regarding a variance account either in an individual proceeding or on a generic basis.
A49: Note 2: For the 2016 Test Year, Costs and Revenues of the Direct Benefit are to be included in the test year applicant Rate Base and Revenues.
A51: PILs Calculation
D52: 2012 | G52: 2013 | J52: 2014 | M52: 2015 | P52: 2016 | S52: =P52+1 -> 2017 | V52: =S52+1 -> 2018 | Y52: =V52+1 -> 2019 | AB52: =Y52+1 -> 2020
A53: Income Tax | D53: Direct Benefit | E53: Provincial | G53: Direct Benefit | H53: Provincial | J53: Direct Benefit | K53: Provincial | M53: Direct Benefit | N53: Provincial | P53: Direct Benefit | Q53: Provincial | S53: Direct Benefit | T53: Provincial | V53: Direct Benefit | W53: Provincial | Y53: Direct Benefit | Z53: Provincial | AB53: Direct Benefit | AC53: Provincial
X54: Total | AA54: Total
A55: Net Income - ROE on Rate Base | D55: =D33 -> 0 | E55: =E33 -> 0 | G55: =G33 -> 0 | H55: =H33 -> 0 | J55: =J33 -> 0 | K55: =K33 -> 0 | M55: =M33 -> 0 | N55: =N33 -> 0 | P55: =P33 -> 0 | Q55: =Q33 -> 0 | S55: =S33 -> 0 | T55: =T33 -> 0 | V55: =V33 -> 0 | W55: =W33 -> 0 | Y55: =Y33 -> 0 | Z55: =Z33 -> 0 | AB55: =AB33 -> 0 | AC55: =AC33 -> 0
A56: Amortization (6% DB and 94% P) | D56: =D37 -> 0 | E56: =E37 -> 0 | G56: =G37 -> 0 | H56: =H37 -> 0 | J56: =J37 -> 0 | K56: =K37 -> 0 | M56: =M37 -> 0 | N56: =N37 -> 0 | P56: =P37 -> 0 | Q56: =Q37 -> 0 | S56: =S37 -> 0 | T56: =T37 -> 0 | V56: =V37 -> 0 | W56: =W37 -> 0 | Y56: =Y37 -> 0 | Z56: =Z37 -> 0 | AB56: =AB37 -> 0 | AC56: =AC37 -> 0
A57: CCA (6% DB and 94% P) | D57: =-D94*D$19 -> 0 | E57: =-D94*E$19 -> 0 | G57: =-E94*G19 -> 0 | H57: =-E94*H$19 -> 0 | J57: =-F94*J$19 -> 0 | K57: =-F94*K$19 -> 0 | M57: =-G94*M$19 -> 0 | N57: =-G94*N$19 -> 0 | P57: =-H94*P$19 -> 0 | Q57: =-H94*Q$19 -> 0 | S57: =-I94*S$19 -> 0 | T57: =-I94*T$19 -> 0 | V57: =-J94*V$19 -> 0 | W57: =-J94*W$19 -> 0 | Y57: =-K94*Y$19 -> 0 | Z57: =-K94*Z$19 -> 0 | AB57: =-L94*AB$19 -> 0 | AC57: =-L94*AC$19 -> 0
A58: Taxable income | D58: =SUM(D55:D57) -> 0 | E58: =SUM(E55:E57) -> 0 | G58: =SUM(G55:G57) -> 0 | H58: =SUM(H55:H57) -> 0 | J58: =SUM(J55:J57) -> 0 | K58: =SUM(K55:K57) -> 0 | M58: =SUM(M55:M57) -> 0 | N58: =SUM(N55:N57) -> 0 | P58: =SUM(P55:P57) -> 0 | Q58: =SUM(Q55:Q57) -> 0 | S58: =SUM(S55:S57) -> 0 | T58: =SUM(T55:T57) -> 0 | V58: =SUM(V55:V57) -> 0 | W58: =SUM(W55:W57) -> 0 | Y58: =SUM(Y55:Y57) -> 0 | Z58: =SUM(Z55:Z57) -> 0 | AB58: =SUM(AB55:AB57) -> 0 | AC58: =SUM(AC55:AC57) -> 0
A60: Tax Rate (to be entered)
A62: Income Taxes Payable | D62: =D58*D60 -> 0 | E62: =E58*E60 -> 0 | G62: =G58*G60 -> 0 | H62: =H58*H60 -> 0 | J62: =J58*J60 -> 0 | K62: =K58*K60 -> 0 | M62: =M58*M60 -> 0 | N62: =N58*N60 -> 0 | P62: =P58*P60 -> 0 | Q62: =Q58*Q60 -> 0 | S62: =S58*S60 -> 0 | T62: =T58*T60 -> 0 | V62: =V58*V60 -> 0 | W62: =W58*W60 -> 0 | Y62: =Y58*Y60 -> 0 | Z62: =Z58*Z60 -> 0 | AB62: =AB58*AB60 -> 0 | AC62: =AC58*AC60 -> 0
A63: Gross Up
A64: Income Taxes Payable | D64: =D62/(1-D60) -> 0 | E64: =E62/(1-E60) -> 0 | G64: =G62/(1-G60) -> 0 | H64: =H62/(1-H60) -> 0 | J64: =J62/(1-J60) -> 0 | K64: =K62/(1-K60) -> 0 | M64: =M62/(1-M60) -> 0 | N64: =N62/(1-N60) -> 0 | P64: =P62/(1-P60) -> 0 | Q64: =Q62/(1-Q60) -> 0 | S64: =S62/(1-S60) -> 0 | T64: =T62/(1-T60) -> 0 | V64: =V62/(1-V60) -> 0 | W64: =W62/(1-W60) -> 0 | Y64: =Y62/(1-Y60) -> 0 | Z64: =Z62/(1-Z60) -> 0 | AB64: =AB62/(1-AB60) -> 0 | AC64: =AC62/(1-AC60) -> 0
A65: Grossed Up PILs | D65: =SUM(D64:D64) -> 0 | E65: =SUM(E64:E64) -> 0 | G65: =SUM(G64:G64) -> 0 | H65: =SUM(H64:H64) -> 0 | J65: =SUM(J64:J64) -> 0 | K65: =SUM(K64:K64) -> 0 | M65: =SUM(M64:M64) -> 0 | N65: =SUM(N64:N64) -> 0 | P65: =SUM(P64:P64) -> 0 | Q65: =SUM(Q64:Q64) -> 0 | S65: =SUM(S64:S64) -> 0 | T65: =SUM(T64:T64) -> 0 | V65: =SUM(V64:V64) -> 0 | W65: =SUM(W64:W64) -> 0 | Y65: =SUM(Y64:Y64) -> 0 | Z65: =SUM(Z64:Z64) -> 0 | AB65: =SUM(AB64:AB64) -> 0 | AC65: =SUM(AC64:AC64) -> 0
D68: 2012 | E68: 2013 | F68: 2014 | G68: 2015 | H68: 2016 | I68: =H68+1 -> 2017 | J68: =I68+1 -> 2018 | K68: 2019 | L68: 2020
A69: Net Fixed Assets
B70: Enter applicable amortization in years: | C70: 25
A71: Opening Gross Fixed Assets | E71: =D73 -> 0 | F71: 0 | G71: 0 | H71: 0 | I71: =H73 -> 0 | J71: =I73 -> 0 | K71: =J73 -> 0 | L71: =K73 -> 0
A72: Gross Capital Additions | D72: ='App.2-FA Proposed REG Invest.'!C62 -> 0 | E72: ='App.2-FA Proposed REG Invest.'!D62 -> 0 | F72: ='App.2-FA Proposed REG Invest.'!E62 -> 0 | G72: ='App.2-FA Proposed REG Invest.'!F62 -> 0 | H72: ='App.2-FA Proposed REG Invest.'!G62 -> 0 | I72: ='App.2-FA Proposed REG Invest.'!H62 -> 0 | J72: ='App.2-FA Proposed REG Invest.'!I62 -> 0 | K72: ='App.2-FA Proposed REG Invest.'!J62 -> 0 | L72: ='App.2-FA Proposed REG Invest.'!K62 -> 0
A73: Closing Gross Fixed Assets | D73: =SUM(D71:D72) -> 0 | E73: 0 | F73: 0 | G73: 0 | H73: =SUM(H71:H72) -> 0 | I73: =SUM(I71:I72) -> 0 | J73: 0 | K73: 0 | L73: 0
A75: Opening Accumulated Amortization | E75: =+D78 -> 0 | F75: =E78 -> 0 | G75: 0 | H75: 0 | I75: 0 | J75: 0 | K75: 0 | L75: 0
A76: Current Year Amortization (before additions) | D76: =IF(ISERROR(D71/$C$70), 0, D71/$C$70) -> 0 | E76: 0 | F76: 0 | G76: 0 | H76: 0 | I76: =IF(ISERROR(I71/$C$70), 0, I71/$C$70) -> 0 | J76: =IF(ISERROR(J71/$C$70), 0, J71/$C$70) -> 0 | K76: =IF(ISERROR(K71/$C$70), 0, K71/$C$70) -> 0 | L76: =IF(ISERROR(L71/$C$70), 0, L71/$C$70) -> 0
A77: Additions (half year) | D77: =D72/$C$70/2 -> 0 | E77: =E72/$C$70/2 -> 0 | F77: =F72/$C$70/2 -> 0 | G77: 0 | H77: =H72/$C$70/2 -> 0 | I77: =I72/C70/2 -> 0 | J77: =J72/C70/2 -> 0 | K77: =K72/C70/2 -> 0 | L77: =L72/C70/2 -> 0
A78: Closing Accumulated Amortization | D78: =SUM(D75+D76+D77) -> 0 | E78: =SUM(E75+E76+E77) -> 0 | F78: =SUM(F75+F76+F77) -> 0 | G78: =SUM(G75+G76+G77) -> 0 | H78: =SUM(H75+H76+H77) -> 0 | I78: =SUM(I75:I77) -> 0 | J78: =SUM(J75:J77) -> 0 | K78: =SUM(K75:K77) -> 0 | L78: =SUM(L75:L77) -> 0
A80: Opening Net Fixed Assets | D80: =D71-D75 -> 0 | E80: 0 | F80: =F71-F75 -> 0 | G80: 0 | H80: =H71-H75 -> 0 | I80: =H81 -> 0 | J80: =I81 -> 0 | K80: =J81 -> 0 | L80: =K81 -> 0
A81: Closing Net Fixed Assets | D81: =D73-D78 -> 0 | E81: =E73-E78 -> 0 | F81: 0 | G81: 0 | H81: =H73-H78 -> 0 | I81: =I73-I78 -> 0 | J81: =J73-J78 -> 0 | K81: =K73-K78 -> 0 | L81: =L73-L78 -> 0
A82: Average Net Fixed Assets | D82: =SUM(D80:D81)/2 -> 0 | E82: 0 | F82: 0 | G82: 0 | H82: =SUM(H80:H81)/2 -> 0 | I82: =SUM(I80:I81)/2 -> 0 | J82: =SUM(J80:J81)/2 -> 0 | K82: =SUM(K80:K81)/2 -> 0 | L82: =SUM(L80:L81)/2 -> 0
A84: UCC for PILs Calculation
D85: 2012 | E85: 2013 | F85: 2014 | G85: 2015 | H85: 2016 | I85: =H85+1 -> 2017 | J85: =I85+1 -> 2018 | K85: 2019 | L85: 2020
A87: Opening UCC | E87: =D95 -> 0 | F87: 0 | G87: 0 | H87: 0 | I87: 0 | J87: 0 | K87: 0 | L87: 0
A88: Capital Additions (from Appendix 2-FA) | D88: =D72 -> 0 | E88: 0 | F88: 0 | G88: 0 | H88: =H72 -> 0 | I88: =I72 -> 0 | J88: 0 | K88: 0 | L88: 0
A89: UCC Before Half Year Rule | D89: =SUM(D87:D88) -> 0 | E89: 0 | F89: 0 | G89: 0 | H89: =SUM(H87:H88) -> 0 | I89: =SUM(I87:I88) -> 0 | J89: =SUM(J87:J88) -> 0 | K89: =SUM(K87:K88) -> 0 | L89: =SUM(L87:L88) -> 0
A90: Half Year Rule (1/2 Additions - Disposals) | D90: =D88/2 -> 0 | E90: 0 | F90: 0 | G90: 0 | H90: =H88/2 -> 0 | I90: =I88/2 -> 0 | J90: =J88/2 -> 0 | K90: =K88/2 -> 0 | L90: =L88/2 -> 0
A91: Reduced UCC | D91: =D89-D90 -> 0 | E91: 0 | F91: 0 | G91: 0 | H91: =H89-H90 -> 0 | I91: =I89-I90 -> 0 | J91: =J89-J90 -> 0 | K91: =K89-K90 -> 0 | L91: =L89-L90 -> 0
A92: CCA Rate Class (to be entered) | C92: 47 | D92: =C92 -> 47 | E92: =D92 -> 47 | F92: 47 | G92: 47 | H92: 47 | I92: 47 | J92: 47 | K92: 47 | L92: 47
A93: CCA Rate (to be entered) | C93: 0.08 | D93: =C93 -> 0.08 | E93: 0.08 | F93: 0.08 | G93: 0.08 | H93: 0.08 | I93: 0.08 | J93: 0.08 | K93: 0.08 | L93: 0.08
A94: CCA | D94: =D91*D93 -> 0 | E94: 0 | F94: 0 | G94: 0 | H94: =H91*H93 -> 0 | I94: =I91*I93 -> 0 | J94: 0 | K94: 0 | L94: =L91*L93 -> 0
A95: Closing UCC | D95: =D89-D94 -> 0 | E95: 0 | F95: 0 | G95: 0 | H95: =H89-H94 -> 0 | I95: =I89-I94 -> 0 | J95: =J89-J94 -> 0 | K95: =K89-K94 -> 0 | L95: =L89-L94 -> 0

Sheet App.2-FC Calc of REG Expansion
A1: n/a | N1: File Number: | O1: =EBNUMBER -> EB-2015-0089
N2: Exhibit:
N3: Tab:
N4: Schedule:
N5: Page:
N7: Date:
A9: Appendix 2-FC
A10: Calculation of Renewable Generation Connection Direct Benefits/Provincial Amount: Renewable Expansion Investments
A12: This table will calculate the distributor/provincial shares of the investments entered in Part B of Appendix 2-FA.
A13: Enter values in green shaded cells: WCA percentage, debt percentages, interest rates, kWh, tax rates, amortization period, CCA Class and percentage.
A14: For historical investments, enter these variables for your last cost of service test year. For 2016 and beyond, enter variables as in the application.
A15: Rate Riders are not calculated for Test Year as these assets and costs are already in the distributor's rate base.
D18: 2012 | G18: 2013 | J18: 2014 | M18: 2015 | P18: 2016 TEST YEAR | S18: 2017 | T18: 2016 | V18: 2018 | Y18: 2019 | AB18: 2020
E19: Direct Benefit | F19: Provincial | H19: Direct Benefit | I19: Provincial | K19: Direct Benefit | L19: Provincial | N19: Direct Benefit | O19: Provincial | Q19: Direct Benefit | R19: Provincial | T19: Direct Benefit | U19: Provincial | W19: Direct Benefit | X19: Provincial | Z19: Direct Benefit | AA19: Provincial | AC19: Direct Benefit | AD19: Provincial
D20: Total | E20: 0.17 | F20: 0.83 | G20: Total | H20: 0.17 | I20: 0.83 | J20: Total | K20: 0.17 | L20: 0.83 | M20: Total | N20: 0.17 | O20: 0.83 | P20: Total | Q20: 0.17 | R20: 0.83 | S20: Total | T20: 0.17 | U20: 0.83 | V20: Total | W20: 0.17 | X20: 0.83 | Y20: Total | Z20: 0.17 | AA20: 0.83 | AB20: Total | AC20: 0.17 | AD20: 0.83
A21: Net Fixed Assets (average) | D21: =D82 -> 0 | E21: =D21*E20 -> 0 | F21: =D21*F20 -> 0 | G21: =E82 -> 0 | H21: =G21*H20 -> 0 | I21: =G21*I20 -> 0 | J21: =F82 -> 0 | K21: =J21*K20 -> 0 | L21: =J21*L20 -> 0 | M21: =G82 -> 0 | N21: =M21*N20 -> 0 | O21: =M21*O20 -> 0 | P21: =H82 -> 0 | Q21: =P21*Q20 -> 0 | R21: =P21*R20 -> 0 | S21: =I82 -> 0 | T21: =S21*T20 -> 0 | U21: =S21*U20 -> 0 | V21: =J82 -> 0 | W21: =V21*W20 -> 0 | X21: =V21*X20 -> 0 | Y21: =K82 -> 0 | Z21: =Y21*Z20 -> 0 | AA21: =Y21*AA20 -> 0 | AB21: =L82 -> 0 | AC21: =AB21*AC20 -> 0 | AD21: =AB21*AD20 -> 0
A22: Incremental OM&A (on-going, N/A for Provincial Recovery) | D22: ='App.2-FA Proposed REG Invest.'!C101 -> 0 | E22: =D22 -> 0 | G22: ='App.2-FA Proposed REG Invest.'!D$101 -> 0 | H22: =G22 -> 0 | J22: ='App.2-FA Proposed REG Invest.'!E$101 -> 0 | K22: =J22 -> 0 | M22: ='App.2-FA Proposed REG Invest.'!F$101 -> 0 | N22: =M22 -> 0 | P22: ='App.2-FA Proposed REG Invest.'!G$101 -> 0 | Q22: =P22 -> 0 | S22: ='App.2-FA Proposed REG Invest.'!H$101 -> 0 | T22: =S22 -> 0 | V22: ='App.2-FA Proposed REG Invest.'!I$101 -> 0 | W22: =V22 -> 0 | Y22: ='App.2-FA Proposed REG Invest.'!J$101 -> 0 | Z22: =Y22 -> 0 | AB22: ='App.2-FA Proposed REG Invest.'!K$101 -> 0 | AC22: =AB22 -> 0
A23: Incremental OM&A (start-up, applicable for Provincial Recovery) | D23: ='App.2-FA Proposed REG Invest.'!C100 -> 0 | E23: =D23*E20 -> 0 | F23: =D23*F20 -> 0 | G23: ='App.2-FA Proposed REG Invest.'!D$100 -> 0 | H23: =G23*H20 -> 0 | I23: =G23*I20 -> 0 | J23: ='App.2-FA Proposed REG Invest.'!E$100 -> 0 | K23: =J23*K20 -> 0 | L23: =J23*L20 -> 0 | M23: ='App.2-FA Proposed REG Invest.'!F$100 -> 0 | N23: =M23*N20 -> 0 | O23: =M23*O20 -> 0 | P23: ='App.2-FA Proposed REG Invest.'!G$100 -> 0 | Q23: =P23*Q20 -> 0 | R23: =P23*R20 -> 0 | S23: ='App.2-FA Proposed REG Invest.'!H$100 -> 0 | T23: =S23*T20 -> 0 | U23: =S23*U20 -> 0 | V23: ='App.2-FA Proposed REG Invest.'!I$100 -> 0 | W23: =V23*W20 -> 0 | X23: =V23*X20 -> 0 | Y23: ='App.2-FA Proposed REG Invest.'!J$100 -> 0 | Z23: =Y23*Z20 -> 0 | AA23: =Y23*AA20 -> 0 | AB23: ='App.2-FA Proposed REG Invest.'!K$100 -> 0 | AC23: =AB23*AC20 -> 0 | AD23: =AB23*AD20 -> 0
A24: WCA | E24: =(E22+E23)*$B$24 -> 0 | F24: =F23*$B$24 -> 0 | H24: =(H22+H23)*$B$24 -> 0 | I24: =I23*$B$24 -> 0 | K24: =(K22+K23)*$B$24 -> 0 | L24: =L23*$B$24 -> 0 | N24: =(N22+N23)*$B$24 -> 0 | O24: =O23*$B$24 -> 0 | Q24: =(Q22+Q23)*$B$24 -> 0 | R24: =R23*$B$24 -> 0 | T24: =(T22+T23)*$B$24 -> 0 | U24: =U23*$B$24 -> 0 | W24: =(W22+W23)*$B$24 -> 0 | X24: =X23*$B$24 -> 0 | Z24: =(Z22+Z23)*$B$24 -> 0 | AA24: =AA23*$B$24 -> 0 | AC24: =(AC22+AC23)*$B$24 -> 0 | AD24: =AD23*$B$24 -> 0
A25: Rate Base | E25: =SUM(E21+E24) -> 0 | F25: =SUM(F21+F24) -> 0 | H25: =SUM(H21+H24) -> 0 | I25: =SUM(I21+I24) -> 0 | K25: =SUM(K21+K24) -> 0 | L25: =SUM(L21+L24) -> 0 | N25: =SUM(N21+N24) -> 0 | O25: =SUM(O21+O24) -> 0 | Q25: =SUM(Q21+Q24) -> 0 | R25: =SUM(R21+R24) -> 0 | T25: =SUM(T21+T24) -> 0 | U25: =SUM(U21+U24) -> 0 | W25: =SUM(W21+W24) -> 0 | X25: =SUM(X21+X24) -> 0 | Z25: =SUM(Z21+Z24) -> 0 | AA25: =SUM(AA21+AA24) -> 0 | AC25: =SUM(AC21+AC24) -> 0 | AD25: =SUM(AD21+AD24) -> 0
A28: Deemed ST Debt | E28: =E25*$B$28 -> 0 | F28: =F25*$B$28 -> 0 | H28: =H25*$B$28 -> 0 | I28: =I25*$B$28 -> 0 | K28: =K25*$B$28 -> 0 | L28: =L25*$B$28 -> 0 | N28: =N25*$B$28 -> 0 | O28: =O25*$B$28 -> 0 | Q28: =Q25*$B$28 -> 0 | R28: =R25*$B$28 -> 0 | T28: =T25*$B$28 -> 0 | U28: =U25*$B$28 -> 0 | W28: =W25*$B$28 -> 0 | X28: =X25*$B$28 -> 0 | Z28: =Z25*$B$28 -> 0 | AA28: =AA25*$B$28 -> 0 | AC28: =AC25*$B$28 -> 0 | AD28: =AD25*$B$28 -> 0
A29: Deemed LT Debt | E29: =E25*$B$29 -> 0 | F29: =F25*$B$29 -> 0 | H29: =H25*$B$29 -> 0 | I29: =I25*$B$29 -> 0 | K29: =K25*$B$29 -> 0 | L29: =L25*$B$29 -> 0 | N29: =N25*$B$29 -> 0 | O29: =O25*$B$29 -> 0 | Q29: =Q25*$B$29 -> 0 | R29: =R25*$B$29 -> 0 | T29: =T25*$B$29 -> 0 | U29: =U25*$B$29 -> 0 | W29: =W25*$B$29 -> 0 | X29: =X25*$B$29 -> 0 | Z29: =Z25*$B$29 -> 0 | AA29: =AA25*$B$29 -> 0 | AC29: =AC25*$B$29 -> 0 | AD29: =AD25*$B$29 -> 0
A30: Deemed Equity | E30: =E25*$B$30 -> 0 | F30: =F25*$B$30 -> 0 | H30: =H25*$B$30 -> 0 | I30: =I25*$B$30 -> 0 | K30: =K25*$B$30 -> 0 | L30: =L25*$B$30 -> 0 | N30: =N25*$B$30 -> 0 | O30: =O25*$B$30 -> 0 | Q30: =Q25*$B$30 -> 0 | R30: =R25*$B$30 -> 0 | T30: =T25*$B$30 -> 0 | U30: =U25*$B$30 -> 0 | W30: =W25*$B$30 -> 0 | X30: =X25*$B$30 -> 0 | Z30: =Z25*$B$30 -> 0 | AA30: =AA25*$B$30 -> 0 | AC30: =AC25*$B$30 -> 0 | AD30: =AD25*$B$30 -> 0
A32: ST Interest | E32: =E28*$B$32 -> 0 | F32: =F28*$B$32 -> 0 | H32: =H28*$B$32 -> 0 | I32: =I28*$B$32 -> 0 | K32: =K28*$B$32 -> 0 | L32: =L28*$B$32 -> 0 | N32: =N28*$B$32 -> 0 | O32: =O28*$B$32 -> 0 | Q32: =Q28*$B$32 -> 0 | R32: =R28*$B$32 -> 0 | T32: =T28*$B$32 -> 0 | U32: =U28*$B$32 -> 0 | W32: =W28*$B$32 -> 0 | X32: =X28*$B$32 -> 0 | Z32: =Z28*$B$32 -> 0 | AA32: =AA28*$B$32 -> 0 | AC32: =AC28*$B$32 -> 0 | AD32: =AD28*$B$32 -> 0
A33: LT Interest | E33: =E29*$B$33 -> 0 | F33: =F29*$B$33 -> 0 | H33: =H29*$B$33 -> 0 | I33: =I29*$B$33 -> 0 | K33: =K29*$B$33 -> 0 | L33: =L29*$B$33 -> 0 | N33: =N29*$B$33 -> 0 | O33: =O29*$B$33 -> 0 | Q33: =Q29*$B$33 -> 0 | R33: =R29*$B$33 -> 0 | T33: =T29*$B$33 -> 0 | U33: =U29*$B$33 -> 0 | W33: =W29*$B$33 -> 0 | X33: =X29*$B$33 -> 0 | Z33: =Z29*$B$33 -> 0 | AA33: =AA29*$B$33 -> 0 | AC33: =AC29*$B$33 -> 0 | AD33: =AD29*$B$33 -> 0
A34: ROE | E34: =E30*$B$34 -> 0 | F34: =F30*$B$34 -> 0 | H34: =H30*$B$34 -> 0 | I34: =I30*$B$34 -> 0 | K34: =K30*$B$34 -> 0 | L34: =L30*$B$34 -> 0 | N34: =N30*$B$34 -> 0 | O34: =O30*$B$34 -> 0 | Q34: =Q30*$B$34 -> 0 | R34: =R30*$B$34 -> 0 | T34: =T30*$B$34 -> 0 | U34: =U30*$B$34 -> 0 | W34: =W30*$B$34 -> 0 | X34: =X30*$B$34 -> 0 | Z34: =Z30*$B$34 -> 0 | AA34: =AA30*$B$34 -> 0 | AC34: =AC30*$B$34 -> 0 | AD34: =AD30*$B$34 -> 0
A35: Cost of Capital Total | E35: =SUM(E32:E34) -> 0 | F35: =SUM(F32:F34) -> 0 | H35: =SUM(H32:H34) -> 0 | I35: =SUM(I32:I34) -> 0 | K35: =SUM(K32:K34) -> 0 | L35: =SUM(L32:L34) -> 0 | N35: =SUM(N32:N34) -> 0 | O35: =SUM(O32:O34) -> 0 | Q35: =SUM(Q32:Q34) -> 0 | R35: =SUM(R32:R34) -> 0 | T35: =SUM(T32:T34) -> 0 | U35: =SUM(U32:U34) -> 0 | W35: =SUM(W32:W34) -> 0 | X35: =SUM(X32:X34) -> 0 | Z35: =SUM(Z32:Z34) -> 0 | AA35: =SUM(AA32:AA34) -> 0 | AC35: =SUM(AC32:AC34) -> 0 | AD35: =SUM(AD32:AD34) -> 0
A37: OM&A | E37: =E22+E23 -> 0 | F37: =F23 -> 0 | H37: =H22+H23 -> 0 | I37: =I23 -> 0 | K37: =K22+K23 -> 0 | L37: =L23 -> 0 | N37: =N22+N23 -> 0 | O37: =O23 -> 0 | Q37: =Q22+Q23 -> 0 | R37: =R23 -> 0 | T37: =T22+T23 -> 0 | U37: =U23 -> 0 | W37: =W22+W23 -> 0 | X37: =X23 -> 0 | Z37: =Z22+Z23 -> 0 | AA37: =AA23 -> 0 | AC37: =AC22+AC23 -> 0 | AD37: =AD23 -> 0
A38: Amortization | D38: =D78 -> 0 | E38: =D38*E$20 -> 0 | F38: =D38*F$20 -> 0 | G38: =E78 -> 0 | H38: =G38*H$20 -> 0 | I38: =G38*I$20 -> 0 | J38: =F78 -> 0 | K38: =J38*K$20 -> 0 | L38: =J38*L$20 -> 0 | M38: =G78 -> 0 | N38: =M38*N$20 -> 0 | O38: =M38*O$20 -> 0 | P38: =H76+H77 -> 0 | Q38: =P38*Q$20 -> 0 | R38: =P38*R$20 -> 0 | S38: =I76+I77 -> 0 | T38: =S38*T$20 -> 0 | U38: =S38*U$20 -> 0 | V38: =J76+J77 -> 0 | W38: =V38*W$20 -> 0 | X38: =V38*X$20 -> 0 | Y38: =K76+K77 -> 0 | Z38: =Y38*Z$20 -> 0 | AA38: =Y38*AA$20 -> 0 | AB38: =L76+L77 -> 0 | AC38: =AB38*AC$20 -> 0 | AD38: =AB38*AD$20 -> 0
A39: Grossed-up PILs | E39: =E66 -> 0 | F39: =F66 -> 0 | H39: =H66 -> 0 | I39: =I66 -> 0 | K39: =K66 -> 0 | L39: =L66 -> 0 | N39: =N66 -> 0 | O39: =O66 -> 0 | Q39: =Q66 -> 0 | R39: =R66 -> 0 | T39: =T66 -> 0 | U39: =U66 -> 0 | W39: =W66 -> 0 | X39: =X66 -> 0 | Z39: =Z66 -> 0 | AA39: =AA66 -> 0 | AC39: =AC66 -> 0 | AD39: =AD66 -> 0
A41: Revenue Requirement | E41: =SUM(E35:E39) -> 0 | F41: =SUM(F35:F39) -> 0 | H41: =SUM(H35:H39) -> 0 | I41: =SUM(I35:I39) -> 0 | K41: =SUM(K35:K39) -> 0 | L41: =SUM(L35:L39) -> 0 | N41: =SUM(N35:N39) -> 0 | O41: =SUM(O35:O39) -> 0 | Q41: =SUM(Q35:Q39) -> 0 | R41: =SUM(R35:R39) -> 0 | T41: =SUM(T35:T39) -> 0 | U41: =SUM(U35:U39) -> 0 | W41: =SUM(W35:W39) -> 0 | X41: =SUM(X35:X39) -> 0 | Z41: =SUM(Z35:Z39) -> 0 | AA41: =SUM(AA35:AA39) -> 0 | AC41: =SUM(AC35:AC39) -> 0 | AD41: =SUM(AD35:AD39) -> 0
A44: Provincial Rate Protection | F44: =F41 -> 0 | I44: =I41 -> 0 | L44: =L41 -> 0 | O44: =O41 -> 0 | R44: =R41 -> 0 | U44: =U41 -> 0 | X44: =X41 -> 0 | AA44: =AA41 -> 0 | AD44: =AD41 -> 0
A46: Monthly Amount Paid by IESO | F46: =F44/12 -> 0 | I46: =I44/12 -> 0 | L46: =L44/12 -> 0 | O46: =O44/12 -> 0 | R46: =R44/12 -> 0 | U46: =U44/12 -> 0 | X46: =X44/12 -> 0 | AA46: =AA44/12 -> 0 | AD46: =AD44/12 -> 0
A48: Note 1: The difference between the actual costs of approved eligible investments and revenue received from the IESO should be recorded in a variance account. The Board may provide
A49: regulatory accounting guidance regarding a variance account either in an individual proceeding or on a generic basis.
A50: Note 2: For the 2016 Test Year, Costs and Revenues of the Direct Benefit are to be included in the test year applicant Rate Base and Revenues.
A52: PILs Calculation
E53: 2012 | H53: 2013 | K53: 2014 | N53: 2015 | Q53: 2016 TEST YEAR | T53: 2017 | W53: 2018 | Z53: 2019 | AC53: 2020
A54: Income Tax | E54: Direct Benefit | F54: Provincial | H54: Direct Benefit | I54: Provincial | K54: Direct Benefit | L54: Provincial | N54: Direct Benefit | O54: Provincial | Q54: Direct Benefit | R54: Provincial | T54: Direct Benefit | U54: Provincial | W54: Direct Benefit | X54: Provincial | Z54: Direct Benefit | AA54: Provincial | AC54: Direct Benefit | AD54: Provincial
V55: Total | Y55: Total | AB55: Total
A56: Net Income - ROE on Rate Base | E56: =E34 -> 0 | F56: =F34 -> 0 | H56: =H34 -> 0 | I56: =I34 -> 0 | K56: =K34 -> 0 | L56: =L34 -> 0 | N56: =N34 -> 0 | O56: =O34 -> 0 | Q56: =Q34 -> 0 | R56: =R34 -> 0 | T56: =T34 -> 0 | U56: =U34 -> 0 | W56: =W34 -> 0 | X56: =X34 -> 0 | Z56: =Z34 -> 0 | AA56: =AA34 -> 0 | AC56: =AC34 -> 0 | AD56: =AD34 -> 0
A57: Amortization (17% DB and 83% P) | E57: =E38 -> 0 | F57: =F38 -> 0 | H57: =H38 -> 0 | I57: =I38 -> 0 | K57: =K38 -> 0 | L57: =L38 -> 0 | N57: =N38 -> 0 | O57: =O38 -> 0 | Q57: =Q38 -> 0 | R57: =R38 -> 0 | T57: =T38 -> 0 | U57: =U38 -> 0 | W57: =W38 -> 0 | X57: =X38 -> 0 | Z57: =Z38 -> 0 | AA57: =AA38 -> 0 | AC57: =AC38 -> 0 | AD57: =AD38 -> 0
A58: CCA (17% DB and 83% P) | E58: =-D94*E$20 -> 0 | F58: =-D94*F$20 -> 0 | H58: =-E94*H$20 -> 0 | I58: =-E94*I$20 -> 0 | K58: =-F94*K$20 -> 0 | L58: =-F94*L$20 -> 0 | N58: =-G94*N$20 -> 0 | O58: =-G94*O$20 -> 0 | Q58: =-H94*Q$20 -> 0 | R58: =-H94*R$20 -> 0 | T58: =-I94*T$20 -> 0 | U58: =-I94*U$20 -> 0 | W58: =-J94*W$20 -> 0 | X58: =-J94*X$20 -> 0 | Z58: =-K94*Z$20 -> 0 | AA58: =-K94*AA$20 -> 0 | AC58: =-L94*AC$20 -> 0 | AD58: =-L94*AD$20 -> 0
A59: Taxable income | E59: =SUM(E56:E58) -> 0 | F59: =SUM(F56:F58) -> 0 | H59: =SUM(H56:H58) -> 0 | I59: =SUM(I56:I58) -> 0 | K59: =SUM(K56:K58) -> 0 | L59: =SUM(L56:L58) -> 0 | N59: =SUM(N56:N58) -> 0 | O59: =SUM(O56:O58) -> 0 | Q59: =SUM(Q56:Q58) -> 0 | R59: =SUM(R56:R58) -> 0 | T59: =SUM(T56:T58) -> 0 | U59: =SUM(U56:U58) -> 0 | W59: =SUM(W56:W58) -> 0 | X59: =SUM(X56:X58) -> 0 | Z59: =SUM(Z56:Z58) -> 0 | AA59: =SUM(AA56:AA58) -> 0 | AC59: =SUM(AC56:AC58) -> 0 | AD59: =SUM(AD56:AD58) -> 0
A61: Tax Rate (to be entered)
A63: Income Taxes Payable | E63: =E59*E61 -> 0 | F63: =F59*F61 -> 0 | H63: =H59*H61 -> 0 | I63: =I59*I61 -> 0 | K63: =K59*K61 -> 0 | L63: =L59*L61 -> 0 | N63: =N59*N61 -> 0 | O63: =O59*O61 -> 0 | Q63: =Q59*Q61 -> 0 | R63: =R59*R61 -> 0 | T63: =T59*T61 -> 0 | U63: =U59*U61 -> 0 | W63: =W59*W61 -> 0 | X63: =X59*X61 -> 0 | Z63: =Z59*Z61 -> 0 | AA63: =AA59*AA61 -> 0 | AC63: =AC59*AC61 -> 0 | AD63: =AD59*AD61 -> 0
A64: Gross Up
A65: Income Taxes Payable | E65: =E63/(1-E61) -> 0 | F65: =F63/(1-F61) -> 0 | H65: =H63/(1-H61) -> 0 | I65: =I63/(1-I61) -> 0 | K65: =K63/(1-K61) -> 0 | L65: =L63/(1-L61) -> 0 | N65: =N63/(1-N61) -> 0 | O65: =O63/(1-O61) -> 0 | Q65: =Q63/(1-Q61) -> 0 | R65: =R63/(1-R61) -> 0 | T65: =T63/(1-T61) -> 0 | U65: =U63/(1-U61) -> 0 | W65: =W63/(1-W61) -> 0 | X65: =X63/(1-X61) -> 0 | Z65: =Z63/(1-Z61) -> 0 | AA65: =AA63/(1-AA61) -> 0 | AC65: =AC63/(1-AC61) -> 0 | AD65: =AD63/(1-AD61) -> 0
A66: Grossed Up PILs | E66: =SUM(E65:E65) -> 0 | F66: =SUM(F65:F65) -> 0 | H66: =SUM(H65:H65) -> 0 | I66: =SUM(I65:I65) -> 0 | K66: =SUM(K65:K65) -> 0 | L66: =SUM(L65:L65) -> 0 | N66: =SUM(N65:N65) -> 0 | O66: =SUM(O65:O65) -> 0 | Q66: =SUM(Q65:Q65) -> 0 | R66: =SUM(R65:R65) -> 0 | T66: =SUM(T65:T65) -> 0 | U66: =SUM(U65:U65) -> 0 | W66: =SUM(W65:W65) -> 0 | X66: =SUM(X65:X65) -> 0 | Z66: =SUM(Z65:Z65) -> 0 | AA66: =SUM(AA65:AA65) -> 0 | AC66: =SUM(AC65:AC65) -> 0 | AD66: =SUM(AD65:AD65) -> 0
A69: Net Fixed Assets | D69: 2011 | E69: 2012 | F69: 2013 | G69: 2014 | H69: 2015 | I69: 2016 | J69: 2017 | K69: 2018 | L69: 2019
B70: Enter applicable amortization in years: | C70: 25
A71: Opening Gross Fixed Assets | E71: =D73 -> 0 | F71: 0 | G71: 0 | H71: 0 | I71: 0 | J71: 0 | K71: 0 | L71: 0
A72: Gross Capital Additions | D72: ='App.2-FA Proposed REG Invest.'!C99 -> 0 | E72: ='App.2-FA Proposed REG Invest.'!D99 -> 0 | F72: ='App.2-FA Proposed REG Invest.'!E99 -> 0 | G72: ='App.2-FA Proposed REG Invest.'!F99 -> 0 | H72: ='App.2-FA Proposed REG Invest.'!G99 -> 0 | I72: ='App.2-FA Proposed REG Invest.'!H99 -> 0 | J72: ='App.2-FA Proposed REG Invest.'!I99 -> 0 | K72: ='App.2-FA Proposed REG Invest.'!J99 -> 0 | L72: ='App.2-FA Proposed REG Invest.'!K99 -> 0
A73: Closing Gross Fixed Assets | D73: =SUM(D71:D72) -> 0 | E73: 0 | F73: 0 | G73: 0 | H73: 0 | I73: 0 | J73: 0 | K73: 0 | L73: 0
A75: Opening Accumulated Amortization | E75: =+D78 -> 0 | F75: =E78 -> 0 | G75: 0 | H75: =G78 -> 0 | I75: =H78 -> 0 | J75: =I78 -> 0 | K75: =J78 -> 0 | L75: =K78 -> 0
A76: Current Year Amortization (before additions) | E76: =IF(ISERROR(E71/$C$70), 0, E71/$C$70) -> 0 | F76: 0 | G76: 0 | H76: =H71/$C$70 -> 0 | I76: =I71/$C$70 -> 0 | J76: =J71/$C$70 -> 0 | K76: =K71/$C$70 -> 0 | L76: =L71/$C$70 -> 0
A77: Additions (half year) | D77: =D72/C70/2 -> 0 | E77: =E72/C70/2 -> 0 | F77: =F72/C70/2 -> 0 | G77: =G72/C70/2 -> 0 | H77: =H72/C70/2 -> 0 | I77: =I72/C70/2 -> 0 | J77: =J72/C70/2 -> 0 | K77: =K72/C70/2 -> 0 | L77: =L72/C70/2 -> 0
A78: Closing Accumulated Amortization | D78: =SUM(D75+D77) -> 0 | E78: =SUM(E75:E77) -> 0 | F78: 0 | G78: 0 | H78: 0 | I78: 0 | J78: 0 | K78: 0 | L78: 0
A80: Opening Net Fixed Assets | D80: =D71-D75 -> 0 | E80: =E71-E75 -> 0 | F80: =F71-F75 -> 0 | G80: =G71-G75 -> 0 | H80: =G81 -> 0 | I80: =H81 -> 0 | J80: =I81 -> 0 | K80: =J81 -> 0 | L80: =K81 -> 0
A81: Closing Net Fixed Assets | D81: =D73-D78 -> 0 | E81: 0 | F81: 0 | G81: 0 | H81: 0 | I81: 0 | J81: 0 | K81: 0 | L81: 0
A82: Average Net Fixed Assets | D82: =SUM(D80:D81)/2 -> 0 | E82: 0 | F82: 0 | G82: 0 | H82: 0 | I82: 0 | J82: 0 | K82: 0 | L82: 0
A84: UCC for PILs Calculation
D85: 2014 | E85: 2014 | F85: 2014 | G85: 2014 | H85: 2015 | I85: 2016 | J85: 2017 | K85: 2018 | L85: 2019
A87: Opening UCC | E87: =D95 -> 0 | F87: 0 | G87: 0 | H87: 0 | I87: 0 | J87: 0 | K87: 0 | L87: 0
A88: Capital Additions (from Appendix 2-FA) | D88: =D72 -> 0 | E88: 0 | F88: 0 | G88: 0 | H88: 0 | I88: 0 | J88: 0 | K88: 0 | L88: 0
A89: UCC Before Half Year Rule | D89: =SUM(D87:D88) -> 0 | E89: 0 | F89: 0 | G89: 0 | H89: 0 | I89: 0 | J89: 0 | K89: 0 | L89: 0
A90: Half Year Rule (1/2 Additions - Disposals) | D90: =D88/2 -> 0 | E90: 0 | F90: 0 | G90: 0 | H90: 0 | I90: 0 | J90: 0 | K90: 0 | L90: 0
A91: Reduced UCC | D91: =D89-D90 -> 0 | E91: 0 | F91: 0 | G91: 0 | H91: 0 | I91: 0 | J91: 0 | K91: 0 | L91: 0
A92: CCA Rate Class (to be entered) | C92: 47 | D92: =$C$92 -> 47 | E92: =$C$92 -> 47 | F92: 47 | G92: 47 | H92: 47 | I92: 47 | J92: 47 | K92: 47 | L92: 47
A93: CCA Rate (to be entered) | C93: 0.08 | D93: =$C$93 -> 0.08 | E93: =$C$93 -> 0.08 | F93: 0.08 | G93: 0.08 | H93: 0.08 | I93: 0.08 | J93: 0.08 | K93: 0.08 | L93: 0.08
A94: CCA | D94: =D91*D$93 -> 0 | E94: =E91*E$93 -> 0 | F94: =F91*F$93 -> 0 | G94: =G91*G$93 -> 0 | H94: =H91*H$93 -> 0 | I94: 0 | J94: 0 | K94: 0 | L94: 0
A95: Closing UCC | D95: =D89-D94 -> 0 | E95: 0 | F95: 0 | G95: 0 | H95: 0 | I95: 0 | J95: 0 | K95: 0 | L95: 0

Sheet App.2-G SQI
I1: File Number: | K1: =EBNUMBER -> EB-2015-0089
I2: Exhibit: | K2: 2
I3: Tab:
I4: Schedule: | K4: Table 2-30
I5: Page: | K5: 69
I7: Date: | K7: Aug 28, 2015
A9: Appendix 2-G
A10: Service Reliability Indicators
A11: 2010 - 2014
A12: (Includes the 2013 Ice Storm)
A13: Index | B13: Including outages caused by loss of supply | G13: Excluding outages caused by loss of supply
B14: 2010 | C14: 2011 | D14: 2012 | E14: 2013 | F14: 2014 | G14: 2010 | H14: 2011 | I14: 2012 | J14: 2013 | K14: 2014
A15: SAIDI | B15: 0.6846 | C15: 1.3965 | D15: 0.8854 | E15: 8.41 | F15: 1.22970638 | G15: 0.5464 | H15: 1.0455 | I15: 0.8152 | J15: 7.94 | K15: 1.22267573
A16: SAIFI | B16: 0.7345 | C16: 1.3071 | D16: 1.1049 | E16: 1.02 | F16: 1.059291592 | G16: 0.3973 | H16: 1.1178 | I16: 1.0509 | J16: 0.99 | K16: 1.056314848
A18: 5 Year Historical Average
A19: SAIDI | F19: =IF(ISERROR(AVERAGE(B15:F15)), "", AVERAGE(B15:F15)) -> 2.521241276 | K19: =IF(ISERROR(AVERAGE(G15:K15)), "", AVERAGE(G15:K15)) -> 2.313955146
A20: SAIFI | F20: =IF(ISERROR(AVERAGE(B16:F16)), "", AVERAGE(B16:F16)) -> 1.045158318 | K20: =IF(ISERROR(AVERAGE(G16:K16)), "", AVERAGE(G16:K16)) -> 0.9224629696
A22: SAIDI = System Average Interruption Duration Index
A23: SAIFI = System Average Interruption Frequency Index
A25: (Excludes the 2013 Ice Storm)
A26: Index | B26: Including outages caused by loss of supply | G26: Excluding outages caused by loss of supply
B27: 2010 | C27: 2011 | D27: 2012 | E27: 2013 | F27: 2014 | G27: 2010 | H27: 2011 | I27: 2012 | J27: 2013 | K27: 2014
A28: SAIDI | B28: 0.6846 | C28: 1.3965 | D28: 0.8854 | E28: 1.69 | F28: 1.22970638 | G28: 0.5464 | H28: 1.0455 | I28: 0.8152 | J28: 1.52 | K28: 1.22267573
A29: SAIFI | B29: 0.7345 | C29: 1.3071 | D29: 1.1049 | E29: 0.68 | F29: 1.059291592 | G29: 0.3973 | H29: 1.1178 | I29: 1.0509 | J29: 0.66 | K29: 1.056314848
A31: 5 Year Historical Average
A32: SAIDI | F32: =IF(ISERROR(AVERAGE(B28:F28)), "", AVERAGE(B28:F28)) -> 1.177241276 | K32: =IF(ISERROR(AVERAGE(G28:K28)), "", AVERAGE(G28:K28)) -> 1.029955146
A33: SAIFI | F33: =IF(ISERROR(AVERAGE(B29:F29)), "", AVERAGE(B29:F29)) -> 0.9771583184 | K33: =IF(ISERROR(AVERAGE(G29:K29)), "", AVERAGE(G29:K29)) -> 0.8564629696
A35: SAIDI = System Average Interruption Duration Index
A36: SAIFI = System Average Interruption Frequency Index
A38: Indicator | C38: OEB Minimum Standard | D38: 2010 | E38: 2011 | F38: 2012 | G38: 2013 | H38: 2014
A39: Low Voltage Connections | C39: 0.9 | D39: 0.991 | E39: 0.99 | F39: 0.986 | G39: 0.98 | H39: 0.995
A40: High Voltage Connections | C40: 0.9 | D40: n/a | E40: n/a | F40: n/a | G40: n/a | H40: n/a
A41: Telephone Accessibility | C41: 0.65 | D41: 0.79 | E41: 0.768 | F41: 0.826 | G41: 0.745 | H41: 0.778
A42: Appointments Met | C42: 0.9 | D42: 0 | E42: 1 | F42: 1 | G42: 0.997 | H42: 0.998
A43: Written Response to Enquires | C43: 0.8 | D43: 1 | E43: 1 | F43: 1 | G43: 1 | H43: 1
A44: Emergency Urban Response | C44: 0.8 | D44: 1 | E44: 1 | F44: 1 | G44: 1 | H44: 1
A45: Emergency Rural Response | C45: 0.8 | D45: 1 | E45: 1 | F45: 1 | G45: 1 | H45: 1
A46: Telephone Call Abandon Rate | C46: 0.1 | D46: 0.019 | E46: 0 | F46: 0.001 | G46: 0.057 | H46: 0.026
A47: Appointment Scheduling | C47: 0.9 | D47: 1 | E47: 1 | F47: 0.967 | G47: 0.943 | H47: 0.969
A48: Rescheduling a Missed Appointment | C48: 1 | D48: n/a | E48: n/a | F48: n/a | G48: n/a | H48: 1
A49: Reconnection Performance Standard | C49: 0.85 | D49: 0 | E49: 0.948 | F49: 0.931 | G49: 0.912 | H49: 0.951

Sheet App.2-H_Other_Oper_Rev
I1: File Number: | J1: =EBNUMBER -> EB-2015-0089
I2: Exhibit: | J2: 3
I3: Tab:
I4: Schedule: | J4: Table 3-16
I5: Page: | J5: 36
I7: Date: | J7: Aug 28, 2015
A9: Appendix 2-H
A10: Other Operating Revenue
A12: USoA # | B12: USoA Description | C12: Last Rebasing Year | D12: =H13-3 & " Actual" -> 2011 Actual | E12: =H13-2 & " Actual" -> 2012 Actual | F12: =H13-1 & " Actual" & CHAR(178) -> 2013 Actual² | G12: ="Actual Year" & CHAR(178) -> Actual Year² | H12: ="Actual Year" & CHAR(178) -> Actual Year² | I12: ="Bridge Year" & CHAR(178) -> Bridge Year² | J12: Test Year
C13: 2011 Approved | D13: 2011 | E13: 2012 | F13: 2013 | G13: 2013 | H13: 2014 | I13: =BridgeYear -> 2015 | J13: =TestYear -> 2016
B14: Reporting Basis | C14: CGAAP | D14: CGAAP | E14: CGAAP | F14: CGAAP | G14: MIFRS | H14: MIFRS | I14: MIFRS | J14: MIFRS
A15: 4235 | B15: Specific Service Charges | C15: 403492 | D15: 520106 | E15: 490084 | F15: 651385 | G15: 651385 | H15: 640410 | I15: 625319 | J15: 677992
A16: 4225 | B16: Late Payment Charges | C16: 156670 | D16: 161220 | E16: 170412 | F16: 197390 | G16: 197390 | H16: 174673.44 | I16: 182084 | J16: 191188
A17: 4082/4084 | B17: Retail Services Revenues | C17: 36869 | D17: 31276 | E17: 26548 | F17: 23215 | G17: 23215 | H17: 21891.6 | I17: 23121 | J17: 24277
A18: 4210 | B18: Rent from Electric Property | C18: 135213 | D18: 150186 | E18: 150408 | F18: 151415 | G18: 151415 | H18: 150118.92 | I18: 154966 | J18: 156515
A19: 4215 | B19: Other Operating Income | C19: 75804 | J19: 111495
A20: 4355 | B20: Disposal of Fixed Assets | C20: 6250 | D20: 1593 | E20: 2012 | F20: 25000 | G20: 25000 | H20: 1200 | I20: 0
A21: 4390 | B21: Misc. Non-Operating Income | C21: 600101 | D21: 598637 | E21: 539016 | F21: 554153 | G21: 554153 | H21: 613863.83 | I21: 613901 | J21: 652655
A22: 4375 | B22: Revenues from Non Utility Operations | C22: 0 | D22: 527378 | E22: 443399 | F22: 320525 | G22: 320525 | H22: 920720.97 | I22: 0 | J22: 0
A23: 4380 | B23: Expenses from Non Utility Operations | C23: 0 | D23: -412129 | E23: -429875 | F23: -300681 | G23: -300681 | H23: -920720.97 | I23: 0 | J23: 0
A24: 4405 | B24: Interest and Dividend Income | C24: 45000 | D24: 38539 | E24: 64159 | F24: 89345 | G24: 89345 | H24: 123861.38 | I24: 103033 | J24: 88033
A27: Specific Service Charges | C27: =C15 -> 403492 | D27: 520106 | E27: 490084 | F27: 651385 | G27: 651385 | H27: 640410 | I27: 625319 | J27: 677992
A28: Late Payment Charges | C28: 156670 | D28: 161220 | E28: 170412 | F28: 197390 | G28: 197390 | H28: 174673.44 | I28: 182084 | J28: 191188
A29: Other Operating Revenues | C29: =+C17+C18+C19 -> 247886 | D29: =+D17+D18 -> 181462 | E29: 176956 | F29: 174630 | G29: 174630 | H29: 172010.52 | I29: 178087 | J29: =+J17+J18+J19 -> 292287
A30: Other Income or Deductions | C30: =+C20+C21+C22+C23+C24 -> 651351 | D30: =+D20+D21+D22+D23+D24 -> 754018 | E30: =+E20+E21+E22+E23+E24 -> 618711 | F30: 688342 | G30: 688342 | H30: 738925.21 | I30: 716934 | J30: 740688
A31: Total | C31: =SUM(C27:C30) -> 1459399 | D31: =SUM(D27:D30) -> 1616806 | E31: 1456163 | F31: 1711747 | G31: =SUM(G27:G30) -> 1711747 | H31: 1726019.17 | I31: 1702424 | J31: 1902155
A33: Description | D33: Account(s)
A34: Specific Service Charges: | D34: 4235
A35: Late Payment Charges: | D35: 4225
A36: Other Distribution Revenues: | D36: 4080, 4082, 4084, 4090, 4205, 4210, 4215, 4220, 4240, 4245
A37: Other Income and Expenses: | D37: 4305, 4310, 4315, 4320, 4325, 4330, 4335, 4340, 4345, 4350, 4355, 4360, 4365, 4370, 4375, 4380, 4385, 4390, 4395, 4398, 4405, 4415
A40: Note: Add all applicable accounts listed above to the table and include all relevant information.
A42: Account Breakdown Details
A44: For each "Other Operating Revenue" and "Other Income or Deductions" Account, a detailed breakdown of the account components is required. See the example below for Account 4405, Interest and Dividend Income.
A48: Account 4082/4084 - Revenue from Services - Distribution
D49: =D12 -> 2011 Actual | E49: 2012 Actual | F49: 2013 Actual² | G49: Actual Year² | H49: Actual Year² | I49: Bridge Year² | J49: Test Year
D50: 2011 | E50: 2012 | F50: 2013 | G50: =G13 -> 2013 | H50: =H13 -> 2014 | I50: =I13 -> 2015 | J50: =J13 -> 2016
A51: Reporting Basis | D51: =IF(D14=0, "", D14) -> CGAAP | E51: CGAAP | F51: CGAAP | G51: MIFRS | H51: MIFRS | I51: MIFRS | J51: MIFRS
A52: Retailer - LDC Consolidated Billing | D52: 10299 | E52: 8477 | F52: 7228 | G52: 7228 | H52: 6715 | I52: 7098 | J52: 7453
A53: Retailer - Monthly Fixed Charge | D53: 3120 | E53: 3300 | F53: 3300 | G53: 3300 | H53: 3400 | I53: 3556 | J53: 3734
A54: Retailer - Monthly Variable Charge | D54: 17178 | E54: 14165 | F54: 12098 | G54: 12098 | H54: 11255 | I54: 11895 | J54: 12490
A55: Retailer - STR Request Fee | D55: 244 | E55: 219 | F55: 220 | G55: 220 | H55: 188 | I55: 204 | J55: 214
A56: Retailer - STR Processing Fee | D56: 435 | E56: 387 | F56: 369 | G56: 369 | H56: 335 | I56: 368 | J56: 386
A57: Total | D57: =SUM(D52:D56) -> 31276 | E57: 26548 | F57: 23215 | G57: =SUM(G52:G56) -> 23215 | H57: 21893 | I57: 23121 | J57: 24277
A59: Account 4210 - Rent from Electric Property
D60: =+D49 -> 2011 Actual | E60: =+E49 -> 2012 Actual | F60: 2013 Actual² | G60: =+G49 -> Actual Year² | H60: Actual Year² | I60: Bridge Year² | J60: Test Year
D61: =+D50 -> 2011 | E61: =+E50 -> 2012 | F61: 2013 | G61: =+G50 -> 2013 | H61: 2014 | I61: 2015 | J61: 2016
A62: Reporting Basis | D62: =+D51 -> CGAAP | E62: =+E51 -> CGAAP | F62: CGAAP | G62: =+G51 -> MIFRS | H62: MIFRS | I62: MIFRS | J62: MIFRS
A63: Pole Rental - Bell/Rogers/Cogeco/Blink | D63: 150186 | E63: =+E18 -> 150408 | F63: 151415 | G63: 151415 | H63: 150118.92 | I63: 154966 | J63: 156515
A66: etc.1
A68: Total | D68: =SUM(D63:D67) -> 150186 | E68: 150408 | F68: 151415 | G68: =SUM(G63:G67) -> 151415 | H68: 150118.92 | I68: 154966 | J68: 156515
A70: Account 4215 - Other Operating Income
D71: =+D60 -> 2011 Actual | E71: =+E60 -> 2012 Actual | F71: 2013 Actual² | G71: =+G60 -> Actual Year² | H71: Actual Year² | I71: Bridge Year² | J71: Test Year
D72: =+D61 -> 2011 | E72: =+E61 -> 2012 | F72: 2013 | G72: =+G61 -> 2013 | H72: 2014 | I72: 2015 | J72: 2016
A73: Reporting Basis | D73: =+D62 -> CGAAP | E73: =+E62 -> CGAAP | F73: CGAAP | G73: =+G62 -> MIFRS | H73: MIFRS | I73: MIFRS | J73: MIFRS
A74: SSS Administration Income | J74: =+J19 -> 111495
A76: (for 2011-2015 SSS included in a/c 4080)
A77: etc.1
A79: Total | D79: =SUM(D74:D78) -> 0 | E79: 0 | F79: 0 | G79: =SUM(G74:G78) -> 0 | H79: 0 | I79: 0 | J79: 111495
A80: Account 4225 - Late Payment Charges
D81: =+D60 -> 2011 Actual | E81: =+E60 -> 2012 Actual | F81: 2013 Actual² | G81: =+G60 -> Actual Year² | H81: Actual Year² | I81: Bridge Year² | J81: Test Year
D82: =+D61 -> 2011 | E82: =+E61 -> 2012 | F82: 2013 | G82: =+G61 -> 2013 | H82: 2014 | I82: 2015 | J82: 2016
A83: Reporting Basis | D83: =+D62 -> CGAAP | E83: =+E62 -> CGAAP | F83: CGAAP | G83: =+G62 -> MIFRS | H83: MIFRS | I83: MIFRS | J83: MIFRS
A84: Customer late payment charges | D84: 161220 | E84: 170412 | F84: 197390 | G84: 197390 | H84: 174673.44 | I84: 182084 | J84: 191188
A87: etc.1
A89: Total | D89: =SUM(D84:D88) -> 161220 | E89: 170412 | F89: 197390 | G89: =SUM(G84:G88) -> 197390 | H89: 174673.44 | I89: 182084 | J89: 191188
A91: Account 4235 - Miscellaneous Service Revenues from Non-Utility Operations
D92: =+D81 -> 2011 Actual | E92: =+E81 -> 2012 Actual | F92: 2013 Actual² | G92: =+G81 -> Actual Year² | H92: Actual Year² | I92: Bridge Year² | J92: Test Year
D93: =+D82 -> 2011 | E93: =+E82 -> 2012 | F93: 2013 | G93: =+G82 -> 2013 | H93: 2014 | I93: 2015 | J93: 2016
A94: Reporting Basis | D94: =+D83 -> CGAAP | E94: =+E83 -> CGAAP | F94: CGAAP | G94: =+G83 -> MIFRS | H94: MIFRS | I94: MIFRS | J94: MIFRS
A95: Collection Charges | D95: 285319 | E95: 222267 | F95: 315446 | G95: 315446 | H95: 355770 | I95: 348744 | J95: 363995
A96: Reconnection Charges | D96: 6425 | E96: 6472 | F96: 12385 | G96: 12385 | H96: 17310 | I96: 17875 | J96: 18525
A97: Occupancy Charges | D97: 198510 | E97: 232110 | F97: 256470 | G97: 256470 | H97: 197070 | I97: 195450 | J97: 232223
A98: Lawyer's Certificates | D98: 872 | E98: 705 | F98: 544 | G98: 544 | H98: 750 | I98: 750 | J98: 750
A99: Off Cycle Meter Reads | D99: 1740 | E99: 1170 | F99: 2100 | G99: 2100 | H99: 2730 | I99: 2500 | J99: 2500
A100: Interval Meter Reads | D100: 27240 | E100: 27360 | F100: 64440 | G100: 64440 | H100: 66780 | I100: 60000 | J100: 60000
A102: Total | D102: =SUM(D95:D101) -> 520106 | E102: 490084 | F102: 651385 | G102: =SUM(G95:G101) -> 651385 | H102: 640410 | I102: 625319 | J102: 677993
A104: Account 4335 - Gain on Disposition of Utility or Other Property
D105: =+D92 -> 2011 Actual | E105: =+E92 -> 2012 Actual | F105: 2013 Actual² | G105: =+G92 -> Actual Year² | H105: Actual Year² | I105: Bridge Year² | J105: Test Year
D106: =+D93 -> 2011 | E106: =+E93 -> 2012 | F106: 2013 | G106: =+G93 -> 2013 | H106: 2014 | I106: 2015 | J106: 2016
A107: Reporting Basis | D107: =+D94 -> CGAAP | E107: =+E94 -> CGAAP | F107: CGAAP | G107: =+G94 -> MIFRS | H107: MIFRS | I107: MIFRS | J107: MIFRS
A108: Truck #8
A109: Truck # 30
A110: Trailer
A111: Miscellaneous | H111: 1200 | I111: 0 | J111: 0
A112: Truck # 29 | D112: 1151
A113: Mail Machine | D113: 442
A114: Truck # 33 | E114: 2012
A115: Truck # 26 | F115: 25000 | G115: 25000
A116: etc.1
A118: Total | D118: =SUM(D108:D117) -> 1593 | E118: 2012 | F118: 25000 | G118: =SUM(G108:G117) -> 25000 | H118: 1200 | I118: 0 | J118: 0
A120: Account 4375/4380 - Revenue/Expenses from Non-Rate Regulated Activities
D121: =+D105 -> 2011 Actual | E121: =+E105 -> 2012 Actual | F121: 2013 Actual² | G121: =+G105 -> Actual Year² | H121: Actual Year² | I121: Bridge Year² | J121: Test Year
D122: =+D106 -> 2011 | E122: =+E106 -> 2012 | F122: 2013 | G122: =+G106 -> 2013 | H122: 2014 | I122: 2015 | J122: 2016
A123: Reporting Basis | D123: =+D107 -> CGAAP | E123: =+E107 -> CGAAP | F123: CGAAP | G123: =+G107 -> MIFRS | H123: MIFRS | I123: MIFRS | J123: MIFRS
A124: OPA Programs - Revenue | D124: 527378 | E124: 443399 | F124: 320525 | G124: 320525 | H124: 920720.97 | I124: 0 | J124: 0
A125: OPA Programs - Expenses | D125: -412129 | E125: -429875 | F125: -300681 | G125: -300681 | H125: -920720.97 | I125: 0 | J125: 0
A127: etc.1
A129: Total | D129: =SUM(D124:D128) -> 115249 | E129: 13524 | F129: 19844 | G129: =SUM(G124:G128) -> 19844 | H129: 0 | I129: 0 | J129: 0
A131: Account 4390 - Miscellaneous Non Operating Income
D132: =+D121 -> 2011 Actual | E132: =+E121 -> 2012 Actual | F132: 2013 Actual² | G132: =+G121 -> Actual Year² | H132: Actual Year² | I132: Bridge Year² | J132: Test Year
D133: =+D122 -> 2011 | E133: =+E122 -> 2012 | F133: 2013 | G133: =+G122 -> 2013 | H133: 2014 | I133: 2015 | J133: 2016
A134: Reporting Basis | D134: =+D123 -> CGAAP | E134: =+E123 -> CGAAP | F134: CGAAP | G134: =+G123 -> MIFRS | H134: MIFRS | I134: MIFRS | J134: MIFRS
A135: Region Water & Sewage Fees | D135: 517574 | E135: 477035 | F135: 519884 | G135: 519884 | H135: 552475 | I135: 588075 | J135: 626579
A136: Sale of Scrap Metal | D136: 69174 | E136: 51148 | F136: 24659 | G136: 24659 | H136: 48466 | I136: 15000 | J136: 15000
A137: Statement of Account | D137: 90 | H137: 45 | I137: 0 | J137: 0
A138: NSF Charges | D138: 5730 | E138: 5250 | F138: 4200 | G138: 4200 | H138: 4680 | I138: 4998 | J138: 5248
A139: Miscellaneous | D139: 6069 | E139: 5583 | F139: 5410 | G139: 5410 | H139: 8198 | I139: 5828 | J139: 5828
A140: Total | D140: =SUM(D135:D139) -> 598637 | E140: 539016 | F140: 554153 | G140: =SUM(G135:G139) -> 554153 | H140: 613864 | I140: 613901 | J140: 652655
A142: Account 4405 - Interest and Dividend Income
D143: =+D132 -> 2011 Actual | E143: =+E132 -> 2012 Actual | F143: 2013 Actual² | G143: =+G132 -> Actual Year² | H143: Actual Year² | I143: Bridge Year² | J143: Test Year
D144: =+D133 -> 2011 | E144: =+E133 -> 2012 | F144: 2013 | G144: =+G133 -> 2013 | H144: 2014 | I144: 2015 | J144: 2016
A145: Reporting Basis | D145: =+D134 -> CGAAP | E145: =+E134 -> CGAAP | F145: CGAAP | G145: =+G134 -> MIFRS | H145: MIFRS | I145: MIFRS | J145: MIFRS
A146: Interest Income | D146: 51168 | E146: 61537.53 | F146: 54255.54 | G146: 54255.54 | H146: 79639 | I146: 78033 | J146: 78033
A147: Interest Earned on deferral & variance accts. | D147: -12629 | E147: 2621.07 | F147: 35089.04 | G147: 35089.04 | H147: 44219 | I147: 25000 | J147: 10000
A149: etc.1
A151: Total | D151: =SUM(D146:D150) -> 38539 | E151: 64158.6 | F151: 89344.58 | G151: =SUM(G146:G150) -> 89344.58 | H151: 123858 | I151: 103033 | J151: 88033
A152: Notes:
A153: 1 | B153: List and specify any other interest revenue.
A154: 2 | B154: In the transition year to IFRS, the applicant is to present information in both MIFRS and CGAAP. For the typical applicant that adopted IFRS on January 1, 2015, 2014 must be presented in both a CGAAP and MIFRS basis.

Sheet App_2-I LF_CDM
G1: File Number: | H1: =EBNUMBER -> EB-2015-0089
G2: Exhibit: | H2: 3
G3: Tab:
G4: Schedule: | H4: Table 3-9
G5: Page: | H5: 18
G7: Date: | H7: Aug 28, 2015
A9: Appendix 2-I
A10: Load Forecast CDM Adjustment Work Form (2016)
A12: 2014 is the last year of the current four year (2011-2014) CDM program, and 2015 is the first year of a new six year (2015-2020) CDM program, per the Ministerial directives of March 31, 2014. With 2016, there is a need to recognize the full year impact of the current 2011-2014 CDM program, as well as to estimate reasonable impacts for each year for the new 2015-2020 CDM program. These are combined to estimate the adjustment for CDM program impacts on the 2016 load forecast.
A14: Appendix 2-I was developed to help determine what would be the amount of CDM savings needed in each year to cumulatively achieve the four year 2011-2014 CDM target. This then determined the amount of kWh (and with translation, kW of demand) savings that were converted in dollars balances for the LRAMVA, and also to determine the related adjustment to the load forecast to account for OPA-reported savings. Beginning for the 2015 year, it has been adjusted because of the persistence of 2011-2014 CDM programs will be an adjustment to the load forecast in addition to the estimated savings for the first year (2015) for the new 2015-2020 CDM plan.
A16: It is assumed that the new six year (2015-2020) CDM program will work similar to the existing 2011-2014 CDM program, meaning that distributors will offer programs each year that, cumulatively over the six years (from January 1, 2015 to December 31, 2020) will cumulatively achieve the new six year CDM target. This is the approach contemplated in the Ministerial directive letters of March 31, 2014 to the Board and to the OPA. Thus, distributors will be able to offer programs on a basis so that cumulatively over the period, the impacts, including persistence, of the CDM programs will accumulate towards achieving each distributor's 2015-2020 CDM target.
A18: With this approach, it is necessary to account for estimated savings for the last year of the current program, particularly the estimated savings for new CDM programs offered in 2014, as well as the estimated savings for new CDM programs that the distributor will offer in 2015 towards achievement of the new six year (2015-2020) CDM program. This necessitates expansion of this Appendix 2-I to deal with both the 2011-2014 and 2015-2020 CDM plans. It is expected that this approach will be updated each year.
A20: 2011-2014 CDM Program - 2014, last year of the current CDM plan
A22: Input the 2011-2014 CDM target in Cell B21.
A24: Input the measured results for 2011 CDM programs for each of the years 2011 and persistence into 2012, 2013 and 2014 into cells B31 to E31. These results are taken from the final 2011 CDM Report issued by the OPA for that distributor in the fall of 2012.
A26: Measured results for 2012 CDM programs for each of the years 2012 and persistence into 2013 and 2014 are input into cells C32 to E32. These results are taken from the final 2012 CDM Report issued by the OPA for that distributor in the fall of 2013.
A28: Measured results for 2013 CDM programs for each of the years 2013 and persistence into 2014 are input into cells C33 to E33. These results are taken from the final 2013 CDM Report issued by the OPA for that distributor in the fall of 2014. Until that report is issued, the distributor should use the results from the preliminary 2013 CDM Report issued in the spring of 2014.
A30: Measured results for 2014 CDM programs for each of the years 2013 and persistence into 2014 are input into cells C33 to E33. These results are taken from the final 2013 CDM Report issued by the OPA for that distributor in the fall of 2014. Until that report is issued, the distributor should use the results from the preliminary 2013 CDM Report issued in the spring of 2014. The distributor also needs to input the persistence of 2014 CDM programs into 2015 and 2016 in cells G45 and G46.
A33: 4 Year (2011-2014) kWh Target: | G33: Persistence of 2014 CDM Program into 2015 and 2016
A34: 33500000
B35: 2011 | C35: 2012 | D35: 2013 | E35: 2014 | F35: Total | G35: 2015 | H35: 2016 | K35: =B35 -> 2011 | L35: =C35 -> 2012 | M35: =D35 -> 2013 | N35: =E35 -> 2014
A36: 2011 CDM Programs | B36: =B42/$F$46 -> 0.1227904502 | C36: =C42/$F$46 -> 0.1223541691 | D36: 0.1223541691 | E36: 0.1223541691 | F36: =SUM(B36:E36) -> 0.4898529574 | J36: =A36 -> 2011 CDM Programs | K36: =50% -> 0.5 | L36: 1 | M36: 1 | N36: 1
A37: 2012 CDM Programs | C37: 0.06264097528 | D37: 0.06248189874 | E37: 0.06248189874 | F37: =SUM(B37:E37) -> 0.1876047728 | J37: =A37 -> 2012 CDM Programs | L37: 0.5 | M37: 1 | N37: 1
A38: 2013 CDM Programs | D38: 0.1010251363 | E38: 0.1007715835 | F38: 0.2017967198 | J38: =A38 -> 2013 CDM Programs | M38: 0.5 | N38: 1
A39: 2014 CDM Programs | E39: 0.1207455501 | F39: 0.1207455501 | J39: =A39 -> 2014 CDM Programs | N39: 0.5
A40: Total in Year | B40: =SUM(B36:B39) -> 0.1227904502 | C40: =SUM(C36:C39) -> 0.1849951443 | D40: 0.2858612041 | E40: 0.4063532014 | F40: =SUM(B40:E40) -> 1
A41: kWh
A42: 2011 CDM Programs | B42: 3748324 | C42: 3735006 | D42: 3735006 | E42: 3735006 | F42: =SUM(B42:E42) -> 14953342
A43: 2012 CDM Programs | C43: 1912190 | D43: 1907334 | E43: 1907334 | F43: =SUM(B43:E43) -> 5726858
